Workbook

Sheet Sommaire
D1: Promotion de l’Electrification Rurale et de l’Approvisionnement en Combustibles Domestiques (PERACOD)
D2: Electrification Rurale Sénégal (ERSEN)
D4: BUSINESS PLAN OPÉRATEUR PROJET ERSEN
C7: PLAN | D7: 1. Hypothèses
D8: - Hypothèses d'investissements
D9: - Hypothèses d'exploitation
D11: 2. Lots
D12: - Détail du lot d'exploitation considéré
D13: - Nombre d'abonnements souscrits sur le lot en exploitation
D15: 3. Investissements
D16: - Coûts d'investissement par solution technique
D17: - Coûts d'investisssement par Communauté Rurale
D18: - Participations financières à l'investissement initial global
D19: - Total des investissements
D21: 4. Revenus d'exploitation
D22: - Installations intérieures
D23: - Droits de raccordement initial
D24: - Redevances mensuelles
D26: 5. Dépenses d'exploitation
D27: - Matières et fournitures
D28: - Services extérieurs
D29: - Frais de personnel
D30: - Renouvellement des équipements et matériel
D31: - Dotations aux amortissements
D33: 6. Compte de résultat
D34: - Sans subvention
D35: - Avec subvention
D37: 7. Analyse économique et financière
D38: - Capacités d'autofinancement
D39: - Ratios financiers
D40: - Valeur Actuelle Nette et Taux de Rendement Interne
E41: Démarrer la simulation

Sheet Hypothèses
A2: Hypothèses d'Investissements | J2: Hypothèses d'Exploitation
A5: Durées de vie | J5: Dépenses liées à la maintenance
A7: Durée de vie d'une batterie de SHS | E7: 8 | F7: Années | J7: maintenance des centrales | O7: 0.005 | P7: de l'investissement initial
A8: Durée de vie d'une batterie de centrale hybride | E8: 8 | F8: Années
A9: Durée de vie d'une batterie de lampadaire | E9: 10 | F9: Années | J9: maintenance d'un système SHS | O9: 0.01 | P9: du cout d'un système
A11: Durée de vie du régulateur de charge SHS | E11: 6 | F11: Années | J11: maintenance des lampadaires | O11: 0.01 | P11: du cout d'un lampadaire
A12: Durée de vie de l'onduleur-régulateur de centrale hybride | E12: 10 | F12: Années
J13: maintenance annuelle du réseau BT | O13: 100000 | P13: FCFA
A14: Durée de vie d'une lampe : | E14: 8 | F14: Années
A15: Durée de vie d'une lampe de lampadaire : | E15: 6 | F15: Années
A17: Durée de vie du groupe électrogène : | E17: 6 | F17: Années | J17: Augmentation annuelle de la consommation du groupe | O17: 0.005 | P17: par an
J18: Coût du litre de gasoil en 2011 | O18: 798 | P18: FCFA
A19: Durée de vie du réseau BT | E19: 15 | F19: Années
A21: Durée de vie d'une moto | E21: 5 | F21: Années
J22: Charges liées au personnel
A23: Durée de vie d'un ordinateur | E23: 5 | F23: Années
J24: 1 President DG | O24: 4000000 | P24: FCFA par an | R24: =O24/12 -> 333333.3333
A25: Durée de vie des installations de génie civil | E25: 25 | F25: années | O25: 0.15 | P25: du temps | R25: =O25/12 -> 0.0125
A26: Durée de vie des panneaux solaires | E26: 25 | F26: années | R26: =O26/12 -> 0
A27: Durée de vie des installations intérieures | E27: 25 | F27: années | J27: 1 Agent administratif et comptable | O27: 2000000 | P27: FCFA par an | R27: =O27/12 -> 166666.6667
O28: 0.15 | P28: du temps | R28: =O28/12 -> 0.0125
R29: 0
J30: 1 responsable commercial et secretaire | O30: 3200000 | P30: FCFA par an | R30: 266666.6667
A31: Eléments de coûts pour les kits solaires individuels | O31: 0.15 | P31: du temps | R31: 0.0125
R32: 0
A33: Cout d'une batterie SHS : | E33: 154150 | F33: FCFA | J33: 1 agent d'ordonnancement | O33: 800000 | P33: FCFA par an | R33: 66666.66667
A34: Cout d'un régulateur SHS: | E34: 7871 | F34: FCFA | O34: 0.15 | P34: du temps | R34: 0.0125
A35: Cout d'une lampe SHS : | E35: 15743 | F35: FCFA | R35: 0
J36: 02 techniciens/chef de centre | O36: 2000000 | P36: FCFA par an | R36: 166666.6667
O37: 0.15 | P37: du temps | R37: 0.0125
R38: 0
A39: Eléments de coûts pour les centrales hybrides | J39: 02 agents de recouvrement | O39: 1500000 | P39: FCFA par an | R39: 125000
O40: 0.15 | P40: du temps | R40: 0.0125
A41: Cout du parc de batteries : | E41: 4002505.3 | F41: FCFA
A42: Cout de l'onduleur-régulateur | E42: 2505270.34 | F42: FCFA
A43: Cout du groupe électrogene 10 kva | E43: 4591699 | F43: FCFA | J43: Charges sociales | O43: 0.25
A44: Cout du champs photovoltaique | E44: 5352609.12 | F44: FCFA
A45: Cout du reseau BT pour un village de 750 habitants | E45: 13119140 | F45: FCFA
J47: Frais de fonctionnement
A49: Eléments de coûts pour les lampadaires solaires | J49: Consommation carburant véhicules | O49: =100000 -> 100000 | P49: FCFA par an | R49: =1/7 -> 0.1428571429
J50: Entretien des véhicules | O50: =80000 -> 80000 | P50: FCFA par an
A51: Cout d'une batterie de lampadaire | E51: 237390.84 | F51: FCFA | J51: Fourniture de bureau | O51: =150000 -> 150000 | P51: FCFA par an
A52: Cout d'un régulateur de lampadaire | E52: 26894.24 | F52: FCFA
A53: Cout d'une lampe de lampadaire | E53: 40013 | F53: FCFA
J55: Actualisations
A57: Eléments de coûts d'investissement initial | J57: Augmentation du coût de la masse salariale | O57: 0.01 | P57: par an
J58: Augmentation du coût du carburant | O58: 0.005 | P58: par an
A59: Cout d'un système SHS domestique | E59: 258447 | F59: FCFA | J59: Augmentation du coût des frais de fonctionnement | O59: 0.02 | P59: par an
A60: Cout d'un système SHS socio-communautaire | E60: 258447 | F60: FCFA | J60: Taux d'actualisation | O60: 0.1 | P60: par an
A61: Cout d'une mini-centrale+ reseau BT | E61: 36053423.63 | F61: FCFA
A62: Cout d'un lampadaire | E62: 583037.54 | F62: FCFA
J64: Taux de créances irrecouvrables | O64: 0.16 | P64: des factures de consommation
A68: Montant de l'investissement initial global | E68: 0 | F68: FCFA | J68: Impôts et taxes
A70: Niveau de participation du projet | E70: 0.8 | F70: =E68*E70 -> 0 | J70: Prélèvement fiscal | O70: 0.05 | P70: des revenus bruts d'exploitation
A71: Niveau de participation des usagers domestiques | E71: 0.1 | F71: =E68*E71 -> 0 | J71: Impôts sur les sociétés | O71: 0.25 | P71: du résultat d'exploitation imposable
A72: Niveau de participation de l'opérateur | E72: 0.1 | F72: =E68*E72 -> 0 | T72: =180*84 -> 15120
A73: Niveau de participation de la CR | F73: =E68*E73 -> 0
J75: Aléas | O75: 0.01 | P75: des autres coûts de fonctionnement
A77: Eléments de coûts du génie civil
J78: Montant des redevances initiales | P78: Montant des redevances mensuelles | V78: Remboursement préfinancement des installations intérieures
A80: partie PV | C80: Puissance de champs | E80: 5 | F80: kWc | J80: Abonné Domestique niveau 1 : | M80: 20000 | N80: FCFA | P80: Abonné Domestique niveau 1 : | S80: 3300 | T80: FCFA | V80: Abonné Domestique niveau 1 : | Y80: 532 | Z80: FCFA
C81: Cout d'investissement | E81: 5352609.12 | F81: FCFA | J81: Abonné Domestique niveau 2 : | M81: 37500 | N81: FCFA | P81: Abonné Domestique niveau 2 : | S81: 5750 | T81: FCFA | V81: Abonné Domestique niveau 2 : | Y81: 637 | Z81: FCFA
J82: Abonné Domestique niveau 3 : | M82: 65000 | N82: FCFA | P82: Abonné Domestique niveau 3 : | S82: 10650 | T82: FCFA | V82: Abonné Domestique niveau 3 : | Y82: 1065 | Z82: FCFA
J83: Abonné Domestique niveau 4 : | M83: 100000 | N83: FCFA | P83: Abonné Domestique niveau 4 solaire: | S83: 99 | T83: FCFA/WC | V83: Abonné Domestique niveau 4 : | Y83: 1162 | Z83: FCFA
A84: partie groupe électrogène | C84: Puissance de groupe | E84: 11 | F84: kVA | R84: + | S84: 1400 | T84: FCFA | X84: +
C85: Cout d'investissement | E85: 4591699 | F85: FCFA
J86: Abonné Communautaire niveau 1 : | M86: 20000 | N86: FCFA | P86: Abonné Domestique niveau 4 réseau | S86: 120 | T86: FCFA/kWh | V86: Abonné Communautaire niveau 1 : | Y86: 532 | Z86: FCFA
J87: Abonné Communautaire niveau 2 : | M87: 37500 | N87: FCFA | R87: + | S87: 1600 | T87: FCFA | V87: Abonné Communautaire niveau 2 : | Y87: 637 | Z87: FCFA
J88: Abonné Communautaire niveau 3 : | M88: 65000 | N88: FCFA | V88: Abonné Communautaire niveau 3 : | Y88: 1065 | Z88: FCFA
A89: Eléments de coûts liés aux installations intérieures pour mini-réseaux | J89: Abonné Communautaire niveau 4 : | M89: 100000 | N89: FCFA | P89: Abonné Communautaire niveau 1 : | S89: 3300 | T89: FCFA | V89: Abonné Communautaire niveau 4 : | Y89: 1162 | Z89: FCFA
P90: Abonné Communautaire niveau 2 : | T90: FCFA
A91: Pour un service électrique de type 1 | E91: 64500 | F91: FCFA | J91: Eclairage Public | M91: 20000 | N91: FCFA | P91: Abonné Communautaire niveau 3 : | T91: FCFA
A92: Pour un service électrique de type 2 | E92: 88300 | F92: FCFA | P92: Abonné Communautaire niveau 4 : | T92: FCFA
A93: Pour un service électrique de type 3 | E93: 149800 | F93: FCFA | J93: Abonné moulin | M93: 100000 | N93: FCFA | T93: FCFA/WC
A94: Pour un service électrique de type 4 | E94: 216900 | F94: FCFA | J94: Abonné boutique | M94: 100000 | N94: FCFA | P94: Eclairage Public | S94: 3300 | T94: FCFA
J95: Abonné atelier couture | M95: 100000 | N95: FCFA
J96: Abonné froid | M96: 100000 | N96: FCFA | P96: Abonné moulin | S96: 20000 | T96: FCFA
J97: Abonné atelier menuiserie | M97: 100000 | N97: FCFA | P97: Abonné boutique | S97: 20000 | T97: FCFA
A98: Eléments de coûts liés au raccordement / interface usagers | P98: Abonné atelier couture | S98: 20000 | T98: FCFA
P99: Abonné froid | S99: 20000 | T99: FCFA
A100: Câblage/bracnchement usager monophasé | E100: 35750 | F100: FCFA | P100: Abonné atelier menuiserie | S100: 20000 | T100: FCFA
A101: Panneau client monophasé avec limiteiur | E101: 65000 | F101: FCFA | J101: Eléments de coût liés à l'installation intérieure d'un SHS
A102: Panneau client monophasé avec gestionnaire | E102: 135000 | F102: FCFA
J103: Service électrique de type 1 | M103: 50000 | N103: FCFA | P103: Redevance tableau BT | S103: 231 | T103: FCFA
A106: Eléments de coûts liés aux installations intérieures | G106: Raccordement / Interface usagers | L106: Système 50 Wc
A108: Type 1 | G108: Câblage/branchement usager monophasé | L108: Description | M108: Unit | N108: Quant | O108: PU | P108: PT
A109: désignation | B109: Unit | C109: Ouant | D109: PU | E109: PT | G109: description | H109: Quant | I109: PU | J109: PT | L109: module +support | M109: u | N109: 1 | O109: 235000 | P109: =O109*N109 -> 235000
A110: câbles | B110: ml | C110: 50 | D110: 100 | E110: =C110*D110 -> 5000 | G110: Cable 2 x 16² ( m ) | H110: 30 | I110: 500 | J110: =SUM(I110*H110) -> 15000 | L110: régulateur | M110: u | N110: 1 | O110: 28500 | P110: =O110*N110 -> 28500
A111: interrupteurs | B111: u | C111: 5 | D111: 1500 | E111: 7500 | G111: PA 25 | H111: 2 | I111: 2500 | J111: =SUM(I111*H111) -> 5000 | L111: Batterie | M111: u | N111: 1 | O111: 65000 | P111: =O111*N111 -> 65000
A112: boîtes de dérivation | B112: u | C112: 6 | D112: 500 | E112: 3000 | G112: Connecteurs CPB1 CT70 | H112: 2 | I112: 1800 | J112: 3600 | L112: lampes | M112: u | N112: 5 | O112: 6000 | P112: =O112*N112 -> 30000
A113: prise | B113: u | C113: 1 | D113: 2500 | E113: 2500 | G113: BQC | H113: 1 | I113: 1000 | J113: 1000 | L113: accessoires | M113: ens | N113: ens | O113: 20000 | P113: =O113 -> 20000
A114: douilles | B114: u | C114: 5 | D114: 1000 | E114: 5000 | G114: Colliers rilsan | H114: 5 | I114: 150 | J114: 750 | L114: installation | M114: ff | N114: ff | O114: 30000 | P114: =O114 -> 30000
A115: Ampoules économiques | B115: u | C115: 5 | D115: 2000 | E115: 10000 | G115: Brides de scellement | H115: 2 | I115: 400 | J115: 800 | L115: Total HT HD | P115: =SUM(P109:P114) -> 408500
A116: accessoires | B116: ens | C116: ens | D116: 5000 | E116: 5000 | G116: Gaine cyntroplast ( m ) | H116: 4 | I116: 400 | J116: 1600
A117: total fournitures | E117: =SUM(E110:E116) -> 38000 | G117: Potelet 45 x 45 | H117: 1 | I117: 8000 | J117: =I117*H117 -> 8000
A118: pose | B118: ff | C118: ff | D118: 12000 | E118: 12000 | G118: Total FCFA | J118: =SUM(J110:J117) -> 35750
A119: total installations intérieures FCFA | E119: =E117+E118 -> 50000
A121: Type 2 | G121: panneau client monophasé avec compteur
A122: désignation | B122: Unit | C122: Quant | D122: PU | E122: PT | G122: description | H122: Quant | I122: PU | J122: PT
A123: câbles | B123: ml | C123: 70 | D123: 100 | E123: =C123*D123 -> 7000 | G123: Disjoncteur 5/15 | H123: 1 | I123: 15000 | J123: =I123*H123 -> 15000
A124: interrupteurs | B124: U | C124: 7 | D124: 1500 | E124: 10500 | G124: Tableau compteur | H124: 1 | I124: 2000 | J124: =I124*H124 -> 2000
A125: boîtes de dérivation | B125: U | C125: 7 | D125: 500 | E125: 3500 | G125: 4 Vis + 2 Cache Vis | H125: 1 | I125: 1000 | J125: =I125*H125 -> 1000
A126: prise | B126: U | C126: 1 | D126: 2500 | E126: 2500 | G126: Coupe circuit 32 A | H126: 1 | I126: 3500 | J126: =I126*H126 -> 3500
A127: douilles | B127: U | C127: 7 | D127: 1000 | E127: 7000 | G127: Total FCFA | J127: =SUM(J123:J126) -> 21500
A128: Ampoules économiques | B128: U | C128: 7 | D128: 2000 | E128: 14000 | G128: location du compteur: modlités à définir avec l'ASER
A129: accessoires | B129: ens | C129: 6000 | D129: 6000 | E129: 6000
A130: total fournitures | E130: =SUM(E123:E129) -> 50500
A131: pose | B131: ff | C131: ff | D131: 17500 | E131: =2500*7 -> 17500 | G131: panneau client monophasé au forfait
A132: total installations intérieures FCFA | E132: =E130+E131 -> 68000 | G132: description | H132: Quant | I132: PU | J132: PT
G133: limiteur de puissance | H133: 1 | I133: 15000 | J133: =I133*H133 -> 15000
A134: Type 3 | G134: accessoires | H134: 1 | I134: 5000 | J134: =I134*H134 -> 5000
A135: désignation | B135: Unit | C135: Quant | D135: PU | E135: PT | G135: Total FCFA | J135: =SUM(J133:J134) -> 20000
A136: câbles | B136: ml | C136: 120 | D136: 100 | E136: =D136*C136 -> 12000
A137: interrupteurs | B137: U | C137: 12 | D137: 1500 | E137: 18000
A138: boîtes de dérivation | B138: U | C138: 12 | D138: 500 | E138: 6000
A139: prise | B139: U | C139: 2 | D139: 2500 | E139: 5000
A140: douilles | B140: U | C140: 12 | D140: 1000 | E140: 12000
A141: Ampoules économiques | B141: U | C141: 12 | D141: 2000 | E141: 24000
A142: accessoires | B142: ens | C142: 8000 | D142: 8000 | E142: 8000
A143: total fournitures | E143: =SUM(E136:E142) -> 85000
A144: pose | B144: ff | C144: ff | D144: 30000 | E144: 30000
A145: total installations intérieures FCFA | E145: =E143+E144 -> 115000
A147: Type 4
A148: désignation | B148: Unit | C148: Quant | D148: PU | E148: PT
A149: câbles | B149: ml | C149: 160 | D149: 100 | E149: =C149*D149 -> 16000
A150: interrupteurs | B150: U | C150: 16 | D150: 1500 | E150: 24000
A151: boîtes de dérivation | B151: U | C151: 16 | D151: 500 | E151: 8000
A152: prise | B152: U | C152: 3 | D152: 2500 | E152: 7500
A153: douilles | B153: U | C153: 16 | D153: 1000 | E153: 16000
A154: Ampoules économiques | B154: U | C154: 16 | D154: 2000 | E154: 32000
A155: accessoires | B155: ens | C155: ens | D155: 27000 | E155: 27000
A156: total fournitures | E156: =SUM(E149:E155) -> 130500
A157: pose | B157: ff | C157: ff | D157: 40000 | E157: 40000
A158: total installations intérieures FCFA | E158: =E156+E157 -> 170500
G160: Page suivante
A163: Hypothèses Générales
A165: Hypo populations et ménages + année ciblée
A166: année 0 | B166: année ciblée | C166: taux 4 croi_pop | D166: taux desserte
A167: 2020 | B167: 2023 | C167: 0.02 | D167: 0.8
A169: 1EP/8 ménages
A172: Scénraio DC
A174: Données contractuelles | L174: Conso moyenne 2020 (Wh/j) | O174: Répartition demande par niveau de service
A175: Lampadaire | C175: Niveau de service 1 | E175: Niveau de service 2 | G175: Niveau de service 3 | I175: Niveau de service 4 | O175: 0.33
A176: Puissance | B176: Consom. | C176: Puissance | D176: Consom. | E176: Puissance | F176: Consom. | G176: Puissance | H176: Consom | I176: Puissance | J176: Consom. | L176: =O175*D178+O176*F178+O177*H178+O178*J178 -> 775.2 | O176: 0.21
A177: [W] | B177: [Wh/j] | C177: [W] | D177: [Wh/j] | E177: [W] | F177: [Wh] | G177: [W] | H177: [Wh/j] | I177: [W] | J177: [Wh] | O177: 0.27
A178: 30 | B178: =A178*6 -> 180 | C178: 50 | D178: 200 | E178: 90 | F178: 240 | G178: 180 | H178: 540 | I178: Sup. à 180 | J178: 2700 | O178: 0.19
A181: Scénraio DA
A183: Données actualisées moyenne des consommation actuelle sur l'échantillon
A184: Lampadaire | C184: Niveau de service 1 | E184: Niveau de service 2 | G184: Niveau de service 3 | I184: Niveau de service 4 | L184: =N191*D187+O191*F187+P191*H187+Q191*J187 -> 1146.45
A185: Puissance | B185: Consom. | C185: Puissance | D185: Consom. | E185: Puissance | F185: Consom. | G185: Puissance | H185: Consom | I185: Puissance | J185: Consom.
A186: [W] | B186: [Wh/j] | C186: [W] | D186: [Wh/j] | E186: [W] | F186: [Wh] | G186: [W] | H186: [Wh/j] | I186: [W] | J186: [Wh]
A187: 30 | B187: =A187*12 -> 360 | C187: 50 | D187: 167 | E187: 90 | F187: 399 | G187: 180 | H187: 484 | I187: Sup. à 180 | J187: 1596
A189: Données actualisées service 24h niveau équipement actuel | N189: N1 | O189: N2 | P189: N3 | Q189: N4
A190: Lampadaire | C190: Niveau de service 1 | E190: Niveau de service 2 | G190: Niveau de service 3 | I190: Niveau de service 4 | L190: Segmentation des Ménages non életrifiés | N190: 0.1 | O190: 0.21 | P190: 0.13 | Q190: 0.55
A191: Puissance | B191: Consom. | C191: Puissance | D191: Consom. | E191: Puissance | F191: Consom. | G191: Puissance | H191: Consom | I191: Puissance | J191: Consom. | L191: Changement de niveaux Ménages électrifés | N191: =8% -> 0.08 | O191: =15% -> 0.15 | P191: 0.14 | Q191: =0.59+0.04 -> 0.63
A192: [W] | B192: [Wh/j] | C192: [W] | D192: [Wh/j] | E192: [W] | F192: [Wh] | G192: [W] | H192: [Wh/j] | I192: [W] | J192: [Wh]
A193: 30 | B193: =A193*12 -> 360 | C193: 50 | D193: 180 | E193: 90 | F193: 480 | G193: 180 | H193: 781 | I193: Sup. à 180 | J193: 3181
A195: Données selon la consommation moyenne actuelle | F195: Service 24h niveau équipement actuel
A196: Structures | C196: Puissance (W) | D196: Energie (Wh) | F196: Structures | H196: Puissance (W) | I196: Energie (Wh)
A197: Ecole (N2) | C197: =E183 -> 0 | D197: =F183 -> 0 | F197: Ecole (N2) | H197: =E189 -> 0 | I197: =F189 -> 0
A198: Case de santé (N1) | C198: =C183 -> 0 | D198: =D183 -> 0 | F198: Case de santé (N1) | H198: =C189 -> 0 | I198: =D189 -> 0
A199: Poste de santé (N3) | C199: =G183 -> 0 | D199: =H183 -> 0 | F199: Poste de santé (N3) | H199: =G189 -> 0 | I199: =H189 -> 0
A200: Mosquée (N2) | C200: =E183 -> 0 | D200: =F183 -> 0 | F200: Mosquée (N2) | H200: =E189 -> 0 | I200: =F189 -> 0
A201: Maison communautaire (N2) | C201: =E183 -> 0 | D201: =F183 -> 0 | F201: Maison communautaire (N2) | H201: =E189 -> 0 | I201: =F189 -> 0
A204: Hypo Forces motrices Donnée actualisées
A205: Equipements | C205: Puissance (kW) | D205: Durée utilisation (h) | E205: Energie (kWh) | F205: pop de ef
A206: Moulin (1 moulin/1000 hbts) | C206: 4 | D206: 3 | E206: 12 | F206: 1000
A207: Menuiserie métallique (une (01) pour 1000 hbts) | C207: 4 | D207: 3 | E207: 12 | F207: 1000
A208: Tailleur (3 par village) | C208: 0.4 | D208: 8 | E208: 3.2
A209: Boutique (N4) (1 boutique 500 hbts) | C209: 0.2 | E209: 1.6 | F209: 500
A212: Scénraio DPP
A214: Hyphothèses selon DPP | L214: =N191*D218+F218*O191+P191*H218+J218*Q191 -> 4046.78
A215: Lampadaire | C215: Niveau de service 1 | E215: Niveau de service 2 | G215: Niveau de service 3 | I215: Niveau de service 4
A216: Puissance | B216: Consom. | C216: Puissance | D216: Consom. | E216: Puissance | F216: Consom. | G216: Puissance | H216: Consom | I216: Puissance | J216: Consom.
A217: [W] | B217: [Wh/j] | C217: [W] | D217: [Wh/j] | E217: [W] | F217: [Wh] | G217: [W] | H217: [Wh/j] | I217: [W] | J217: [Wh]
A218: 30 | B218: =A218*12 -> 360 | C218: 100 | D218: 334 | E218: 239 | F218: 1060 | G218: 290 | H218: 1740 | I218: 957 | J218: 5742
A221: Hyphothèses selon DPP
A222: Structures | C222: Puissance (W) | D222: Energie (Wh)
A223: Ecole (N2) | C223: 239 | D223: 1060
A224: Case de santé (N1) | C224: 100 | D224: 334
A225: Poste de santé (N3) | C225: 290 | D225: 1740
A226: Mosquée (N2) | C226: 239 | D226: 1060
A227: Maison communautaire (N2) | C227: 239 | D227: 1060
A229: HypoForces motrices DPP
A230: Equipements | C230: Puissance (kW) | D230: Durée utilisation (h) | E230: Energie (kWh) | F230: ref
A231: Moulin (1 moulin/1000 hbts) | C231: 6 | D231: 4 | E231: =C231*D231 -> 24 | F231: 1000
A232: Menuiserie métallique (une (01) pour 1000 hbts) | C232: 6 | D232: 4 | E232: =C232*D232 -> 24 | F232: 1000
A233: Tailleur (3 par village) | C233: 0.4 | D233: 8 | E233: =C233*D233 -> 3.2 | F233: 3
A234: Boutique (N4) (1 boutique 500 hbts) | C234: 0.2 | D234: 8 | E234: 1.6 | F234: 500
A239: Hypothèses d'exploitation

Sheet Inputs
C6: Liste des Opérateurs et MC pour lesquels nous avons considérés des inputs.
C8: Cette liste intgrera des liens actifs qui mènent aux feuilles d'inputs "coûts unitaires OP"

Sheet Inputs-EnergieR
A1: ENERGIE R
C6: NBRE ANNEES | E6: Total du Parc MC | F6: 10 | H6: Nb Abonnés 2020 | J6: 332
B7: 3 | H7: Moy Nrj /ab 2020
A10: INFORMATION SUR LES CHARGES | B10: 2017 | C10: 2018 | D10: 2019 | E10: Moyenne annuelle | F10: Moyenne /MC | I10: L’état des lieux à l’intérieur du périmètre des mini réseaux électriques fait ressortir (i) la demande concernant les ménages électrifiés suivant quatre niveaux de services (N1=33% ; N2=21% ; N3=27% ; N4=19%),
A11: Energie
A12: Carburant | B12: =1188000+276500+78000 -> 1542500 | C12: =1182000+236500+177700 -> 1596200 | D12: =223700+1480500+246240 -> 1950440 | E12: =+(B12+C12+D12)/$B$7 -> 1696380 | F12: =+E12/$F$6 -> 169638
A13: électricité | B13: =17470*6 -> 104820 | C13: =16870*6 -> 101220 | D13: =20321*6 -> 121926 | E13: =+(B13+C13+D13)/$B$7 -> 109322 | F13: =+E13/$F$6 -> 10932.2
A14: Salaires brut
A15: Services administratifs | B15: 287450 | C15: 387510 | D15: 374024 | E15: 349661.3333 | F15: 34966.13333
A16: Services commerciaux | E16: 0 | F16: 0
A17: Services techniques | B17: 780284 | C17: 587412 | D17: 689745 | E17: 685813.6667
A18: Services recouvrement | B18: =1129690+644301+1200000 -> 2973991 | C18: =806905+179000+2400000 -> 3385905 | D18: =709643+2400000 -> 3109643 | E18: 3156513 | F18: 315651.3
A19: Véhicules
A20: Carburant | B20: =478000+140500 -> 618500 | C20: =393000+87000+143590 -> 623590 | D20: =516200+101070 -> 617270 | E20: 619786.6667 | F20: 61978.66667
A21: Entretien et réparation | B21: =159000+258000 -> 417000 | C21: =171500+87000+100000 -> 358500 | D21: =57000+177500+100000 -> 334500 | E21: 370000 | F21: 37000
A22: Frais financiers
A23: Amortissement | E23: 0 | F23: 0
A24: Interêts bancaires | B24: 0 | C24: 0 | D24: 0
A25: Autres frais financiers | B25: =251000+16901 -> 267901 | C25: =144650+4000 -> 148650 | D25: 115400 | E25: 177317 | F25: 17731.7
A26: Communication
A27: téléphone, internet | B27: =120000+180000+58741 -> 358741 | C27: =120000+180000+14574 -> 314574 | D27: =120000+180000+211200 -> 511200 | E27: 394838.3333 | F27: 39483.83333
A28: Marketing, promotion
A29: Loyers
A30: Siège (quote part) | B30: =2124000+900000 -> 3024000 | C30: =7200000/2 -> 3600000 | D30: =7200000/2 -> 3600000 | E30: 3408000 | F30: 340800
A31: Structure décentralisées | B31: =1620000+720000 -> 2340000 | C31: =1620000+720000 -> 2340000 | D31: =1620000+720000 -> 2340000 | E31: 2340000 | F31: 234000
A32: Charges administratives diverses
A33: Informatique, papeterie, entretien, comptabilité, audit | B33: =1570000+456400+22300+177500+790200 -> 3016400 | C33: =1330000+288000+37000+270000+282000 -> 2207000 | D33: =1380000+435600+35700+330000+742900 -> 2924200 | E33: 2715866.667 | F33: 271586.6667
A34: Redevances
A35: Commune
A36: FER
A37: CRSE
A38: Télécommunications
A39: Autres
A40: Impôts et Taxes
A41: Impôts indirects (hors retenues à la source des salaires) | B41: 50000 | C41: 50000 | D41: 50000 | E41: 50000 | F41: 5000
A42: Impôts indirects (solde net) | B42: 31000 | C42: 37000 | D42: 41000 | E42: 36333.33333 | F42: 3633.333333
A43: Taxes | B43: 15700 | C43: 15700 | D43: 15700 | E43: 15700 | F43: 1570
A45: Information sur les revenues | B45: Total | C45: Total | D45: Total
A46: Sommes collectées auprés des Usagers domestiques | B46: =B48+B49+B50+B51 -> 27370800 | C46: =C48+C49+C50+C51 -> 20307050 | D46: =D48+D49+D50+D51 -> 18206600 | E46: 21961483.33 | F46: 2196148.333
E47: 0 | F47: 0
A48: S1 | B48: =3396000+5043300+2678550+1121500 -> 12239350 | C48: =1967600+4277100+2325850+1173050 -> 9743600 | D48: =2413000+4263200+974800+985700 -> 8636700 | E48: 10206550 | F48: 1020655
A49: S2 | B49: =3881000+1931600+355500 -> 6168100 | C49: =2188000+1524400+578000 -> 4290400 | D49: =2025000+1434100+548600 -> 4007700 | E49: 4822066.667 | F49: 482206.6667
A50: S2 | B50: =1511550+2392800+41500 -> 3945850 | C50: =325450+2074700+237900 -> 2638050 | D50: =148200+1860100+174900 -> 2183200 | E50: 2922366.667 | F50: 292236.6667
A51: S4 | B51: =2524500+2388000+105000 -> 5017500 | C51: =1066000+2265000+304000 -> 3635000 | D51: =949000+2255000+175000 -> 3379000 | E51: 4010500 | F51: 401050

Sheet Inputs-Enersa
A1: ENERSA
E6: Total du Parc MC | F6: 2
C8: NBRE ANNEES | D8: 3
A10: INFORMATION SUR LES CHARGES | B10: 2017 | C10: 2018 | D10: 2019 | E10: Moyenne annuelle | F10: Moyenne /MC
A11: Energie
A12: Carburant | B12: 1738550 | C12: 2921850 | D12: 4241850 | E12: =+(B12+C12+D12)/$D$8 -> 2967416.667 | F12: =+E12/$F$6 -> 1483708.333
A13: électricité | B13: 70168 | C13: 30000 | D13: 50000 | E13: =+(B13+C13+D13)/$D$8 -> 50056 | F13: =+E13/$F$6 -> 25028
A14: Salaires brut
A15: Services administratifs | B15: 5271425 | C15: 5271425 | D15: 5271425 | E15: =+(B15+C15+D15)/$D$8 -> 5271425 | F15: 2635712.5
A16: Services commerciaux | E16: =+(B16+C16+D16)/$D$8 -> 0 | F16: 0
A17: Services techniques | B17: 23273261 | C17: 6529076 | D17: 4839840 | E17: =+(B17+C17+D17)/$D$8 -> 11547392.33 | F17: 5773696.167
A18: Services recouvrement | E18: =+(B18+C18+D18)/$D$8 -> 0 | F18: 0
A19: Véhicules
A20: Carburant | B20: 1320000 | C20: 1320000 | D20: 1440000 | E20: =+(B20+C20+D20)/$D$8 -> 1360000 | F20: 680000
A21: Entretien et réparation | B21: 398000 | C21: 403600 | D21: 427500 | E21: =+(B21+C21+D21)/$D$8 -> 409700 | F21: 204850
A22: Frais financiers
A23: Amortissement | E23: =+(B23+C23+D23)/$D$8 -> 0 | F23: 0
A24: Interêts bancaires
A25: Autres frais financiers | B25: 311731 | C25: 291372 | D25: 251227 | E25: =+(B25+C25+D25)/$D$8 -> 284776.6667 | F25: 142388.3333
A26: Communication
A27: téléphone, internet | B27: 598523 | C27: 372400 | D27: 368900 | E27: =+(B27+C27+D27)/$D$8 -> 446607.6667 | F27: 223303.8333
A28: Marketing, promotion | C28: 155000 | D28: 209500 | E28: =+(B28+C28+D28)/$D$8 -> 121500 | F28: 60750
A29: Loyers
A30: Siège (quote part) | B30: 3494067 | C30: 1722530 | D30: 1410416 | E30: =+(B30+C30+D30)/$D$8 -> 2209004.333 | F30: 1104502.167
A31: Structure décentralisées | E31: =+(B31+C31+D31)/$D$8 -> 0 | F31: 0
A32: Charges administratives diverses
A33: Informatique, papeterie, entretien, comptabilité, audit | E33: =+(B33+C33+D33)/$D$8 -> 0 | F33: 0
A34: Redevances | E34: 0 | F34: 0
A35: Commune | E35: 0 | F35: 0
A36: FER | E36: 0 | F36: 0
A37: CRSE | E37: 0 | F37: 0
A38: Télécommunications | B38: 29926 | C38: 18970 | D38: 18445 | E38: 22447 | F38: 11223.5
A39: Autres
A40: Impôts et Taxes
A41: Impôts indirects (hors retenues à la source des salaires) | B41: 421000 | C41: 421000 | D41: 421000 | E41: =+(B41+C41+D41)/$D$8 -> 421000 | F41: 210500
A42: Impôts indirects (solde net) | E42: =+(B42+C42+D42)/$D$8 -> 0 | F42: 0
A43: Taxes | E43: =+(B43+C43+D43)/$D$8 -> 0 | F43: 0
A45: Information sur les revenues
A46: Sommes collectées auprés des Usagers domestiques | B46: 26790360 | C46: 17122066 | D46: 17032163 | E46: =+(B46+C46+D46)/$D$8 -> 20314863 | F46: 10157431.5
E47: 0 | F47: 0
A48: S1 | B48: 18217445 | C48: 11643000 | D48: 11581871 | E48: 13814105.33 | F48: 6907052.667
A49: S2 | B49: 6161782 | C49: 3938076 | D49: 2537397 | E49: 4212418.333 | F49: 2106209.167
A50: S2 | B50: 1875325 | C50: 1198545 | D50: 1192251 | E50: 1422040.333 | F50: 711020.1667
A51: S4 | B51: 535887 | C51: 342441 | D51: 340643 | E51: 406323.6667 | F51: 203161.8333

Sheet Inputs-Faye Solaire
A1: FAYE SOLAIRE
E6: Total du Parc MC | F6: 6
C8: NBRE ANNEES | D8: 3
A10: INFORMATION SUR LES CHARGES | B10: 2017 | C10: 2018 | D10: 2019 | E10: Moyenne annuelle | F10: Moyenne /MC
A11: Energie
A12: Carburant | B12: 1402000 | C12: 1515000 | D12: 1578000 | E12: =+(B12+C12+D12)/$D$8 -> 1498333.333 | F12: =+E12/$F$6 -> 249722.2222
A13: électricité | E13: =+(B13+C13+D13)/$D$8 -> 0 | F13: =+E13/$F$6 -> 0
A14: Salaires brut
A15: Services administratifs | E15: =+(B15+C15+D15)/$D$8 -> 0 | F15: 0
A16: Services commerciaux | E16: =+(B16+C16+D16)/$D$8 -> 0 | F16: 0
A17: Services techniques | E17: =+(B17+C17+D17)/$D$8 -> 0 | F17: 0
A18: Services recouvrement | B18: 390000 | C18: 390000 | D18: 390000 | E18: =+(B18+C18+D18)/$D$8 -> 390000 | F18: 65000
A19: Véhicules
A20: Carburant | B20: 780000 | C20: 820000 | D20: 865000 | E20: =+(B20+C20+D20)/$D$8 -> 821666.6667 | F20: 136944.4444
A21: Entretien et réparation | B21: 250000 | C21: 234000 | D21: 275000 | E21: =+(B21+C21+D21)/$D$8 -> 253000 | F21: 42166.66667
A22: Frais financiers
A23: Amortissement | E23: =+(B23+C23+D23)/$D$8 -> 0 | F23: 0
A24: Interêts bancaires
A25: Autres frais financiers | E25: =+(B25+C25+D25)/$D$8 -> 0 | F25: 0
A26: Communication
A27: téléphone, internet | B27: 300000 | C27: 300000 | D27: 300000 | E27: =+(B27+C27+D27)/$D$8 -> 300000 | F27: 50000
A28: Marketing, promotion | E28: =+(B28+C28+D28)/$D$8 -> 0 | F28: 0
A29: Loyers
A30: Siège (quote part) | B30: 1260000 | C30: 1260000 | D30: 1260000 | E30: =+(B30+C30+D30)/$D$8 -> 1260000 | F30: 210000
A31: Structure décentralisées | E31: =+(B31+C31+D31)/$D$8 -> 0 | F31: 0
A32: Charges administratives diverses
A33: Informatique, papeterie, entretien, comptabilité, audit | E33: =+(B33+C33+D33)/$D$8 -> 0 | F33: 0
A34: Redevances | E34: 0 | F34: 0
A35: Commune | E35: 0 | F35: 0
A36: FER | E36: 0 | F36: 0
A37: CRSE | E37: 0 | F37: 0
A38: Télécommunications | E38: 0 | F38: 0
A39: Autres
A40: Impôts et Taxes
A41: Impôts indirects (hors retenues à la source des salaires) | E41: =+(B41+C41+D41)/$D$8 -> 0 | F41: 0
A42: Impôts indirects (solde net) | E42: =+(B42+C42+D42)/$D$8 -> 0 | F42: 0
A43: Taxes | E43: =+(B43+C43+D43)/$D$8 -> 0 | F43: 0
A45: Information sur les revenues
A46: Sommes collectées auprés des Usagers domestiques | E46: =+(B46+C46+D46)/$D$8 -> 0 | F46: 0
E47: 0 | F47: 0
A48: S1 | B48: 1647450 | C48: 1649150 | D48: 1337500 | E48: 1544700 | F48: 257450
A49: S2 | B49: 2236000 | C49: 1809700 | D49: 1291100 | E49: 1778933.333 | F49: 296488.8889
A50: S2 | B50: 2397000 | C50: 2666000 | D50: 1703000 | E50: 2255333.333 | F50: 375888.8889
A51: S4 | B51: 1528000 | C51: 1656000 | D51: 1253800 | E51: 1479266.667 | F51: 246544.4444

Sheet Inputs-NS Resif
A1: NS RESIF
E6: Total du Parc MC | F6: 29
C8: NBRE ANNEES | D8: 3
A10: INFORMATION SUR LES CHARGES | B10: 2017 | C10: 2018 | D10: 2019 | E10: Moyenne annuelle | F10: Moyenne /MC
A11: Energie
A12: Carburant | B12: 4825694 | C12: 3316400 | D12: 3049955 | E12: =+(B12+C12+D12)/$D$8 -> 3730683 | F12: =+E12/$F$6 -> 128644.2414
A13: électricité | B13: 12895596 | C13: 19037302 | D13: 49109094 | E13: =+(B13+C13+D13)/$D$8 -> 27013997.33 | F13: =+E13/$F$6 -> 931517.1494
A14: Salaires brut
A15: Services administratifs | B15: 8103388 | C15: 8306412 | D15: 8029449 | E15: =+(B15+C15+D15)/$D$8 -> 8146416.333 | F15: 280910.908
A16: Services commerciaux | E16: =+(B16+C16+D16)/$D$8 -> 0 | F16: 0
A17: Services techniques | B17: 15618972 | C17: 13944194 | D17: 1668000 | E17: =+(B17+C17+D17)/$D$8 -> 10410388.67 | F17: 358978.9195
A18: Services recouvrement | E18: =+(B18+C18+D18)/$D$8 -> 0 | F18: 0
A19: Véhicules
A20: Carburant | E20: =+(B20+C20+D20)/$D$8 -> 0 | F20: 0
A21: Entretien et réparation | B21: 2197130 | C21: 1191600 | D21: 1668000 | E21: =+(B21+C21+D21)/$D$8 -> 1685576.667 | F21: 58123.33333
A22: Frais financiers
A23: Amortissement | E23: =+(B23+C23+D23)/$D$8 -> 0 | F23: 0
A24: Interêts bancaires | B24: 1176631 | C24: 3390113 | D24: 873700
A25: Autres frais financiers | E25: =+(B25+C25+D25)/$D$8 -> 0 | F25: 0
A26: Communication
A27: téléphone, internet | B27: 506200 | C27: 435300 | D27: 389000 | E27: =+(B27+C27+D27)/$D$8 -> 443500 | F27: 15293.10345
A28: Marketing, promotion | E28: =+(B28+C28+D28)/$D$8 -> 0 | F28: 0
A29: Loyers
A30: Siège (quote part) | B30: 1200000 | C30: 1200000 | D30: 120000 | E30: =+(B30+C30+D30)/$D$8 -> 840000 | F30: 28965.51724
A31: Structure décentralisées | B31: 1873679 | C31: 2273676 | D31: 2226309 | E31: =+(B31+C31+D31)/$D$8 -> 2124554.667 | F31: 73260.50575
A32: Charges administratives diverses
A33: Informatique, papeterie, entretien, comptabilité, audit | B33: 7299666 | C33: 8127451 | D33: 3050345 | E33: =+(B33+C33+D33)/$D$8 -> 6159154 | F33: 212384.6207
A34: Redevances | E34: 0 | F34: 0
A35: Commune | E35: 0 | F35: 0
A36: FER | C36: 172166 | D36: 272315 | E36: 148160.3333 | F36: 5108.977011
A37: CRSE | E37: 0 | F37: 0
A38: Télécommunications | E38: 0 | F38: 0
A39: Autres
A40: Impôts et Taxes
A41: Impôts indirects (hors retenues à la source des salaires) | B41: 500000 | C41: 500000 | D41: 500000 | E41: =+(B41+C41+D41)/$D$8 -> 500000 | F41: 17241.37931
A42: Impôts indirects (solde net) | E42: =+(B42+C42+D42)/$D$8 -> 0 | F42: 0
A43: Taxes | E43: =+(B43+C43+D43)/$D$8 -> 0 | F43: 0
A45: Information sur les revenues
A46: Sommes collectées auprés des Usagers domestiques | E46: =+(B46+C46+D46)/$D$8 -> 0 | F46: 0
E47: 0 | F47: 0
A48: S1 | E48: 0 | F48: 0
A49: S2 | E49: 0 | F49: 0
A50: S2 | E50: 0 | F50: 0
A51: S4 | E51: 0 | F51: 0

Sheet Inputs-Sud Solar
A1: SUD SOLAR
E6: Total du Parc MC | F6: 35
C8: NBRE ANNEES | D8: 3
A10: INFORMATION SUR LES CHARGES | B10: 2017 | C10: 2018 | D10: 2019 | E10: Moyenne annuelle | F10: Moyenne /MC
A11: Energie
A12: Carburant | B12: 998410 | C12: 1234625 | D12: 1040795 | E12: =+(B12+C12+D12)/$D$8 -> 1091276.667 | F12: =+E12/$F$6 -> 31179.33333
A13: électricité | E13: =+(B13+C13+D13)/$D$8 -> 0 | F13: =+E13/$F$6 -> 0
A14: Salaires brut
A15: Services administratifs | B15: 16573000 | C15: 16573000 | D15: 14681250 | E15: =+(B15+C15+D15)/$D$8 -> 15942416.67 | F15: 455497.619
A16: Services commerciaux | B16: 4834500 | C16: 4834500 | D16: 5225000 | E16: =+(B16+C16+D16)/$D$8 -> 4964666.667 | F16: 141847.619
A17: Services techniques | B17: 5873500 | C17: 6215500 | D17: 5064000 | E17: =+(B17+C17+D17)/$D$8 -> 5717666.667 | F17: 163361.9048
A18: Services recouvrement | E18: =+(B18+C18+D18)/$D$8 -> 0 | F18: 0
A19: Véhicules
A20: Carburant | B20: 4100000 | C20: 5077550 | D20: 4901250 | E20: =+(B20+C20+D20)/$D$8 -> 4692933.333 | F20: 134083.8095
A21: Entretien et réparation | B21: 1452500 | C21: 1653825 | D21: 1997500 | E21: =+(B21+C21+D21)/$D$8 -> 1701275 | F21: 48607.85714
A22: Frais financiers
A23: Amortissement | E23: =+(B23+C23+D23)/$D$8 -> 0 | F23: 0
A24: Interêts bancaires
A25: Autres frais financiers (primes) | B25: =1352000+1573500+1663000 -> 4588500 | C25: =1910000+2774165+1853000 -> 6537165 | D25: =1226460+1671500+1919750 -> 4817710 | E25: =+(B25+C25+D25)/$D$8 -> 5314458.333 | F25: 151841.6667
A26: Communication
A27: téléphone, internet | B27: 998500 | C27: 1299050 | D27: 1165830 | E27: =+(B27+C27+D27)/$D$8 -> 1154460 | F27: 32984.57143
A28: Marketing, promotion | E28: =+(B28+C28+D28)/$D$8 -> 0 | F28: 0
A29: Loyers
A30: Siège (quote part) | B30: 1440000 | C30: 1440000 | D30: 2340000 | E30: =+(B30+C30+D30)/$D$8 -> 1740000 | F30: 49714.28571
A31: Structure décentralisées | B31: 375000 | C31: 270000 | D31: 760000 | E31: =+(B31+C31+D31)/$D$8 -> 468333.3333 | F31: 13380.95238
A32: Charges administratives diverses
A33: Informatique, papeterie, entretien, comptabilité, audit | B33: 853000 | C33: 1026000 | D33: 1058600 | E33: =+(B33+C33+D33)/$D$8 -> 979200 | F33: 27977.14286
A34: Redevances | E34: 0 | F34: 0
A35: Commune | E35: 0 | F35: 0
A36: FER | E36: 0 | F36: 0
A37: CRSE | E37: 0 | F37: 0
A38: Télécommunications | E38: 0 | F38: 0
A39: Autres
A40: Impôts et Taxes
A41: Impôts indirects (hors retenues à la source des salaires) | E41: =+(B41+C41+D41)/$D$8 -> 0 | F41: 0
A42: Impôts indirects (solde net) | E42: =+(B42+C42+D42)/$D$8 -> 0 | F42: 0
A43: Taxes | E43: =+(B43+C43+D43)/$D$8 -> 0 | F43: 0
A45: Information sur les revenues
A46: Sommes collectées auprés des Usagers domestiques | B46: 41332180 | C46: 47903060 | D46: 44104250 | E46: =+(B46+C46+D46)/$D$8 -> 44446496.67 | F46: 1269899.905
E47: 0 | F47: 0
A48: S1 | B48: 24799300 | C48: 29284000 | D48: 25862550 | E48: 26648616.67 | F48: 761389.0476
A49: S2 | E49: 0 | F49: 0
A50: S2 | E50: 0 | F50: 0
A51: S4 | E51: 0 | F51: 0
A52: SHS | B52: 16532880 | C52: 18619060 | D52: 17241700

Sheet Inputs Solensol
A1: SOLENSOL
E6: Total du Parc MC | F6: 10
C8: NBRE ANNEES | D8: 3 | F8: NBRE DE SITES DANS L'ECHANTILLON
A10: INFORMATION SUR LES CHARGES | B10: 2017 | C10: 2018 | D10: 2019 | E10: Moyenne annuelle | F10: Moyenne /MC
A11: Energie
A12: Carburant | B12: =2645400+600000 -> 3245400 | C12: 1050000 | D12: 910000 | E12: =+(B12+C12+D12)/$D$8 -> 1735133.333 | F12: =+E12/$F$6 -> 173513.3333
A13: électricité | E13: =+(B13+C13+D13)/$D$8 -> 0 | F13: =+E13/$F$6 -> 0
A14: Salaires brut
A15: Services administratifs | E15: =+(B15+C15+D15)/$D$8 -> 0 | F15: 0
A16: Services commerciaux | E16: =+(B16+C16+D16)/$D$8 -> 0 | F16: 0
A17: Services techniques | B17: 7371600 | C17: 7371600 | D17: 7371600 | E17: =+(B17+C17+D17)/$D$8 -> 7371600 | F17: 737160
A18: Services recouvrement | E18: =+(B18+C18+D18)/$D$8 -> 0 | F18: 0
A19: Véhicules
A20: Carburant | E20: =+(B20+C20+D20)/$D$8 -> 0 | F20: 0
A21: Entretien et réparation | B21: 4611600 | C21: 3200000 | D21: 2800000 | E21: =+(B21+C21+D21)/$D$8 -> 3537200 | F21: 353720
A22: Frais financiers
A23: Amortissement | E23: =+(B23+C23+D23)/$D$8 -> 0 | F23: 0
A24: Interêts bancaires
A25: Autres frais financiers | E25: =+(B25+C25+D25)/$D$8 -> 0 | F25: 0
A26: Communication
A27: téléphone, internet | B27: 1090000 | C27: 850000 | D27: 1090000 | E27: =+(B27+C27+D27)/$D$8 -> 1010000 | F27: 101000
A28: Marketing, promotion | E28: =+(B28+C28+D28)/$D$8 -> 0 | F28: 0
A29: Loyers
A30: Siège (quote part) | B30: 600000 | C30: 600000 | D30: 600000 | E30: =+(B30+C30+D30)/$D$8 -> 600000 | F30: 60000
A31: Structure décentralisées | E31: =+(B31+C31+D31)/$D$8 -> 0 | F31: 0
A32: Charges administratives diverses
A33: Informatique, papeterie, entretien, comptabilité, audit | E33: =+(B33+C33+D33)/$D$8 -> 0 | F33: 0
A34: Redevances | E34: 0 | F34: 0
A35: Commune | E35: 0 | F35: 0
A36: FER | E36: 0 | F36: 0
A37: CRSE | E37: 0 | F37: 0
A38: Télécommunications | E38: 0 | F38: 0
A39: Autres
A40: Impôts et Taxes
A41: Impôts indirects (hors retenues à la source des salaires) | E41: =+(B41+C41+D41)/$D$8 -> 0 | F41: 0
A42: Impôts indirects (solde net) | E42: =+(B42+C42+D42)/$D$8 -> 0 | F42: 0
A43: Taxes | E43: =+(B43+C43+D43)/$D$8 -> 0 | F43: 0
A45: Information sur les revenues
A46: Sommes collectées auprés des Usagers domestiques | E46: =+(B46+C46+D46)/$D$8 -> 0 | F46: 0
E47: 0 | F47: 0
A48: S1 | E48: 0 | F48: 0
A49: S2 | E49: 0 | F49: 0
A50: S2 | E50: 0 | F50: 0
A51: S4 | E51: 0 | F51: 0

Sheet Inputs-ERA
B3: AUCUNE DONNEE FOURNIE PAR ERA

Sheet Demandes Harmo-DPP
A2: Hypothèse HARMONISATION ENERGIE
AP3: Projection des abonnés AGR horizon 2023
N4: Projection des abonnés domestiques par niveau de service horizon 2023 | Z4: Projection des abonnés sociocommunautaires par niveau de service horizon 2023 | AP4: Forage | AR4: Moulin | AT4: Menuserie métallique | AV4: Tailleur | AX4: Boutique | AZ4: Vulcanisateur | BB4: Atelier de Réparation | BD4: Autres usage moteur | BS4: 3x35 mm² | BT4: 3x70 mm² | BU4: 3x95mm²
D5: Opérateurs | E5: Région | F5: Département | G5: Commune | H5: Localités | I5: Pop 2020 | J5: Nb de ménages 2020 | K5: Pop année ciblée | L5: Nb de ménages année cible | M5: Nb abonnés 2020 | N5: N 1 | O5: N 2 | P5: N 3 | Q5: N 4 | R5: Nb total abonnés | S5: Energie N1 (Wh/j) | T5: Energie N2 (Wh/j) | U5: Energie N3 (Wh/j) | V5: Energie N4 (Wh/j) | W5: Energie domestique (Wh/j) | X5: Puissance installee charges domestiques (kW) | Z5: Nbre d'école par village | AA5: Energie école par village | AB5: Nbre de mosquée par village | AC5: Energie mosquée par village | AD5: Nbre de structure saniatire par village | AE5: Energie structure saniatire par village | AF5: Nbre de Poste de santé par village | AG5: Energie poste de santé par village | AH5: Nbre de Maison commu par village | AI5: Energie Maison commu par village | AJ5: Nbre de Lampadaire par village | AK5: Energie Lampadaire par village | AL5: Energie total communautaires | AM5: Puissance installee charges communautaires (kW) | AN5: Nb abonnés monophasés | AO5: P(Wc) | AP5: Energie (Wh/j) | AQ5: P(W) | AR5: Energie (Wh/j) | AS5: Nombre | AT5: Energie (Wh/j) | AU5: Nombre | AV5: Energie (Wh/j) | AW5: Nombre | AX5: Energie (Wh/j) | AY5: Nombre | AZ5: Energie (Wh/j) | BA5: Nombre | BB5: Energie (Wh/j) | BC5: Nombre | BD5: Energie (Wh/j) | BE5: Nombre | BF5: total FM (Wh/j) | BG5: Puissance installee charges avec FM (kW) | BH5: Nb abonnées Fm | BI5: Ej totale (Wh/j) | BJ5: Puisance GPV(kWc) ens moy | BK5: Puisance ens min (kWc) | BL5: Puissance installee des charges du village (kW) | BM5: Puissance apparente corrigée du village | BN5: Puissance ondu.chargeur(kW) | BO5: Puissance ondu.réseau(kW) | BP5: Capacité Stockage (kWh/j) | BQ5: Nombre de batterie | BS5: Longueur de cable max (km) | BT5: Longueur de cable max (km) | BU5: Longueur de cable max (km) | BW5: surface local batterie(m²) | BX5: clôture(Ml) | BY5: Côté cloture
D6: Energie R | E6: SEDHIOU | F6: BOUNKELING | G6: TANKON | H6: BAMBADALA | I6: 3424 | J6: 125 | K6: =ROUND(I6*(1+[1]Hypothèses!$T$4)^([1]Hypothèses!$S$4-[1]Hypothèses!$R$4),0) -> 3634 | L6: =ROUND(J6*(1+[1]Hypothèses!$T$4)^([1]Hypothèses!$S$4-[1]Hypothèses!$R$4),0) -> 133 | M6: 41 | N6: =ROUND((L6*[1]Hypothèses!$U$4-'[1]Fhypo DPP'!M10)*[1]Hypothèses!$G$24+'[1]Fhypo DPP'!M10*[1]Hypothèses!$G$25,0) -> 10 | O6: =ROUND((L6*[1]Hypothèses!$U$4-'[1]Fhypo DPP'!M10)*[1]Hypothèses!$H$24+'[1]Fhypo DPP'!M10*[1]Hypothèses!$H$25,0) -> 21 | P6: =ROUND((L6*[1]Hypothèses!$U$4-'[1]Fhypo DPP'!M10)*[1]Hypothèses!$I$24+'[1]Fhypo DPP'!M10*[1]Hypothèses!$I$25,0) -> 14 | Q6: =ROUND((L6*[1]Hypothèses!$U$4-'[1]Fhypo DPP'!M10)*[1]Hypothèses!$J$24+'[1]Fhypo DPP'!M10*[1]Hypothèses!$J$25,0) -> 60 | R6: =N6+O6+P6+Q6 -> 105 | S6: =N6*[1]Hypothèses!$H$49 -> 3340 | T6: =O6*[1]Hypothèses!$J$49 -> 22260 | U6: =P6*[1]Hypothèses!$L$49 -> 24360 | V6: =Q6*[1]Hypothèses!$N$49 -> 344520 | W6: =S6+T6+U6+V6 -> 394480 | X6: =(N6*[1]Hypothèses!$G$49+O6*[1]Hypothèses!$I$49+P6*[1]Hypothèses!$K$49+Q6*[1]Hypothèses!$M$49)/1000 -> 67.499 | Z6: =VLOOKUP(H6,[1]Struc_communautaires!C5:H98,2,FALSE) -> 1 | AA6: =Z6*[1]Hypothèses!$J$49 -> 1060 | AB6: =VLOOKUP(H6,[1]Struc_communautaires!C5:H98,3,FALSE) -> 1 | AC6: =AB6*[1]Hypothèses!$J$49 -> 1060 | AD6: =VLOOKUP(H6,[1]Struc_communautaires!C5:H98,4,FALSE) -> 1 | AE6: =AD6*[1]Hypothèses!$J$49 -> 1060 | AH6: =VLOOKUP(H6,[1]Struc_communautaires!C5:H98,5,FALSE) -> 0 | AI6: =AH6*[1]Hypothèses!$J$49 -> 0 | AJ6: =VLOOKUP(H6,[1]Struc_communautaires!C5:H98,6,FALSE) -> 21.625 | AK6: =AJ6*[1]Hypothèses!$F$49 -> 7785 | AL6: =AA6+AC6+AE6+AG6+AI6+AK6 -> 10965 | AM6: =(Z6*[1]Hypothèses!$L$62+AB6*[1]Hypothèses!$L$65+AD6*[1]Hypothèses!$L$63+AF6*[1]Hypothèses!$L$64+AH6*[1]Hypothèses!$L$66+AJ6*[1]Hypothèses!$E$49)/1000 -> 1.22675 | AN6: =R6+Z6+AB6+AD6+AH6+AW6+AY6 -> 118 | AO6: =AP6/(VLOOKUP(E6,[1]Hypothèses!$S$26:$U$32,2,FALSE)*[1]Hypothèses!$AA$26) -> 10076.90089 | AP6: =(VLOOKUP(E6,[1]Hypothèses!$W$26:$X$32,2,FALSE)*[1]Hypothèses!$Y$26*[1]Hypothèses!$AB$26*K6)/([1]Hypothèses!$Z$26*1000) -> 51603.80944 | AQ6: =AP6/[1]Hypothèses!$AC$26 -> 12900.95236 | AR6: =(AS6*[1]Hypothèses!$I$53)*1000 -> 96000 | AS6: =ROUND(IF(K6<[1]Hypothèses!$J$53,1,K6/[1]Hypothèses!$J$53),0) -> 4 | AT6: =(AU6*[1]Hypothèses!$I$54)*1000 -> 96000 | AU6: =ROUND(IF(K6<[1]Hypothèses!$J$54,1,K6/[1]Hypothèses!$J$54),0) -> 4 | AV6: =(AW6*[1]Hypothèses!$I$55)*1000 -> 9600 | AW6: =[1]Hypothèses!$J$55 -> 3 | AX6: =(AY6*[1]Hypothèses!$I$56)*1000 -> 11200 | AY6: =ROUND(IF(K6<[1]Hypothèses!$J$56,0,K6/[1]Hypothèses!$J$56),0) -> 7 | BF6: =AP6+AR6+AT6+AV6+AX6+AZ6+BB6+BD6 -> 264403.8094 | BG6: =(AQ6+AS6*[1]Hypothèses!$G$53*1000+AU6*[1]Hypothèses!$G$54*1000+AW6*[1]Hypothèses!$G$55*1000+AY6*[1]Hypothèses!$G$56)/1000 -> 62.10235236 | BH6: =AS6+AU6 -> 8 | BI6: =W6+AL6+BF6 -> 669848.8094 | BJ6: =(BI6/(VLOOKUP(E6,[1]Hypothèses!$S$26:$U$32,2,FALSE)*[1]Hypothèses!$X$4))/1000 -> 144.209359 | BK6: =(BI6/(VLOOKUP(E6,[1]Hypothèses!$S$26:$U$32,3,FALSE)*[1]Hypothèses!$X$4))/1000 -> 177.0330202 | BL6: =X6+AM6+BG6 -> 130.8281024 | BM6: =BL6*[1]Hypothèses!$X$12/[1]Hypothèses!$W$12 -> 123.5598745 | BN6: =BL6*[1]Hypothèses!$W$8*[1]Hypothèses!$X$12 -> 133.4446644 | BO6: =BJ6*[1]Hypothèses!$X$8 -> 158.6302949 | BP6: =(BI6/1000)*[1]Hypothèses!$Z$4/([1]Hypothèses!$AA$4*[1]Hypothèses!$AB$4) -> 2010.350569 | BQ6: =BP6/[1]Hypothèses!$AB$8 -> 335.0584281 | BS6: =(('[1]Hypo Cables'!$J$4*'[1]Hypo Cables'!$M$4)/('[1]Fhypo DPP'!BL10*[1]Hypothèses!$X$12*('[1]Hypo Cables'!$M$24+'[1]Hypo Cables'!$M$25*'[1]Hypo Cables'!$J$14)))/1000 -> 0.5335347672 | BT6: =(('[1]Hypo Cables'!$J$4*'[1]Hypo Cables'!$M$4)/('[1]Fhypo DPP'!BL10*[1]Hypothèses!$X$12*('[1]Hypo Cables'!$M$27+'[1]Hypo Cables'!$M$28*'[1]Hypo Cables'!$J$14)))/1000 -> 0.9923099043 | BW6: =BQ6*[1]Hypothèses!$AC$8 -> 111.6861427 | BX6: =4*SQRT(BJ6*[1]Hypothèses!$AF$3) -> 326.0715814 | BY6: =BX6/4 -> 81.51789534
D7: Energie R | E7: SEDHIOU | F7: BOUNKELING | G7: INOR | H7: BISSARY KANSOYE | I7: 1000 | J7: 32 | K7: =ROUND(I7*(1+[1]Hypothèses!$T$4)^([1]Hypothèses!$S$4-[1]Hypothèses!$R$4),0) -> 1061 | L7: =ROUND(J7*(1+[1]Hypothèses!$T$4)^([1]Hypothèses!$S$4-[1]Hypothèses!$R$4),0) -> 34 | M7: 39 | N7: =ROUND((L7*[1]Hypothèses!$U$4-'[1]Fhypo DPP'!M19)*[1]Hypothèses!$G$24+'[1]Fhypo DPP'!M19*[1]Hypothèses!$G$25,0) -> 2 | O7: =ROUND((L7*[1]Hypothèses!$U$4-'[1]Fhypo DPP'!M19)*[1]Hypothèses!$H$24+'[1]Fhypo DPP'!M19*[1]Hypothèses!$H$25,0) -> 4 | P7: =ROUND((L7*[1]Hypothèses!$U$4-'[1]Fhypo DPP'!M19)*[1]Hypothèses!$I$24+'[1]Fhypo DPP'!M19*[1]Hypothèses!$I$25,0) -> 4 | Q7: =ROUND((L7*[1]Hypothèses!$U$4-'[1]Fhypo DPP'!M19)*[1]Hypothèses!$J$24+'[1]Fhypo DPP'!M19*[1]Hypothèses!$J$25,0) -> 18 | R7: 28 | S7: =N7*[1]Hypothèses!$H$49 -> 668 | T7: =O7*[1]Hypothèses!$J$49 -> 4240 | U7: =P7*[1]Hypothèses!$L$49 -> 6960 | V7: =Q7*[1]Hypothèses!$N$49 -> 103356 | W7: 115224 | X7: =(N7*[1]Hypothèses!$G$49+O7*[1]Hypothèses!$I$49+P7*[1]Hypothèses!$K$49+Q7*[1]Hypothèses!$M$49)/1000 -> 19.542 | Z7: =VLOOKUP(H7,[1]Struc_communautaires!C6:H99,2,FALSE) -> 1 | AA7: =Z7*[1]Hypothèses!$J$49 -> 1060 | AB7: =VLOOKUP(H7,[1]Struc_communautaires!C6:H99,3,FALSE) -> 1 | AC7: =AB7*[1]Hypothèses!$J$49 -> 1060 | AD7: =VLOOKUP(H7,[1]Struc_communautaires!C6:H99,4,FALSE) -> 1 | AE7: =AD7*[1]Hypothèses!$J$49 -> 1060 | AH7: =VLOOKUP(H7,[1]Struc_communautaires!C6:H99,5,FALSE) -> 0 | AI7: =AH7*[1]Hypothèses!$J$49 -> 0 | AJ7: =VLOOKUP(H7,[1]Struc_communautaires!C6:H99,6,FALSE) -> 9.25 | AK7: =AJ7*[1]Hypothèses!$F$49 -> 3330 | AL7: 6510 | AM7: =(Z7*[1]Hypothèses!$L$62+AB7*[1]Hypothèses!$L$65+AD7*[1]Hypothèses!$L$63+AF7*[1]Hypothèses!$L$64+AH7*[1]Hypothèses!$L$66+AJ7*[1]Hypothèses!$E$49)/1000 -> 0.8555 | AN7: 36 | AO7: =AP7/(VLOOKUP(E7,[1]Hypothèses!$S$26:$U$32,2,FALSE)*[1]Hypothèses!$AA$26) -> 2942.100122 | AP7: =(VLOOKUP(E7,[1]Hypothèses!$W$26:$X$32,2,FALSE)*[1]Hypothèses!$Y$26*[1]Hypothèses!$AB$26*K7)/([1]Hypothèses!$Z$26*1000) -> 15066.49472 | AQ7: =AP7/[1]Hypothèses!$AC$26 -> 3766.623681 | AR7: =(AS7*[1]Hypothèses!$I$53)*1000 -> 24000 | AS7: =ROUND(IF(K7<[1]Hypothèses!$J$53,1,K7/[1]Hypothèses!$J$53),0) -> 1 | AT7: =(AU7*[1]Hypothèses!$I$54)*1000 -> 24000 | AU7: =ROUND(IF(K7<[1]Hypothèses!$J$54,1,K7/[1]Hypothèses!$J$54),0) -> 1 | AV7: =(AW7*[1]Hypothèses!$I$55)*1000 -> 9600 | AW7: =[1]Hypothèses!$J$55 -> 3 | AX7: =(AY7*[1]Hypothèses!$I$56)*1000 -> 3200 | AY7: =ROUND(IF(K7<[1]Hypothèses!$J$56,0,K7/[1]Hypothèses!$J$56),0) -> 2 | BF7: 75866.49472 | BG7: =(AQ7+AS7*[1]Hypothèses!$G$53*1000+AU7*[1]Hypothèses!$G$54*1000+AW7*[1]Hypothèses!$G$55*1000+AY7*[1]Hypothèses!$G$56)/1000 -> 16.96702368 | BH7: 2 | BI7: 197600.4947 | BJ7: =(BI7/(VLOOKUP(E7,[1]Hypothèses!$S$26:$U$32,2,FALSE)*[1]Hypothèses!$X$4))/1000 -> 42.54070511 | BK7: =(BI7/(VLOOKUP(E7,[1]Hypothèses!$S$26:$U$32,3,FALSE)*[1]Hypothèses!$X$4))/1000 -> 52.22344486 | BL7: 37.36452368 | BM7: =BL7*[1]Hypothèses!$X$12/[1]Hypothèses!$W$12 -> 35.28871681 | BN7: =BL7*[1]Hypothèses!$W$8*[1]Hypothèses!$X$12 -> 38.11181415 | BO7: =BJ7*[1]Hypothèses!$X$8 -> 46.79477563 | BP7: =(BI7/1000)*[1]Hypothèses!$Z$4/([1]Hypothèses!$AA$4*[1]Hypothèses!$AB$4) -> 593.0386996 | BQ7: =BP7/[1]Hypothèses!$AB$8 -> 98.83978327 | BS7: =(('[1]Hypo Cables'!$J$4*'[1]Hypo Cables'!$M$4)/('[1]Fhypo DPP'!BL19*[1]Hypothèses!$X$12*('[1]Hypo Cables'!$M$24+'[1]Hypo Cables'!$M$25*'[1]Hypo Cables'!$J$14)))/1000 -> 0.3438409943 | BT7: =(('[1]Hypo Cables'!$J$4*'[1]Hypo Cables'!$M$4)/('[1]Fhypo DPP'!BL19*[1]Hypothèses!$X$12*('[1]Hypo Cables'!$M$27+'[1]Hypo Cables'!$M$28*'[1]Hypo Cables'!$J$14)))/1000 -> 0.6395025126 | BW7: =BQ7*[1]Hypothèses!$AC$8 -> 32.94659442 | BX7: =4*SQRT(BJ7*[1]Hypothèses!$AF$3) -> 177.100003 | BY7: 44.27500075
D8: Energie R | E8: KAOLACK | F8: NIORO | G8: WACK NGOUNA | H8: KEUR NDONGO | I8: 600 | J8: 59 | K8: =ROUND(I8*(1+[1]Hypothèses!$T$4)^([1]Hypothèses!$S$4-[1]Hypothèses!$R$4),0) -> 637 | L8: =ROUND(J8*(1+[1]Hypothèses!$T$4)^([1]Hypothèses!$S$4-[1]Hypothèses!$R$4),0) -> 63 | M8: 31 | N8: =ROUND((L8*[1]Hypothèses!$U$4-'[1]Fhypo DPP'!M46)*[1]Hypothèses!$G$24+'[1]Fhypo DPP'!M46*[1]Hypothèses!$G$25,0) -> 4 | O8: =ROUND((L8*[1]Hypothèses!$U$4-'[1]Fhypo DPP'!M46)*[1]Hypothèses!$H$24+'[1]Fhypo DPP'!M46*[1]Hypothèses!$H$25,0) -> 9 | P8: =ROUND((L8*[1]Hypothèses!$U$4-'[1]Fhypo DPP'!M46)*[1]Hypothèses!$I$24+'[1]Fhypo DPP'!M46*[1]Hypothèses!$I$25,0) -> 7 | Q8: =ROUND((L8*[1]Hypothèses!$U$4-'[1]Fhypo DPP'!M46)*[1]Hypothèses!$J$24+'[1]Fhypo DPP'!M46*[1]Hypothèses!$J$25,0) -> 30 | R8: 50 | S8: =N8*[1]Hypothèses!$H$49 -> 1336 | T8: =O8*[1]Hypothèses!$J$49 -> 9540 | U8: =P8*[1]Hypothèses!$L$49 -> 12180 | V8: =Q8*[1]Hypothèses!$N$49 -> 172260 | W8: 195316 | X8: =(N8*[1]Hypothèses!$G$49+O8*[1]Hypothèses!$I$49+P8*[1]Hypothèses!$K$49+Q8*[1]Hypothèses!$M$49)/1000 -> 33.291 | Z8: =VLOOKUP(H8,[1]Struc_communautaires!C7:H100,2,FALSE) -> 1 | AA8: =Z8*[1]Hypothèses!$J$49 -> 1060 | AB8: =VLOOKUP(H8,[1]Struc_communautaires!C7:H100,3,FALSE) -> 1 | AC8: =AB8*[1]Hypothèses!$J$49 -> 1060 | AD8: =VLOOKUP(H8,[1]Struc_communautaires!C7:H100,4,FALSE) -> 0 | AE8: =AD8*[1]Hypothèses!$J$49 -> 0 | AH8: =VLOOKUP(H8,[1]Struc_communautaires!C7:H100,5,FALSE) -> 0 | AI8: =AH8*[1]Hypothèses!$J$49 -> 0 | AJ8: =VLOOKUP(H8,[1]Struc_communautaires!C7:H100,6,FALSE) -> 12.875 | AK8: =AJ8*[1]Hypothèses!$F$49 -> 4635 | AL8: 6755 | AM8: =(Z8*[1]Hypothèses!$L$62+AB8*[1]Hypothèses!$L$65+AD8*[1]Hypothèses!$L$63+AF8*[1]Hypothèses!$L$64+AH8*[1]Hypothèses!$L$66+AJ8*[1]Hypothèses!$E$49)/1000 -> 0.86425 | AN8: 56 | AO8: =AP8/(VLOOKUP(E8,[1]Hypothèses!$S$26:$U$32,2,FALSE)*[1]Hypothèses!$AA$26) -> 2544.098999 | AP8: =(VLOOKUP(E8,[1]Hypothèses!$W$26:$X$32,2,FALSE)*[1]Hypothèses!$Y$26*[1]Hypothèses!$AB$26*K8)/([1]Hypothèses!$Z$26*1000) -> 13028.33097 | AQ8: =AP8/[1]Hypothèses!$AC$26 -> 3257.082743 | AR8: =(AS8*[1]Hypothèses!$I$53)*1000 -> 24000 | AS8: =ROUND(IF(K8<[1]Hypothèses!$J$53,1,K8/[1]Hypothèses!$J$53),0) -> 1 | AT8: =(AU8*[1]Hypothèses!$I$54)*1000 -> 24000 | AU8: =ROUND(IF(K8<[1]Hypothèses!$J$54,1,K8/[1]Hypothèses!$J$54),0) -> 1 | AV8: =(AW8*[1]Hypothèses!$I$55)*1000 -> 9600 | AW8: =[1]Hypothèses!$J$55 -> 3 | AX8: =(AY8*[1]Hypothèses!$I$56)*1000 -> 1600 | AY8: =ROUND(IF(K8<[1]Hypothèses!$J$56,0,K8/[1]Hypothèses!$J$56),0) -> 1 | BF8: 72228.33097 | BG8: =(AQ8+AS8*[1]Hypothèses!$G$53*1000+AU8*[1]Hypothèses!$G$54*1000+AW8*[1]Hypothèses!$G$55*1000+AY8*[1]Hypothèses!$G$56)/1000 -> 16.45728274 | BH8: 2 | BI8: 274299.331 | BJ8: =(BI8/(VLOOKUP(E8,[1]Hypothèses!$S$26:$U$32,2,FALSE)*[1]Hypothèses!$X$4))/1000 -> 59.05292377 | BK8: =(BI8/(VLOOKUP(E8,[1]Hypothèses!$S$26:$U$32,3,FALSE)*[1]Hypothèses!$X$4))/1000 -> 64.28139339 | BL8: 50.61253274 | BM8: =BL8*[1]Hypothèses!$X$12/[1]Hypothèses!$W$12 -> 47.80072537 | BN8: =BL8*[1]Hypothèses!$W$8*[1]Hypothèses!$X$12 -> 51.6247834 | BO8: =BJ8*[1]Hypothèses!$X$8 -> 64.95821615 | BP8: =(BI8/1000)*[1]Hypothèses!$Z$4/([1]Hypothèses!$AA$4*[1]Hypothèses!$AB$4) -> 823.2272838 | BQ8: =BP8/[1]Hypothèses!$AB$8 -> 137.2045473 | BS8: =(('[1]Hypo Cables'!$J$4*'[1]Hypo Cables'!$M$4)/('[1]Fhypo DPP'!BL46*[1]Hypothèses!$X$12*('[1]Hypo Cables'!$M$24+'[1]Hypo Cables'!$M$25*'[1]Hypo Cables'!$J$14)))/1000 -> 0.4108169545 | BT8: =(('[1]Hypo Cables'!$J$4*'[1]Hypo Cables'!$M$4)/('[1]Fhypo DPP'!BL46*[1]Hypothèses!$X$12*('[1]Hypo Cables'!$M$27+'[1]Hypo Cables'!$M$28*'[1]Hypo Cables'!$J$14)))/1000 -> 0.7640696687 | BW8: =BQ8*[1]Hypothèses!$AC$8 -> 45.7348491 | BX8: =4*SQRT(BJ8*[1]Hypothèses!$AF$3) -> 208.6589074 | BY8: 52.16472685
D9: Energie R | E9: SEDHIOU | F9: BOUNKELING | G9: TANKON | H9: KOHEL MOUNKOUTALLA | I9: 1180 | J9: 75 | K9: =ROUND(I9*(1+[1]Hypothèses!$T$4)^([1]Hypothèses!$S$4-[1]Hypothèses!$R$4),0) -> 1252 | L9: =ROUND(J9*(1+[1]Hypothèses!$T$4)^([1]Hypothèses!$S$4-[1]Hypothèses!$R$4),0) -> 80 | M9: 43 | N9: =ROUND((L9*[1]Hypothèses!$U$4-'[1]Fhypo DPP'!M51)*[1]Hypothèses!$G$24+'[1]Fhypo DPP'!M51*[1]Hypothèses!$G$25,0) -> 6 | O9: =ROUND((L9*[1]Hypothèses!$U$4-'[1]Fhypo DPP'!M51)*[1]Hypothèses!$H$24+'[1]Fhypo DPP'!M51*[1]Hypothèses!$H$25,0) -> 11 | P9: =ROUND((L9*[1]Hypothèses!$U$4-'[1]Fhypo DPP'!M51)*[1]Hypothèses!$I$24+'[1]Fhypo DPP'!M51*[1]Hypothèses!$I$25,0) -> 9 | Q9: =ROUND((L9*[1]Hypothèses!$U$4-'[1]Fhypo DPP'!M51)*[1]Hypothèses!$J$24+'[1]Fhypo DPP'!M51*[1]Hypothèses!$J$25,0) -> 38 | R9: 64 | S9: =N9*[1]Hypothèses!$H$49 -> 2004 | T9: =O9*[1]Hypothèses!$J$49 -> 11660 | U9: =P9*[1]Hypothèses!$L$49 -> 15660 | V9: =Q9*[1]Hypothèses!$N$49 -> 218196 | W9: 247520 | X9: =(N9*[1]Hypothèses!$G$49+O9*[1]Hypothèses!$I$49+P9*[1]Hypothèses!$K$49+Q9*[1]Hypothèses!$M$49)/1000 -> 42.205 | Z9: =VLOOKUP(H9,[1]Struc_communautaires!C8:H101,2,FALSE) -> 1 | AA9: =Z9*[1]Hypothèses!$J$49 -> 1060 | AB9: =VLOOKUP(H9,[1]Struc_communautaires!C8:H101,3,FALSE) -> 1 | AC9: =AB9*[1]Hypothèses!$J$49 -> 1060 | AD9: =VLOOKUP(H9,[1]Struc_communautaires!C8:H101,4,FALSE) -> 0 | AE9: =AD9*[1]Hypothèses!$J$49 -> 0 | AH9: =VLOOKUP(H9,[1]Struc_communautaires!C8:H101,5,FALSE) -> 0 | AI9: =AH9*[1]Hypothèses!$J$49 -> 0 | AJ9: =VLOOKUP(H9,[1]Struc_communautaires!C8:H101,6,FALSE) -> 15 | AK9: =AJ9*[1]Hypothèses!$F$49 -> 5400 | AL9: 7520 | AM9: =(Z9*[1]Hypothèses!$L$62+AB9*[1]Hypothèses!$L$65+AD9*[1]Hypothèses!$L$63+AF9*[1]Hypothèses!$L$64+AH9*[1]Hypothèses!$L$66+AJ9*[1]Hypothèses!$E$49)/1000 -> 0.928 | AN9: 72 | AO9: =AP9/(VLOOKUP(E9,[1]Hypothèses!$S$26:$U$32,2,FALSE)*[1]Hypothèses!$AA$26) -> 3471.733602 | AP9: =(VLOOKUP(E9,[1]Hypothèses!$W$26:$X$32,2,FALSE)*[1]Hypothèses!$Y$26*[1]Hypothèses!$AB$26*K9)/([1]Hypothèses!$Z$26*1000) -> 17778.74778 | AQ9: =AP9/[1]Hypothèses!$AC$26 -> 4444.686944 | AR9: =(AS9*[1]Hypothèses!$I$53)*1000 -> 24000 | AS9: =ROUND(IF(K9<[1]Hypothèses!$J$53,1,K9/[1]Hypothèses!$J$53),0) -> 1 | AT9: =(AU9*[1]Hypothèses!$I$54)*1000 -> 24000 | AU9: =ROUND(IF(K9<[1]Hypothèses!$J$54,1,K9/[1]Hypothèses!$J$54),0) -> 1 | AV9: =(AW9*[1]Hypothèses!$I$55)*1000 -> 9600 | AW9: =[1]Hypothèses!$J$55 -> 3 | AX9: =(AY9*[1]Hypothèses!$I$56)*1000 -> 4800 | AY9: =ROUND(IF(K9<[1]Hypothèses!$J$56,0,K9/[1]Hypothèses!$J$56),0) -> 3 | BF9: 80178.74778 | BG9: =(AQ9+AS9*[1]Hypothèses!$G$53*1000+AU9*[1]Hypothèses!$G$54*1000+AW9*[1]Hypothèses!$G$55*1000+AY9*[1]Hypothèses!$G$56)/1000 -> 17.64528694 | BH9: 2 | BI9: 335218.7478 | BJ9: =(BI9/(VLOOKUP(E9,[1]Hypothèses!$S$26:$U$32,2,FALSE)*[1]Hypothèses!$X$4))/1000 -> 72.16804754 | BK9: =(BI9/(VLOOKUP(E9,[1]Hypothèses!$S$26:$U$32,3,FALSE)*[1]Hypothèses!$X$4))/1000 -> 88.59430142 | BL9: 60.77828694 | BM9: =BL9*[1]Hypothèses!$X$12/[1]Hypothèses!$W$12 -> 57.40171545 | BN9: =BL9*[1]Hypothèses!$W$8*[1]Hypothèses!$X$12 -> 61.99385268 | BO9: =BJ9*[1]Hypothèses!$X$8 -> 79.3848523 | BP9: =(BI9/1000)*[1]Hypothèses!$Z$4/([1]Hypothèses!$AA$4*[1]Hypothèses!$AB$4) -> 1006.058667 | BQ9: =BP9/[1]Hypothèses!$AB$8 -> 167.6764445 | BS9: =(('[1]Hypo Cables'!$J$4*'[1]Hypo Cables'!$M$4)/('[1]Fhypo DPP'!BL51*[1]Hypothèses!$X$12*('[1]Hypo Cables'!$M$24+'[1]Hypo Cables'!$M$25*'[1]Hypo Cables'!$J$14)))/1000 -> 0.3516324937 | BT9: =(('[1]Hypo Cables'!$J$4*'[1]Hypo Cables'!$M$4)/('[1]Fhypo DPP'!BL51*[1]Hypothèses!$X$12*('[1]Hypo Cables'!$M$27+'[1]Hypo Cables'!$M$28*'[1]Hypo Cables'!$J$14)))/1000 -> 0.6539937556 | BW9: =BQ9*[1]Hypothèses!$AC$8 -> 55.89214816 | BX9: =4*SQRT(BJ9*[1]Hypothèses!$AF$3) -> 230.6687194 | BY9: 57.66717984
D10: Energie R | E10: SEDHIOU | F10: BOUNKELING | G10: INOR | H10: MAGNORA | I10: 1200 | J10: 20 | K10: =ROUND(I10*(1+[1]Hypothèses!$T$4)^([1]Hypothèses!$S$4-[1]Hypothèses!$R$4),0) -> 1273 | L10: =ROUND(J10*(1+[1]Hypothèses!$T$4)^([1]Hypothèses!$S$4-[1]Hypothèses!$R$4),0) -> 21 | M10: 19 | N10: =ROUND((L10*[1]Hypothèses!$U$4-'[1]Fhypo DPP'!M55)*[1]Hypothèses!$G$24+'[1]Fhypo DPP'!M55*[1]Hypothèses!$G$25,0) -> 1 | O10: =ROUND((L10*[1]Hypothèses!$U$4-'[1]Fhypo DPP'!M55)*[1]Hypothèses!$H$24+'[1]Fhypo DPP'!M55*[1]Hypothèses!$H$25,0) -> 1 | P10: =ROUND((L10*[1]Hypothèses!$U$4-'[1]Fhypo DPP'!M55)*[1]Hypothèses!$I$24+'[1]Fhypo DPP'!M55*[1]Hypothèses!$I$25,0) -> 3 | Q10: =ROUND((L10*[1]Hypothèses!$U$4-'[1]Fhypo DPP'!M55)*[1]Hypothèses!$J$24+'[1]Fhypo DPP'!M55*[1]Hypothèses!$J$25,0) -> 12 | R10: 17 | S10: =N10*[1]Hypothèses!$H$49 -> 334 | T10: =O10*[1]Hypothèses!$J$49 -> 1060 | U10: =P10*[1]Hypothèses!$L$49 -> 5220 | V10: =Q10*[1]Hypothèses!$N$49 -> 68904 | W10: 75518 | X10: =(N10*[1]Hypothèses!$G$49+O10*[1]Hypothèses!$I$49+P10*[1]Hypothèses!$K$49+Q10*[1]Hypothèses!$M$49)/1000 -> 12.693 | Z10: =VLOOKUP(H10,[1]Struc_communautaires!C9:H102,2,FALSE) -> 0 | AA10: =Z10*[1]Hypothèses!$J$49 -> 0 | AB10: =VLOOKUP(H10,[1]Struc_communautaires!C9:H102,3,FALSE) -> 2 | AC10: =AB10*[1]Hypothèses!$J$49 -> 2120 | AD10: =VLOOKUP(H10,[1]Struc_communautaires!C9:H102,4,FALSE) -> 0 | AE10: =AD10*[1]Hypothèses!$J$49 -> 0 | AH10: =VLOOKUP(H10,[1]Struc_communautaires!C9:H102,5,FALSE) -> 0 | AI10: =AH10*[1]Hypothèses!$J$49 -> 0 | AJ10: =VLOOKUP(H10,[1]Struc_communautaires!C9:H102,6,FALSE) -> 7.625 | AK10: =AJ10*[1]Hypothèses!$F$49 -> 2745 | AL10: 4865 | AM10: =(Z10*[1]Hypothèses!$L$62+AB10*[1]Hypothèses!$L$65+AD10*[1]Hypothèses!$L$63+AF10*[1]Hypothèses!$L$64+AH10*[1]Hypothèses!$L$66+AJ10*[1]Hypothèses!$E$49)/1000 -> 0.70675 | AN10: 25 | AO10: =AP10/(VLOOKUP(E10,[1]Hypothèses!$S$26:$U$32,2,FALSE)*[1]Hypothèses!$AA$26) -> 3529.965556 | AP10: =(VLOOKUP(E10,[1]Hypothèses!$W$26:$X$32,2,FALSE)*[1]Hypothèses!$Y$26*[1]Hypothèses!$AB$26*K10)/([1]Hypothèses!$Z$26*1000) -> 18076.95361 | AQ10: =AP10/[1]Hypothèses!$AC$26 -> 4519.238403 | AR10: =(AS10*[1]Hypothèses!$I$53)*1000 -> 24000 | AS10: =ROUND(IF(K10<[1]Hypothèses!$J$53,1,K10/[1]Hypothèses!$J$53),0) -> 1 | AT10: =(AU10*[1]Hypothèses!$I$54)*1000 -> 24000 | AU10: =ROUND(IF(K10<[1]Hypothèses!$J$54,1,K10/[1]Hypothèses!$J$54),0) -> 1 | AV10: =(AW10*[1]Hypothèses!$I$55)*1000 -> 9600 | AW10: =[1]Hypothèses!$J$55 -> 3 | AX10: =(AY10*[1]Hypothèses!$I$56)*1000 -> 4800 | AY10: =ROUND(IF(K10<[1]Hypothèses!$J$56,0,K10/[1]Hypothèses!$J$56),0) -> 3 | BF10: 80476.95361 | BG10: =(AQ10+AS10*[1]Hypothèses!$G$53*1000+AU10*[1]Hypothèses!$G$54*1000+AW10*[1]Hypothèses!$G$55*1000+AY10*[1]Hypothèses!$G$56)/1000 -> 17.7198384 | BH10: 2 | BI10: 160859.9536 | BJ10: =(BI10/(VLOOKUP(E10,[1]Hypothèses!$S$26:$U$32,2,FALSE)*[1]Hypothèses!$X$4))/1000 -> 34.63096517 | BK10: =(BI10/(VLOOKUP(E10,[1]Hypothèses!$S$26:$U$32,3,FALSE)*[1]Hypothèses!$X$4))/1000 -> 42.51335974 | BL10: 31.1195884 | BM10: =BL10*[1]Hypothèses!$X$12/[1]Hypothèses!$W$12 -> 29.39072238 | BN10: =BL10*[1]Hypothèses!$W$8*[1]Hypothèses!$X$12 -> 31.74198017 | BO10: =BJ10*[1]Hypothèses!$X$8 -> 38.09406169 | BP10: =(BI10/1000)*[1]Hypothèses!$Z$4/([1]Hypothèses!$AA$4*[1]Hypothèses!$AB$4) -> 482.77297 | BQ10: =BP10/[1]Hypothèses!$AB$8 -> 80.46216167 | BS10: =(('[1]Hypo Cables'!$J$4*'[1]Hypo Cables'!$M$4)/('[1]Fhypo DPP'!BL55*[1]Hypothèses!$X$12*('[1]Hypo Cables'!$M$24+'[1]Hypo Cables'!$M$25*'[1]Hypo Cables'!$J$14)))/1000 -> 0.3567495765 | BT10: =(('[1]Hypo Cables'!$J$4*'[1]Hypo Cables'!$M$4)/('[1]Fhypo DPP'!BL55*[1]Hypothèses!$X$12*('[1]Hypo Cables'!$M$27+'[1]Hypo Cables'!$M$28*'[1]Hypo Cables'!$J$14)))/1000 -> 0.6635109086 | BW10: =BQ10*[1]Hypothèses!$AC$8 -> 26.82072056 | BX10: =4*SQRT(BJ10*[1]Hypothèses!$AF$3) -> 159.7896054 | BY10: 39.94740136
D11: Energie R | E11: KAOLACK | F11: GUINGUINEO | G11: NDIAGO | H11: NDELLE | I11: 1334 | J11: 100 | K11: =ROUND(I11*(1+[1]Hypothèses!$T$4)^([1]Hypothèses!$S$4-[1]Hypothèses!$R$4),0) -> 1416 | L11: =ROUND(J11*(1+[1]Hypothèses!$T$4)^([1]Hypothèses!$S$4-[1]Hypothèses!$R$4),0) -> 106 | M11: 28 | N11: =ROUND((L11*[1]Hypothèses!$U$4-'[1]Fhypo DPP'!M64)*[1]Hypothèses!$G$24+'[1]Fhypo DPP'!M64*[1]Hypothèses!$G$25,0) -> 8 | O11: =ROUND((L11*[1]Hypothèses!$U$4-'[1]Fhypo DPP'!M64)*[1]Hypothèses!$H$24+'[1]Fhypo DPP'!M64*[1]Hypothèses!$H$25,0) -> 16 | P11: =ROUND((L11*[1]Hypothèses!$U$4-'[1]Fhypo DPP'!M64)*[1]Hypothèses!$I$24+'[1]Fhypo DPP'!M64*[1]Hypothèses!$I$25,0) -> 11 | Q11: =ROUND((L11*[1]Hypothèses!$U$4-'[1]Fhypo DPP'!M64)*[1]Hypothèses!$J$24+'[1]Fhypo DPP'!M64*[1]Hypothèses!$J$25,0) -> 49 | R11: 84 | S11: =N11*[1]Hypothèses!$H$49 -> 2672 | T11: =O11*[1]Hypothèses!$J$49 -> 16960 | U11: =P11*[1]Hypothèses!$L$49 -> 19140 | V11: =Q11*[1]Hypothèses!$N$49 -> 281358 | W11: 320130 | X11: =(N11*[1]Hypothèses!$G$49+O11*[1]Hypothèses!$I$49+P11*[1]Hypothèses!$K$49+Q11*[1]Hypothèses!$M$49)/1000 -> 54.707 | Z11: =VLOOKUP(H11,[1]Struc_communautaires!C10:H103,2,FALSE) -> 1 | AA11: =Z11*[1]Hypothèses!$J$49 -> 1060 | AB11: =VLOOKUP(H11,[1]Struc_communautaires!C10:H103,3,FALSE) -> 1 | AC11: =AB11*[1]Hypothèses!$J$49 -> 1060 | AD11: =VLOOKUP(H11,[1]Struc_communautaires!C10:H103,4,FALSE) -> 1 | AE11: =AD11*[1]Hypothèses!$J$49 -> 1060 | AH11: =VLOOKUP(H11,[1]Struc_communautaires!C10:H103,5,FALSE) -> 1 | AI11: =AH11*[1]Hypothèses!$J$49 -> 1060 | AJ11: =VLOOKUP(H11,[1]Struc_communautaires!C10:H103,6,FALSE) -> 18.25 | AK11: =AJ11*[1]Hypothèses!$F$49 -> 6570 | AL11: 10810 | AM11: =(Z11*[1]Hypothèses!$L$62+AB11*[1]Hypothèses!$L$65+AD11*[1]Hypothèses!$L$63+AF11*[1]Hypothèses!$L$64+AH11*[1]Hypothèses!$L$66+AJ11*[1]Hypothèses!$E$49)/1000 -> 1.3645 | AN11: 94 | AO11: =AP11/(VLOOKUP(E11,[1]Hypothèses!$S$26:$U$32,2,FALSE)*[1]Hypothèses!$AA$26) -> 5655.328386 | AP11: =(VLOOKUP(E11,[1]Hypothèses!$W$26:$X$32,2,FALSE)*[1]Hypothèses!$Y$26*[1]Hypothèses!$AB$26*K11)/([1]Hypothèses!$Z$26*1000) -> 28960.93667 | AQ11: =AP11/[1]Hypothèses!$AC$26 -> 7240.234167 | AR11: =(AS11*[1]Hypothèses!$I$53)*1000 -> 24000 | AS11: =ROUND(IF(K11<[1]Hypothèses!$J$53,1,K11/[1]Hypothèses!$J$53),0) -> 1 | AT11: =(AU11*[1]Hypothèses!$I$54)*1000 -> 24000 | AU11: =ROUND(IF(K11<[1]Hypothèses!$J$54,1,K11/[1]Hypothèses!$J$54),0) -> 1 | AV11: =(AW11*[1]Hypothèses!$I$55)*1000 -> 9600 | AW11: =[1]Hypothèses!$J$55 -> 3 | AX11: =(AY11*[1]Hypothèses!$I$56)*1000 -> 4800 | AY11: =ROUND(IF(K11<[1]Hypothèses!$J$56,0,K11/[1]Hypothèses!$J$56),0) -> 3 | BF11: 91360.93667 | BG11: =(AQ11+AS11*[1]Hypothèses!$G$53*1000+AU11*[1]Hypothèses!$G$54*1000+AW11*[1]Hypothèses!$G$55*1000+AY11*[1]Hypothèses!$G$56)/1000 -> 20.44083417 | BH11: 2 | BI11: 422300.9367 | BJ11: =(BI11/(VLOOKUP(E11,[1]Hypothèses!$S$26:$U$32,2,FALSE)*[1]Hypothèses!$X$4))/1000 -> 90.91566112 | BK11: =(BI11/(VLOOKUP(E11,[1]Hypothèses!$S$26:$U$32,3,FALSE)*[1]Hypothèses!$X$4))/1000 -> 98.96521637 | BL11: 76.51233417 | BM11: =BL11*[1]Hypothèses!$X$12/[1]Hypothèses!$W$12 -> 72.26164894 | BN11: =BL11*[1]Hypothèses!$W$8*[1]Hypothèses!$X$12 -> 78.04258085 | BO11: =BJ11*[1]Hypothèses!$X$8 -> 100.0072272 | BP11: =(BI11/1000)*[1]Hypothèses!$Z$4/([1]Hypothèses!$AA$4*[1]Hypothèses!$AB$4) -> 1267.409774 | BQ11: =BP11/[1]Hypothèses!$AB$8 -> 211.2349623 | BS11: =(('[1]Hypo Cables'!$J$4*'[1]Hypo Cables'!$M$4)/('[1]Fhypo DPP'!BL64*[1]Hypothèses!$X$12*('[1]Hypo Cables'!$M$24+'[1]Hypo Cables'!$M$25*'[1]Hypo Cables'!$J$14)))/1000 -> 0.467773608 | BT11: =(('[1]Hypo Cables'!$J$4*'[1]Hypo Cables'!$M$4)/('[1]Fhypo DPP'!BL64*[1]Hypothèses!$X$12*('[1]Hypo Cables'!$M$27+'[1]Hypo Cables'!$M$28*'[1]Hypo Cables'!$J$14)))/1000 -> 0.8700021306 | BW11: =BQ11*[1]Hypothèses!$AC$8 -> 70.41165411 | BX11: =4*SQRT(BJ11*[1]Hypothèses!$AF$3) -> 258.9021024 | BY11: 64.7255256
D12: Energie R | E12: KAOLACK | F12: NIORO | G12: WACK NGOUNA | H12: NDIMBA | I12: 1120 | J12: 126 | K12: =ROUND(I12*(1+[1]Hypothèses!$T$4)^([1]Hypothèses!$S$4-[1]Hypothèses!$R$4),0) -> 1189 | L12: =ROUND(J12*(1+[1]Hypothèses!$T$4)^([1]Hypothèses!$S$4-[1]Hypothèses!$R$4),0) -> 134 | M12: 37 | N12: =ROUND((L12*[1]Hypothèses!$U$4-'[1]Fhypo DPP'!M67)*[1]Hypothèses!$G$24+'[1]Fhypo DPP'!M67*[1]Hypothèses!$G$25,0) -> 10 | O12: =ROUND((L12*[1]Hypothèses!$U$4-'[1]Fhypo DPP'!M67)*[1]Hypothèses!$H$24+'[1]Fhypo DPP'!M67*[1]Hypothèses!$H$25,0) -> 20 | P12: =ROUND((L12*[1]Hypothèses!$U$4-'[1]Fhypo DPP'!M67)*[1]Hypothèses!$I$24+'[1]Fhypo DPP'!M67*[1]Hypothèses!$I$25,0) -> 14 | Q12: =ROUND((L12*[1]Hypothèses!$U$4-'[1]Fhypo DPP'!M67)*[1]Hypothèses!$J$24+'[1]Fhypo DPP'!M67*[1]Hypothèses!$J$25,0) -> 63 | R12: 107 | S12: =N12*[1]Hypothèses!$H$49 -> 3340 | T12: =O12*[1]Hypothèses!$J$49 -> 21200 | U12: =P12*[1]Hypothèses!$L$49 -> 24360 | V12: =Q12*[1]Hypothèses!$N$49 -> 361746 | W12: 410646 | X12: =(N12*[1]Hypothèses!$G$49+O12*[1]Hypothèses!$I$49+P12*[1]Hypothèses!$K$49+Q12*[1]Hypothèses!$M$49)/1000 -> 70.131 | Z12: =VLOOKUP(H12,[1]Struc_communautaires!C11:H104,2,FALSE) -> 2 | AA12: =Z12*[1]Hypothèses!$J$49 -> 2120 | AB12: =VLOOKUP(H12,[1]Struc_communautaires!C11:H104,3,FALSE) -> 2 | AC12: =AB12*[1]Hypothèses!$J$49 -> 2120 | AD12: =VLOOKUP(H12,[1]Struc_communautaires!C11:H104,4,FALSE) -> 1 | AE12: =AD12*[1]Hypothèses!$J$49 -> 1060 | AH12: =VLOOKUP(H12,[1]Struc_communautaires!C11:H104,5,FALSE) -> 0 | AI12: =AH12*[1]Hypothèses!$J$49 -> 0 | AJ12: =VLOOKUP(H12,[1]Struc_communautaires!C11:H104,6,FALSE) -> 21.75 | AK12: =AJ12*[1]Hypothèses!$F$49 -> 7830 | AL12: 13130 | AM12: =(Z12*[1]Hypothèses!$L$62+AB12*[1]Hypothèses!$L$65+AD12*[1]Hypothèses!$L$63+AF12*[1]Hypothèses!$L$64+AH12*[1]Hypothèses!$L$66+AJ12*[1]Hypothèses!$E$49)/1000 -> 1.7085 | AN12: 117 | AO12: =AP12/(VLOOKUP(E12,[1]Hypothèses!$S$26:$U$32,2,FALSE)*[1]Hypothèses!$AA$26) -> 4748.718539 | AP12: =(VLOOKUP(E12,[1]Hypothèses!$W$26:$X$32,2,FALSE)*[1]Hypothèses!$Y$26*[1]Hypothèses!$AB$26*K12)/([1]Hypothèses!$Z$26*1000) -> 24318.18764 | AQ12: =AP12/[1]Hypothèses!$AC$26 -> 6079.54691 | AR12: =(AS12*[1]Hypothèses!$I$53)*1000 -> 24000 | AS12: =ROUND(IF(K12<[1]Hypothèses!$J$53,1,K12/[1]Hypothèses!$J$53),0) -> 1 | AT12: =(AU12*[1]Hypothèses!$I$54)*1000 -> 24000 | AU12: =ROUND(IF(K12<[1]Hypothèses!$J$54,1,K12/[1]Hypothèses!$J$54),0) -> 1 | AV12: =(AW12*[1]Hypothèses!$I$55)*1000 -> 9600 | AW12: =[1]Hypothèses!$J$55 -> 3 | AX12: =(AY12*[1]Hypothèses!$I$56)*1000 -> 3200 | AY12: =ROUND(IF(K12<[1]Hypothèses!$J$56,0,K12/[1]Hypothèses!$J$56),0) -> 2 | BF12: 85118.18764 | BG12: =(AQ12+AS12*[1]Hypothèses!$G$53*1000+AU12*[1]Hypothèses!$G$54*1000+AW12*[1]Hypothèses!$G$55*1000+AY12*[1]Hypothèses!$G$56)/1000 -> 19.27994691 | BH12: 2 | BI12: 508894.1876 | BJ12: =(BI12/(VLOOKUP(E12,[1]Hypothèses!$S$26:$U$32,2,FALSE)*[1]Hypothèses!$X$4))/1000 -> 109.558013 | BK12: =(BI12/(VLOOKUP(E12,[1]Hypothèses!$S$26:$U$32,3,FALSE)*[1]Hypothèses!$X$4))/1000 -> 119.258138 | BL12: 91.11944691 | BM12: =BL12*[1]Hypothèses!$X$12/[1]Hypothèses!$W$12 -> 86.05725541 | BN12: =BL12*[1]Hypothèses!$W$8*[1]Hypothèses!$X$12 -> 92.94183585 | BO12: =BJ12*[1]Hypothèses!$X$8 -> 120.5138143 | BP12: =(BI12/1000)*[1]Hypothèses!$Z$4/([1]Hypothèses!$AA$4*[1]Hypothèses!$AB$4) -> 1527.29348 | BQ12: =BP12/[1]Hypothèses!$AB$8 -> 254.5489134 | BS12: =(('[1]Hypo Cables'!$J$4*'[1]Hypo Cables'!$M$4)/('[1]Fhypo DPP'!BL67*[1]Hypothèses!$X$12*('[1]Hypo Cables'!$M$24+'[1]Hypo Cables'!$M$25*'[1]Hypo Cables'!$J$14)))/1000 -> 0.2836907759 | BT12: =(('[1]Hypo Cables'!$J$4*'[1]Hypo Cables'!$M$4)/('[1]Fhypo DPP'!BL67*[1]Hypothèses!$X$12*('[1]Hypo Cables'!$M$27+'[1]Hypo Cables'!$M$28*'[1]Hypo Cables'!$J$14)))/1000 -> 0.5276304077 | BW12: =BQ12*[1]Hypothèses!$AC$8 -> 84.84963779 | BX12: =4*SQRT(BJ12*[1]Hypothèses!$AF$3) -> 284.2093099 | BY12: 71.05232747
D13: Energie R | E13: KAOLACK | F13: NIORO | G13: KAYEMOR | H13: PADAF | I13: 1460 | J13: 98 | K13: =ROUND(I13*(1+[1]Hypothèses!$T$4)^([1]Hypothèses!$S$4-[1]Hypothèses!$R$4),0) -> 1549 | L13: =ROUND(J13*(1+[1]Hypothèses!$T$4)^([1]Hypothèses!$S$4-[1]Hypothèses!$R$4),0) -> 104 | M13: 30 | N13: =ROUND((L13*[1]Hypothèses!$U$4-'[1]Fhypo DPP'!M75)*[1]Hypothèses!$G$24+'[1]Fhypo DPP'!M75*[1]Hypothèses!$G$25,0) -> 8 | O13: =ROUND((L13*[1]Hypothèses!$U$4-'[1]Fhypo DPP'!M75)*[1]Hypothèses!$H$24+'[1]Fhypo DPP'!M75*[1]Hypothèses!$H$25,0) -> 16 | P13: =ROUND((L13*[1]Hypothèses!$U$4-'[1]Fhypo DPP'!M75)*[1]Hypothèses!$I$24+'[1]Fhypo DPP'!M75*[1]Hypothèses!$I$25,0) -> 11 | Q13: =ROUND((L13*[1]Hypothèses!$U$4-'[1]Fhypo DPP'!M75)*[1]Hypothèses!$J$24+'[1]Fhypo DPP'!M75*[1]Hypothèses!$J$25,0) -> 48 | R13: 83 | S13: =N13*[1]Hypothèses!$H$49 -> 2672 | T13: =O13*[1]Hypothèses!$J$49 -> 16960 | U13: =P13*[1]Hypothèses!$L$49 -> 19140 | V13: =Q13*[1]Hypothèses!$N$49 -> 275616 | W13: 314388 | X13: =(N13*[1]Hypothèses!$G$49+O13*[1]Hypothèses!$I$49+P13*[1]Hypothèses!$K$49+Q13*[1]Hypothèses!$M$49)/1000 -> 53.75 | Z13: =VLOOKUP(H13,[1]Struc_communautaires!C12:H105,2,FALSE) -> 1 | AA13: =Z13*[1]Hypothèses!$J$49 -> 1060 | AB13: =VLOOKUP(H13,[1]Struc_communautaires!C12:H105,3,FALSE) -> 4 | AC13: =AB13*[1]Hypothèses!$J$49 -> 4240 | AD13: =VLOOKUP(H13,[1]Struc_communautaires!C12:H105,4,FALSE) -> 1 | AE13: =AD13*[1]Hypothèses!$J$49 -> 1060 | AH13: =VLOOKUP(H13,[1]Struc_communautaires!C12:H105,5,FALSE) -> 0 | AI13: =AH13*[1]Hypothèses!$J$49 -> 0 | AJ13: =VLOOKUP(H13,[1]Struc_communautaires!C12:H105,6,FALSE) -> 18 | AK13: =AJ13*[1]Hypothèses!$F$49 -> 6480 | AL13: 12840 | AM13: =(Z13*[1]Hypothèses!$L$62+AB13*[1]Hypothèses!$L$65+AD13*[1]Hypothèses!$L$63+AF13*[1]Hypothèses!$L$64+AH13*[1]Hypothèses!$L$66+AJ13*[1]Hypothèses!$E$49)/1000 -> 1.835 | AN13: 95 | AO13: =AP13/(VLOOKUP(E13,[1]Hypothèses!$S$26:$U$32,2,FALSE)*[1]Hypothèses!$AA$26) -> 6186.513892 | AP13: =(VLOOKUP(E13,[1]Hypothèses!$W$26:$X$32,2,FALSE)*[1]Hypothèses!$Y$26*[1]Hypothèses!$AB$26*K13)/([1]Hypothèses!$Z$26*1000) -> 31681.13764 | AQ13: =AP13/[1]Hypothèses!$AC$26 -> 7920.28441 | AR13: =(AS13*[1]Hypothèses!$I$53)*1000 -> 48000 | AS13: =ROUND(IF(K13<[1]Hypothèses!$J$53,1,K13/[1]Hypothèses!$J$53),0) -> 2 | AT13: =(AU13*[1]Hypothèses!$I$54)*1000 -> 48000 | AU13: =ROUND(IF(K13<[1]Hypothèses!$J$54,1,K13/[1]Hypothèses!$J$54),0) -> 2 | AV13: =(AW13*[1]Hypothèses!$I$55)*1000 -> 9600 | AW13: =[1]Hypothèses!$J$55 -> 3 | AX13: =(AY13*[1]Hypothèses!$I$56)*1000 -> 4800 | AY13: =ROUND(IF(K13<[1]Hypothèses!$J$56,0,K13/[1]Hypothèses!$J$56),0) -> 3 | BF13: 142081.1376 | BG13: =(AQ13+AS13*[1]Hypothèses!$G$53*1000+AU13*[1]Hypothèses!$G$54*1000+AW13*[1]Hypothèses!$G$55*1000+AY13*[1]Hypothèses!$G$56)/1000 -> 33.12088441 | BH13: 4 | BI13: 469309.1376 | BJ13: =(BI13/(VLOOKUP(E13,[1]Hypothèses!$S$26:$U$32,2,FALSE)*[1]Hypothèses!$X$4))/1000 -> 101.0358889 | BK13: =(BI13/(VLOOKUP(E13,[1]Hypothèses!$S$26:$U$32,3,FALSE)*[1]Hypothèses!$X$4))/1000 -> 109.9814761 | BL13: 88.70588441 | BM13: =BL13*[1]Hypothèses!$X$12/[1]Hypothèses!$W$12 -> 83.77777972 | BN13: =BL13*[1]Hypothèses!$W$8*[1]Hypothèses!$X$12 -> 90.4800021 | BO13: =BJ13*[1]Hypothèses!$X$8 -> 111.1394778 | BP13: =(BI13/1000)*[1]Hypothèses!$Z$4/([1]Hypothèses!$AA$4*[1]Hypothèses!$AB$4) -> 1408.490809 | BQ13: =BP13/[1]Hypothèses!$AB$8 -> 234.7484682 | BS13: =(('[1]Hypo Cables'!$J$4*'[1]Hypo Cables'!$M$4)/('[1]Fhypo DPP'!BL75*[1]Hypothèses!$X$12*('[1]Hypo Cables'!$M$24+'[1]Hypo Cables'!$M$25*'[1]Hypo Cables'!$J$14)))/1000 -> 0.2099006215 | BT13: =(('[1]Hypo Cables'!$J$4*'[1]Hypo Cables'!$M$4)/('[1]Fhypo DPP'!BL75*[1]Hypothèses!$X$12*('[1]Hypo Cables'!$M$27+'[1]Hypo Cables'!$M$28*'[1]Hypo Cables'!$J$14)))/1000 -> 0.3903896774 | BW13: =BQ13*[1]Hypothèses!$AC$8 -> 78.2494894 | BX13: =4*SQRT(BJ13*[1]Hypothèses!$AF$3) -> 272.93175 | BY13: 68.23293751
D14: Energie R | E14: SEDHIOU | F14: BOUNKELING | G14: TANKON | H14: SACITA FARYMBOURE | I14: 1200 | J14: 87 | K14: =ROUND(I14*(1+[1]Hypothèses!$T$4)^([1]Hypothèses!$S$4-[1]Hypothèses!$R$4),0) -> 1273 | L14: =ROUND(J14*(1+[1]Hypothèses!$T$4)^([1]Hypothèses!$S$4-[1]Hypothèses!$R$4),0) -> 92 | M14: 40 | N14: =ROUND((L14*[1]Hypothèses!$U$4-'[1]Fhypo DPP'!M76)*[1]Hypothèses!$G$24+'[1]Fhypo DPP'!M76*[1]Hypothèses!$G$25,0) -> 6 | O14: =ROUND((L14*[1]Hypothèses!$U$4-'[1]Fhypo DPP'!M76)*[1]Hypothèses!$H$24+'[1]Fhypo DPP'!M76*[1]Hypothèses!$H$25,0) -> 13 | P14: =ROUND((L14*[1]Hypothèses!$U$4-'[1]Fhypo DPP'!M76)*[1]Hypothèses!$I$24+'[1]Fhypo DPP'!M76*[1]Hypothèses!$I$25,0) -> 10 | Q14: =ROUND((L14*[1]Hypothèses!$U$4-'[1]Fhypo DPP'!M76)*[1]Hypothèses!$J$24+'[1]Fhypo DPP'!M76*[1]Hypothèses!$J$25,0) -> 44 | R14: 73 | S14: =N14*[1]Hypothèses!$H$49 -> 2004 | T14: =O14*[1]Hypothèses!$J$49 -> 13780 | U14: =P14*[1]Hypothèses!$L$49 -> 17400 | V14: =Q14*[1]Hypothèses!$N$49 -> 252648 | W14: 285832 | X14: =(N14*[1]Hypothèses!$G$49+O14*[1]Hypothèses!$I$49+P14*[1]Hypothèses!$K$49+Q14*[1]Hypothèses!$M$49)/1000 -> 48.715 | Z14: =VLOOKUP(H14,[1]Struc_communautaires!C13:H106,2,FALSE) -> 1 | AA14: =Z14*[1]Hypothèses!$J$49 -> 1060 | AB14: =VLOOKUP(H14,[1]Struc_communautaires!C13:H106,3,FALSE) -> 1 | AC14: =AB14*[1]Hypothèses!$J$49 -> 1060 | AD14: =VLOOKUP(H14,[1]Struc_communautaires!C13:H106,4,FALSE) -> 1 | AE14: =AD14*[1]Hypothèses!$J$49 -> 1060 | AH14: =VLOOKUP(H14,[1]Struc_communautaires!C13:H106,5,FALSE) -> 0 | AI14: =AH14*[1]Hypothèses!$J$49 -> 0 | AJ14: =VLOOKUP(H14,[1]Struc_communautaires!C13:H106,6,FALSE) -> 16.5 | AK14: =AJ14*[1]Hypothèses!$F$49 -> 5940 | AL14: 9120 | AM14: =(Z14*[1]Hypothèses!$L$62+AB14*[1]Hypothèses!$L$65+AD14*[1]Hypothèses!$L$63+AF14*[1]Hypothèses!$L$64+AH14*[1]Hypothèses!$L$66+AJ14*[1]Hypothèses!$E$49)/1000 -> 1.073 | AN14: 82 | AO14: =AP14/(VLOOKUP(E14,[1]Hypothèses!$S$26:$U$32,2,FALSE)*[1]Hypothèses!$AA$26) -> 3529.965556 | AP14: =(VLOOKUP(E14,[1]Hypothèses!$W$26:$X$32,2,FALSE)*[1]Hypothèses!$Y$26*[1]Hypothèses!$AB$26*K14)/([1]Hypothèses!$Z$26*1000) -> 18076.95361 | AQ14: =AP14/[1]Hypothèses!$AC$26 -> 4519.238403 | AR14: =(AS14*[1]Hypothèses!$I$53)*1000 -> 24000 | AS14: =ROUND(IF(K14<[1]Hypothèses!$J$53,1,K14/[1]Hypothèses!$J$53),0) -> 1 | AT14: =(AU14*[1]Hypothèses!$I$54)*1000 -> 24000 | AU14: =ROUND(IF(K14<[1]Hypothèses!$J$54,1,K14/[1]Hypothèses!$J$54),0) -> 1 | AV14: =(AW14*[1]Hypothèses!$I$55)*1000 -> 9600 | AW14: =[1]Hypothèses!$J$55 -> 3 | AX14: =(AY14*[1]Hypothèses!$I$56)*1000 -> 4800 | AY14: =ROUND(IF(K14<[1]Hypothèses!$J$56,0,K14/[1]Hypothèses!$J$56),0) -> 3 | BF14: 80476.95361 | BG14: =(AQ14+AS14*[1]Hypothèses!$G$53*1000+AU14*[1]Hypothèses!$G$54*1000+AW14*[1]Hypothèses!$G$55*1000+AY14*[1]Hypothèses!$G$56)/1000 -> 17.7198384 | BH14: 2 | BI14: 375428.9536 | BJ14: =(BI14/(VLOOKUP(E14,[1]Hypothèses!$S$26:$U$32,2,FALSE)*[1]Hypothèses!$X$4))/1000 -> 80.82475922 | BK14: =(BI14/(VLOOKUP(E14,[1]Hypothèses!$S$26:$U$32,3,FALSE)*[1]Hypothèses!$X$4))/1000 -> 99.22137738 | BL14: 67.5078384 | BM14: =BL14*[1]Hypothèses!$X$12/[1]Hypothèses!$W$12 -> 63.75740294 | BN14: =BL14*[1]Hypothèses!$W$8*[1]Hypothèses!$X$12 -> 68.85799517 | BO14: =BJ14*[1]Hypothèses!$X$8 -> 88.90723514 | BP14: =(BI14/1000)*[1]Hypothèses!$Z$4/([1]Hypothèses!$AA$4*[1]Hypothèses!$AB$4) -> 1126.737556 | BQ14: =BP14/[1]Hypothèses!$AB$8 -> 187.7895926 | BS14: =(('[1]Hypo Cables'!$J$4*'[1]Hypo Cables'!$M$4)/('[1]Fhypo DPP'!BL76*[1]Hypothèses!$X$12*('[1]Hypo Cables'!$M$24+'[1]Hypo Cables'!$M$25*'[1]Hypo Cables'!$J$14)))/1000 -> 0.290599494 | BT14: =(('[1]Hypo Cables'!$J$4*'[1]Hypo Cables'!$M$4)/('[1]Fhypo DPP'!BL76*[1]Hypothèses!$X$12*('[1]Hypo Cables'!$M$27+'[1]Hypo Cables'!$M$28*'[1]Hypo Cables'!$J$14)))/1000 -> 0.5404797847 | BW14: =BQ14*[1]Hypothèses!$AC$8 -> 62.59653088 | BX14: =4*SQRT(BJ14*[1]Hypothèses!$AF$3) -> 244.1116107 | BY14: 61.02790267
D15: Energie R | E15: SEDHIOU | F15: BOUNKELING | G15: TANKON | H15: SARRE BOCAR | I15: 1000 | J15: 55 | K15: =ROUND(I15*(1+[1]Hypothèses!$T$4)^([1]Hypothèses!$S$4-[1]Hypothèses!$R$4),0) -> 1061 | L15: =ROUND(J15*(1+[1]Hypothèses!$T$4)^([1]Hypothèses!$S$4-[1]Hypothèses!$R$4),0) -> 58 | M15: 24 | N15: =ROUND((L15*[1]Hypothèses!$U$4-'[1]Fhypo DPP'!M83)*[1]Hypothèses!$G$24+'[1]Fhypo DPP'!M83*[1]Hypothèses!$G$25,0) -> 4 | O15: =ROUND((L15*[1]Hypothèses!$U$4-'[1]Fhypo DPP'!M83)*[1]Hypothèses!$H$24+'[1]Fhypo DPP'!M83*[1]Hypothèses!$H$25,0) -> 8 | P15: =ROUND((L15*[1]Hypothèses!$U$4-'[1]Fhypo DPP'!M83)*[1]Hypothèses!$I$24+'[1]Fhypo DPP'!M83*[1]Hypothèses!$I$25,0) -> 6 | Q15: =ROUND((L15*[1]Hypothèses!$U$4-'[1]Fhypo DPP'!M83)*[1]Hypothèses!$J$24+'[1]Fhypo DPP'!M83*[1]Hypothèses!$J$25,0) -> 28 | R15: 46 | S15: =N15*[1]Hypothèses!$H$49 -> 1336 | T15: =O15*[1]Hypothèses!$J$49 -> 8480 | U15: =P15*[1]Hypothèses!$L$49 -> 10440 | V15: =Q15*[1]Hypothèses!$N$49 -> 160776 | W15: 181032 | X15: =(N15*[1]Hypothèses!$G$49+O15*[1]Hypothèses!$I$49+P15*[1]Hypothèses!$K$49+Q15*[1]Hypothèses!$M$49)/1000 -> 30.848 | Z15: =VLOOKUP(H15,[1]Struc_communautaires!C14:H107,2,FALSE) -> 1 | AA15: =Z15*[1]Hypothèses!$J$49 -> 1060 | AB15: =VLOOKUP(H15,[1]Struc_communautaires!C14:H107,3,FALSE) -> 1 | AC15: =AB15*[1]Hypothèses!$J$49 -> 1060 | AD15: =VLOOKUP(H15,[1]Struc_communautaires!C14:H107,4,FALSE) -> 0 | AE15: =AD15*[1]Hypothèses!$J$49 -> 0 | AH15: =VLOOKUP(H15,[1]Struc_communautaires!C14:H107,5,FALSE) -> 0 | AI15: =AH15*[1]Hypothèses!$J$49 -> 0 | AJ15: =VLOOKUP(H15,[1]Struc_communautaires!C14:H107,6,FALSE) -> 12.25 | AK15: =AJ15*[1]Hypothèses!$F$49 -> 4410 | AL15: 6530 | AM15: =(Z15*[1]Hypothèses!$L$62+AB15*[1]Hypothèses!$L$65+AD15*[1]Hypothèses!$L$63+AF15*[1]Hypothèses!$L$64+AH15*[1]Hypothèses!$L$66+AJ15*[1]Hypothèses!$E$49)/1000 -> 0.8455 | AN15: 53 | AO15: =AP15/(VLOOKUP(E15,[1]Hypothèses!$S$26:$U$32,2,FALSE)*[1]Hypothèses!$AA$26) -> 2942.100122 | AP15: =(VLOOKUP(E15,[1]Hypothèses!$W$26:$X$32,2,FALSE)*[1]Hypothèses!$Y$26*[1]Hypothèses!$AB$26*K15)/([1]Hypothèses!$Z$26*1000) -> 15066.49472 | AQ15: =AP15/[1]Hypothèses!$AC$26 -> 3766.623681 | AR15: =(AS15*[1]Hypothèses!$I$53)*1000 -> 24000 | AS15: =ROUND(IF(K15<[1]Hypothèses!$J$53,1,K15/[1]Hypothèses!$J$53),0) -> 1 | AT15: =(AU15*[1]Hypothèses!$I$54)*1000 -> 24000 | AU15: =ROUND(IF(K15<[1]Hypothèses!$J$54,1,K15/[1]Hypothèses!$J$54),0) -> 1 | AV15: =(AW15*[1]Hypothèses!$I$55)*1000 -> 9600 | AW15: =[1]Hypothèses!$J$55 -> 3 | AX15: =(AY15*[1]Hypothèses!$I$56)*1000 -> 3200 | AY15: =ROUND(IF(K15<[1]Hypothèses!$J$56,0,K15/[1]Hypothèses!$J$56),0) -> 2 | BF15: 75866.49472 | BG15: =(AQ15+AS15*[1]Hypothèses!$G$53*1000+AU15*[1]Hypothèses!$G$54*1000+AW15*[1]Hypothèses!$G$55*1000+AY15*[1]Hypothèses!$G$56)/1000 -> 16.96702368 | BH15: 2 | BI15: 263428.4947 | BJ15: =(BI15/(VLOOKUP(E15,[1]Hypothèses!$S$26:$U$32,2,FALSE)*[1]Hypothèses!$X$4))/1000 -> 56.71258024 | BK15: =(BI15/(VLOOKUP(E15,[1]Hypothèses!$S$26:$U$32,3,FALSE)*[1]Hypothèses!$X$4))/1000 -> 69.62099709 | BL15: 48.66052368 | BM15: =BL15*[1]Hypothèses!$X$12/[1]Hypothèses!$W$12 -> 45.95716125 | BN15: =BL15*[1]Hypothèses!$W$8*[1]Hypothèses!$X$12 -> 49.63373415 | BO15: =BJ15*[1]Hypothèses!$X$8 -> 62.38383827 | BP15: =(BI15/1000)*[1]Hypothèses!$Z$4/([1]Hypothèses!$AA$4*[1]Hypothèses!$AB$4) -> 790.6017249 | BQ15: =BP15/[1]Hypothèses!$AB$8 -> 131.7669541 | BS15: =(('[1]Hypo Cables'!$J$4*'[1]Hypo Cables'!$M$4)/('[1]Fhypo DPP'!BL83*[1]Hypothèses!$X$12*('[1]Hypo Cables'!$M$24+'[1]Hypo Cables'!$M$25*'[1]Hypo Cables'!$J$14)))/1000 -> 0.2506719059 | BT15: =(('[1]Hypo Cables'!$J$4*'[1]Hypo Cables'!$M$4)/('[1]Fhypo DPP'!BL83*[1]Hypothèses!$X$12*('[1]Hypo Cables'!$M$27+'[1]Hypo Cables'!$M$28*'[1]Hypo Cables'!$J$14)))/1000 -> 0.4662193174 | BW15: =BQ15*[1]Hypothèses!$AC$8 -> 43.92231805 | BX15: =4*SQRT(BJ15*[1]Hypothèses!$AF$3) -> 204.4823982 | BY15: 51.12059954
D16: SOUS TOTAL ENERGIE R | M16: =SUM(M6:M15) -> 332 | R16: =SUM(R6:R15) -> 657 | Z16: =SUM(Z6:Z15) -> 10 | AB16: =SUM(AB6:AB15) -> 15 | AD16: =SUM(AD6:AD15) -> 6 | AH16: =SUM(AH6:AH15) -> 1 | AJ16: =SUM(AJ6:AJ15) -> 153.125 | AN16: =SUM(AN6:AN15) -> 748 | AS16: =SUM(AS6:AS15) -> 14 | AU16: =SUM(AU6:AU15) -> 14 | AW16: =SUM(AW6:AW15) -> 30 | AY16: =SUM(AY6:AY15) -> 29 | BH16: =SUM(BH6:BH15) -> 28
D18: ENERSA | E18: THIES | F18: TIVAOUANE | G18: MEOUANE | H18: NDOMBIL | I18: 1190 | J18: 80 | K18: =ROUND(I18*(1+[1]Hypothèses!$T$4)^([1]Hypothèses!$S$4-[1]Hypothèses!$R$4),0) -> 1263 | L18: =ROUND(J18*(1+[1]Hypothèses!$T$4)^([1]Hypothèses!$S$4-[1]Hypothèses!$R$4),0) -> 85 | M18: 69 | N18: =ROUND((L18*[1]Hypothèses!$U$4-'[1]Fhypo DPP'!M69)*[1]Hypothèses!$G$24+'[1]Fhypo DPP'!M69*[1]Hypothèses!$G$25,0) -> 6 | O18: =ROUND((L18*[1]Hypothèses!$U$4-'[1]Fhypo DPP'!M69)*[1]Hypothèses!$H$24+'[1]Fhypo DPP'!M69*[1]Hypothèses!$H$25,0) -> 12 | P18: =ROUND((L18*[1]Hypothèses!$U$4-'[1]Fhypo DPP'!M69)*[1]Hypothèses!$I$24+'[1]Fhypo DPP'!M69*[1]Hypothèses!$I$25,0) -> 9 | Q18: =ROUND((L18*[1]Hypothèses!$U$4-'[1]Fhypo DPP'!M69)*[1]Hypothèses!$J$24+'[1]Fhypo DPP'!M69*[1]Hypothèses!$J$25,0) -> 40 | R18: 67 | S18: =N18*[1]Hypothèses!$H$49 -> 2004 | T18: =O18*[1]Hypothèses!$J$49 -> 12720 | U18: =P18*[1]Hypothèses!$L$49 -> 15660 | V18: =Q18*[1]Hypothèses!$N$49 -> 229680 | W18: 260064 | X18: =(N18*[1]Hypothèses!$G$49+O18*[1]Hypothèses!$I$49+P18*[1]Hypothèses!$K$49+Q18*[1]Hypothèses!$M$49)/1000 -> 44.358 | Z18: =VLOOKUP(H18,[1]Struc_communautaires!C15:H108,2,FALSE) -> 2 | AA18: =Z18*[1]Hypothèses!$J$49 -> 2120 | AB18: =VLOOKUP(H18,[1]Struc_communautaires!C15:H108,3,FALSE) -> 3 | AC18: =AB18*[1]Hypothèses!$J$49 -> 3180 | AD18: =VLOOKUP(H18,[1]Struc_communautaires!C15:H108,4,FALSE) -> 1 | AE18: =AD18*[1]Hypothèses!$J$49 -> 1060 | AH18: =VLOOKUP(H18,[1]Struc_communautaires!C15:H108,5,FALSE) -> 0 | AI18: =AH18*[1]Hypothèses!$J$49 -> 0 | AJ18: =VLOOKUP(H18,[1]Struc_communautaires!C15:H108,6,FALSE) -> 15.625 | AK18: =AJ18*[1]Hypothèses!$F$49 -> 5625 | AL18: 11985 | AM18: =(Z18*[1]Hypothèses!$L$62+AB18*[1]Hypothèses!$L$65+AD18*[1]Hypothèses!$L$63+AF18*[1]Hypothèses!$L$64+AH18*[1]Hypothèses!$L$66+AJ18*[1]Hypothèses!$E$49)/1000 -> 1.76375 | AN18: 79 | AO18: =AP18/(VLOOKUP(E18,[1]Hypothèses!$S$26:$U$32,2,FALSE)*[1]Hypothèses!$AA$26) -> 3941.568036 | AP18: =(VLOOKUP(E18,[1]Hypothèses!$W$26:$X$32,2,FALSE)*[1]Hypothèses!$Y$26*[1]Hypothèses!$AB$26*K18)/([1]Hypothèses!$Z$26*1000) -> 20681.40748 | AQ18: =AP18/[1]Hypothèses!$AC$26 -> 5170.351871 | AR18: =(AS18*[1]Hypothèses!$I$53)*1000 -> 24000 | AS18: =ROUND(IF(K18<[1]Hypothèses!$J$53,1,K18/[1]Hypothèses!$J$53),0) -> 1 | AT18: =(AU18*[1]Hypothèses!$I$54)*1000 -> 24000 | AU18: =ROUND(IF(K18<[1]Hypothèses!$J$54,1,K18/[1]Hypothèses!$J$54),0) -> 1 | AV18: =(AW18*[1]Hypothèses!$I$55)*1000 -> 9600 | AW18: =[1]Hypothèses!$J$55 -> 3 | AX18: =(AY18*[1]Hypothèses!$I$56)*1000 -> 4800 | AY18: =ROUND(IF(K18<[1]Hypothèses!$J$56,0,K18/[1]Hypothèses!$J$56),0) -> 3 | BF18: 83081.40748 | BG18: =(AQ18+AS18*[1]Hypothèses!$G$53*1000+AU18*[1]Hypothèses!$G$54*1000+AW18*[1]Hypothèses!$G$55*1000+AY18*[1]Hypothèses!$G$56)/1000 -> 18.37095187 | BH18: 2 | BI18: 355130.4075 | BJ18: =(BI18/(VLOOKUP(E18,[1]Hypothèses!$S$26:$U$32,2,FALSE)*[1]Hypothèses!$X$4))/1000 -> 74.61879438 | BK18: =(BI18/(VLOOKUP(E18,[1]Hypothèses!$S$26:$U$32,3,FALSE)*[1]Hypothèses!$X$4))/1000 -> 84.30339048 | BL18: 64.49270187 | BM18: =BL18*[1]Hypothèses!$X$12/[1]Hypothèses!$W$12 -> 60.90977399 | BN18: =BL18*[1]Hypothèses!$W$8*[1]Hypothèses!$X$12 -> 65.78255591 | BO18: =BJ18*[1]Hypothèses!$X$8 -> 82.08067381 | BP18: =(BI18/1000)*[1]Hypothèses!$Z$4/([1]Hypothèses!$AA$4*[1]Hypothèses!$AB$4) -> 1065.817549 | BQ18: =BP18/[1]Hypothèses!$AB$8 -> 177.6362582 | BS18: =(('[1]Hypo Cables'!$J$4*'[1]Hypo Cables'!$M$4)/('[1]Fhypo DPP'!BL69*[1]Hypothèses!$X$12*('[1]Hypo Cables'!$M$24+'[1]Hypo Cables'!$M$25*'[1]Hypo Cables'!$J$14)))/1000 -> 0.3255179625 | BT18: =(('[1]Hypo Cables'!$J$4*'[1]Hypo Cables'!$M$4)/('[1]Fhypo DPP'!BL69*[1]Hypothèses!$X$12*('[1]Hypo Cables'!$M$27+'[1]Hypo Cables'!$M$28*'[1]Hypo Cables'!$J$14)))/1000 -> 0.6054238976 | BW18: =BQ18*[1]Hypothèses!$AC$8 -> 59.21208608 | BX18: =4*SQRT(BJ18*[1]Hypothèses!$AF$3) -> 234.5526481 | BY18: 58.63816202
D19: ENERSA | E19: THIES | F19: TIVAOUANE | G19: MEOUANE | H19: SINE MOUSSE ABDOU | I19: 1412 | J19: 98 | K19: =ROUND(I19*(1+[1]Hypothèses!$T$4)^([1]Hypothèses!$S$4-[1]Hypothèses!$R$4),0) -> 1498 | L19: =ROUND(J19*(1+[1]Hypothèses!$T$4)^([1]Hypothèses!$S$4-[1]Hypothèses!$R$4),0) -> 104 | M19: 42 | N19: =ROUND((L19*[1]Hypothèses!$U$4-'[1]Fhypo DPP'!M87)*[1]Hypothèses!$G$24+'[1]Fhypo DPP'!M87*[1]Hypothèses!$G$25,0) -> 8 | O19: =ROUND((L19*[1]Hypothèses!$U$4-'[1]Fhypo DPP'!M87)*[1]Hypothèses!$H$24+'[1]Fhypo DPP'!M87*[1]Hypothèses!$H$25,0) -> 15 | P19: =ROUND((L19*[1]Hypothèses!$U$4-'[1]Fhypo DPP'!M87)*[1]Hypothèses!$I$24+'[1]Fhypo DPP'!M87*[1]Hypothèses!$I$25,0) -> 11 | Q19: =ROUND((L19*[1]Hypothèses!$U$4-'[1]Fhypo DPP'!M87)*[1]Hypothèses!$J$24+'[1]Fhypo DPP'!M87*[1]Hypothèses!$J$25,0) -> 49 | R19: 83 | S19: =N19*[1]Hypothèses!$H$49 -> 2672 | T19: =O19*[1]Hypothèses!$J$49 -> 15900 | U19: =P19*[1]Hypothèses!$L$49 -> 19140 | V19: =Q19*[1]Hypothèses!$N$49 -> 281358 | W19: 319070 | X19: =(N19*[1]Hypothèses!$G$49+O19*[1]Hypothèses!$I$49+P19*[1]Hypothèses!$K$49+Q19*[1]Hypothèses!$M$49)/1000 -> 54.468 | Z19: =VLOOKUP(H19,[1]Struc_communautaires!C16:H109,2,FALSE) -> 2 | AA19: =Z19*[1]Hypothèses!$J$49 -> 2120 | AB19: =VLOOKUP(H19,[1]Struc_communautaires!C16:H109,3,FALSE) -> 1 | AC19: =AB19*[1]Hypothèses!$J$49 -> 1060 | AD19: =VLOOKUP(H19,[1]Struc_communautaires!C16:H109,4,FALSE) -> 1 | AE19: =AD19*[1]Hypothèses!$J$49 -> 1060 | AH19: =VLOOKUP(H19,[1]Struc_communautaires!C16:H109,5,FALSE) -> 0 | AI19: =AH19*[1]Hypothèses!$J$49 -> 0 | AJ19: =VLOOKUP(H19,[1]Struc_communautaires!C16:H109,6,FALSE) -> 18 | AK19: =AJ19*[1]Hypothèses!$F$49 -> 6480 | AL19: 10720 | AM19: =(Z19*[1]Hypothèses!$L$62+AB19*[1]Hypothèses!$L$65+AD19*[1]Hypothèses!$L$63+AF19*[1]Hypothèses!$L$64+AH19*[1]Hypothèses!$L$66+AJ19*[1]Hypothèses!$E$49)/1000 -> 1.357 | AN19: 93 | AO19: =AP19/(VLOOKUP(E19,[1]Hypothèses!$S$26:$U$32,2,FALSE)*[1]Hypothèses!$AA$26) -> 4674.955596 | AP19: =(VLOOKUP(E19,[1]Hypothèses!$W$26:$X$32,2,FALSE)*[1]Hypothèses!$Y$26*[1]Hypothèses!$AB$26*K19)/([1]Hypothèses!$Z$26*1000) -> 24529.49201 | AQ19: =AP19/[1]Hypothèses!$AC$26 -> 6132.373003 | AR19: =(AS19*[1]Hypothèses!$I$53)*1000 -> 24000 | AS19: =ROUND(IF(K19<[1]Hypothèses!$J$53,1,K19/[1]Hypothèses!$J$53),0) -> 1 | AT19: =(AU19*[1]Hypothèses!$I$54)*1000 -> 24000 | AU19: =ROUND(IF(K19<[1]Hypothèses!$J$54,1,K19/[1]Hypothèses!$J$54),0) -> 1 | AV19: =(AW19*[1]Hypothèses!$I$55)*1000 -> 9600 | AW19: =[1]Hypothèses!$J$55 -> 3 | AX19: =(AY19*[1]Hypothèses!$I$56)*1000 -> 4800 | AY19: =ROUND(IF(K19<[1]Hypothèses!$J$56,0,K19/[1]Hypothèses!$J$56),0) -> 3 | BF19: 86929.49201 | BG19: =(AQ19+AS19*[1]Hypothèses!$G$53*1000+AU19*[1]Hypothèses!$G$54*1000+AW19*[1]Hypothèses!$G$55*1000+AY19*[1]Hypothèses!$G$56)/1000 -> 19.332973 | BH19: 2 | BI19: 416719.492 | BJ19: =(BI19/(VLOOKUP(E19,[1]Hypothèses!$S$26:$U$32,2,FALSE)*[1]Hypothèses!$X$4))/1000 -> 87.55968352 | BK19: =(BI19/(VLOOKUP(E19,[1]Hypothèses!$S$26:$U$32,3,FALSE)*[1]Hypothèses!$X$4))/1000 -> 98.92384689 | BL19: 75.157973 | BM19: =BL19*[1]Hypothèses!$X$12/[1]Hypothèses!$W$12 -> 70.98253006 | BN19: =BL19*[1]Hypothèses!$W$8*[1]Hypothèses!$X$12 -> 76.66113246 | BO19: =BJ19*[1]Hypothèses!$X$8 -> 96.31565187 | BP19: =(BI19/1000)*[1]Hypothèses!$Z$4/([1]Hypothèses!$AA$4*[1]Hypothèses!$AB$4) -> 1250.65874 | BQ19: =BP19/[1]Hypothèses!$AB$8 -> 208.4431233 | BS19: =(('[1]Hypo Cables'!$J$4*'[1]Hypo Cables'!$M$4)/('[1]Fhypo DPP'!BL87*[1]Hypothèses!$X$12*('[1]Hypo Cables'!$M$24+'[1]Hypo Cables'!$M$25*'[1]Hypo Cables'!$J$14)))/1000 -> 0.3506479116 | BT19: =(('[1]Hypo Cables'!$J$4*'[1]Hypo Cables'!$M$4)/('[1]Fhypo DPP'!BL87*[1]Hypothèses!$X$12*('[1]Hypo Cables'!$M$27+'[1]Hypo Cables'!$M$28*'[1]Hypo Cables'!$J$14)))/1000 -> 0.6521625524 | BW19: =BQ19*[1]Hypothèses!$AC$8 -> 69.48104108 | BX19: =4*SQRT(BJ19*[1]Hypothèses!$AF$3) -> 254.0787348 | BY19: 63.51968369
D20: SOUS TOTAL ENERSA | M20: =SUM(M18:M19) -> 111
D22: ERA | E22: KAFFRINE | F22: KOUNGHEUL | G22: Diokoul | H22: KATHIALE | I22: 550 | J22: 37 | K22: =ROUND(I22*(1+[1]Hypothèses!$T$4)^([1]Hypothèses!$S$4-[1]Hypothèses!$R$4),0) -> 584 | L22: =ROUND(J22*(1+[1]Hypothèses!$T$4)^([1]Hypothèses!$S$4-[1]Hypothèses!$R$4),0) -> 39 | M22: 38 | N22: =ROUND((L22*[1]Hypothèses!$U$4-'[1]Fhypo DPP'!M40)*[1]Hypothèses!$G$24+'[1]Fhypo DPP'!M40*[1]Hypothèses!$G$25,0) -> 3 | O22: =ROUND((L22*[1]Hypothèses!$U$4-'[1]Fhypo DPP'!M40)*[1]Hypothèses!$H$24+'[1]Fhypo DPP'!M40*[1]Hypothèses!$H$25,0) -> 5 | P22: =ROUND((L22*[1]Hypothèses!$U$4-'[1]Fhypo DPP'!M40)*[1]Hypothèses!$I$24+'[1]Fhypo DPP'!M40*[1]Hypothèses!$I$25,0) -> 4 | Q22: =ROUND((L22*[1]Hypothèses!$U$4-'[1]Fhypo DPP'!M40)*[1]Hypothèses!$J$24+'[1]Fhypo DPP'!M40*[1]Hypothèses!$J$25,0) -> 19 | R22: 31 | S22: =N22*[1]Hypothèses!$H$49 -> 1002 | T22: =O22*[1]Hypothèses!$J$49 -> 5300 | U22: =P22*[1]Hypothèses!$L$49 -> 6960 | V22: =Q22*[1]Hypothèses!$N$49 -> 109098 | W22: 122360 | X22: =(N22*[1]Hypothèses!$G$49+O22*[1]Hypothèses!$I$49+P22*[1]Hypothèses!$K$49+Q22*[1]Hypothèses!$M$49)/1000 -> 20.838 | Z22: =VLOOKUP(H22,[1]Struc_communautaires!C17:H110,2,FALSE) -> 3 | AA22: =Z22*[1]Hypothèses!$J$49 -> 3180 | AB22: =VLOOKUP(H22,[1]Struc_communautaires!C17:H110,3,FALSE) -> 2 | AC22: =AB22*[1]Hypothèses!$J$49 -> 2120 | AD22: =VLOOKUP(H22,[1]Struc_communautaires!C17:H110,4,FALSE) -> 1 | AE22: =AD22*[1]Hypothèses!$J$49 -> 1060 | AH22: =VLOOKUP(H22,[1]Struc_communautaires!C17:H110,5,FALSE) -> 0 | AI22: =AH22*[1]Hypothèses!$J$49 -> 0 | AJ22: =VLOOKUP(H22,[1]Struc_communautaires!C17:H110,6,FALSE) -> 9.875 | AK22: =AJ22*[1]Hypothèses!$F$49 -> 3555 | AL22: 9915 | AM22: =(Z22*[1]Hypothèses!$L$62+AB22*[1]Hypothèses!$L$65+AD22*[1]Hypothèses!$L$63+AF22*[1]Hypothèses!$L$64+AH22*[1]Hypothèses!$L$66+AJ22*[1]Hypothèses!$E$49)/1000 -> 1.59125 | AN22: 41 | AO22: =AP22/(VLOOKUP(E22,[1]Hypothèses!$S$26:$U$32,2,FALSE)*[1]Hypothèses!$AA$26) -> 1689.738154 | AP22: =(VLOOKUP(E22,[1]Hypothèses!$W$26:$X$32,2,FALSE)*[1]Hypothèses!$Y$26*[1]Hypothèses!$AB$26*K22)/([1]Hypothèses!$Z$26*1000) -> 8653.149089 | AQ22: =AP22/[1]Hypothèses!$AC$26 -> 2163.287272 | AR22: =(AS22*[1]Hypothèses!$I$53)*1000 -> 24000 | AS22: =ROUND(IF(K22<[1]Hypothèses!$J$53,1,K22/[1]Hypothèses!$J$53),0) -> 1 | AT22: =(AU22*[1]Hypothèses!$I$54)*1000 -> 24000 | AU22: =ROUND(IF(K22<[1]Hypothèses!$J$54,1,K22/[1]Hypothèses!$J$54),0) -> 1 | AV22: =(AW22*[1]Hypothèses!$I$55)*1000 -> 9600 | AW22: =[1]Hypothèses!$J$55 -> 3 | AX22: =(AY22*[1]Hypothèses!$I$56)*1000 -> 1600 | AY22: =ROUND(IF(K22<[1]Hypothèses!$J$56,0,K22/[1]Hypothèses!$J$56),0) -> 1 | BF22: 67853.14909 | BG22: =(AQ22+AS22*[1]Hypothèses!$G$53*1000+AU22*[1]Hypothèses!$G$54*1000+AW22*[1]Hypothèses!$G$55*1000+AY22*[1]Hypothèses!$G$56)/1000 -> 15.36348727 | BH22: 2 | BI22: 200128.1491 | BJ22: =(BI22/(VLOOKUP(E22,[1]Hypothèses!$S$26:$U$32,2,FALSE)*[1]Hypothèses!$X$4))/1000 -> 43.0848748 | BK22: =(BI22/(VLOOKUP(E22,[1]Hypothèses!$S$26:$U$32,3,FALSE)*[1]Hypothèses!$X$4))/1000 -> 46.89955398 | BL22: 37.79273727 | BM22: =BL22*[1]Hypothèses!$X$12/[1]Hypothèses!$W$12 -> 35.69314076 | BN22: =BL22*[1]Hypothèses!$W$8*[1]Hypothèses!$X$12 -> 38.54859202 | BO22: =BJ22*[1]Hypothèses!$X$8 -> 47.39336228 | BP22: =(BI22/1000)*[1]Hypothèses!$Z$4/([1]Hypothèses!$AA$4*[1]Hypothèses!$AB$4) -> 600.6246971 | BQ22: =BP22/[1]Hypothèses!$AB$8 -> 100.1041162 | BS22: =(('[1]Hypo Cables'!$J$4*'[1]Hypo Cables'!$M$4)/('[1]Fhypo DPP'!BL40*[1]Hypothèses!$X$12*('[1]Hypo Cables'!$M$24+'[1]Hypo Cables'!$M$25*'[1]Hypo Cables'!$J$14)))/1000 -> 0.4176331995 | BT22: =(('[1]Hypo Cables'!$J$4*'[1]Hypo Cables'!$M$4)/('[1]Fhypo DPP'!BL40*[1]Hypothèses!$X$12*('[1]Hypo Cables'!$M$27+'[1]Hypo Cables'!$M$28*'[1]Hypo Cables'!$J$14)))/1000 -> 0.7767470571 | BW22: =BQ22*[1]Hypothèses!$AC$8 -> 33.36803873 | BX22: =4*SQRT(BJ22*[1]Hypothèses!$AF$3) -> 178.2291124 | BY22: 44.55727809
D23: SOUS TOTAL ERA | M23: =SUM(M22) -> 38
D25: Faye Solaire_Sud Energie | E25: SEDHIOU | F25: GOUDOMP | G25: NIAGHA | H25: BAMBADALA 1 | I25: 900 | J25: 56 | K25: =ROUND(I25*(1+[1]Hypothèses!$T$4)^([1]Hypothèses!$S$4-[1]Hypothèses!$R$4),0) -> 955 | L25: =ROUND(J25*(1+[1]Hypothèses!$T$4)^([1]Hypothèses!$S$4-[1]Hypothèses!$R$4),0) -> 59 | M25: 36 | N25: =ROUND((L25*[1]Hypothèses!$U$4-'[1]Fhypo DPP'!M11)*[1]Hypothèses!$G$24+'[1]Fhypo DPP'!M11*[1]Hypothèses!$G$25,0) -> 4 | O25: =ROUND((L25*[1]Hypothèses!$U$4-'[1]Fhypo DPP'!M11)*[1]Hypothèses!$H$24+'[1]Fhypo DPP'!M11*[1]Hypothèses!$H$25,0) -> 8 | P25: =ROUND((L25*[1]Hypothèses!$U$4-'[1]Fhypo DPP'!M11)*[1]Hypothèses!$I$24+'[1]Fhypo DPP'!M11*[1]Hypothèses!$I$25,0) -> 6 | Q25: =ROUND((L25*[1]Hypothèses!$U$4-'[1]Fhypo DPP'!M11)*[1]Hypothèses!$J$24+'[1]Fhypo DPP'!M11*[1]Hypothèses!$J$25,0) -> 28 | R25: 46 | S25: =N25*[1]Hypothèses!$H$49 -> 1336 | T25: =O25*[1]Hypothèses!$J$49 -> 8480 | U25: =P25*[1]Hypothèses!$L$49 -> 10440 | V25: =Q25*[1]Hypothèses!$N$49 -> 160776 | W25: 181032 | X25: =(N25*[1]Hypothèses!$G$49+O25*[1]Hypothèses!$I$49+P25*[1]Hypothèses!$K$49+Q25*[1]Hypothèses!$M$49)/1000 -> 30.848 | Z25: =VLOOKUP(H25,[1]Struc_communautaires!C18:H111,2,FALSE) -> 1 | AA25: =Z25*[1]Hypothèses!$J$49 -> 1060 | AB25: =VLOOKUP(H25,[1]Struc_communautaires!C18:H111,3,FALSE) -> 1 | AC25: =AB25*[1]Hypothèses!$J$49 -> 1060 | AD25: =VLOOKUP(H25,[1]Struc_communautaires!C18:H111,4,FALSE) -> 0 | AE25: =AD25*[1]Hypothèses!$J$49 -> 0 | AH25: =VLOOKUP(H25,[1]Struc_communautaires!C18:H111,5,FALSE) -> 0 | AI25: =AH25*[1]Hypothèses!$J$49 -> 0 | AJ25: =VLOOKUP(H25,[1]Struc_communautaires!C18:H111,6,FALSE) -> 12.375 | AK25: =AJ25*[1]Hypothèses!$F$49 -> 4455 | AL25: 6575 | AM25: =(Z25*[1]Hypothèses!$L$62+AB25*[1]Hypothèses!$L$65+AD25*[1]Hypothèses!$L$63+AF25*[1]Hypothèses!$L$64+AH25*[1]Hypothèses!$L$66+AJ25*[1]Hypothèses!$E$49)/1000 -> 0.84925 | AN25: 53 | AO25: =AP25/(VLOOKUP(E25,[1]Hypothèses!$S$26:$U$32,2,FALSE)*[1]Hypothèses!$AA$26) -> 2648.167404 | AP25: =(VLOOKUP(E25,[1]Hypothèses!$W$26:$X$32,2,FALSE)*[1]Hypothèses!$Y$26*[1]Hypothèses!$AB$26*K25)/([1]Hypothèses!$Z$26*1000) -> 13561.26528 | AQ25: =AP25/[1]Hypothèses!$AC$26 -> 3390.316319 | AR25: =(AS25*[1]Hypothèses!$I$53)*1000 -> 24000 | AS25: =ROUND(IF(K25<[1]Hypothèses!$J$53,1,K25/[1]Hypothèses!$J$53),0) -> 1 | AT25: =(AU25*[1]Hypothèses!$I$54)*1000 -> 24000 | AU25: =ROUND(IF(K25<[1]Hypothèses!$J$54,1,K25/[1]Hypothèses!$J$54),0) -> 1 | AV25: =(AW25*[1]Hypothèses!$I$55)*1000 -> 9600 | AW25: =[1]Hypothèses!$J$55 -> 3 | AX25: =(AY25*[1]Hypothèses!$I$56)*1000 -> 3200 | AY25: =ROUND(IF(K25<[1]Hypothèses!$J$56,0,K25/[1]Hypothèses!$J$56),0) -> 2 | BF25: 74361.26528 | BG25: =(AQ25+AS25*[1]Hypothèses!$G$53*1000+AU25*[1]Hypothèses!$G$54*1000+AW25*[1]Hypothèses!$G$55*1000+AY25*[1]Hypothèses!$G$56)/1000 -> 16.59071632 | BH25: 2 | BI25: 261968.2653 | BJ25: =(BI25/(VLOOKUP(E25,[1]Hypothèses!$S$26:$U$32,2,FALSE)*[1]Hypothèses!$X$4))/1000 -> 56.39821266 | BK25: =(BI25/(VLOOKUP(E25,[1]Hypothèses!$S$26:$U$32,3,FALSE)*[1]Hypothèses!$X$4))/1000 -> 69.23507594 | BL25: 48.28796632 | BM25: =BL25*[1]Hypothèses!$X$12/[1]Hypothèses!$W$12 -> 45.60530152 | BN25: =BL25*[1]Hypothèses!$W$8*[1]Hypothèses!$X$12 -> 49.25372565 | BO25: =BJ25*[1]Hypothèses!$X$8 -> 62.03803392 | BP25: =(BI25/1000)*[1]Hypothèses!$Z$4/([1]Hypothèses!$AA$4*[1]Hypothèses!$AB$4) -> 786.2192835 | BQ25: =BP25/[1]Hypothèses!$AB$8 -> 131.0365473 | BS25: =(('[1]Hypo Cables'!$J$4*'[1]Hypo Cables'!$M$4)/('[1]Fhypo DPP'!BL11*[1]Hypothèses!$X$12*('[1]Hypo Cables'!$M$24+'[1]Hypo Cables'!$M$25*'[1]Hypo Cables'!$J$14)))/1000 -> 0.2170026903 | BT25: =(('[1]Hypo Cables'!$J$4*'[1]Hypo Cables'!$M$4)/('[1]Fhypo DPP'!BL11*[1]Hypothèses!$X$12*('[1]Hypo Cables'!$M$27+'[1]Hypo Cables'!$M$28*'[1]Hypo Cables'!$J$14)))/1000 -> 0.4035986632 | BW25: =BQ25*[1]Hypothèses!$AC$8 -> 43.67884909 | BX25: =4*SQRT(BJ25*[1]Hypothèses!$AF$3) -> 203.9148701 | BY25: 50.97871751
D26: Faye Solaire_Sud Energie | E26: SEDHIOU | F26: GOUDOMP | G26: DIOUBOUDOU | H26: BISSARY | I26: 800 | J26: 36 | K26: =ROUND(I26*(1+[1]Hypothèses!$T$4)^([1]Hypothèses!$S$4-[1]Hypothèses!$R$4),0) -> 849 | L26: =ROUND(J26*(1+[1]Hypothèses!$T$4)^([1]Hypothèses!$S$4-[1]Hypothèses!$R$4),0) -> 38 | M26: 41 | N26: =ROUND((L26*[1]Hypothèses!$U$4-'[1]Fhypo DPP'!M17)*[1]Hypothèses!$G$24+'[1]Fhypo DPP'!M17*[1]Hypothèses!$G$25,0) -> 2 | O26: =ROUND((L26*[1]Hypothèses!$U$4-'[1]Fhypo DPP'!M17)*[1]Hypothèses!$H$24+'[1]Fhypo DPP'!M17*[1]Hypothèses!$H$25,0) -> 4 | P26: =ROUND((L26*[1]Hypothèses!$U$4-'[1]Fhypo DPP'!M17)*[1]Hypothèses!$I$24+'[1]Fhypo DPP'!M17*[1]Hypothèses!$I$25,0) -> 4 | Q26: =ROUND((L26*[1]Hypothèses!$U$4-'[1]Fhypo DPP'!M17)*[1]Hypothèses!$J$24+'[1]Fhypo DPP'!M17*[1]Hypothèses!$J$25,0) -> 20 | R26: 30 | S26: =N26*[1]Hypothèses!$H$49 -> 668 | T26: =O26*[1]Hypothèses!$J$49 -> 4240 | U26: =P26*[1]Hypothèses!$L$49 -> 6960 | V26: =Q26*[1]Hypothèses!$N$49 -> 114840 | W26: 126708 | X26: =(N26*[1]Hypothèses!$G$49+O26*[1]Hypothèses!$I$49+P26*[1]Hypothèses!$K$49+Q26*[1]Hypothèses!$M$49)/1000 -> 21.456 | Z26: =VLOOKUP(H26,[1]Struc_communautaires!C19:H112,2,FALSE) -> 1 | AA26: =Z26*[1]Hypothèses!$J$49 -> 1060 | AB26: =VLOOKUP(H26,[1]Struc_communautaires!C19:H112,3,FALSE) -> 1 | AC26: =AB26*[1]Hypothèses!$J$49 -> 1060 | AD26: =VLOOKUP(H26,[1]Struc_communautaires!C19:H112,4,FALSE) -> 0 | AE26: =AD26*[1]Hypothèses!$J$49 -> 0 | AH26: =VLOOKUP(H26,[1]Struc_communautaires!C19:H112,5,FALSE) -> 0 | AI26: =AH26*[1]Hypothèses!$J$49 -> 0 | AJ26: =VLOOKUP(H26,[1]Struc_communautaires!C19:H112,6,FALSE) -> 9.75 | AK26: =AJ26*[1]Hypothèses!$F$49 -> 3510 | AL26: 5630 | AM26: =(Z26*[1]Hypothèses!$L$62+AB26*[1]Hypothèses!$L$65+AD26*[1]Hypothèses!$L$63+AF26*[1]Hypothèses!$L$64+AH26*[1]Hypothèses!$L$66+AJ26*[1]Hypothèses!$E$49)/1000 -> 0.7705 | AN26: 37 | AO26: =AP26/(VLOOKUP(E26,[1]Hypothèses!$S$26:$U$32,2,FALSE)*[1]Hypothèses!$AA$26) -> 2354.234687 | AP26: =(VLOOKUP(E26,[1]Hypothèses!$W$26:$X$32,2,FALSE)*[1]Hypothèses!$Y$26*[1]Hypothèses!$AB$26*K26)/([1]Hypothèses!$Z$26*1000) -> 12056.03583 | AQ26: =AP26/[1]Hypothèses!$AC$26 -> 3014.008958 | AR26: =(AS26*[1]Hypothèses!$I$53)*1000 -> 24000 | AS26: =ROUND(IF(K26<[1]Hypothèses!$J$53,1,K26/[1]Hypothèses!$J$53),0) -> 1 | AT26: =(AU26*[1]Hypothèses!$I$54)*1000 -> 24000 | AU26: =ROUND(IF(K26<[1]Hypothèses!$J$54,1,K26/[1]Hypothèses!$J$54),0) -> 1 | AV26: =(AW26*[1]Hypothèses!$I$55)*1000 -> 9600 | AW26: =[1]Hypothèses!$J$55 -> 3 | AX26: =(AY26*[1]Hypothèses!$I$56)*1000 -> 3200 | AY26: =ROUND(IF(K26<[1]Hypothèses!$J$56,0,K26/[1]Hypothèses!$J$56),0) -> 2 | BF26: 72856.03583 | BG26: =(AQ26+AS26*[1]Hypothèses!$G$53*1000+AU26*[1]Hypothèses!$G$54*1000+AW26*[1]Hypothèses!$G$55*1000+AY26*[1]Hypothèses!$G$56)/1000 -> 16.21440896 | BH26: 2 | BI26: 205194.0358 | BJ26: =(BI26/(VLOOKUP(E26,[1]Hypothèses!$S$26:$U$32,2,FALSE)*[1]Hypothèses!$X$4))/1000 -> 44.17549147 | BK26: =(BI26/(VLOOKUP(E26,[1]Hypothèses!$S$26:$U$32,3,FALSE)*[1]Hypothèses!$X$4))/1000 -> 54.23032686 | BL26: 38.44090896 | BM26: =BL26*[1]Hypothèses!$X$12/[1]Hypothèses!$W$12 -> 36.30530291 | BN26: =BL26*[1]Hypothèses!$W$8*[1]Hypothèses!$X$12 -> 39.20972714 | BO26: =BJ26*[1]Hypothèses!$X$8 -> 48.59304062 | BP26: =(BI26/1000)*[1]Hypothèses!$Z$4/([1]Hypothèses!$AA$4*[1]Hypothèses!$AB$4) -> 615.8284389 | BQ26: =BP26/[1]Hypothèses!$AB$8 -> 102.6380731 | BS26: =(('[1]Hypo Cables'!$J$4*'[1]Hypo Cables'!$M$4)/('[1]Fhypo DPP'!BL17*[1]Hypothèses!$X$12*('[1]Hypo Cables'!$M$24+'[1]Hypo Cables'!$M$25*'[1]Hypo Cables'!$J$14)))/1000 -> 0.2209131206 | BT26: =(('[1]Hypo Cables'!$J$4*'[1]Hypo Cables'!$M$4)/('[1]Fhypo DPP'!BL17*[1]Hypothèses!$X$12*('[1]Hypo Cables'!$M$27+'[1]Hypo Cables'!$M$28*'[1]Hypo Cables'!$J$14)))/1000 -> 0.410871589 | BW26: =BQ26*[1]Hypothèses!$AC$8 -> 34.21269105 | BX26: =4*SQRT(BJ26*[1]Hypothèses!$AF$3) -> 180.4707909 | BY26: 45.11769771
D27: Faye Solaire_Sud Energie | E27: SEDHIOU | F27: GOUDOMP | G27: DIOUBOUDOU | H27: MALANDIANKUNDA | I27: 1300 | J27: 45 | K27: =ROUND(I27*(1+[1]Hypothèses!$T$4)^([1]Hypothèses!$S$4-[1]Hypothèses!$R$4),0) -> 1380 | L27: =ROUND(J27*(1+[1]Hypothèses!$T$4)^([1]Hypothèses!$S$4-[1]Hypothèses!$R$4),0) -> 48 | M27: 38 | N27: =ROUND((L27*[1]Hypothèses!$U$4-'[1]Fhypo DPP'!M57)*[1]Hypothèses!$G$24+'[1]Fhypo DPP'!M57*[1]Hypothèses!$G$25,0) -> 3 | O27: =ROUND((L27*[1]Hypothèses!$U$4-'[1]Fhypo DPP'!M57)*[1]Hypothèses!$H$24+'[1]Fhypo DPP'!M57*[1]Hypothèses!$H$25,0) -> 6 | P27: =ROUND((L27*[1]Hypothèses!$U$4-'[1]Fhypo DPP'!M57)*[1]Hypothèses!$I$24+'[1]Fhypo DPP'!M57*[1]Hypothèses!$I$25,0) -> 5 | Q27: =ROUND((L27*[1]Hypothèses!$U$4-'[1]Fhypo DPP'!M57)*[1]Hypothèses!$J$24+'[1]Fhypo DPP'!M57*[1]Hypothèses!$J$25,0) -> 23 | R27: 37 | S27: =N27*[1]Hypothèses!$H$49 -> 1002 | T27: =O27*[1]Hypothèses!$J$49 -> 6360 | U27: =P27*[1]Hypothèses!$L$49 -> 8700 | V27: =Q27*[1]Hypothèses!$N$49 -> 132066 | W27: 148128 | X27: =(N27*[1]Hypothèses!$G$49+O27*[1]Hypothèses!$I$49+P27*[1]Hypothèses!$K$49+Q27*[1]Hypothèses!$M$49)/1000 -> 25.195 | Z27: =VLOOKUP(H27,[1]Struc_communautaires!C20:H113,2,FALSE) -> 1 | AA27: =Z27*[1]Hypothèses!$J$49 -> 1060 | AB27: =VLOOKUP(H27,[1]Struc_communautaires!C20:H113,3,FALSE) -> 1 | AC27: =AB27*[1]Hypothèses!$J$49 -> 1060 | AD27: =VLOOKUP(H27,[1]Struc_communautaires!C20:H113,4,FALSE) -> 0 | AE27: =AD27*[1]Hypothèses!$J$49 -> 0 | AH27: =VLOOKUP(H27,[1]Struc_communautaires!C20:H113,5,FALSE) -> 0 | AI27: =AH27*[1]Hypothèses!$J$49 -> 0 | AJ27: =VLOOKUP(H27,[1]Struc_communautaires!C20:H113,6,FALSE) -> 11 | AK27: =AJ27*[1]Hypothèses!$F$49 -> 3960 | AL27: 6080 | AM27: =(Z27*[1]Hypothèses!$L$62+AB27*[1]Hypothèses!$L$65+AD27*[1]Hypothèses!$L$63+AF27*[1]Hypothèses!$L$64+AH27*[1]Hypothèses!$L$66+AJ27*[1]Hypothèses!$E$49)/1000 -> 0.808 | AN27: 45 | AO27: =AP27/(VLOOKUP(E27,[1]Hypothèses!$S$26:$U$32,2,FALSE)*[1]Hypothèses!$AA$26) -> 3826.671223 | AP27: =(VLOOKUP(E27,[1]Hypothèses!$W$26:$X$32,2,FALSE)*[1]Hypothèses!$Y$26*[1]Hypothèses!$AB$26*K27)/([1]Hypothèses!$Z$26*1000) -> 19596.38333 | AQ27: =AP27/[1]Hypothèses!$AC$26 -> 4899.095833 | AR27: =(AS27*[1]Hypothèses!$I$53)*1000 -> 24000 | AS27: =ROUND(IF(K27<[1]Hypothèses!$J$53,1,K27/[1]Hypothèses!$J$53),0) -> 1 | AT27: =(AU27*[1]Hypothèses!$I$54)*1000 -> 24000 | AU27: =ROUND(IF(K27<[1]Hypothèses!$J$54,1,K27/[1]Hypothèses!$J$54),0) -> 1 | AV27: =(AW27*[1]Hypothèses!$I$55)*1000 -> 9600 | AW27: =[1]Hypothèses!$J$55 -> 3 | AX27: =(AY27*[1]Hypothèses!$I$56)*1000 -> 4800 | AY27: =ROUND(IF(K27<[1]Hypothèses!$J$56,0,K27/[1]Hypothèses!$J$56),0) -> 3 | BF27: 81996.38333 | BG27: =(AQ27+AS27*[1]Hypothèses!$G$53*1000+AU27*[1]Hypothèses!$G$54*1000+AW27*[1]Hypothèses!$G$55*1000+AY27*[1]Hypothèses!$G$56)/1000 -> 18.09969583 | BH27: 2 | BI27: 236204.3833 | BJ27: =(BI27/(VLOOKUP(E27,[1]Hypothèses!$S$26:$U$32,2,FALSE)*[1]Hypothèses!$X$4))/1000 -> 50.85159849 | BK27: =(BI27/(VLOOKUP(E27,[1]Hypothèses!$S$26:$U$32,3,FALSE)*[1]Hypothèses!$X$4))/1000 -> 62.42599041 | BL27: 44.10269583 | BM27: =BL27*[1]Hypothèses!$X$12/[1]Hypothèses!$W$12 -> 41.65254606 | BN27: =BL27*[1]Hypothèses!$W$8*[1]Hypothèses!$X$12 -> 44.98474975 | BO27: =BJ27*[1]Hypothèses!$X$8 -> 55.93675833 | BP27: =(BI27/1000)*[1]Hypothèses!$Z$4/([1]Hypothèses!$AA$4*[1]Hypothèses!$AB$4) -> 708.8967087 | BQ27: =BP27/[1]Hypothèses!$AB$8 -> 118.1494514 | BS27: =(('[1]Hypo Cables'!$J$4*'[1]Hypo Cables'!$M$4)/('[1]Fhypo DPP'!BL57*[1]Hypothèses!$X$12*('[1]Hypo Cables'!$M$24+'[1]Hypo Cables'!$M$25*'[1]Hypo Cables'!$J$14)))/1000 -> 0.2063508614 | BT27: =(('[1]Hypo Cables'!$J$4*'[1]Hypo Cables'!$M$4)/('[1]Fhypo DPP'!BL57*[1]Hypothèses!$X$12*('[1]Hypo Cables'!$M$27+'[1]Hypo Cables'!$M$28*'[1]Hypo Cables'!$J$14)))/1000 -> 0.3837875545 | BW27: =BQ27*[1]Hypothèses!$AC$8 -> 39.38315048 | BX27: =4*SQRT(BJ27*[1]Hypothèses!$AF$3) -> 193.6281656 | BY27: 48.40704141
D28: Faye Solaire_Sud Energie | E28: SEDHIOU | F28: GOUDOMP | G28: SIMBADI BALANTE | H28: SAFANE | I28: 986 | J28: 115 | K28: =ROUND(I28*(1+[1]Hypothèses!$T$4)^([1]Hypothèses!$S$4-[1]Hypothèses!$R$4),0) -> 1046 | L28: =ROUND(J28*(1+[1]Hypothèses!$T$4)^([1]Hypothèses!$S$4-[1]Hypothèses!$R$4),0) -> 122 | M28: 41 | N28: =ROUND((L28*[1]Hypothèses!$U$4-'[1]Fhypo DPP'!M77)*[1]Hypothèses!$G$24+'[1]Fhypo DPP'!M77*[1]Hypothèses!$G$25,0) -> 9 | O28: =ROUND((L28*[1]Hypothèses!$U$4-'[1]Fhypo DPP'!M77)*[1]Hypothèses!$H$24+'[1]Fhypo DPP'!M77*[1]Hypothèses!$H$25,0) -> 19 | P28: =ROUND((L28*[1]Hypothèses!$U$4-'[1]Fhypo DPP'!M77)*[1]Hypothèses!$I$24+'[1]Fhypo DPP'!M77*[1]Hypothèses!$I$25,0) -> 13 | Q28: =ROUND((L28*[1]Hypothèses!$U$4-'[1]Fhypo DPP'!M77)*[1]Hypothèses!$J$24+'[1]Fhypo DPP'!M77*[1]Hypothèses!$J$25,0) -> 56 | R28: 97 | S28: =N28*[1]Hypothèses!$H$49 -> 3006 | T28: =O28*[1]Hypothèses!$J$49 -> 20140 | U28: =P28*[1]Hypothèses!$L$49 -> 22620 | V28: =Q28*[1]Hypothèses!$N$49 -> 321552 | W28: 367318 | X28: =(N28*[1]Hypothèses!$G$49+O28*[1]Hypothèses!$I$49+P28*[1]Hypothèses!$K$49+Q28*[1]Hypothèses!$M$49)/1000 -> 62.803 | Z28: =VLOOKUP(H28,[1]Struc_communautaires!C21:H114,2,FALSE) -> 3 | AA28: =Z28*[1]Hypothèses!$J$49 -> 3180 | AB28: =VLOOKUP(H28,[1]Struc_communautaires!C21:H114,3,FALSE) -> 2 | AC28: =AB28*[1]Hypothèses!$J$49 -> 2120 | AD28: =VLOOKUP(H28,[1]Struc_communautaires!C21:H114,4,FALSE) -> 1 | AE28: =AD28*[1]Hypothèses!$J$49 -> 1060 | AH28: =VLOOKUP(H28,[1]Struc_communautaires!C21:H114,5,FALSE) -> 0 | AI28: =AH28*[1]Hypothèses!$J$49 -> 0 | AJ28: =VLOOKUP(H28,[1]Struc_communautaires!C21:H114,6,FALSE) -> 20.25 | AK28: =AJ28*[1]Hypothèses!$F$49 -> 7290 | AL28: 13650 | AM28: =(Z28*[1]Hypothèses!$L$62+AB28*[1]Hypothèses!$L$65+AD28*[1]Hypothèses!$L$63+AF28*[1]Hypothèses!$L$64+AH28*[1]Hypothèses!$L$66+AJ28*[1]Hypothèses!$E$49)/1000 -> 1.9025 | AN28: 108 | AO28: =AP28/(VLOOKUP(E28,[1]Hypothèses!$S$26:$U$32,2,FALSE)*[1]Hypothèses!$AA$26) -> 2900.505869 | AP28: =(VLOOKUP(E28,[1]Hypothèses!$W$26:$X$32,2,FALSE)*[1]Hypothèses!$Y$26*[1]Hypothèses!$AB$26*K28)/([1]Hypothèses!$Z$26*1000) -> 14853.49056 | AQ28: =AP28/[1]Hypothèses!$AC$26 -> 3713.372639 | AR28: =(AS28*[1]Hypothèses!$I$53)*1000 -> 24000 | AS28: =ROUND(IF(K28<[1]Hypothèses!$J$53,1,K28/[1]Hypothèses!$J$53),0) -> 1 | AT28: =(AU28*[1]Hypothèses!$I$54)*1000 -> 24000 | AU28: =ROUND(IF(K28<[1]Hypothèses!$J$54,1,K28/[1]Hypothèses!$J$54),0) -> 1 | AV28: =(AW28*[1]Hypothèses!$I$55)*1000 -> 9600 | AW28: =[1]Hypothèses!$J$55 -> 3 | AX28: =(AY28*[1]Hypothèses!$I$56)*1000 -> 3200 | AY28: =ROUND(IF(K28<[1]Hypothèses!$J$56,0,K28/[1]Hypothèses!$J$56),0) -> 2 | BF28: 75653.49056 | BG28: =(AQ28+AS28*[1]Hypothèses!$G$53*1000+AU28*[1]Hypothèses!$G$54*1000+AW28*[1]Hypothèses!$G$55*1000+AY28*[1]Hypothèses!$G$56)/1000 -> 16.91377264 | BH28: 2 | BI28: 456621.4906 | BJ28: =(BI28/(VLOOKUP(E28,[1]Hypothèses!$S$26:$U$32,2,FALSE)*[1]Hypothèses!$X$4))/1000 -> 98.30441065 | BK28: =(BI28/(VLOOKUP(E28,[1]Hypothèses!$S$26:$U$32,3,FALSE)*[1]Hypothèses!$X$4))/1000 -> 120.6795928 | BL28: 81.61927264 | BM28: =BL28*[1]Hypothèses!$X$12/[1]Hypothèses!$W$12 -> 77.0848686 | BN28: =BL28*[1]Hypothèses!$W$8*[1]Hypothèses!$X$12 -> 83.25165809 | BO28: =BJ28*[1]Hypothèses!$X$8 -> 108.1348517 | BP28: =(BI28/1000)*[1]Hypothèses!$Z$4/([1]Hypothèses!$AA$4*[1]Hypothèses!$AB$4) -> 1370.412637 | BQ28: =BP28/[1]Hypothèses!$AB$8 -> 228.4021061 | BS28: =(('[1]Hypo Cables'!$J$4*'[1]Hypo Cables'!$M$4)/('[1]Fhypo DPP'!BL77*[1]Hypothèses!$X$12*('[1]Hypo Cables'!$M$24+'[1]Hypo Cables'!$M$25*'[1]Hypo Cables'!$J$14)))/1000 -> 0.3624571868 | BT28: =(('[1]Hypo Cables'!$J$4*'[1]Hypo Cables'!$M$4)/('[1]Fhypo DPP'!BL77*[1]Hypothèses!$X$12*('[1]Hypo Cables'!$M$27+'[1]Hypo Cables'!$M$28*'[1]Hypo Cables'!$J$14)))/1000 -> 0.6741263708 | BW28: =BQ28*[1]Hypothèses!$AC$8 -> 76.13403537 | BX28: =4*SQRT(BJ28*[1]Hypothèses!$AF$3) -> 269.2171538 | BY28: 67.30428844
D29: Faye Solaire_Sud Energie | E29: SEDHIOU | F29: GOUDOMP | G29: DIOUBOUDOU | H29: SANOUFILY | I29: 1035 | J29: 55 | K29: =ROUND(I29*(1+[1]Hypothèses!$T$4)^([1]Hypothèses!$S$4-[1]Hypothèses!$R$4),0) -> 1098 | L29: =ROUND(J29*(1+[1]Hypothèses!$T$4)^([1]Hypothèses!$S$4-[1]Hypothèses!$R$4),0) -> 58 | M29: 49 | N29: =ROUND((L29*[1]Hypothèses!$U$4-'[1]Fhypo DPP'!M80)*[1]Hypothèses!$G$24+'[1]Fhypo DPP'!M80*[1]Hypothèses!$G$25,0) -> 4 | O29: =ROUND((L29*[1]Hypothèses!$U$4-'[1]Fhypo DPP'!M80)*[1]Hypothèses!$H$24+'[1]Fhypo DPP'!M80*[1]Hypothèses!$H$25,0) -> 8 | P29: =ROUND((L29*[1]Hypothèses!$U$4-'[1]Fhypo DPP'!M80)*[1]Hypothèses!$I$24+'[1]Fhypo DPP'!M80*[1]Hypothèses!$I$25,0) -> 6 | Q29: =ROUND((L29*[1]Hypothèses!$U$4-'[1]Fhypo DPP'!M80)*[1]Hypothèses!$J$24+'[1]Fhypo DPP'!M80*[1]Hypothèses!$J$25,0) -> 28 | R29: 46 | S29: =N29*[1]Hypothèses!$H$49 -> 1336 | T29: =O29*[1]Hypothèses!$J$49 -> 8480 | U29: =P29*[1]Hypothèses!$L$49 -> 10440 | V29: =Q29*[1]Hypothèses!$N$49 -> 160776 | W29: 181032 | X29: =(N29*[1]Hypothèses!$G$49+O29*[1]Hypothèses!$I$49+P29*[1]Hypothèses!$K$49+Q29*[1]Hypothèses!$M$49)/1000 -> 30.848 | Z29: =VLOOKUP(H29,[1]Struc_communautaires!C22:H115,2,FALSE) -> 1 | AA29: =Z29*[1]Hypothèses!$J$49 -> 1060 | AB29: =VLOOKUP(H29,[1]Struc_communautaires!C22:H115,3,FALSE) -> 1 | AC29: =AB29*[1]Hypothèses!$J$49 -> 1060 | AD29: =VLOOKUP(H29,[1]Struc_communautaires!C22:H115,4,FALSE) -> 1 | AE29: =AD29*[1]Hypothèses!$J$49 -> 1060 | AH29: =VLOOKUP(H29,[1]Struc_communautaires!C22:H115,5,FALSE) -> 0 | AI29: =AH29*[1]Hypothèses!$J$49 -> 0 | AJ29: =VLOOKUP(H29,[1]Struc_communautaires!C22:H115,6,FALSE) -> 12.25 | AK29: =AJ29*[1]Hypothèses!$F$49 -> 4410 | AL29: 7590 | AM29: =(Z29*[1]Hypothèses!$L$62+AB29*[1]Hypothèses!$L$65+AD29*[1]Hypothèses!$L$63+AF29*[1]Hypothèses!$L$64+AH29*[1]Hypothèses!$L$66+AJ29*[1]Hypothèses!$E$49)/1000 -> 0.9455 | AN29: 54 | AO29: =AP29/(VLOOKUP(E29,[1]Hypothèses!$S$26:$U$32,2,FALSE)*[1]Hypothèses!$AA$26) -> 3044.699277 | AP29: =(VLOOKUP(E29,[1]Hypothèses!$W$26:$X$32,2,FALSE)*[1]Hypothèses!$Y$26*[1]Hypothèses!$AB$26*K29)/([1]Hypothèses!$Z$26*1000) -> 15591.905 | AQ29: =AP29/[1]Hypothèses!$AC$26 -> 3897.97625 | AR29: =(AS29*[1]Hypothèses!$I$53)*1000 -> 24000 | AS29: =ROUND(IF(K29<[1]Hypothèses!$J$53,1,K29/[1]Hypothèses!$J$53),0) -> 1 | AT29: =(AU29*[1]Hypothèses!$I$54)*1000 -> 24000 | AU29: =ROUND(IF(K29<[1]Hypothèses!$J$54,1,K29/[1]Hypothèses!$J$54),0) -> 1 | AV29: =(AW29*[1]Hypothèses!$I$55)*1000 -> 9600 | AW29: =[1]Hypothèses!$J$55 -> 3 | AX29: =(AY29*[1]Hypothèses!$I$56)*1000 -> 3200 | AY29: =ROUND(IF(K29<[1]Hypothèses!$J$56,0,K29/[1]Hypothèses!$J$56),0) -> 2 | BF29: 76391.905 | BG29: =(AQ29+AS29*[1]Hypothèses!$G$53*1000+AU29*[1]Hypothèses!$G$54*1000+AW29*[1]Hypothèses!$G$55*1000+AY29*[1]Hypothèses!$G$56)/1000 -> 17.09837625 | BH29: 2 | BI29: 265013.905 | BJ29: =(BI29/(VLOOKUP(E29,[1]Hypothèses!$S$26:$U$32,2,FALSE)*[1]Hypothèses!$X$4))/1000 -> 57.05389756 | BK29: =(BI29/(VLOOKUP(E29,[1]Hypothèses!$S$26:$U$32,3,FALSE)*[1]Hypothèses!$X$4))/1000 -> 70.04000205 | BL29: 48.89187625 | BM29: =BL29*[1]Hypothèses!$X$12/[1]Hypothèses!$W$12 -> 46.1756609 | BN29: =BL29*[1]Hypothèses!$W$8*[1]Hypothèses!$X$12 -> 49.86971377 | BO29: =BJ29*[1]Hypothèses!$X$8 -> 62.75928732 | BP29: =(BI29/1000)*[1]Hypothèses!$Z$4/([1]Hypothèses!$AA$4*[1]Hypothèses!$AB$4) -> 795.3598589 | BQ29: =BP29/[1]Hypothèses!$AB$8 -> 132.5599765 | BS29: =(('[1]Hypo Cables'!$J$4*'[1]Hypo Cables'!$M$4)/('[1]Fhypo DPP'!BL80*[1]Hypothèses!$X$12*('[1]Hypo Cables'!$M$24+'[1]Hypo Cables'!$M$25*'[1]Hypo Cables'!$J$14)))/1000 -> 0.3648106348 | BT29: =(('[1]Hypo Cables'!$J$4*'[1]Hypo Cables'!$M$4)/('[1]Fhypo DPP'!BL80*[1]Hypothèses!$X$12*('[1]Hypo Cables'!$M$27+'[1]Hypo Cables'!$M$28*'[1]Hypo Cables'!$J$14)))/1000 -> 0.6785034985 | BW29: =BQ29*[1]Hypothèses!$AC$8 -> 44.18665883 | BX29: =4*SQRT(BJ29*[1]Hypothèses!$AF$3) -> 205.0968005 | BY29: 51.27420014
D30: Faye Solaire_Sud Energie | E30: SEDHIOU | F30: GOUDOMP | G30: YARANG BALANTE | H30: SINA | I30: 1047 | J30: 53 | K30: =ROUND(I30*(1+[1]Hypothèses!$T$4)^([1]Hypothèses!$S$4-[1]Hypothèses!$R$4),0) -> 1111 | L30: =ROUND(J30*(1+[1]Hypothèses!$T$4)^([1]Hypothèses!$S$4-[1]Hypothèses!$R$4),0) -> 56 | M30: 40 | N30: =ROUND((L30*[1]Hypothèses!$U$4-'[1]Fhypo DPP'!M86)*[1]Hypothèses!$G$24+'[1]Fhypo DPP'!M86*[1]Hypothèses!$G$25,0) -> 4 | O30: =ROUND((L30*[1]Hypothèses!$U$4-'[1]Fhypo DPP'!M86)*[1]Hypothèses!$H$24+'[1]Fhypo DPP'!M86*[1]Hypothèses!$H$25,0) -> 8 | P30: =ROUND((L30*[1]Hypothèses!$U$4-'[1]Fhypo DPP'!M86)*[1]Hypothèses!$I$24+'[1]Fhypo DPP'!M86*[1]Hypothèses!$I$25,0) -> 6 | Q30: =ROUND((L30*[1]Hypothèses!$U$4-'[1]Fhypo DPP'!M86)*[1]Hypothèses!$J$24+'[1]Fhypo DPP'!M86*[1]Hypothèses!$J$25,0) -> 27 | R30: 45 | S30: =N30*[1]Hypothèses!$H$49 -> 1336 | T30: =O30*[1]Hypothèses!$J$49 -> 8480 | U30: =P30*[1]Hypothèses!$L$49 -> 10440 | V30: =Q30*[1]Hypothèses!$N$49 -> 155034 | W30: 175290 | X30: =(N30*[1]Hypothèses!$G$49+O30*[1]Hypothèses!$I$49+P30*[1]Hypothèses!$K$49+Q30*[1]Hypothèses!$M$49)/1000 -> 29.891 | Z30: =VLOOKUP(H30,[1]Struc_communautaires!C23:H116,2,FALSE) -> 1 | AA30: =Z30*[1]Hypothèses!$J$49 -> 1060 | AB30: =VLOOKUP(H30,[1]Struc_communautaires!C23:H116,3,FALSE) -> 1 | AC30: =AB30*[1]Hypothèses!$J$49 -> 1060 | AD30: =VLOOKUP(H30,[1]Struc_communautaires!C23:H116,4,FALSE) -> 0 | AE30: =AD30*[1]Hypothèses!$J$49 -> 0 | AH30: =VLOOKUP(H30,[1]Struc_communautaires!C23:H116,5,FALSE) -> 0 | AI30: =AH30*[1]Hypothèses!$J$49 -> 0 | AJ30: =VLOOKUP(H30,[1]Struc_communautaires!C23:H116,6,FALSE) -> 12 | AK30: =AJ30*[1]Hypothèses!$F$49 -> 4320 | AL30: 6440 | AM30: =(Z30*[1]Hypothèses!$L$62+AB30*[1]Hypothèses!$L$65+AD30*[1]Hypothèses!$L$63+AF30*[1]Hypothèses!$L$64+AH30*[1]Hypothèses!$L$66+AJ30*[1]Hypothèses!$E$49)/1000 -> 0.838 | AN30: 52 | AO30: =AP30/(VLOOKUP(E30,[1]Hypothèses!$S$26:$U$32,2,FALSE)*[1]Hypothèses!$AA$26) -> 3080.74763 | AP30: =(VLOOKUP(E30,[1]Hypothèses!$W$26:$X$32,2,FALSE)*[1]Hypothèses!$Y$26*[1]Hypothèses!$AB$26*K30)/([1]Hypothèses!$Z$26*1000) -> 15776.50861 | AQ30: =AP30/[1]Hypothèses!$AC$26 -> 3944.127153 | AR30: =(AS30*[1]Hypothèses!$I$53)*1000 -> 24000 | AS30: =ROUND(IF(K30<[1]Hypothèses!$J$53,1,K30/[1]Hypothèses!$J$53),0) -> 1 | AT30: =(AU30*[1]Hypothèses!$I$54)*1000 -> 24000 | AU30: =ROUND(IF(K30<[1]Hypothèses!$J$54,1,K30/[1]Hypothèses!$J$54),0) -> 1 | AV30: =(AW30*[1]Hypothèses!$I$55)*1000 -> 9600 | AW30: =[1]Hypothèses!$J$55 -> 3 | AX30: =(AY30*[1]Hypothèses!$I$56)*1000 -> 3200 | AY30: =ROUND(IF(K30<[1]Hypothèses!$J$56,0,K30/[1]Hypothèses!$J$56),0) -> 2 | BF30: 76576.50861 | BG30: =(AQ30+AS30*[1]Hypothèses!$G$53*1000+AU30*[1]Hypothèses!$G$54*1000+AW30*[1]Hypothèses!$G$55*1000+AY30*[1]Hypothèses!$G$56)/1000 -> 17.14452715 | BH30: 2 | BI30: 258306.5086 | BJ30: =(BI30/(VLOOKUP(E30,[1]Hypothèses!$S$26:$U$32,2,FALSE)*[1]Hypothèses!$X$4))/1000 -> 55.60988614 | BK30: =(BI30/(VLOOKUP(E30,[1]Hypothèses!$S$26:$U$32,3,FALSE)*[1]Hypothèses!$X$4))/1000 -> 68.26731749 | BL30: 47.87352715 | BM30: =BL30*[1]Hypothèses!$X$12/[1]Hypothèses!$W$12 -> 45.21388676 | BN30: =BL30*[1]Hypothèses!$W$8*[1]Hypothèses!$X$12 -> 48.8309977 | BO30: =BJ30*[1]Hypothèses!$X$8 -> 61.17087475 | BP30: =(BI30/1000)*[1]Hypothèses!$Z$4/([1]Hypothèses!$AA$4*[1]Hypothèses!$AB$4) -> 775.2296177 | BQ30: =BP30/[1]Hypothèses!$AB$8 -> 129.2049363 | BS30: =(('[1]Hypo Cables'!$J$4*'[1]Hypo Cables'!$M$4)/('[1]Fhypo DPP'!BL86*[1]Hypothèses!$X$12*('[1]Hypo Cables'!$M$24+'[1]Hypo Cables'!$M$25*'[1]Hypo Cables'!$J$14)))/1000 -> 0.4232991034 | BT30: =(('[1]Hypo Cables'!$J$4*'[1]Hypo Cables'!$M$4)/('[1]Fhypo DPP'!BL86*[1]Hypothèses!$X$12*('[1]Hypo Cables'!$M$27+'[1]Hypo Cables'!$M$28*'[1]Hypo Cables'!$J$14)))/1000 -> 0.7872849506 | BW30: =BQ30*[1]Hypothèses!$AC$8 -> 43.06831209 | BX30: =4*SQRT(BJ30*[1]Hypothèses!$AF$3) -> 202.4847077 | BY30: 50.62117692
D31: SOUS TOTAL FAYE SOLAIRE -SUD ENERGIE | M31: =SUM(M25:M30) -> 245
D33: NEANT | E33: MATAM | F33: RANEROU | G33: OUDALAYE | H33: WOPPA | I33: 307 | J33: 57 | K33: =ROUND(I33*(1+[1]Hypothèses!$T$4)^([1]Hypothèses!$S$4-[1]Hypothèses!$R$4),0) -> 326 | L33: =ROUND(J33*(1+[1]Hypothèses!$T$4)^([1]Hypothèses!$S$4-[1]Hypothèses!$R$4),0) -> 60 | M33: 0 | N33: =ROUND((L33*[1]Hypothèses!$U$4-'[1]Fhypo DPP'!M97)*[1]Hypothèses!$G$24+'[1]Fhypo DPP'!M97*[1]Hypothèses!$G$25,0) -> 4 | O33: =ROUND((L33*[1]Hypothèses!$U$4-'[1]Fhypo DPP'!M97)*[1]Hypothèses!$H$24+'[1]Fhypo DPP'!M97*[1]Hypothèses!$H$25,0) -> 7 | P33: =ROUND((L33*[1]Hypothèses!$U$4-'[1]Fhypo DPP'!M97)*[1]Hypothèses!$I$24+'[1]Fhypo DPP'!M97*[1]Hypothèses!$I$25,0) -> 7 | Q33: =ROUND((L33*[1]Hypothèses!$U$4-'[1]Fhypo DPP'!M97)*[1]Hypothèses!$J$24+'[1]Fhypo DPP'!M97*[1]Hypothèses!$J$25,0) -> 30 | R33: 48 | S33: =N33*[1]Hypothèses!$H$49 -> 1336 | T33: =O33*[1]Hypothèses!$J$49 -> 7420 | U33: =P33*[1]Hypothèses!$L$49 -> 12180 | V33: =Q33*[1]Hypothèses!$N$49 -> 172260 | W33: 193196 | X33: =(N33*[1]Hypothèses!$G$49+O33*[1]Hypothèses!$I$49+P33*[1]Hypothèses!$K$49+Q33*[1]Hypothèses!$M$49)/1000 -> 32.813 | Z33: =VLOOKUP(H33,[1]Struc_communautaires!C24:H117,2,FALSE) -> 1 | AA33: =Z33*[1]Hypothèses!$J$49 -> 1060 | AB33: =VLOOKUP(H33,[1]Struc_communautaires!C24:H117,3,FALSE) -> 1 | AC33: =AB33*[1]Hypothèses!$J$49 -> 1060 | AD33: =VLOOKUP(H33,[1]Struc_communautaires!C24:H117,4,FALSE) -> 1 | AE33: =AD33*[1]Hypothèses!$J$49 -> 1060 | AH33: =VLOOKUP(H33,[1]Struc_communautaires!C24:H117,5,FALSE) -> 0 | AI33: =AH33*[1]Hypothèses!$J$49 -> 0 | AJ33: =VLOOKUP(H33,[1]Struc_communautaires!C24:H117,6,FALSE) -> 12.5 | AK33: =AJ33*[1]Hypothèses!$F$49 -> 4500 | AL33: 7680 | AM33: =(Z33*[1]Hypothèses!$L$62+AB33*[1]Hypothèses!$L$65+AD33*[1]Hypothèses!$L$63+AF33*[1]Hypothèses!$L$64+AH33*[1]Hypothèses!$L$66+AJ33*[1]Hypothèses!$E$49)/1000 -> 0.953 | AN33: 54 | AO33: =AP33/(VLOOKUP(E33,[1]Hypothèses!$S$26:$U$32,2,FALSE)*[1]Hypothèses!$AA$26) -> 1331.452553 | AP33: =(VLOOKUP(E33,[1]Hypothèses!$W$26:$X$32,2,FALSE)*[1]Hypothèses!$Y$26*[1]Hypothèses!$AB$26*K33)/([1]Hypothèses!$Z$26*1000) -> 6494.825556 | AQ33: =AP33/[1]Hypothèses!$AC$26 -> 1623.706389 | AR33: =(AS33*[1]Hypothèses!$I$53)*1000 -> 24000 | AS33: =ROUND(IF(K33<[1]Hypothèses!$J$53,1,K33/[1]Hypothèses!$J$53),0) -> 1 | AT33: =(AU33*[1]Hypothèses!$I$54)*1000 -> 24000 | AU33: =ROUND(IF(K33<[1]Hypothèses!$J$54,1,K33/[1]Hypothèses!$J$54),0) -> 1 | AV33: =(AW33*[1]Hypothèses!$I$55)*1000 -> 9600 | AW33: =[1]Hypothèses!$J$55 -> 3 | AX33: =(AY33*[1]Hypothèses!$I$56)*1000 -> 0 | AY33: =ROUND(IF(K33<[1]Hypothèses!$J$56,0,K33/[1]Hypothèses!$J$56),0) -> 0 | BF33: 64094.82556 | BG33: =(AQ33+AS33*[1]Hypothèses!$G$53*1000+AU33*[1]Hypothèses!$G$54*1000+AW33*[1]Hypothèses!$G$55*1000+AY33*[1]Hypothèses!$G$56)/1000 -> 14.82370639 | BH33: 2 | BI33: 264970.8256 | BJ33: =(BI33/(VLOOKUP(E33,[1]Hypothèses!$S$26:$U$32,2,FALSE)*[1]Hypothèses!$X$4))/1000 -> 59.88632946 | BK33: =(BI33/(VLOOKUP(E33,[1]Hypothèses!$S$26:$U$32,3,FALSE)*[1]Hypothèses!$X$4))/1000 -> 66.42280388 | BL33: 48.58970639 | BM33: =BL33*[1]Hypothèses!$X$12/[1]Hypothèses!$W$12 -> 45.89027826 | BN33: =BL33*[1]Hypothèses!$W$8*[1]Hypothèses!$X$12 -> 49.56150052 | BO33: =BJ33*[1]Hypothèses!$X$8 -> 65.87496241 | BP33: =(BI33/1000)*[1]Hypothèses!$Z$4/([1]Hypothèses!$AA$4*[1]Hypothèses!$AB$4) -> 795.2305689 | BQ33: =BP33/[1]Hypothèses!$AB$8 -> 132.5384281 | BS33: =(('[1]Hypo Cables'!$J$4*'[1]Hypo Cables'!$M$4)/('[1]Fhypo DPP'!BL97*[1]Hypothèses!$X$12*('[1]Hypo Cables'!$M$24+'[1]Hypo Cables'!$M$25*'[1]Hypo Cables'!$J$14)))/1000 -> 0.2986587579 | BT33: =(('[1]Hypo Cables'!$J$4*'[1]Hypo Cables'!$M$4)/('[1]Fhypo DPP'!BL97*[1]Hypothèses!$X$12*('[1]Hypo Cables'!$M$27+'[1]Hypo Cables'!$M$28*'[1]Hypo Cables'!$J$14)))/1000 -> 0.5554690374 | BW33: =BQ33*[1]Hypothèses!$AC$8 -> 44.17947605 | BX33: =4*SQRT(BJ33*[1]Hypothèses!$AF$3) -> 210.1261359 | BY33: 52.53153397
D34: SOUS TOTAL NEANT | M34: =SUM(M33) -> 0
D36: NS RESIF | E36: SEDHIOU | F36: SEDHIOU | G36: BAMBALI | H36: BADIARY | I36: 2125 | J36: 64 | K36: =ROUND(I36*(1+[1]Hypothèses!$T$4)^([1]Hypothèses!$S$4-[1]Hypothèses!$R$4),0) -> 2255 | L36: =ROUND(J36*(1+[1]Hypothèses!$T$4)^([1]Hypothèses!$S$4-[1]Hypothèses!$R$4),0) -> 68 | M36: 37 | N36: =ROUND((L36*[1]Hypothèses!$U$4-'[1]Fhypo DPP'!M7)*[1]Hypothèses!$G$24+'[1]Fhypo DPP'!M7*[1]Hypothèses!$G$25,0) -> 5 | O36: =ROUND((L36*[1]Hypothèses!$U$4-'[1]Fhypo DPP'!M7)*[1]Hypothèses!$H$24+'[1]Fhypo DPP'!M7*[1]Hypothèses!$H$25,0) -> 9 | P36: =ROUND((L36*[1]Hypothèses!$U$4-'[1]Fhypo DPP'!M7)*[1]Hypothèses!$I$24+'[1]Fhypo DPP'!M7*[1]Hypothèses!$I$25,0) -> 7 | Q36: =ROUND((L36*[1]Hypothèses!$U$4-'[1]Fhypo DPP'!M7)*[1]Hypothèses!$J$24+'[1]Fhypo DPP'!M7*[1]Hypothèses!$J$25,0) -> 33 | R36: 54 | S36: =N36*[1]Hypothèses!$H$49 -> 1670 | T36: =O36*[1]Hypothèses!$J$49 -> 9540 | U36: =P36*[1]Hypothèses!$L$49 -> 12180 | V36: =Q36*[1]Hypothèses!$N$49 -> 189486 | W36: 212876 | X36: =(N36*[1]Hypothèses!$G$49+O36*[1]Hypothèses!$I$49+P36*[1]Hypothèses!$K$49+Q36*[1]Hypothèses!$M$49)/1000 -> 36.262 | Z36: =VLOOKUP(H36,[1]Struc_communautaires!C25:H118,2,FALSE) -> 3 | AA36: =Z36*[1]Hypothèses!$J$49 -> 3180 | AB36: =VLOOKUP(H36,[1]Struc_communautaires!C25:H118,3,FALSE) -> 2 | AC36: =AB36*[1]Hypothèses!$J$49 -> 2120 | AD36: =VLOOKUP(H36,[1]Struc_communautaires!C25:H118,4,FALSE) -> 1 | AE36: =AD36*[1]Hypothèses!$J$49 -> 1060 | AH36: =VLOOKUP(H36,[1]Struc_communautaires!C25:H118,5,FALSE) -> 0 | AI36: =AH36*[1]Hypothèses!$J$49 -> 0 | AJ36: =VLOOKUP(H36,[1]Struc_communautaires!C25:H118,6,FALSE) -> 13.5 | AK36: =AJ36*[1]Hypothèses!$F$49 -> 4860 | AL36: 11220 | AM36: =(Z36*[1]Hypothèses!$L$62+AB36*[1]Hypothèses!$L$65+AD36*[1]Hypothèses!$L$63+AF36*[1]Hypothèses!$L$64+AH36*[1]Hypothèses!$L$66+AJ36*[1]Hypothèses!$E$49)/1000 -> 1.7 | AN36: 68 | AO36: =AP36/(VLOOKUP(E36,[1]Hypothèses!$S$26:$U$32,2,FALSE)*[1]Hypothèses!$AA$26) -> 6253.002615 | AP36: =(VLOOKUP(E36,[1]Hypothèses!$W$26:$X$32,2,FALSE)*[1]Hypothèses!$Y$26*[1]Hypothèses!$AB$26*K36)/([1]Hypothèses!$Z$26*1000) -> 32021.62639 | AQ36: =AP36/[1]Hypothèses!$AC$26 -> 8005.406597 | AR36: =(AS36*[1]Hypothèses!$I$53)*1000 -> 48000 | AS36: =ROUND(IF(K36<[1]Hypothèses!$J$53,1,K36/[1]Hypothèses!$J$53),0) -> 2 | AT36: =(AU36*[1]Hypothèses!$I$54)*1000 -> 48000 | AU36: =ROUND(IF(K36<[1]Hypothèses!$J$54,1,K36/[1]Hypothèses!$J$54),0) -> 2 | AV36: =(AW36*[1]Hypothèses!$I$55)*1000 -> 9600 | AW36: =[1]Hypothèses!$J$55 -> 3 | AX36: =(AY36*[1]Hypothèses!$I$56)*1000 -> 8000 | AY36: =ROUND(IF(K36<[1]Hypothèses!$J$56,0,K36/[1]Hypothèses!$J$56),0) -> 5 | BF36: 145621.6264 | BG36: =(AQ36+AS36*[1]Hypothèses!$G$53*1000+AU36*[1]Hypothèses!$G$54*1000+AW36*[1]Hypothèses!$G$55*1000+AY36*[1]Hypothèses!$G$56)/1000 -> 33.2064066 | BH36: 4 | BI36: 369717.6264 | BJ36: =(BI36/(VLOOKUP(E36,[1]Hypothèses!$S$26:$U$32,2,FALSE)*[1]Hypothèses!$X$4))/1000 -> 79.59518797 | BK36: =(BI36/(VLOOKUP(E36,[1]Hypothèses!$S$26:$U$32,3,FALSE)*[1]Hypothèses!$X$4))/1000 -> 97.71194198 | BL36: 71.1684066 | BM36: =BL36*[1]Hypothèses!$X$12/[1]Hypothèses!$W$12 -> 67.21460623 | BN36: =BL36*[1]Hypothèses!$W$8*[1]Hypothèses!$X$12 -> 72.59177473 | BO36: =BJ36*[1]Hypothèses!$X$8 -> 87.55470676 | BP36: =(BI36/1000)*[1]Hypothèses!$Z$4/([1]Hypothèses!$AA$4*[1]Hypothèses!$AB$4) -> 1109.596718 | BQ36: =BP36/[1]Hypothèses!$AB$8 -> 184.9327863 | BS36: =(('[1]Hypo Cables'!$J$4*'[1]Hypo Cables'!$M$4)/('[1]Fhypo DPP'!BL7*[1]Hypothèses!$X$12*('[1]Hypo Cables'!$M$24+'[1]Hypo Cables'!$M$25*'[1]Hypo Cables'!$J$14)))/1000 -> 0.4443622109 | BT36: =(('[1]Hypo Cables'!$J$4*'[1]Hypo Cables'!$M$4)/('[1]Fhypo DPP'!BL7*[1]Hypothèses!$X$12*('[1]Hypo Cables'!$M$27+'[1]Hypo Cables'!$M$28*'[1]Hypo Cables'!$J$14)))/1000 -> 0.8264597738 | BW36: =BQ36*[1]Hypothèses!$AC$8 -> 61.6442621 | BX36: =4*SQRT(BJ36*[1]Hypothèses!$AF$3) -> 242.2476835 | BY36: 60.56192089
D37: NS RESIF | E37: SEDHIOU | F37: GOUDOMP | G37: DJIBANAR | H37: BAFATA BALANTE | I37: 1400 | J37: 99 | K37: =ROUND(I37*(1+[1]Hypothèses!$T$4)^([1]Hypothèses!$S$4-[1]Hypothèses!$R$4),0) -> 1486 | L37: =ROUND(J37*(1+[1]Hypothèses!$T$4)^([1]Hypothèses!$S$4-[1]Hypothèses!$R$4),0) -> 105 | M37: 27 | N37: =ROUND((L37*[1]Hypothèses!$U$4-'[1]Fhypo DPP'!M9)*[1]Hypothèses!$G$24+'[1]Fhypo DPP'!M9*[1]Hypothèses!$G$25,0) -> 8 | O37: =ROUND((L37*[1]Hypothèses!$U$4-'[1]Fhypo DPP'!M9)*[1]Hypothèses!$H$24+'[1]Fhypo DPP'!M9*[1]Hypothèses!$H$25,0) -> 15 | P37: =ROUND((L37*[1]Hypothèses!$U$4-'[1]Fhypo DPP'!M9)*[1]Hypothèses!$I$24+'[1]Fhypo DPP'!M9*[1]Hypothèses!$I$25,0) -> 11 | Q37: =ROUND((L37*[1]Hypothèses!$U$4-'[1]Fhypo DPP'!M9)*[1]Hypothèses!$J$24+'[1]Fhypo DPP'!M9*[1]Hypothèses!$J$25,0) -> 50 | R37: 84 | S37: =N37*[1]Hypothèses!$H$49 -> 2672 | T37: =O37*[1]Hypothèses!$J$49 -> 15900 | U37: =P37*[1]Hypothèses!$L$49 -> 19140 | V37: =Q37*[1]Hypothèses!$N$49 -> 287100 | W37: 324812 | X37: =(N37*[1]Hypothèses!$G$49+O37*[1]Hypothèses!$I$49+P37*[1]Hypothèses!$K$49+Q37*[1]Hypothèses!$M$49)/1000 -> 55.425 | Z37: =VLOOKUP(H37,[1]Struc_communautaires!C26:H119,2,FALSE) -> 1 | AA37: =Z37*[1]Hypothèses!$J$49 -> 1060 | AB37: =VLOOKUP(H37,[1]Struc_communautaires!C26:H119,3,FALSE) -> 1 | AC37: =AB37*[1]Hypothèses!$J$49 -> 1060 | AD37: =VLOOKUP(H37,[1]Struc_communautaires!C26:H119,4,FALSE) -> 1 | AE37: =AD37*[1]Hypothèses!$J$49 -> 1060 | AH37: =VLOOKUP(H37,[1]Struc_communautaires!C26:H119,5,FALSE) -> 1 | AI37: =AH37*[1]Hypothèses!$J$49 -> 1060 | AJ37: =VLOOKUP(H37,[1]Struc_communautaires!C26:H119,6,FALSE) -> 18.125 | AK37: =AJ37*[1]Hypothèses!$F$49 -> 6525 | AL37: 10765 | AM37: =(Z37*[1]Hypothèses!$L$62+AB37*[1]Hypothèses!$L$65+AD37*[1]Hypothèses!$L$63+AF37*[1]Hypothèses!$L$64+AH37*[1]Hypothèses!$L$66+AJ37*[1]Hypothèses!$E$49)/1000 -> 1.36075 | AN37: 94 | AO37: =AP37/(VLOOKUP(E37,[1]Hypothèses!$S$26:$U$32,2,FALSE)*[1]Hypothèses!$AA$26) -> 4120.60394 | AP37: =(VLOOKUP(E37,[1]Hypothèses!$W$26:$X$32,2,FALSE)*[1]Hypothèses!$Y$26*[1]Hypothèses!$AB$26*K37)/([1]Hypothèses!$Z$26*1000) -> 21101.61278 | AQ37: =AP37/[1]Hypothèses!$AC$26 -> 5275.403194 | AR37: =(AS37*[1]Hypothèses!$I$53)*1000 -> 24000 | AS37: =ROUND(IF(K37<[1]Hypothèses!$J$53,1,K37/[1]Hypothèses!$J$53),0) -> 1 | AT37: =(AU37*[1]Hypothèses!$I$54)*1000 -> 24000 | AU37: =ROUND(IF(K37<[1]Hypothèses!$J$54,1,K37/[1]Hypothèses!$J$54),0) -> 1 | AV37: =(AW37*[1]Hypothèses!$I$55)*1000 -> 9600 | AW37: =[1]Hypothèses!$J$55 -> 3 | AX37: =(AY37*[1]Hypothèses!$I$56)*1000 -> 4800 | AY37: =ROUND(IF(K37<[1]Hypothèses!$J$56,0,K37/[1]Hypothèses!$J$56),0) -> 3 | BF37: 83501.61278 | BG37: =(AQ37+AS37*[1]Hypothèses!$G$53*1000+AU37*[1]Hypothèses!$G$54*1000+AW37*[1]Hypothèses!$G$55*1000+AY37*[1]Hypothèses!$G$56)/1000 -> 18.47600319 | BH37: 2 | BI37: 419078.6128 | BJ37: =(BI37/(VLOOKUP(E37,[1]Hypothèses!$S$26:$U$32,2,FALSE)*[1]Hypothèses!$X$4))/1000 -> 90.22193852 | BK37: =(BI37/(VLOOKUP(E37,[1]Hypothèses!$S$26:$U$32,3,FALSE)*[1]Hypothèses!$X$4))/1000 -> 110.7574597 | BL37: 75.26175319 | BM37: =BL37*[1]Hypothèses!$X$12/[1]Hypothèses!$W$12 -> 71.08054468 | BN37: =BL37*[1]Hypothèses!$W$8*[1]Hypothèses!$X$12 -> 76.76698826 | BO37: =BJ37*[1]Hypothèses!$X$8 -> 99.24413237 | BP37: =(BI37/1000)*[1]Hypothèses!$Z$4/([1]Hypothèses!$AA$4*[1]Hypothèses!$AB$4) -> 1257.738934 | BQ37: =BP37/[1]Hypothèses!$AB$8 -> 209.6231557 | BS37: =(('[1]Hypo Cables'!$J$4*'[1]Hypo Cables'!$M$4)/('[1]Fhypo DPP'!BL9*[1]Hypothèses!$X$12*('[1]Hypo Cables'!$M$24+'[1]Hypo Cables'!$M$25*'[1]Hypo Cables'!$J$14)))/1000 -> 0.2731795052 | BT37: =(('[1]Hypo Cables'!$J$4*'[1]Hypo Cables'!$M$4)/('[1]Fhypo DPP'!BL9*[1]Hypothèses!$X$12*('[1]Hypo Cables'!$M$27+'[1]Hypo Cables'!$M$28*'[1]Hypo Cables'!$J$14)))/1000 -> 0.50808072 | BW37: =BQ37*[1]Hypothèses!$AC$8 -> 69.87438522 | BX37: =4*SQRT(BJ37*[1]Hypothèses!$AF$3) -> 257.912448 | BY37: 64.478112
D38: NS RESIF | E38: SEDHIOU | F38: SEDHIOU | G38: DJIREDJI | H38: BOUMOUDA SOUCOTO | I38: 2005 | J38: 134 | K38: =ROUND(I38*(1+[1]Hypothèses!$T$4)^([1]Hypothèses!$S$4-[1]Hypothèses!$R$4),0) -> 2128 | L38: =ROUND(J38*(1+[1]Hypothèses!$T$4)^([1]Hypothèses!$S$4-[1]Hypothèses!$R$4),0) -> 142 | M38: 34 | N38: =ROUND((L38*[1]Hypothèses!$U$4-'[1]Fhypo DPP'!M21)*[1]Hypothèses!$G$24+'[1]Fhypo DPP'!M21*[1]Hypothèses!$G$25,0) -> 11 | O38: =ROUND((L38*[1]Hypothèses!$U$4-'[1]Fhypo DPP'!M21)*[1]Hypothèses!$H$24+'[1]Fhypo DPP'!M21*[1]Hypothèses!$H$25,0) -> 22 | P38: =ROUND((L38*[1]Hypothèses!$U$4-'[1]Fhypo DPP'!M21)*[1]Hypothèses!$I$24+'[1]Fhypo DPP'!M21*[1]Hypothèses!$I$25,0) -> 15 | Q38: =ROUND((L38*[1]Hypothèses!$U$4-'[1]Fhypo DPP'!M21)*[1]Hypothèses!$J$24+'[1]Fhypo DPP'!M21*[1]Hypothèses!$J$25,0) -> 66 | R38: 114 | S38: =N38*[1]Hypothèses!$H$49 -> 3674 | T38: =O38*[1]Hypothèses!$J$49 -> 23320 | U38: =P38*[1]Hypothèses!$L$49 -> 26100 | V38: =Q38*[1]Hypothèses!$N$49 -> 378972 | W38: 432066 | X38: =(N38*[1]Hypothèses!$G$49+O38*[1]Hypothèses!$I$49+P38*[1]Hypothèses!$K$49+Q38*[1]Hypothèses!$M$49)/1000 -> 73.87 | Z38: =VLOOKUP(H38,[1]Struc_communautaires!C27:H120,2,FALSE) -> 5 | AA38: =Z38*[1]Hypothèses!$J$49 -> 5300 | AB38: =VLOOKUP(H38,[1]Struc_communautaires!C27:H120,3,FALSE) -> 3 | AC38: =AB38*[1]Hypothèses!$J$49 -> 3180 | AD38: =VLOOKUP(H38,[1]Struc_communautaires!C27:H120,4,FALSE) -> 1 | AE38: =AD38*[1]Hypothèses!$J$49 -> 1060 | AH38: =VLOOKUP(H38,[1]Struc_communautaires!C27:H120,5,FALSE) -> 0 | AI38: =AH38*[1]Hypothèses!$J$49 -> 0 | AJ38: =VLOOKUP(H38,[1]Struc_communautaires!C27:H120,6,FALSE) -> 22.75 | AK38: =AJ38*[1]Hypothèses!$F$49 -> 8190 | AL38: 17730 | AM38: =(Z38*[1]Hypothèses!$L$62+AB38*[1]Hypothèses!$L$65+AD38*[1]Hypothèses!$L$63+AF38*[1]Hypothèses!$L$64+AH38*[1]Hypothèses!$L$66+AJ38*[1]Hypothèses!$E$49)/1000 -> 2.6945 | AN38: 130 | AO38: =AP38/(VLOOKUP(E38,[1]Hypothèses!$S$26:$U$32,2,FALSE)*[1]Hypothèses!$AA$26) -> 5900.837944 | AP38: =(VLOOKUP(E38,[1]Hypothèses!$W$26:$X$32,2,FALSE)*[1]Hypothèses!$Y$26*[1]Hypothèses!$AB$26*K38)/([1]Hypothèses!$Z$26*1000) -> 30218.19111 | AQ38: =AP38/[1]Hypothèses!$AC$26 -> 7554.547778 | AR38: =(AS38*[1]Hypothèses!$I$53)*1000 -> 48000 | AS38: =ROUND(IF(K38<[1]Hypothèses!$J$53,1,K38/[1]Hypothèses!$J$53),0) -> 2 | AT38: =(AU38*[1]Hypothèses!$I$54)*1000 -> 48000 | AU38: =ROUND(IF(K38<[1]Hypothèses!$J$54,1,K38/[1]Hypothèses!$J$54),0) -> 2 | AV38: =(AW38*[1]Hypothèses!$I$55)*1000 -> 9600 | AW38: =[1]Hypothèses!$J$55 -> 3 | AX38: =(AY38*[1]Hypothèses!$I$56)*1000 -> 6400 | AY38: =ROUND(IF(K38<[1]Hypothèses!$J$56,0,K38/[1]Hypothèses!$J$56),0) -> 4 | BF38: 142218.1911 | BG38: =(AQ38+AS38*[1]Hypothèses!$G$53*1000+AU38*[1]Hypothèses!$G$54*1000+AW38*[1]Hypothèses!$G$55*1000+AY38*[1]Hypothèses!$G$56)/1000 -> 32.75534778 | BH38: 4 | BI38: 592014.1911 | BJ38: =(BI38/(VLOOKUP(E38,[1]Hypothèses!$S$26:$U$32,2,FALSE)*[1]Hypothèses!$X$4))/1000 -> 127.4526218 | BK38: =(BI38/(VLOOKUP(E38,[1]Hypothèses!$S$26:$U$32,3,FALSE)*[1]Hypothèses!$X$4))/1000 -> 156.4622625 | BL38: 109.3198478 | BM38: =BL38*[1]Hypothèses!$X$12/[1]Hypothèses!$W$12 -> 103.2465229 | BN38: =BL38*[1]Hypothèses!$W$8*[1]Hypothèses!$X$12 -> 111.5062447 | BO38: =BJ38*[1]Hypothèses!$X$8 -> 140.197884 | BP38: =(BI38/1000)*[1]Hypothèses!$Z$4/([1]Hypothèses!$AA$4*[1]Hypothèses!$AB$4) -> 1776.753275 | BQ38: =BP38/[1]Hypothèses!$AB$8 -> 296.1255458 | BS38: =(('[1]Hypo Cables'!$J$4*'[1]Hypo Cables'!$M$4)/('[1]Fhypo DPP'!BL21*[1]Hypothèses!$X$12*('[1]Hypo Cables'!$M$24+'[1]Hypo Cables'!$M$25*'[1]Hypo Cables'!$J$14)))/1000 -> 0.3764709172 | BT38: =(('[1]Hypo Cables'!$J$4*'[1]Hypo Cables'!$M$4)/('[1]Fhypo DPP'!BL21*[1]Hypothèses!$X$12*('[1]Hypo Cables'!$M$27+'[1]Hypo Cables'!$M$28*'[1]Hypo Cables'!$J$14)))/1000 -> 0.7001902085 | BW38: =BQ38*[1]Hypothèses!$AC$8 -> 98.70851526 | BX38: =4*SQRT(BJ38*[1]Hypothèses!$AF$3) -> 306.5424425 | BY38: 76.63561061
D39: NS RESIF | E39: SEDHIOU | F39: SEDHIOU | G39: DJIREDJI | H39: BOUMOUDA SOUCOUTOTO | I39: 800 | J39: 72 | K39: =ROUND(I39*(1+[1]Hypothèses!$T$4)^([1]Hypothèses!$S$4-[1]Hypothèses!$R$4),0) -> 849 | L39: =ROUND(J39*(1+[1]Hypothèses!$T$4)^([1]Hypothèses!$S$4-[1]Hypothèses!$R$4),0) -> 76 | M39: 23 | N39: =ROUND((L39*[1]Hypothèses!$U$4-'[1]Fhypo DPP'!M22)*[1]Hypothèses!$G$24+'[1]Fhypo DPP'!M22*[1]Hypothèses!$G$25,0) -> 5 | O39: =ROUND((L39*[1]Hypothèses!$U$4-'[1]Fhypo DPP'!M22)*[1]Hypothèses!$H$24+'[1]Fhypo DPP'!M22*[1]Hypothèses!$H$25,0) -> 10 | P39: =ROUND((L39*[1]Hypothèses!$U$4-'[1]Fhypo DPP'!M22)*[1]Hypothèses!$I$24+'[1]Fhypo DPP'!M22*[1]Hypothèses!$I$25,0) -> 8 | Q39: =ROUND((L39*[1]Hypothèses!$U$4-'[1]Fhypo DPP'!M22)*[1]Hypothèses!$J$24+'[1]Fhypo DPP'!M22*[1]Hypothèses!$J$25,0) -> 37 | R39: 60 | S39: =N39*[1]Hypothèses!$H$49 -> 1670 | T39: =O39*[1]Hypothèses!$J$49 -> 10600 | U39: =P39*[1]Hypothèses!$L$49 -> 13920 | V39: =Q39*[1]Hypothèses!$N$49 -> 212454 | W39: 238644 | X39: =(N39*[1]Hypothèses!$G$49+O39*[1]Hypothèses!$I$49+P39*[1]Hypothèses!$K$49+Q39*[1]Hypothèses!$M$49)/1000 -> 40.619 | Z39: =VLOOKUP(H39,[1]Struc_communautaires!C28:H121,2,FALSE) -> 2 | AA39: =Z39*[1]Hypothèses!$J$49 -> 2120 | AB39: =VLOOKUP(H39,[1]Struc_communautaires!C28:H121,3,FALSE) -> 1 | AC39: =AB39*[1]Hypothèses!$J$49 -> 1060 | AD39: =VLOOKUP(H39,[1]Struc_communautaires!C28:H121,4,FALSE) -> 0 | AE39: =AD39*[1]Hypothèses!$J$49 -> 0 | AH39: =VLOOKUP(H39,[1]Struc_communautaires!C28:H121,5,FALSE) -> 0 | AI39: =AH39*[1]Hypothèses!$J$49 -> 0 | AJ39: =VLOOKUP(H39,[1]Struc_communautaires!C28:H121,6,FALSE) -> 14.5 | AK39: =AJ39*[1]Hypothèses!$F$49 -> 5220 | AL39: 8400 | AM39: =(Z39*[1]Hypothèses!$L$62+AB39*[1]Hypothèses!$L$65+AD39*[1]Hypothèses!$L$63+AF39*[1]Hypothèses!$L$64+AH39*[1]Hypothèses!$L$66+AJ39*[1]Hypothèses!$E$49)/1000 -> 1.152 | AN39: 68 | AO39: =AP39/(VLOOKUP(E39,[1]Hypothèses!$S$26:$U$32,2,FALSE)*[1]Hypothèses!$AA$26) -> 2354.234687 | AP39: =(VLOOKUP(E39,[1]Hypothèses!$W$26:$X$32,2,FALSE)*[1]Hypothèses!$Y$26*[1]Hypothèses!$AB$26*K39)/([1]Hypothèses!$Z$26*1000) -> 12056.03583 | AQ39: =AP39/[1]Hypothèses!$AC$26 -> 3014.008958 | AR39: =(AS39*[1]Hypothèses!$I$53)*1000 -> 24000 | AS39: =ROUND(IF(K39<[1]Hypothèses!$J$53,1,K39/[1]Hypothèses!$J$53),0) -> 1 | AT39: =(AU39*[1]Hypothèses!$I$54)*1000 -> 24000 | AU39: =ROUND(IF(K39<[1]Hypothèses!$J$54,1,K39/[1]Hypothèses!$J$54),0) -> 1 | AV39: =(AW39*[1]Hypothèses!$I$55)*1000 -> 9600 | AW39: =[1]Hypothèses!$J$55 -> 3 | AX39: =(AY39*[1]Hypothèses!$I$56)*1000 -> 3200 | AY39: =ROUND(IF(K39<[1]Hypothèses!$J$56,0,K39/[1]Hypothèses!$J$56),0) -> 2 | BF39: 72856.03583 | BG39: =(AQ39+AS39*[1]Hypothèses!$G$53*1000+AU39*[1]Hypothèses!$G$54*1000+AW39*[1]Hypothèses!$G$55*1000+AY39*[1]Hypothèses!$G$56)/1000 -> 16.21440896 | BH39: 2 | BI39: 319900.0358 | BJ39: =(BI39/(VLOOKUP(E39,[1]Hypothèses!$S$26:$U$32,2,FALSE)*[1]Hypothèses!$X$4))/1000 -> 68.87013674 | BK39: =(BI39/(VLOOKUP(E39,[1]Hypothèses!$S$26:$U$32,3,FALSE)*[1]Hypothèses!$X$4))/1000 -> 84.54574927 | BL39: 57.98540896 | BM39: =BL39*[1]Hypothèses!$X$12/[1]Hypothèses!$W$12 -> 54.76399735 | BN39: =BL39*[1]Hypothèses!$W$8*[1]Hypothèses!$X$12 -> 59.14511714 | BO39: =BJ39*[1]Hypothèses!$X$8 -> 75.75715041 | BP39: =(BI39/1000)*[1]Hypothèses!$Z$4/([1]Hypothèses!$AA$4*[1]Hypothèses!$AB$4) -> 960.0841412 | BQ39: =BP39/[1]Hypothèses!$AB$8 -> 160.0140235 | BS39: =(('[1]Hypo Cables'!$J$4*'[1]Hypo Cables'!$M$4)/('[1]Fhypo DPP'!BL22*[1]Hypothèses!$X$12*('[1]Hypo Cables'!$M$24+'[1]Hypo Cables'!$M$25*'[1]Hypo Cables'!$J$14)))/1000 -> 0.2034247772 | BT39: =(('[1]Hypo Cables'!$J$4*'[1]Hypo Cables'!$M$4)/('[1]Fhypo DPP'!BL22*[1]Hypothèses!$X$12*('[1]Hypo Cables'!$M$27+'[1]Hypo Cables'!$M$28*'[1]Hypo Cables'!$J$14)))/1000 -> 0.3783453931 | BW39: =BQ39*[1]Hypothèses!$AC$8 -> 53.33800784 | BX39: =4*SQRT(BJ39*[1]Hypothèses!$AF$3) -> 225.3365803 | BY39: 56.33414507
D40: NS RESIF | E40: SEDHIOU | F40: SEDHIOU | G40: SANSAMBA | H40: DANDONE | I40: 1000 | J40: 42 | K40: =ROUND(I40*(1+[1]Hypothèses!$T$4)^([1]Hypothèses!$S$4-[1]Hypothèses!$R$4),0) -> 1061 | L40: =ROUND(J40*(1+[1]Hypothèses!$T$4)^([1]Hypothèses!$S$4-[1]Hypothèses!$R$4),0) -> 45 | M40: 26 | N40: =ROUND((L40*[1]Hypothèses!$U$4-'[1]Fhypo DPP'!M23)*[1]Hypothèses!$G$24+'[1]Fhypo DPP'!M23*[1]Hypothèses!$G$25,0) -> 3 | O40: =ROUND((L40*[1]Hypothèses!$U$4-'[1]Fhypo DPP'!M23)*[1]Hypothèses!$H$24+'[1]Fhypo DPP'!M23*[1]Hypothèses!$H$25,0) -> 5 | P40: =ROUND((L40*[1]Hypothèses!$U$4-'[1]Fhypo DPP'!M23)*[1]Hypothèses!$I$24+'[1]Fhypo DPP'!M23*[1]Hypothèses!$I$25,0) -> 5 | Q40: =ROUND((L40*[1]Hypothèses!$U$4-'[1]Fhypo DPP'!M23)*[1]Hypothèses!$J$24+'[1]Fhypo DPP'!M23*[1]Hypothèses!$J$25,0) -> 24 | R40: 37 | S40: =N40*[1]Hypothèses!$H$49 -> 1002 | T40: =O40*[1]Hypothèses!$J$49 -> 5300 | U40: =P40*[1]Hypothèses!$L$49 -> 8700 | V40: =Q40*[1]Hypothèses!$N$49 -> 137808 | W40: 152810 | X40: =(N40*[1]Hypothèses!$G$49+O40*[1]Hypothèses!$I$49+P40*[1]Hypothèses!$K$49+Q40*[1]Hypothèses!$M$49)/1000 -> 25.913 | Z40: =VLOOKUP(H40,[1]Struc_communautaires!C29:H122,2,FALSE) -> 2 | AA40: =Z40*[1]Hypothèses!$J$49 -> 2120 | AB40: =VLOOKUP(H40,[1]Struc_communautaires!C29:H122,3,FALSE) -> 1 | AC40: =AB40*[1]Hypothèses!$J$49 -> 1060 | AD40: =VLOOKUP(H40,[1]Struc_communautaires!C29:H122,4,FALSE) -> 0 | AE40: =AD40*[1]Hypothèses!$J$49 -> 0 | AH40: =VLOOKUP(H40,[1]Struc_communautaires!C29:H122,5,FALSE) -> 0 | AI40: =AH40*[1]Hypothèses!$J$49 -> 0 | AJ40: =VLOOKUP(H40,[1]Struc_communautaires!C29:H122,6,FALSE) -> 10.625 | AK40: =AJ40*[1]Hypothèses!$F$49 -> 3825 | AL40: 7005 | AM40: =(Z40*[1]Hypothèses!$L$62+AB40*[1]Hypothèses!$L$65+AD40*[1]Hypothèses!$L$63+AF40*[1]Hypothèses!$L$64+AH40*[1]Hypothèses!$L$66+AJ40*[1]Hypothèses!$E$49)/1000 -> 1.03575 | AN40: 45 | AO40: =AP40/(VLOOKUP(E40,[1]Hypothèses!$S$26:$U$32,2,FALSE)*[1]Hypothèses!$AA$26) -> 2942.100122 | AP40: =(VLOOKUP(E40,[1]Hypothèses!$W$26:$X$32,2,FALSE)*[1]Hypothèses!$Y$26*[1]Hypothèses!$AB$26*K40)/([1]Hypothèses!$Z$26*1000) -> 15066.49472 | AQ40: =AP40/[1]Hypothèses!$AC$26 -> 3766.623681 | AR40: =(AS40*[1]Hypothèses!$I$53)*1000 -> 24000 | AS40: =ROUND(IF(K40<[1]Hypothèses!$J$53,1,K40/[1]Hypothèses!$J$53),0) -> 1 | AT40: =(AU40*[1]Hypothèses!$I$54)*1000 -> 24000 | AU40: =ROUND(IF(K40<[1]Hypothèses!$J$54,1,K40/[1]Hypothèses!$J$54),0) -> 1 | AV40: =(AW40*[1]Hypothèses!$I$55)*1000 -> 9600 | AW40: =[1]Hypothèses!$J$55 -> 3 | AX40: =(AY40*[1]Hypothèses!$I$56)*1000 -> 3200 | AY40: =ROUND(IF(K40<[1]Hypothèses!$J$56,0,K40/[1]Hypothèses!$J$56),0) -> 2 | BF40: 75866.49472 | BG40: =(AQ40+AS40*[1]Hypothèses!$G$53*1000+AU40*[1]Hypothèses!$G$54*1000+AW40*[1]Hypothèses!$G$55*1000+AY40*[1]Hypothèses!$G$56)/1000 -> 16.96702368 | BH40: 2 | BI40: 235681.4947 | BJ40: =(BI40/(VLOOKUP(E40,[1]Hypothèses!$S$26:$U$32,2,FALSE)*[1]Hypothèses!$X$4))/1000 -> 50.73902766 | BK40: =(BI40/(VLOOKUP(E40,[1]Hypothèses!$S$26:$U$32,3,FALSE)*[1]Hypothèses!$X$4))/1000 -> 62.28779721 | BL40: 43.91577368 | BM40: =BL40*[1]Hypothèses!$X$12/[1]Hypothèses!$W$12 -> 41.47600848 | BN40: =BL40*[1]Hypothèses!$W$8*[1]Hypothèses!$X$12 -> 44.79408915 | BO40: =BJ40*[1]Hypothèses!$X$8 -> 55.81293043 | BP40: =(BI40/1000)*[1]Hypothèses!$Z$4/([1]Hypothèses!$AA$4*[1]Hypothèses!$AB$4) -> 707.3274151 | BQ40: =BP40/[1]Hypothèses!$AB$8 -> 117.8879025 | BS40: =(('[1]Hypo Cables'!$J$4*'[1]Hypo Cables'!$M$4)/('[1]Fhypo DPP'!BL23*[1]Hypothèses!$X$12*('[1]Hypo Cables'!$M$24+'[1]Hypo Cables'!$M$25*'[1]Hypo Cables'!$J$14)))/1000 -> 0.3395938881 | BT40: =(('[1]Hypo Cables'!$J$4*'[1]Hypo Cables'!$M$4)/('[1]Fhypo DPP'!BL23*[1]Hypothèses!$X$12*('[1]Hypo Cables'!$M$27+'[1]Hypo Cables'!$M$28*'[1]Hypo Cables'!$J$14)))/1000 -> 0.6316034106 | BW40: =BQ40*[1]Hypothèses!$AC$8 -> 39.29596751 | BX40: =4*SQRT(BJ40*[1]Hypothèses!$AF$3) -> 193.4137284 | BY40: 48.35343209
D41: NS RESIF | E41: SEDHIOU | F41: SEDHIOU | G41: SANSAMBA | H41: DIAFILON DIOLA | I41: 880 | J41: 53 | K41: =ROUND(I41*(1+[1]Hypothèses!$T$4)^([1]Hypothèses!$S$4-[1]Hypothèses!$R$4),0) -> 934 | L41: =ROUND(J41*(1+[1]Hypothèses!$T$4)^([1]Hypothèses!$S$4-[1]Hypothèses!$R$4),0) -> 56 | M41: 20 | N41: =ROUND((L41*[1]Hypothèses!$U$4-'[1]Fhypo DPP'!M24)*[1]Hypothèses!$G$24+'[1]Fhypo DPP'!M24*[1]Hypothèses!$G$25,0) -> 4 | O41: =ROUND((L41*[1]Hypothèses!$U$4-'[1]Fhypo DPP'!M24)*[1]Hypothèses!$H$24+'[1]Fhypo DPP'!M24*[1]Hypothèses!$H$25,0) -> 7 | P41: =ROUND((L41*[1]Hypothèses!$U$4-'[1]Fhypo DPP'!M24)*[1]Hypothèses!$I$24+'[1]Fhypo DPP'!M24*[1]Hypothèses!$I$25,0) -> 6 | Q41: =ROUND((L41*[1]Hypothèses!$U$4-'[1]Fhypo DPP'!M24)*[1]Hypothèses!$J$24+'[1]Fhypo DPP'!M24*[1]Hypothèses!$J$25,0) -> 28 | R41: 45 | S41: =N41*[1]Hypothèses!$H$49 -> 1336 | T41: =O41*[1]Hypothèses!$J$49 -> 7420 | U41: =P41*[1]Hypothèses!$L$49 -> 10440 | V41: =Q41*[1]Hypothèses!$N$49 -> 160776 | W41: 179972 | X41: =(N41*[1]Hypothèses!$G$49+O41*[1]Hypothèses!$I$49+P41*[1]Hypothèses!$K$49+Q41*[1]Hypothèses!$M$49)/1000 -> 30.609 | Z41: =VLOOKUP(H41,[1]Struc_communautaires!C30:H123,2,FALSE) -> 1 | AA41: =Z41*[1]Hypothèses!$J$49 -> 1060 | AB41: =VLOOKUP(H41,[1]Struc_communautaires!C30:H123,3,FALSE) -> 2 | AC41: =AB41*[1]Hypothèses!$J$49 -> 2120 | AD41: =VLOOKUP(H41,[1]Struc_communautaires!C30:H123,4,FALSE) -> 0 | AE41: =AD41*[1]Hypothèses!$J$49 -> 0 | AH41: =VLOOKUP(H41,[1]Struc_communautaires!C30:H123,5,FALSE) -> 0 | AI41: =AH41*[1]Hypothèses!$J$49 -> 0 | AJ41: =VLOOKUP(H41,[1]Struc_communautaires!C30:H123,6,FALSE) -> 12 | AK41: =AJ41*[1]Hypothèses!$F$49 -> 4320 | AL41: 7500 | AM41: =(Z41*[1]Hypothèses!$L$62+AB41*[1]Hypothèses!$L$65+AD41*[1]Hypothèses!$L$63+AF41*[1]Hypothèses!$L$64+AH41*[1]Hypothèses!$L$66+AJ41*[1]Hypothèses!$E$49)/1000 -> 1.077 | AN41: 53 | AO41: =AP41/(VLOOKUP(E41,[1]Hypothèses!$S$26:$U$32,2,FALSE)*[1]Hypothèses!$AA$26) -> 2589.935451 | AP41: =(VLOOKUP(E41,[1]Hypothèses!$W$26:$X$32,2,FALSE)*[1]Hypothèses!$Y$26*[1]Hypothèses!$AB$26*K41)/([1]Hypothèses!$Z$26*1000) -> 13263.05944 | AQ41: =AP41/[1]Hypothèses!$AC$26 -> 3315.764861 | AR41: =(AS41*[1]Hypothèses!$I$53)*1000 -> 24000 | AS41: =ROUND(IF(K41<[1]Hypothèses!$J$53,1,K41/[1]Hypothèses!$J$53),0) -> 1 | AT41: =(AU41*[1]Hypothèses!$I$54)*1000 -> 24000 | AU41: =ROUND(IF(K41<[1]Hypothèses!$J$54,1,K41/[1]Hypothèses!$J$54),0) -> 1 | AV41: =(AW41*[1]Hypothèses!$I$55)*1000 -> 9600 | AW41: =[1]Hypothèses!$J$55 -> 3 | AX41: =(AY41*[1]Hypothèses!$I$56)*1000 -> 3200 | AY41: =ROUND(IF(K41<[1]Hypothèses!$J$56,0,K41/[1]Hypothèses!$J$56),0) -> 2 | BF41: 74063.05944 | BG41: =(AQ41+AS41*[1]Hypothèses!$G$53*1000+AU41*[1]Hypothèses!$G$54*1000+AW41*[1]Hypothèses!$G$55*1000+AY41*[1]Hypothèses!$G$56)/1000 -> 16.51616486 | BH41: 2 | BI41: 261535.0594 | BJ41: =(BI41/(VLOOKUP(E41,[1]Hypothèses!$S$26:$U$32,2,FALSE)*[1]Hypothèses!$X$4))/1000 -> 56.30494932 | BK41: =(BI41/(VLOOKUP(E41,[1]Hypothèses!$S$26:$U$32,3,FALSE)*[1]Hypothèses!$X$4))/1000 -> 69.12058482 | BL41: 48.20216486 | BM41: =BL41*[1]Hypothèses!$X$12/[1]Hypothèses!$W$12 -> 45.52426681 | BN41: =BL41*[1]Hypothèses!$W$8*[1]Hypothèses!$X$12 -> 49.16620816 | BO41: =BJ41*[1]Hypothèses!$X$8 -> 61.93544425 | BP41: =(BI41/1000)*[1]Hypothèses!$Z$4/([1]Hypothèses!$AA$4*[1]Hypothèses!$AB$4) -> 784.919146 | BQ41: =BP41/[1]Hypothèses!$AB$8 -> 130.8198577 | BS41: =(('[1]Hypo Cables'!$J$4*'[1]Hypo Cables'!$M$4)/('[1]Fhypo DPP'!BL24*[1]Hypothèses!$X$12*('[1]Hypo Cables'!$M$24+'[1]Hypo Cables'!$M$25*'[1]Hypo Cables'!$J$14)))/1000 -> 0.3468176117 | BT41: =(('[1]Hypo Cables'!$J$4*'[1]Hypo Cables'!$M$4)/('[1]Fhypo DPP'!BL24*[1]Hypothèses!$X$12*('[1]Hypo Cables'!$M$27+'[1]Hypo Cables'!$M$28*'[1]Hypo Cables'!$J$14)))/1000 -> 0.6450386597 | BW41: =BQ41*[1]Hypothèses!$AC$8 -> 43.60661922 | BX41: =4*SQRT(BJ41*[1]Hypothèses!$AF$3) -> 203.7461976 | BY41: 50.9365494
D42: NS RESIF | E42: SEDHIOU | F42: SEDHIOU | G42: Bemet Bidjini | H42: FRANCOUNDA BADJI COUNDA | I42: 905 | J42: 34 | K42: =ROUND(I42*(1+[1]Hypothèses!$T$4)^([1]Hypothèses!$S$4-[1]Hypothèses!$R$4),0) -> 960 | L42: =ROUND(J42*(1+[1]Hypothèses!$T$4)^([1]Hypothèses!$S$4-[1]Hypothèses!$R$4),0) -> 36 | M42: 27 | N42: =ROUND((L42*[1]Hypothèses!$U$4-'[1]Fhypo DPP'!M33)*[1]Hypothèses!$G$24+'[1]Fhypo DPP'!M33*[1]Hypothèses!$G$25,0) -> 2 | O42: =ROUND((L42*[1]Hypothèses!$U$4-'[1]Fhypo DPP'!M33)*[1]Hypothèses!$H$24+'[1]Fhypo DPP'!M33*[1]Hypothèses!$H$25,0) -> 4 | P42: =ROUND((L42*[1]Hypothèses!$U$4-'[1]Fhypo DPP'!M33)*[1]Hypothèses!$I$24+'[1]Fhypo DPP'!M33*[1]Hypothèses!$I$25,0) -> 4 | Q42: =ROUND((L42*[1]Hypothèses!$U$4-'[1]Fhypo DPP'!M33)*[1]Hypothèses!$J$24+'[1]Fhypo DPP'!M33*[1]Hypothèses!$J$25,0) -> 18 | R42: 28 | S42: =N42*[1]Hypothèses!$H$49 -> 668 | T42: =O42*[1]Hypothèses!$J$49 -> 4240 | U42: =P42*[1]Hypothèses!$L$49 -> 6960 | V42: =Q42*[1]Hypothèses!$N$49 -> 103356 | W42: 115224 | X42: =(N42*[1]Hypothèses!$G$49+O42*[1]Hypothèses!$I$49+P42*[1]Hypothèses!$K$49+Q42*[1]Hypothèses!$M$49)/1000 -> 19.542 | Z42: =VLOOKUP(H42,[1]Struc_communautaires!C31:H124,2,FALSE) -> 2 | AA42: =Z42*[1]Hypothèses!$J$49 -> 2120 | AB42: =VLOOKUP(H42,[1]Struc_communautaires!C31:H124,3,FALSE) -> 2 | AC42: =AB42*[1]Hypothèses!$J$49 -> 2120 | AD42: =VLOOKUP(H42,[1]Struc_communautaires!C31:H124,4,FALSE) -> 1 | AE42: =AD42*[1]Hypothèses!$J$49 -> 1060 | AH42: =VLOOKUP(H42,[1]Struc_communautaires!C31:H124,5,FALSE) -> 0 | AI42: =AH42*[1]Hypothèses!$J$49 -> 0 | AJ42: =VLOOKUP(H42,[1]Struc_communautaires!C31:H124,6,FALSE) -> 9.5 | AK42: =AJ42*[1]Hypothèses!$F$49 -> 3420 | AL42: 8720 | AM42: =(Z42*[1]Hypothèses!$L$62+AB42*[1]Hypothèses!$L$65+AD42*[1]Hypothèses!$L$63+AF42*[1]Hypothèses!$L$64+AH42*[1]Hypothèses!$L$66+AJ42*[1]Hypothèses!$E$49)/1000 -> 1.341 | AN42: 38 | AO42: =AP42/(VLOOKUP(E42,[1]Hypothèses!$S$26:$U$32,2,FALSE)*[1]Hypothèses!$AA$26) -> 2662.032155 | AP42: =(VLOOKUP(E42,[1]Hypothèses!$W$26:$X$32,2,FALSE)*[1]Hypothèses!$Y$26*[1]Hypothèses!$AB$26*K42)/([1]Hypothèses!$Z$26*1000) -> 13632.26667 | AQ42: =AP42/[1]Hypothèses!$AC$26 -> 3408.066667 | AR42: =(AS42*[1]Hypothèses!$I$53)*1000 -> 24000 | AS42: =ROUND(IF(K42<[1]Hypothèses!$J$53,1,K42/[1]Hypothèses!$J$53),0) -> 1 | AT42: =(AU42*[1]Hypothèses!$I$54)*1000 -> 24000 | AU42: =ROUND(IF(K42<[1]Hypothèses!$J$54,1,K42/[1]Hypothèses!$J$54),0) -> 1 | AV42: =(AW42*[1]Hypothèses!$I$55)*1000 -> 9600 | AW42: =[1]Hypothèses!$J$55 -> 3 | AX42: =(AY42*[1]Hypothèses!$I$56)*1000 -> 3200 | AY42: =ROUND(IF(K42<[1]Hypothèses!$J$56,0,K42/[1]Hypothèses!$J$56),0) -> 2 | BF42: 74432.26667 | BG42: =(AQ42+AS42*[1]Hypothèses!$G$53*1000+AU42*[1]Hypothèses!$G$54*1000+AW42*[1]Hypothèses!$G$55*1000+AY42*[1]Hypothèses!$G$56)/1000 -> 16.60846667 | BH42: 2 | BI42: 198376.2667 | BJ42: =(BI42/(VLOOKUP(E42,[1]Hypothèses!$S$26:$U$32,2,FALSE)*[1]Hypothèses!$X$4))/1000 -> 42.70771829 | BK42: =(BI42/(VLOOKUP(E42,[1]Hypothèses!$S$26:$U$32,3,FALSE)*[1]Hypothèses!$X$4))/1000 -> 52.4284721 | BL42: 37.49146667 | BM42: =BL42*[1]Hypothèses!$X$12/[1]Hypothèses!$W$12 -> 35.40860741 | BN42: =BL42*[1]Hypothèses!$W$8*[1]Hypothèses!$X$12 -> 38.241296 | BO42: =BJ42*[1]Hypothèses!$X$8 -> 46.97849012 | BP42: =(BI42/1000)*[1]Hypothèses!$Z$4/([1]Hypothèses!$AA$4*[1]Hypothèses!$AB$4) -> 595.3669468 | BQ42: =BP42/[1]Hypothèses!$AB$8 -> 99.22782446 | BS42: =(('[1]Hypo Cables'!$J$4*'[1]Hypo Cables'!$M$4)/('[1]Fhypo DPP'!BL33*[1]Hypothèses!$X$12*('[1]Hypo Cables'!$M$24+'[1]Hypo Cables'!$M$25*'[1]Hypo Cables'!$J$14)))/1000 -> 0.3239151442 | BT42: =(('[1]Hypo Cables'!$J$4*'[1]Hypo Cables'!$M$4)/('[1]Fhypo DPP'!BL33*[1]Hypothèses!$X$12*('[1]Hypo Cables'!$M$27+'[1]Hypo Cables'!$M$28*'[1]Hypo Cables'!$J$14)))/1000 -> 0.6024428501 | BW42: =BQ42*[1]Hypothèses!$AC$8 -> 33.07594149 | BX42: =4*SQRT(BJ42*[1]Hypothèses!$AF$3) -> 177.4473064 | BY42: 44.36182659
D43: NS RESIF | E43: SEDHIOU | F43: SEDHIOU | G43: Bemet Bidjini | H43: FRANCOUNDA SARAKHOLE | I43: 1111 | J43: 58 | K43: =ROUND(I43*(1+[1]Hypothèses!$T$4)^([1]Hypothèses!$S$4-[1]Hypothèses!$R$4),0) -> 1179 | L43: =ROUND(J43*(1+[1]Hypothèses!$T$4)^([1]Hypothèses!$S$4-[1]Hypothèses!$R$4),0) -> 62 | M43: 32 | N43: =ROUND((L43*[1]Hypothèses!$U$4-'[1]Fhypo DPP'!M34)*[1]Hypothèses!$G$24+'[1]Fhypo DPP'!M34*[1]Hypothèses!$G$25,0) -> 5 | O43: =ROUND((L43*[1]Hypothèses!$U$4-'[1]Fhypo DPP'!M34)*[1]Hypothèses!$H$24+'[1]Fhypo DPP'!M34*[1]Hypothèses!$H$25,0) -> 9 | P43: =ROUND((L43*[1]Hypothèses!$U$4-'[1]Fhypo DPP'!M34)*[1]Hypothèses!$I$24+'[1]Fhypo DPP'!M34*[1]Hypothèses!$I$25,0) -> 7 | Q43: =ROUND((L43*[1]Hypothèses!$U$4-'[1]Fhypo DPP'!M34)*[1]Hypothèses!$J$24+'[1]Fhypo DPP'!M34*[1]Hypothèses!$J$25,0) -> 29 | R43: 50 | S43: =N43*[1]Hypothèses!$H$49 -> 1670 | T43: =O43*[1]Hypothèses!$J$49 -> 9540 | U43: =P43*[1]Hypothèses!$L$49 -> 12180 | V43: =Q43*[1]Hypothèses!$N$49 -> 166518 | W43: 189908 | X43: =(N43*[1]Hypothèses!$G$49+O43*[1]Hypothèses!$I$49+P43*[1]Hypothèses!$K$49+Q43*[1]Hypothèses!$M$49)/1000 -> 32.434 | Z43: =VLOOKUP(H43,[1]Struc_communautaires!C32:H125,2,FALSE) -> 2 | AA43: =Z43*[1]Hypothèses!$J$49 -> 2120 | AB43: =VLOOKUP(H43,[1]Struc_communautaires!C32:H125,3,FALSE) -> 2 | AC43: =AB43*[1]Hypothèses!$J$49 -> 2120 | AD43: =VLOOKUP(H43,[1]Struc_communautaires!C32:H125,4,FALSE) -> 1 | AE43: =AD43*[1]Hypothèses!$J$49 -> 1060 | AH43: =VLOOKUP(H43,[1]Struc_communautaires!C32:H125,5,FALSE) -> 0 | AI43: =AH43*[1]Hypothèses!$J$49 -> 0 | AJ43: =VLOOKUP(H43,[1]Struc_communautaires!C32:H125,6,FALSE) -> 12.75 | AK43: =AJ43*[1]Hypothèses!$F$49 -> 4590 | AL43: 9890 | AM43: =(Z43*[1]Hypothèses!$L$62+AB43*[1]Hypothèses!$L$65+AD43*[1]Hypothèses!$L$63+AF43*[1]Hypothèses!$L$64+AH43*[1]Hypothèses!$L$66+AJ43*[1]Hypothèses!$E$49)/1000 -> 1.4385 | AN43: 60 | AO43: =AP43/(VLOOKUP(E43,[1]Hypothèses!$S$26:$U$32,2,FALSE)*[1]Hypothèses!$AA$26) -> 3269.308241 | AP43: =(VLOOKUP(E43,[1]Hypothèses!$W$26:$X$32,2,FALSE)*[1]Hypothèses!$Y$26*[1]Hypothèses!$AB$26*K43)/([1]Hypothèses!$Z$26*1000) -> 16742.1275 | AQ43: =AP43/[1]Hypothèses!$AC$26 -> 4185.531875 | AR43: =(AS43*[1]Hypothèses!$I$53)*1000 -> 24000 | AS43: =ROUND(IF(K43<[1]Hypothèses!$J$53,1,K43/[1]Hypothèses!$J$53),0) -> 1 | AT43: =(AU43*[1]Hypothèses!$I$54)*1000 -> 24000 | AU43: =ROUND(IF(K43<[1]Hypothèses!$J$54,1,K43/[1]Hypothèses!$J$54),0) -> 1 | AV43: =(AW43*[1]Hypothèses!$I$55)*1000 -> 9600 | AW43: =[1]Hypothèses!$J$55 -> 3 | AX43: =(AY43*[1]Hypothèses!$I$56)*1000 -> 3200 | AY43: =ROUND(IF(K43<[1]Hypothèses!$J$56,0,K43/[1]Hypothèses!$J$56),0) -> 2 | BF43: 77542.1275 | BG43: =(AQ43+AS43*[1]Hypothèses!$G$53*1000+AU43*[1]Hypothèses!$G$54*1000+AW43*[1]Hypothèses!$G$55*1000+AY43*[1]Hypothèses!$G$56)/1000 -> 17.38593188 | BH43: 2 | BI43: 277340.1275 | BJ43: =(BI43/(VLOOKUP(E43,[1]Hypothèses!$S$26:$U$32,2,FALSE)*[1]Hypothèses!$X$4))/1000 -> 59.707566 | BK43: =(BI43/(VLOOKUP(E43,[1]Hypothèses!$S$26:$U$32,3,FALSE)*[1]Hypothèses!$X$4))/1000 -> 73.29767507 | BL43: 51.25843187 | BM43: =BL43*[1]Hypothèses!$X$12/[1]Hypothèses!$W$12 -> 48.41074122 | BN43: =BL43*[1]Hypothèses!$W$8*[1]Hypothèses!$X$12 -> 52.28360051 | BO43: =BJ43*[1]Hypothèses!$X$8 -> 65.6783226 | BP43: =(BI43/1000)*[1]Hypothèses!$Z$4/([1]Hypothèses!$AA$4*[1]Hypothèses!$AB$4) -> 832.3533238 | BQ43: =BP43/[1]Hypothèses!$AB$8 -> 138.725554 | BS43: =(('[1]Hypo Cables'!$J$4*'[1]Hypo Cables'!$M$4)/('[1]Fhypo DPP'!BL34*[1]Hypothèses!$X$12*('[1]Hypo Cables'!$M$24+'[1]Hypo Cables'!$M$25*'[1]Hypo Cables'!$J$14)))/1000 -> 0.3876915016 | BT43: =(('[1]Hypo Cables'!$J$4*'[1]Hypo Cables'!$M$4)/('[1]Fhypo DPP'!BL34*[1]Hypothèses!$X$12*('[1]Hypo Cables'!$M$27+'[1]Hypo Cables'!$M$28*'[1]Hypo Cables'!$J$14)))/1000 -> 0.7210591335 | BW43: =BQ43*[1]Hypothèses!$AC$8 -> 46.24185132 | BX43: =4*SQRT(BJ43*[1]Hypothèses!$AF$3) -> 209.8122834 | BY43: 52.45307085
D44: NS RESIF | E44: SEDHIOU | F44: SEDHIOU | G44: SANSAMBA | H44: KAMOYA | I44: 1000 | J44: 44 | K44: =ROUND(I44*(1+[1]Hypothèses!$T$4)^([1]Hypothèses!$S$4-[1]Hypothèses!$R$4),0) -> 1061 | L44: =ROUND(J44*(1+[1]Hypothèses!$T$4)^([1]Hypothèses!$S$4-[1]Hypothèses!$R$4),0) -> 47 | M44: 23 | N44: =ROUND((L44*[1]Hypothèses!$U$4-'[1]Fhypo DPP'!M36)*[1]Hypothèses!$G$24+'[1]Fhypo DPP'!M36*[1]Hypothèses!$G$25,0) -> 3 | O44: =ROUND((L44*[1]Hypothèses!$U$4-'[1]Fhypo DPP'!M36)*[1]Hypothèses!$H$24+'[1]Fhypo DPP'!M36*[1]Hypothèses!$H$25,0) -> 7 | P44: =ROUND((L44*[1]Hypothèses!$U$4-'[1]Fhypo DPP'!M36)*[1]Hypothèses!$I$24+'[1]Fhypo DPP'!M36*[1]Hypothèses!$I$25,0) -> 5 | Q44: =ROUND((L44*[1]Hypothèses!$U$4-'[1]Fhypo DPP'!M36)*[1]Hypothèses!$J$24+'[1]Fhypo DPP'!M36*[1]Hypothèses!$J$25,0) -> 22 | R44: 37 | S44: =N44*[1]Hypothèses!$H$49 -> 1002 | T44: =O44*[1]Hypothèses!$J$49 -> 7420 | U44: =P44*[1]Hypothèses!$L$49 -> 8700 | V44: =Q44*[1]Hypothèses!$N$49 -> 126324 | W44: 143446 | X44: =(N44*[1]Hypothèses!$G$49+O44*[1]Hypothèses!$I$49+P44*[1]Hypothèses!$K$49+Q44*[1]Hypothèses!$M$49)/1000 -> 24.477 | Z44: =VLOOKUP(H44,[1]Struc_communautaires!C33:H126,2,FALSE) -> 2 | AA44: =Z44*[1]Hypothèses!$J$49 -> 2120 | AB44: =VLOOKUP(H44,[1]Struc_communautaires!C33:H126,3,FALSE) -> 2 | AC44: =AB44*[1]Hypothèses!$J$49 -> 2120 | AD44: =VLOOKUP(H44,[1]Struc_communautaires!C33:H126,4,FALSE) -> 1 | AE44: =AD44*[1]Hypothèses!$J$49 -> 1060 | AH44: =VLOOKUP(H44,[1]Struc_communautaires!C33:H126,5,FALSE) -> 0 | AI44: =AH44*[1]Hypothèses!$J$49 -> 0 | AJ44: =VLOOKUP(H44,[1]Struc_communautaires!C33:H126,6,FALSE) -> 10.875 | AK44: =AJ44*[1]Hypothèses!$F$49 -> 3915 | AL44: 9215 | AM44: =(Z44*[1]Hypothèses!$L$62+AB44*[1]Hypothèses!$L$65+AD44*[1]Hypothèses!$L$63+AF44*[1]Hypothèses!$L$64+AH44*[1]Hypothèses!$L$66+AJ44*[1]Hypothèses!$E$49)/1000 -> 1.38225 | AN44: 47 | AO44: =AP44/(VLOOKUP(E44,[1]Hypothèses!$S$26:$U$32,2,FALSE)*[1]Hypothèses!$AA$26) -> 2942.100122 | AP44: =(VLOOKUP(E44,[1]Hypothèses!$W$26:$X$32,2,FALSE)*[1]Hypothèses!$Y$26*[1]Hypothèses!$AB$26*K44)/([1]Hypothèses!$Z$26*1000) -> 15066.49472 | AQ44: =AP44/[1]Hypothèses!$AC$26 -> 3766.623681 | AR44: =(AS44*[1]Hypothèses!$I$53)*1000 -> 24000 | AS44: =ROUND(IF(K44<[1]Hypothèses!$J$53,1,K44/[1]Hypothèses!$J$53),0) -> 1 | AT44: =(AU44*[1]Hypothèses!$I$54)*1000 -> 24000 | AU44: =ROUND(IF(K44<[1]Hypothèses!$J$54,1,K44/[1]Hypothèses!$J$54),0) -> 1 | AV44: =(AW44*[1]Hypothèses!$I$55)*1000 -> 9600 | AW44: =[1]Hypothèses!$J$55 -> 3 | AX44: =(AY44*[1]Hypothèses!$I$56)*1000 -> 3200 | AY44: =ROUND(IF(K44<[1]Hypothèses!$J$56,0,K44/[1]Hypothèses!$J$56),0) -> 2 | BF44: 75866.49472 | BG44: =(AQ44+AS44*[1]Hypothèses!$G$53*1000+AU44*[1]Hypothèses!$G$54*1000+AW44*[1]Hypothèses!$G$55*1000+AY44*[1]Hypothèses!$G$56)/1000 -> 16.96702368 | BH44: 2 | BI44: 228527.4947 | BJ44: =(BI44/(VLOOKUP(E44,[1]Hypothèses!$S$26:$U$32,2,FALSE)*[1]Hypothèses!$X$4))/1000 -> 49.19886854 | BK44: =(BI44/(VLOOKUP(E44,[1]Hypothèses!$S$26:$U$32,3,FALSE)*[1]Hypothèses!$X$4))/1000 -> 60.39708067 | BL44: 42.82627368 | BM44: =BL44*[1]Hypothèses!$X$12/[1]Hypothèses!$W$12 -> 40.44703625 | BN44: =BL44*[1]Hypothèses!$W$8*[1]Hypothèses!$X$12 -> 43.68279915 | BO44: =BJ44*[1]Hypothèses!$X$8 -> 54.1187554 | BP44: =(BI44/1000)*[1]Hypothèses!$Z$4/([1]Hypothèses!$AA$4*[1]Hypothèses!$AB$4) -> 685.8568269 | BQ44: =BP44/[1]Hypothèses!$AB$8 -> 114.3094711 | BS44: =(('[1]Hypo Cables'!$J$4*'[1]Hypo Cables'!$M$4)/('[1]Fhypo DPP'!BL36*[1]Hypothèses!$X$12*('[1]Hypo Cables'!$M$24+'[1]Hypo Cables'!$M$25*'[1]Hypo Cables'!$J$14)))/1000 -> 0.4615290402 | BT44: =(('[1]Hypo Cables'!$J$4*'[1]Hypo Cables'!$M$4)/('[1]Fhypo DPP'!BL36*[1]Hypothèses!$X$12*('[1]Hypo Cables'!$M$27+'[1]Hypo Cables'!$M$28*'[1]Hypo Cables'!$J$14)))/1000 -> 0.8583879926 | BW44: =BQ44*[1]Hypothèses!$AC$8 -> 38.10315705 | BX44: =4*SQRT(BJ44*[1]Hypothèses!$AF$3) -> 190.4556163 | BY44: 47.61390409
D45: NS RESIF | E45: SEDHIOU | F45: SEDHIOU | G45: DJIREDJI | H45: karantaba linketo | I45: 1099 | J45: 72 | K45: =ROUND(I45*(1+[1]Hypothèses!$T$4)^([1]Hypothèses!$S$4-[1]Hypothèses!$R$4),0) -> 1166 | L45: =ROUND(J45*(1+[1]Hypothèses!$T$4)^([1]Hypothèses!$S$4-[1]Hypothèses!$R$4),0) -> 76 | M45: 29 | N45: =ROUND((L45*[1]Hypothèses!$U$4-'[1]Fhypo DPP'!M39)*[1]Hypothèses!$G$24+'[1]Fhypo DPP'!M39*[1]Hypothèses!$G$25,0) -> 6 | O45: =ROUND((L45*[1]Hypothèses!$U$4-'[1]Fhypo DPP'!M39)*[1]Hypothèses!$H$24+'[1]Fhypo DPP'!M39*[1]Hypothèses!$H$25,0) -> 12 | P45: =ROUND((L45*[1]Hypothèses!$U$4-'[1]Fhypo DPP'!M39)*[1]Hypothèses!$I$24+'[1]Fhypo DPP'!M39*[1]Hypothèses!$I$25,0) -> 8 | Q45: =ROUND((L45*[1]Hypothèses!$U$4-'[1]Fhypo DPP'!M39)*[1]Hypothèses!$J$24+'[1]Fhypo DPP'!M39*[1]Hypothèses!$J$25,0) -> 34 | R45: 60 | S45: =N45*[1]Hypothèses!$H$49 -> 2004 | T45: =O45*[1]Hypothèses!$J$49 -> 12720 | U45: =P45*[1]Hypothèses!$L$49 -> 13920 | V45: =Q45*[1]Hypothèses!$N$49 -> 195228 | W45: 223872 | X45: =(N45*[1]Hypothèses!$G$49+O45*[1]Hypothèses!$I$49+P45*[1]Hypothèses!$K$49+Q45*[1]Hypothèses!$M$49)/1000 -> 38.326 | Z45: =VLOOKUP(H45,[1]Struc_communautaires!C34:H127,2,FALSE) -> 1 | AA45: =Z45*[1]Hypothèses!$J$49 -> 1060 | AB45: =VLOOKUP(H45,[1]Struc_communautaires!C34:H127,3,FALSE) -> 2 | AC45: =AB45*[1]Hypothèses!$J$49 -> 2120 | AD45: =VLOOKUP(H45,[1]Struc_communautaires!C34:H127,4,FALSE) -> 0 | AE45: =AD45*[1]Hypothèses!$J$49 -> 0 | AH45: =VLOOKUP(H45,[1]Struc_communautaires!C34:H127,5,FALSE) -> 0 | AI45: =AH45*[1]Hypothèses!$J$49 -> 0 | AJ45: =VLOOKUP(H45,[1]Struc_communautaires!C34:H127,6,FALSE) -> 14.5 | AK45: =AJ45*[1]Hypothèses!$F$49 -> 5220 | AL45: 8400 | AM45: =(Z45*[1]Hypothèses!$L$62+AB45*[1]Hypothèses!$L$65+AD45*[1]Hypothèses!$L$63+AF45*[1]Hypothèses!$L$64+AH45*[1]Hypothèses!$L$66+AJ45*[1]Hypothèses!$E$49)/1000 -> 1.152 | AN45: 68 | AO45: =AP45/(VLOOKUP(E45,[1]Hypothèses!$S$26:$U$32,2,FALSE)*[1]Hypothèses!$AA$26) -> 3233.259888 | AP45: =(VLOOKUP(E45,[1]Hypothèses!$W$26:$X$32,2,FALSE)*[1]Hypothèses!$Y$26*[1]Hypothèses!$AB$26*K45)/([1]Hypothèses!$Z$26*1000) -> 16557.52389 | AQ45: =AP45/[1]Hypothèses!$AC$26 -> 4139.380972 | AR45: =(AS45*[1]Hypothèses!$I$53)*1000 -> 24000 | AS45: =ROUND(IF(K45<[1]Hypothèses!$J$53,1,K45/[1]Hypothèses!$J$53),0) -> 1 | AT45: =(AU45*[1]Hypothèses!$I$54)*1000 -> 24000 | AU45: =ROUND(IF(K45<[1]Hypothèses!$J$54,1,K45/[1]Hypothèses!$J$54),0) -> 1 | AV45: =(AW45*[1]Hypothèses!$I$55)*1000 -> 9600 | AW45: =[1]Hypothèses!$J$55 -> 3 | AX45: =(AY45*[1]Hypothèses!$I$56)*1000 -> 3200 | AY45: =ROUND(IF(K45<[1]Hypothèses!$J$56,0,K45/[1]Hypothèses!$J$56),0) -> 2 | BF45: 77357.52389 | BG45: =(AQ45+AS45*[1]Hypothèses!$G$53*1000+AU45*[1]Hypothèses!$G$54*1000+AW45*[1]Hypothèses!$G$55*1000+AY45*[1]Hypothèses!$G$56)/1000 -> 17.33978097 | BH45: 2 | BI45: 309629.5239 | BJ45: =(BI45/(VLOOKUP(E45,[1]Hypothèses!$S$26:$U$32,2,FALSE)*[1]Hypothèses!$X$4))/1000 -> 66.65903488 | BK45: =(BI45/(VLOOKUP(E45,[1]Hypothèses!$S$26:$U$32,3,FALSE)*[1]Hypothèses!$X$4))/1000 -> 81.83137593 | BL45: 56.81778097 | BM45: =BL45*[1]Hypothèses!$X$12/[1]Hypothèses!$W$12 -> 53.66123758 | BN45: =BL45*[1]Hypothèses!$W$8*[1]Hypothèses!$X$12 -> 57.95413659 | BO45: =BJ45*[1]Hypothèses!$X$8 -> 73.32493837 | BP45: =(BI45/1000)*[1]Hypothèses!$Z$4/([1]Hypothèses!$AA$4*[1]Hypothèses!$AB$4) -> 929.2602758 | BQ45: =BP45/[1]Hypothèses!$AB$8 -> 154.8767126 | BS45: =(('[1]Hypo Cables'!$J$4*'[1]Hypo Cables'!$M$4)/('[1]Fhypo DPP'!BL39*[1]Hypothèses!$X$12*('[1]Hypo Cables'!$M$24+'[1]Hypo Cables'!$M$25*'[1]Hypo Cables'!$J$14)))/1000 -> 0.228723227 | BT45: =(('[1]Hypo Cables'!$J$4*'[1]Hypo Cables'!$M$4)/('[1]Fhypo DPP'!BL39*[1]Hypothèses!$X$12*('[1]Hypo Cables'!$M$27+'[1]Hypo Cables'!$M$28*'[1]Hypo Cables'!$J$14)))/1000 -> 0.4253974389 | BW45: =BQ45*[1]Hypothèses!$AC$8 -> 51.62557088 | BX45: =4*SQRT(BJ45*[1]Hypothèses!$AF$3) -> 221.6898131 | BY45: 55.42245328
D46: NS RESIF | E46: SEDHIOU | F46: BOUNKELING | G46: DIAROUME | H46: KIMBOUTO | I46: 400 | J46: 36 | K46: =ROUND(I46*(1+[1]Hypothèses!$T$4)^([1]Hypothèses!$S$4-[1]Hypothèses!$R$4),0) -> 424 | L46: =ROUND(J46*(1+[1]Hypothèses!$T$4)^([1]Hypothèses!$S$4-[1]Hypothèses!$R$4),0) -> 38 | M46: 17 | N46: =ROUND((L46*[1]Hypothèses!$U$4-'[1]Fhypo DPP'!M47)*[1]Hypothèses!$G$24+'[1]Fhypo DPP'!M47*[1]Hypothèses!$G$25,0) -> 2 | O46: =ROUND((L46*[1]Hypothèses!$U$4-'[1]Fhypo DPP'!M47)*[1]Hypothèses!$H$24+'[1]Fhypo DPP'!M47*[1]Hypothèses!$H$25,0) -> 4 | P46: =ROUND((L46*[1]Hypothèses!$U$4-'[1]Fhypo DPP'!M47)*[1]Hypothèses!$I$24+'[1]Fhypo DPP'!M47*[1]Hypothèses!$I$25,0) -> 4 | Q46: =ROUND((L46*[1]Hypothèses!$U$4-'[1]Fhypo DPP'!M47)*[1]Hypothèses!$J$24+'[1]Fhypo DPP'!M47*[1]Hypothèses!$J$25,0) -> 19 | R46: 29 | S46: =N46*[1]Hypothèses!$H$49 -> 668 | T46: =O46*[1]Hypothèses!$J$49 -> 4240 | U46: =P46*[1]Hypothèses!$L$49 -> 6960 | V46: =Q46*[1]Hypothèses!$N$49 -> 109098 | W46: 120966 | X46: =(N46*[1]Hypothèses!$G$49+O46*[1]Hypothèses!$I$49+P46*[1]Hypothèses!$K$49+Q46*[1]Hypothèses!$M$49)/1000 -> 20.499 | Z46: =VLOOKUP(H46,[1]Struc_communautaires!C35:H128,2,FALSE) -> 1 | AA46: =Z46*[1]Hypothèses!$J$49 -> 1060 | AB46: =VLOOKUP(H46,[1]Struc_communautaires!C35:H128,3,FALSE) -> 1 | AC46: =AB46*[1]Hypothèses!$J$49 -> 1060 | AD46: =VLOOKUP(H46,[1]Struc_communautaires!C35:H128,4,FALSE) -> 0 | AE46: =AD46*[1]Hypothèses!$J$49 -> 0 | AH46: =VLOOKUP(H46,[1]Struc_communautaires!C35:H128,5,FALSE) -> 0 | AI46: =AH46*[1]Hypothèses!$J$49 -> 0 | AJ46: =VLOOKUP(H46,[1]Struc_communautaires!C35:H128,6,FALSE) -> 9.75 | AK46: =AJ46*[1]Hypothèses!$F$49 -> 3510 | AL46: 5630 | AM46: =(Z46*[1]Hypothèses!$L$62+AB46*[1]Hypothèses!$L$65+AD46*[1]Hypothèses!$L$63+AF46*[1]Hypothèses!$L$64+AH46*[1]Hypothèses!$L$66+AJ46*[1]Hypothèses!$E$49)/1000 -> 0.7705 | AN46: 34 | AO46: =AP46/(VLOOKUP(E46,[1]Hypothèses!$S$26:$U$32,2,FALSE)*[1]Hypothèses!$AA$26) -> 1175.730869 | AP46: =(VLOOKUP(E46,[1]Hypothèses!$W$26:$X$32,2,FALSE)*[1]Hypothèses!$Y$26*[1]Hypothèses!$AB$26*K46)/([1]Hypothèses!$Z$26*1000) -> 6020.917778 | AQ46: =AP46/[1]Hypothèses!$AC$26 -> 1505.229444 | AR46: =(AS46*[1]Hypothèses!$I$53)*1000 -> 24000 | AS46: =ROUND(IF(K46<[1]Hypothèses!$J$53,1,K46/[1]Hypothèses!$J$53),0) -> 1 | AT46: =(AU46*[1]Hypothèses!$I$54)*1000 -> 24000 | AU46: =ROUND(IF(K46<[1]Hypothèses!$J$54,1,K46/[1]Hypothèses!$J$54),0) -> 1 | AV46: =(AW46*[1]Hypothèses!$I$55)*1000 -> 9600 | AW46: =[1]Hypothèses!$J$55 -> 3 | AX46: =(AY46*[1]Hypothèses!$I$56)*1000 -> 0 | AY46: =ROUND(IF(K46<[1]Hypothèses!$J$56,0,K46/[1]Hypothèses!$J$56),0) -> 0 | BF46: 63620.91778 | BG46: =(AQ46+AS46*[1]Hypothèses!$G$53*1000+AU46*[1]Hypothèses!$G$54*1000+AW46*[1]Hypothèses!$G$55*1000+AY46*[1]Hypothèses!$G$56)/1000 -> 14.70522944 | BH46: 2 | BI46: 190216.9178 | BJ46: =(BI46/(VLOOKUP(E46,[1]Hypothèses!$S$26:$U$32,2,FALSE)*[1]Hypothèses!$X$4))/1000 -> 40.95112119 | BK46: =(BI46/(VLOOKUP(E46,[1]Hypothèses!$S$26:$U$32,3,FALSE)*[1]Hypothèses!$X$4))/1000 -> 50.27205388 | BL46: 35.97472944 | BM46: =BL46*[1]Hypothèses!$X$12/[1]Hypothèses!$W$12 -> 33.97613336 | BN46: =BL46*[1]Hypothèses!$W$8*[1]Hypothèses!$X$12 -> 36.69422403 | BO46: =BJ46*[1]Hypothèses!$X$8 -> 45.04623331 | BP46: =(BI46/1000)*[1]Hypothèses!$Z$4/([1]Hypothèses!$AA$4*[1]Hypothèses!$AB$4) -> 570.879105 | BQ46: =BP46/[1]Hypothèses!$AB$8 -> 95.1465175 | BS46: =(('[1]Hypo Cables'!$J$4*'[1]Hypo Cables'!$M$4)/('[1]Fhypo DPP'!BL47*[1]Hypothèses!$X$12*('[1]Hypo Cables'!$M$24+'[1]Hypo Cables'!$M$25*'[1]Hypo Cables'!$J$14)))/1000 -> 0.330273771 | BT46: =(('[1]Hypo Cables'!$J$4*'[1]Hypo Cables'!$M$4)/('[1]Fhypo DPP'!BL47*[1]Hypothèses!$X$12*('[1]Hypo Cables'!$M$27+'[1]Hypo Cables'!$M$28*'[1]Hypo Cables'!$J$14)))/1000 -> 0.6142691242 | BW46: =BQ46*[1]Hypothèses!$AC$8 -> 31.71550583 | BX46: =4*SQRT(BJ46*[1]Hypothèses!$AF$3) -> 173.7597267 | BY46: 43.43993168
D47: NS RESIF | E47: SEDHIOU | F47: GOUDOMP | G47: DJIBANAR | H47: KLONYA | I47: 1420 | J47: 25 | K47: =ROUND(I47*(1+[1]Hypothèses!$T$4)^([1]Hypothèses!$S$4-[1]Hypothèses!$R$4),0) -> 1507 | L47: =ROUND(J47*(1+[1]Hypothèses!$T$4)^([1]Hypothèses!$S$4-[1]Hypothèses!$R$4),0) -> 27 | M47: 7 | N47: =ROUND((L47*[1]Hypothèses!$U$4-'[1]Fhypo DPP'!M49)*[1]Hypothèses!$G$24+'[1]Fhypo DPP'!M49*[1]Hypothèses!$G$25,0) -> 1 | O47: =ROUND((L47*[1]Hypothèses!$U$4-'[1]Fhypo DPP'!M49)*[1]Hypothèses!$H$24+'[1]Fhypo DPP'!M49*[1]Hypothèses!$H$25,0) -> 2 | P47: =ROUND((L47*[1]Hypothèses!$U$4-'[1]Fhypo DPP'!M49)*[1]Hypothèses!$I$24+'[1]Fhypo DPP'!M49*[1]Hypothèses!$I$25,0) -> 3 | Q47: =ROUND((L47*[1]Hypothèses!$U$4-'[1]Fhypo DPP'!M49)*[1]Hypothèses!$J$24+'[1]Fhypo DPP'!M49*[1]Hypothèses!$J$25,0) -> 15 | R47: 21 | S47: =N47*[1]Hypothèses!$H$49 -> 334 | T47: =O47*[1]Hypothèses!$J$49 -> 2120 | U47: =P47*[1]Hypothèses!$L$49 -> 5220 | V47: =Q47*[1]Hypothèses!$N$49 -> 86130 | W47: 93804 | X47: =(N47*[1]Hypothèses!$G$49+O47*[1]Hypothèses!$I$49+P47*[1]Hypothèses!$K$49+Q47*[1]Hypothèses!$M$49)/1000 -> 15.803 | Z47: =VLOOKUP(H47,[1]Struc_communautaires!C36:H129,2,FALSE) -> 1 | AA47: =Z47*[1]Hypothèses!$J$49 -> 1060 | AB47: =VLOOKUP(H47,[1]Struc_communautaires!C36:H129,3,FALSE) -> 1 | AC47: =AB47*[1]Hypothèses!$J$49 -> 1060 | AD47: =VLOOKUP(H47,[1]Struc_communautaires!C36:H129,4,FALSE) -> 0 | AE47: =AD47*[1]Hypothèses!$J$49 -> 0 | AH47: =VLOOKUP(H47,[1]Struc_communautaires!C36:H129,5,FALSE) -> 1 | AI47: =AH47*[1]Hypothèses!$J$49 -> 1060 | AJ47: =VLOOKUP(H47,[1]Struc_communautaires!C36:H129,6,FALSE) -> 8.375 | AK47: =AJ47*[1]Hypothèses!$F$49 -> 3015 | AL47: 6195 | AM47: =(Z47*[1]Hypothèses!$L$62+AB47*[1]Hypothèses!$L$65+AD47*[1]Hypothèses!$L$63+AF47*[1]Hypothèses!$L$64+AH47*[1]Hypothèses!$L$66+AJ47*[1]Hypothèses!$E$49)/1000 -> 0.96825 | AN47: 30 | AO47: =AP47/(VLOOKUP(E47,[1]Hypothèses!$S$26:$U$32,2,FALSE)*[1]Hypothèses!$AA$26) -> 4178.835894 | AP47: =(VLOOKUP(E47,[1]Hypothèses!$W$26:$X$32,2,FALSE)*[1]Hypothèses!$Y$26*[1]Hypothèses!$AB$26*K47)/([1]Hypothèses!$Z$26*1000) -> 21399.81861 | AQ47: =AP47/[1]Hypothèses!$AC$26 -> 5349.954653 | AR47: =(AS47*[1]Hypothèses!$I$53)*1000 -> 48000 | AS47: =ROUND(IF(K47<[1]Hypothèses!$J$53,1,K47/[1]Hypothèses!$J$53),0) -> 2 | AT47: =(AU47*[1]Hypothèses!$I$54)*1000 -> 48000 | AU47: =ROUND(IF(K47<[1]Hypothèses!$J$54,1,K47/[1]Hypothèses!$J$54),0) -> 2 | AV47: =(AW47*[1]Hypothèses!$I$55)*1000 -> 9600 | AW47: =[1]Hypothèses!$J$55 -> 3 | AX47: =(AY47*[1]Hypothèses!$I$56)*1000 -> 4800 | AY47: =ROUND(IF(K47<[1]Hypothèses!$J$56,0,K47/[1]Hypothèses!$J$56),0) -> 3 | BF47: 131799.8186 | BG47: =(AQ47+AS47*[1]Hypothèses!$G$53*1000+AU47*[1]Hypothèses!$G$54*1000+AW47*[1]Hypothèses!$G$55*1000+AY47*[1]Hypothèses!$G$56)/1000 -> 30.55055465 | BH47: 4 | BI47: 231798.8186 | BJ47: =(BI47/(VLOOKUP(E47,[1]Hypothèses!$S$26:$U$32,2,FALSE)*[1]Hypothèses!$X$4))/1000 -> 49.90314018 | BK47: =(BI47/(VLOOKUP(E47,[1]Hypothèses!$S$26:$U$32,3,FALSE)*[1]Hypothèses!$X$4))/1000 -> 61.2616524 | BL47: 47.32180465 | BM47: =BL47*[1]Hypothèses!$X$12/[1]Hypothèses!$W$12 -> 44.69281551 | BN47: =BL47*[1]Hypothèses!$W$8*[1]Hypothèses!$X$12 -> 48.26824075 | BO47: =BJ47*[1]Hypothèses!$X$8 -> 54.8934542 | BP47: =(BI47/1000)*[1]Hypothèses!$Z$4/([1]Hypothèses!$AA$4*[1]Hypothèses!$AB$4) -> 695.6747257 | BQ47: =BP47/[1]Hypothèses!$AB$8 -> 115.9457876 | BS47: =(('[1]Hypo Cables'!$J$4*'[1]Hypo Cables'!$M$4)/('[1]Fhypo DPP'!BL49*[1]Hypothèses!$X$12*('[1]Hypo Cables'!$M$24+'[1]Hypo Cables'!$M$25*'[1]Hypo Cables'!$J$14)))/1000 -> 0.1698747294 | BT47: =(('[1]Hypo Cables'!$J$4*'[1]Hypo Cables'!$M$4)/('[1]Fhypo DPP'!BL49*[1]Hypothèses!$X$12*('[1]Hypo Cables'!$M$27+'[1]Hypo Cables'!$M$28*'[1]Hypo Cables'!$J$14)))/1000 -> 0.3159463766 | BW47: =BQ47*[1]Hypothèses!$AC$8 -> 38.64859587 | BX47: =4*SQRT(BJ47*[1]Hypothèses!$AF$3) -> 191.813939 | BY47: 47.95348475
D48: NS RESIF | E48: SEDHIOU | F48: SEDHIOU | G48: DJIREDJI | H48: MADINA LINKETO | I48: 939 | J48: 73 | K48: =ROUND(I48*(1+[1]Hypothèses!$T$4)^([1]Hypothèses!$S$4-[1]Hypothèses!$R$4),0) -> 996 | L48: =ROUND(J48*(1+[1]Hypothèses!$T$4)^([1]Hypothèses!$S$4-[1]Hypothèses!$R$4),0) -> 77 | M48: 36 | N48: =ROUND((L48*[1]Hypothèses!$U$4-'[1]Fhypo DPP'!M54)*[1]Hypothèses!$G$24+'[1]Fhypo DPP'!M54*[1]Hypothèses!$G$25,0) -> 6 | O48: =ROUND((L48*[1]Hypothèses!$U$4-'[1]Fhypo DPP'!M54)*[1]Hypothèses!$H$24+'[1]Fhypo DPP'!M54*[1]Hypothèses!$H$25,0) -> 11 | P48: =ROUND((L48*[1]Hypothèses!$U$4-'[1]Fhypo DPP'!M54)*[1]Hypothèses!$I$24+'[1]Fhypo DPP'!M54*[1]Hypothèses!$I$25,0) -> 8 | Q48: =ROUND((L48*[1]Hypothèses!$U$4-'[1]Fhypo DPP'!M54)*[1]Hypothèses!$J$24+'[1]Fhypo DPP'!M54*[1]Hypothèses!$J$25,0) -> 37 | R48: 62 | S48: =N48*[1]Hypothèses!$H$49 -> 2004 | T48: =O48*[1]Hypothèses!$J$49 -> 11660 | U48: =P48*[1]Hypothèses!$L$49 -> 13920 | V48: =Q48*[1]Hypothèses!$N$49 -> 212454 | W48: 240038 | X48: =(N48*[1]Hypothèses!$G$49+O48*[1]Hypothèses!$I$49+P48*[1]Hypothèses!$K$49+Q48*[1]Hypothèses!$M$49)/1000 -> 40.958 | Z48: =VLOOKUP(H48,[1]Struc_communautaires!C37:H130,2,FALSE) -> 2 | AA48: =Z48*[1]Hypothèses!$J$49 -> 2120 | AB48: =VLOOKUP(H48,[1]Struc_communautaires!C37:H130,3,FALSE) -> 1 | AC48: =AB48*[1]Hypothèses!$J$49 -> 1060 | AD48: =VLOOKUP(H48,[1]Struc_communautaires!C37:H130,4,FALSE) -> 1 | AE48: =AD48*[1]Hypothèses!$J$49 -> 1060 | AH48: =VLOOKUP(H48,[1]Struc_communautaires!C37:H130,5,FALSE) -> 0 | AI48: =AH48*[1]Hypothèses!$J$49 -> 0 | AJ48: =VLOOKUP(H48,[1]Struc_communautaires!C37:H130,6,FALSE) -> 14.625 | AK48: =AJ48*[1]Hypothèses!$F$49 -> 5265 | AL48: 9505 | AM48: =(Z48*[1]Hypothèses!$L$62+AB48*[1]Hypothèses!$L$65+AD48*[1]Hypothèses!$L$63+AF48*[1]Hypothèses!$L$64+AH48*[1]Hypothèses!$L$66+AJ48*[1]Hypothèses!$E$49)/1000 -> 1.25575 | AN48: 71 | AO48: =AP48/(VLOOKUP(E48,[1]Hypothèses!$S$26:$U$32,2,FALSE)*[1]Hypothèses!$AA$26) -> 2761.858361 | AP48: =(VLOOKUP(E48,[1]Hypothèses!$W$26:$X$32,2,FALSE)*[1]Hypothèses!$Y$26*[1]Hypothèses!$AB$26*K48)/([1]Hypothèses!$Z$26*1000) -> 14143.47667 | AQ48: =AP48/[1]Hypothèses!$AC$26 -> 3535.869167 | AR48: =(AS48*[1]Hypothèses!$I$53)*1000 -> 24000 | AS48: =ROUND(IF(K48<[1]Hypothèses!$J$53,1,K48/[1]Hypothèses!$J$53),0) -> 1 | AT48: =(AU48*[1]Hypothèses!$I$54)*1000 -> 24000 | AU48: =ROUND(IF(K48<[1]Hypothèses!$J$54,1,K48/[1]Hypothèses!$J$54),0) -> 1 | AV48: =(AW48*[1]Hypothèses!$I$55)*1000 -> 9600 | AW48: =[1]Hypothèses!$J$55 -> 3 | AX48: =(AY48*[1]Hypothèses!$I$56)*1000 -> 3200 | AY48: =ROUND(IF(K48<[1]Hypothèses!$J$56,0,K48/[1]Hypothèses!$J$56),0) -> 2 | BF48: 74943.47667 | BG48: =(AQ48+AS48*[1]Hypothèses!$G$53*1000+AU48*[1]Hypothèses!$G$54*1000+AW48*[1]Hypothèses!$G$55*1000+AY48*[1]Hypothèses!$G$56)/1000 -> 16.73626917 | BH48: 2 | BI48: 324486.4767 | BJ48: =(BI48/(VLOOKUP(E48,[1]Hypothèses!$S$26:$U$32,2,FALSE)*[1]Hypothèses!$X$4))/1000 -> 69.85753521 | BK48: =(BI48/(VLOOKUP(E48,[1]Hypothèses!$S$26:$U$32,3,FALSE)*[1]Hypothèses!$X$4))/1000 -> 85.75789067 | BL48: 58.95001917 | BM48: =BL48*[1]Hypothèses!$X$12/[1]Hypothèses!$W$12 -> 55.6750181 | BN48: =BL48*[1]Hypothèses!$W$8*[1]Hypothèses!$X$12 -> 60.12901955 | BO48: =BJ48*[1]Hypothèses!$X$8 -> 76.84328873 | BP48: =(BI48/1000)*[1]Hypothèses!$Z$4/([1]Hypothèses!$AA$4*[1]Hypothèses!$AB$4) -> 973.8489696 | BQ48: =BP48/[1]Hypothèses!$AB$8 -> 162.3081616 | BS48: =(('[1]Hypo Cables'!$J$4*'[1]Hypo Cables'!$M$4)/('[1]Fhypo DPP'!BL54*[1]Hypothèses!$X$12*('[1]Hypo Cables'!$M$24+'[1]Hypo Cables'!$M$25*'[1]Hypo Cables'!$J$14)))/1000 -> 0.3710804956 | BT48: =(('[1]Hypo Cables'!$J$4*'[1]Hypo Cables'!$M$4)/('[1]Fhypo DPP'!BL54*[1]Hypothèses!$X$12*('[1]Hypo Cables'!$M$27+'[1]Hypo Cables'!$M$28*'[1]Hypo Cables'!$J$14)))/1000 -> 0.6901646785 | BW48: =BQ48*[1]Hypothèses!$AC$8 -> 54.10272053 | BX48: =4*SQRT(BJ48*[1]Hypothèses!$AF$3) -> 226.9461689 | BY48: 56.73654221
D49: NS RESIF | E49: SEDHIOU | F49: GOUDOMP | G49: KOLIBANTANG | H49: MAKA | I49: 1200 | J49: 99 | K49: =ROUND(I49*(1+[1]Hypothèses!$T$4)^([1]Hypothèses!$S$4-[1]Hypothèses!$R$4),0) -> 1273 | L49: =ROUND(J49*(1+[1]Hypothèses!$T$4)^([1]Hypothèses!$S$4-[1]Hypothèses!$R$4),0) -> 105 | M49: 13 | N49: =ROUND((L49*[1]Hypothèses!$U$4-'[1]Fhypo DPP'!M56)*[1]Hypothèses!$G$24+'[1]Fhypo DPP'!M56*[1]Hypothèses!$G$25,0) -> 8 | O49: =ROUND((L49*[1]Hypothèses!$U$4-'[1]Fhypo DPP'!M56)*[1]Hypothèses!$H$24+'[1]Fhypo DPP'!M56*[1]Hypothèses!$H$25,0) -> 16 | P49: =ROUND((L49*[1]Hypothèses!$U$4-'[1]Fhypo DPP'!M56)*[1]Hypothèses!$I$24+'[1]Fhypo DPP'!M56*[1]Hypothèses!$I$25,0) -> 11 | Q49: =ROUND((L49*[1]Hypothèses!$U$4-'[1]Fhypo DPP'!M56)*[1]Hypothèses!$J$24+'[1]Fhypo DPP'!M56*[1]Hypothèses!$J$25,0) -> 48 | R49: 83 | S49: =N49*[1]Hypothèses!$H$49 -> 2672 | T49: =O49*[1]Hypothèses!$J$49 -> 16960 | U49: =P49*[1]Hypothèses!$L$49 -> 19140 | V49: =Q49*[1]Hypothèses!$N$49 -> 275616 | W49: 314388 | X49: =(N49*[1]Hypothèses!$G$49+O49*[1]Hypothèses!$I$49+P49*[1]Hypothèses!$K$49+Q49*[1]Hypothèses!$M$49)/1000 -> 53.75 | Z49: =VLOOKUP(H49,[1]Struc_communautaires!C38:H131,2,FALSE) -> 1 | AA49: =Z49*[1]Hypothèses!$J$49 -> 1060 | AB49: =VLOOKUP(H49,[1]Struc_communautaires!C38:H131,3,FALSE) -> 1 | AC49: =AB49*[1]Hypothèses!$J$49 -> 1060 | AD49: =VLOOKUP(H49,[1]Struc_communautaires!C38:H131,4,FALSE) -> 1 | AE49: =AD49*[1]Hypothèses!$J$49 -> 1060 | AH49: =VLOOKUP(H49,[1]Struc_communautaires!C38:H131,5,FALSE) -> 0 | AI49: =AH49*[1]Hypothèses!$J$49 -> 0 | AJ49: =VLOOKUP(H49,[1]Struc_communautaires!C38:H131,6,FALSE) -> 18.125 | AK49: =AJ49*[1]Hypothèses!$F$49 -> 6525 | AL49: 9705 | AM49: =(Z49*[1]Hypothèses!$L$62+AB49*[1]Hypothèses!$L$65+AD49*[1]Hypothèses!$L$63+AF49*[1]Hypothèses!$L$64+AH49*[1]Hypothèses!$L$66+AJ49*[1]Hypothèses!$E$49)/1000 -> 1.12175 | AN49: 92 | AO49: =AP49/(VLOOKUP(E49,[1]Hypothèses!$S$26:$U$32,2,FALSE)*[1]Hypothèses!$AA$26) -> 3529.965556 | AP49: =(VLOOKUP(E49,[1]Hypothèses!$W$26:$X$32,2,FALSE)*[1]Hypothèses!$Y$26*[1]Hypothèses!$AB$26*K49)/([1]Hypothèses!$Z$26*1000) -> 18076.95361 | AQ49: =AP49/[1]Hypothèses!$AC$26 -> 4519.238403 | AR49: =(AS49*[1]Hypothèses!$I$53)*1000 -> 24000 | AS49: =ROUND(IF(K49<[1]Hypothèses!$J$53,1,K49/[1]Hypothèses!$J$53),0) -> 1 | AT49: =(AU49*[1]Hypothèses!$I$54)*1000 -> 24000 | AU49: =ROUND(IF(K49<[1]Hypothèses!$J$54,1,K49/[1]Hypothèses!$J$54),0) -> 1 | AV49: =(AW49*[1]Hypothèses!$I$55)*1000 -> 9600 | AW49: =[1]Hypothèses!$J$55 -> 3 | AX49: =(AY49*[1]Hypothèses!$I$56)*1000 -> 4800 | AY49: =ROUND(IF(K49<[1]Hypothèses!$J$56,0,K49/[1]Hypothèses!$J$56),0) -> 3 | BF49: 80476.95361 | BG49: =(AQ49+AS49*[1]Hypothèses!$G$53*1000+AU49*[1]Hypothèses!$G$54*1000+AW49*[1]Hypothèses!$G$55*1000+AY49*[1]Hypothèses!$G$56)/1000 -> 17.7198384 | BH49: 2 | BI49: 404569.9536 | BJ49: =(BI49/(VLOOKUP(E49,[1]Hypothèses!$S$26:$U$32,2,FALSE)*[1]Hypothèses!$X$4))/1000 -> 87.09842108 | BK49: =(BI49/(VLOOKUP(E49,[1]Hypothèses!$S$26:$U$32,3,FALSE)*[1]Hypothèses!$X$4))/1000 -> 106.9229948 | BL49: 72.5915884 | BM49: =BL49*[1]Hypothèses!$X$12/[1]Hypothèses!$W$12 -> 68.55872238 | BN49: =BL49*[1]Hypothèses!$W$8*[1]Hypothèses!$X$12 -> 74.04342017 | BO49: =BJ49*[1]Hypothèses!$X$8 -> 95.80826319 | BP49: =(BI49/1000)*[1]Hypothèses!$Z$4/([1]Hypothèses!$AA$4*[1]Hypothèses!$AB$4) -> 1214.195539 | BQ49: =BP49/[1]Hypothèses!$AB$8 -> 202.3659232 | BS49: =(('[1]Hypo Cables'!$J$4*'[1]Hypo Cables'!$M$4)/('[1]Fhypo DPP'!BL56*[1]Hypothèses!$X$12*('[1]Hypo Cables'!$M$24+'[1]Hypo Cables'!$M$25*'[1]Hypo Cables'!$J$14)))/1000 -> 0.3706458896 | BT49: =(('[1]Hypo Cables'!$J$4*'[1]Hypo Cables'!$M$4)/('[1]Fhypo DPP'!BL56*[1]Hypothèses!$X$12*('[1]Hypo Cables'!$M$27+'[1]Hypo Cables'!$M$28*'[1]Hypo Cables'!$J$14)))/1000 -> 0.6893563641 | BW49: =BQ49*[1]Hypothèses!$AC$8 -> 67.45530772 | BX49: =4*SQRT(BJ49*[1]Hypothèses!$AF$3) -> 253.4086105 | BY49: 63.35215263
D50: NS RESIF | E50: SEDHIOU | F50: SEDHIOU | G50: BAMBALI | H50: MARON COUNDA | I50: 634 | J50: 40 | K50: =ROUND(I50*(1+[1]Hypothèses!$T$4)^([1]Hypothèses!$S$4-[1]Hypothèses!$R$4),0) -> 673 | L50: =ROUND(J50*(1+[1]Hypothèses!$T$4)^([1]Hypothèses!$S$4-[1]Hypothèses!$R$4),0) -> 42 | M50: 27 | N50: =ROUND((L50*[1]Hypothèses!$U$4-'[1]Fhypo DPP'!M59)*[1]Hypothèses!$G$24+'[1]Fhypo DPP'!M59*[1]Hypothèses!$G$25,0) -> 3 | O50: =ROUND((L50*[1]Hypothèses!$U$4-'[1]Fhypo DPP'!M59)*[1]Hypothèses!$H$24+'[1]Fhypo DPP'!M59*[1]Hypothèses!$H$25,0) -> 5 | P50: =ROUND((L50*[1]Hypothèses!$U$4-'[1]Fhypo DPP'!M59)*[1]Hypothèses!$I$24+'[1]Fhypo DPP'!M59*[1]Hypothèses!$I$25,0) -> 5 | Q50: =ROUND((L50*[1]Hypothèses!$U$4-'[1]Fhypo DPP'!M59)*[1]Hypothèses!$J$24+'[1]Fhypo DPP'!M59*[1]Hypothèses!$J$25,0) -> 21 | R50: 34 | S50: =N50*[1]Hypothèses!$H$49 -> 1002 | T50: =O50*[1]Hypothèses!$J$49 -> 5300 | U50: =P50*[1]Hypothèses!$L$49 -> 8700 | V50: =Q50*[1]Hypothèses!$N$49 -> 120582 | W50: 135584 | X50: =(N50*[1]Hypothèses!$G$49+O50*[1]Hypothèses!$I$49+P50*[1]Hypothèses!$K$49+Q50*[1]Hypothèses!$M$49)/1000 -> 23.042 | Z50: =VLOOKUP(H50,[1]Struc_communautaires!C39:H132,2,FALSE) -> 2 | AA50: =Z50*[1]Hypothèses!$J$49 -> 2120 | AB50: =VLOOKUP(H50,[1]Struc_communautaires!C39:H132,3,FALSE) -> 1 | AC50: =AB50*[1]Hypothèses!$J$49 -> 1060 | AD50: =VLOOKUP(H50,[1]Struc_communautaires!C39:H132,4,FALSE) -> 1 | AE50: =AD50*[1]Hypothèses!$J$49 -> 1060 | AH50: =VLOOKUP(H50,[1]Struc_communautaires!C39:H132,5,FALSE) -> 0 | AI50: =AH50*[1]Hypothèses!$J$49 -> 0 | AJ50: =VLOOKUP(H50,[1]Struc_communautaires!C39:H132,6,FALSE) -> 10.25 | AK50: =AJ50*[1]Hypothèses!$F$49 -> 3690 | AL50: 7930 | AM50: =(Z50*[1]Hypothèses!$L$62+AB50*[1]Hypothèses!$L$65+AD50*[1]Hypothèses!$L$63+AF50*[1]Hypothèses!$L$64+AH50*[1]Hypothèses!$L$66+AJ50*[1]Hypothèses!$E$49)/1000 -> 1.1245 | AN50: 42 | AO50: =AP50/(VLOOKUP(E50,[1]Hypothèses!$S$26:$U$32,2,FALSE)*[1]Hypothèses!$AA$26) -> 1866.195459 | AP50: =(VLOOKUP(E50,[1]Hypothèses!$W$26:$X$32,2,FALSE)*[1]Hypothèses!$Y$26*[1]Hypothèses!$AB$26*K50)/([1]Hypothèses!$Z$26*1000) -> 9556.786944 | AQ50: =AP50/[1]Hypothèses!$AC$26 -> 2389.196736 | AR50: =(AS50*[1]Hypothèses!$I$53)*1000 -> 24000 | AS50: =ROUND(IF(K50<[1]Hypothèses!$J$53,1,K50/[1]Hypothèses!$J$53),0) -> 1 | AT50: =(AU50*[1]Hypothèses!$I$54)*1000 -> 24000 | AU50: =ROUND(IF(K50<[1]Hypothèses!$J$54,1,K50/[1]Hypothèses!$J$54),0) -> 1 | AV50: =(AW50*[1]Hypothèses!$I$55)*1000 -> 9600 | AW50: =[1]Hypothèses!$J$55 -> 3 | AX50: =(AY50*[1]Hypothèses!$I$56)*1000 -> 1600 | AY50: =ROUND(IF(K50<[1]Hypothèses!$J$56,0,K50/[1]Hypothèses!$J$56),0) -> 1 | BF50: 68756.78694 | BG50: =(AQ50+AS50*[1]Hypothèses!$G$53*1000+AU50*[1]Hypothèses!$G$54*1000+AW50*[1]Hypothèses!$G$55*1000+AY50*[1]Hypothèses!$G$56)/1000 -> 15.58939674 | BH50: 2 | BI50: 212270.7869 | BJ50: =(BI50/(VLOOKUP(E50,[1]Hypothèses!$S$26:$U$32,2,FALSE)*[1]Hypothèses!$X$4))/1000 -> 45.69901996 | BK50: =(BI50/(VLOOKUP(E50,[1]Hypothèses!$S$26:$U$32,3,FALSE)*[1]Hypothèses!$X$4))/1000 -> 56.10062745 | BL50: 39.75589674 | BM50: =BL50*[1]Hypothèses!$X$12/[1]Hypothèses!$W$12 -> 37.54723581 | BN50: =BL50*[1]Hypothèses!$W$8*[1]Hypothèses!$X$12 -> 40.55101467 | BO50: =BJ50*[1]Hypothèses!$X$8 -> 50.26892195 | BP50: =(BI50/1000)*[1]Hypothèses!$Z$4/([1]Hypothèses!$AA$4*[1]Hypothèses!$AB$4) -> 637.0671877 | BQ50: =BP50/[1]Hypothèses!$AB$8 -> 106.1778646 | BS50: =(('[1]Hypo Cables'!$J$4*'[1]Hypo Cables'!$M$4)/('[1]Fhypo DPP'!BL59*[1]Hypothèses!$X$12*('[1]Hypo Cables'!$M$24+'[1]Hypo Cables'!$M$25*'[1]Hypo Cables'!$J$14)))/1000 -> 0.3456608982 | BT50: =(('[1]Hypo Cables'!$J$4*'[1]Hypo Cables'!$M$4)/('[1]Fhypo DPP'!BL59*[1]Hypothèses!$X$12*('[1]Hypo Cables'!$M$27+'[1]Hypo Cables'!$M$28*'[1]Hypo Cables'!$J$14)))/1000 -> 0.6428873129 | BW50: =BQ50*[1]Hypothèses!$AC$8 -> 35.39262154 | BX50: =4*SQRT(BJ50*[1]Hypothèses!$AF$3) -> 183.5564584 | BY50: 45.88911461
D51: NS RESIF | E51: SEDHIOU | F51: SEDHIOU | G51: BAMBALI | H51: MASSARIA | I51: 1603 | J51: 73 | K51: =ROUND(I51*(1+[1]Hypothèses!$T$4)^([1]Hypothèses!$S$4-[1]Hypothèses!$R$4),0) -> 1701 | L51: =ROUND(J51*(1+[1]Hypothèses!$T$4)^([1]Hypothèses!$S$4-[1]Hypothèses!$R$4),0) -> 77 | M51: 35 | N51: =ROUND((L51*[1]Hypothèses!$U$4-'[1]Fhypo DPP'!M60)*[1]Hypothèses!$G$24+'[1]Fhypo DPP'!M60*[1]Hypothèses!$G$25,0) -> 5 | O51: =ROUND((L51*[1]Hypothèses!$U$4-'[1]Fhypo DPP'!M60)*[1]Hypothèses!$H$24+'[1]Fhypo DPP'!M60*[1]Hypothèses!$H$25,0) -> 11 | P51: =ROUND((L51*[1]Hypothèses!$U$4-'[1]Fhypo DPP'!M60)*[1]Hypothèses!$I$24+'[1]Fhypo DPP'!M60*[1]Hypothèses!$I$25,0) -> 8 | Q51: =ROUND((L51*[1]Hypothèses!$U$4-'[1]Fhypo DPP'!M60)*[1]Hypothèses!$J$24+'[1]Fhypo DPP'!M60*[1]Hypothèses!$J$25,0) -> 37 | R51: 61 | S51: =N51*[1]Hypothèses!$H$49 -> 1670 | T51: =O51*[1]Hypothèses!$J$49 -> 11660 | U51: =P51*[1]Hypothèses!$L$49 -> 13920 | V51: =Q51*[1]Hypothèses!$N$49 -> 212454 | W51: 239704 | X51: =(N51*[1]Hypothèses!$G$49+O51*[1]Hypothèses!$I$49+P51*[1]Hypothèses!$K$49+Q51*[1]Hypothèses!$M$49)/1000 -> 40.858 | Z51: =VLOOKUP(H51,[1]Struc_communautaires!C40:H133,2,FALSE) -> 2 | AA51: =Z51*[1]Hypothèses!$J$49 -> 2120 | AB51: =VLOOKUP(H51,[1]Struc_communautaires!C40:H133,3,FALSE) -> 2 | AC51: =AB51*[1]Hypothèses!$J$49 -> 2120 | AD51: =VLOOKUP(H51,[1]Struc_communautaires!C40:H133,4,FALSE) -> 1 | AE51: =AD51*[1]Hypothèses!$J$49 -> 1060 | AH51: =VLOOKUP(H51,[1]Struc_communautaires!C40:H133,5,FALSE) -> 0 | AI51: =AH51*[1]Hypothèses!$J$49 -> 0 | AJ51: =VLOOKUP(H51,[1]Struc_communautaires!C40:H133,6,FALSE) -> 14.625 | AK51: =AJ51*[1]Hypothèses!$F$49 -> 5265 | AL51: 10565 | AM51: =(Z51*[1]Hypothèses!$L$62+AB51*[1]Hypothèses!$L$65+AD51*[1]Hypothèses!$L$63+AF51*[1]Hypothèses!$L$64+AH51*[1]Hypothèses!$L$66+AJ51*[1]Hypothèses!$E$49)/1000 -> 1.49475 | AN51: 72 | AO51: =AP51/(VLOOKUP(E51,[1]Hypothèses!$S$26:$U$32,2,FALSE)*[1]Hypothèses!$AA$26) -> 4716.788225 | AP51: =(VLOOKUP(E51,[1]Hypothèses!$W$26:$X$32,2,FALSE)*[1]Hypothèses!$Y$26*[1]Hypothèses!$AB$26*K51)/([1]Hypothèses!$Z$26*1000) -> 24154.6725 | AQ51: =AP51/[1]Hypothèses!$AC$26 -> 6038.668125 | AR51: =(AS51*[1]Hypothèses!$I$53)*1000 -> 48000 | AS51: =ROUND(IF(K51<[1]Hypothèses!$J$53,1,K51/[1]Hypothèses!$J$53),0) -> 2 | AT51: =(AU51*[1]Hypothèses!$I$54)*1000 -> 48000 | AU51: =ROUND(IF(K51<[1]Hypothèses!$J$54,1,K51/[1]Hypothèses!$J$54),0) -> 2 | AV51: =(AW51*[1]Hypothèses!$I$55)*1000 -> 9600 | AW51: =[1]Hypothèses!$J$55 -> 3 | AX51: =(AY51*[1]Hypothèses!$I$56)*1000 -> 4800 | AY51: =ROUND(IF(K51<[1]Hypothèses!$J$56,0,K51/[1]Hypothèses!$J$56),0) -> 3 | BF51: 134554.6725 | BG51: =(AQ51+AS51*[1]Hypothèses!$G$53*1000+AU51*[1]Hypothèses!$G$54*1000+AW51*[1]Hypothèses!$G$55*1000+AY51*[1]Hypothèses!$G$56)/1000 -> 31.23926812 | BH51: 4 | BI51: 384823.6725 | BJ51: =(BI51/(VLOOKUP(E51,[1]Hypothèses!$S$26:$U$32,2,FALSE)*[1]Hypothèses!$X$4))/1000 -> 82.84731471 | BK51: =(BI51/(VLOOKUP(E51,[1]Hypothèses!$S$26:$U$32,3,FALSE)*[1]Hypothèses!$X$4))/1000 -> 101.7042891 | BL51: 73.59201812 | BM51: =BL51*[1]Hypothèses!$X$12/[1]Hypothèses!$W$12 -> 69.50357267 | BN51: =BL51*[1]Hypothèses!$W$8*[1]Hypothèses!$X$12 -> 75.06385849 | BO51: =BJ51*[1]Hypothèses!$X$8 -> 91.13204618 | BP51: =(BI51/1000)*[1]Hypothèses!$Z$4/([1]Hypothèses!$AA$4*[1]Hypothèses!$AB$4) -> 1154.932991 | BQ51: =BP51/[1]Hypothèses!$AB$8 -> 192.4888318 | BS51: =(('[1]Hypo Cables'!$J$4*'[1]Hypo Cables'!$M$4)/('[1]Fhypo DPP'!BL60*[1]Hypothèses!$X$12*('[1]Hypo Cables'!$M$24+'[1]Hypo Cables'!$M$25*'[1]Hypo Cables'!$J$14)))/1000 -> 0.3719366598 | BT51: =(('[1]Hypo Cables'!$J$4*'[1]Hypo Cables'!$M$4)/('[1]Fhypo DPP'!BL60*[1]Hypothèses!$X$12*('[1]Hypo Cables'!$M$27+'[1]Hypo Cables'!$M$28*'[1]Hypo Cables'!$J$14)))/1000 -> 0.69175704 | BW51: =BQ51*[1]Hypothèses!$AC$8 -> 64.16294393 | BX51: =4*SQRT(BJ51*[1]Hypothèses!$AF$3) -> 247.1470578 | BY51: 61.78676445
D52: NS RESIF | E52: SEDHIOU | F52: SEDHIOU | G52: BAMBALI | H52: MISSIRA | I52: 970 | J52: 46 | K52: =ROUND(I52*(1+[1]Hypothèses!$T$4)^([1]Hypothèses!$S$4-[1]Hypothèses!$R$4),0) -> 1029 | L52: =ROUND(J52*(1+[1]Hypothèses!$T$4)^([1]Hypothèses!$S$4-[1]Hypothèses!$R$4),0) -> 49 | M52: 46 | N52: =ROUND((L52*[1]Hypothèses!$U$4-'[1]Fhypo DPP'!M62)*[1]Hypothèses!$G$24+'[1]Fhypo DPP'!M62*[1]Hypothèses!$G$25,0) -> 3 | O52: =ROUND((L52*[1]Hypothèses!$U$4-'[1]Fhypo DPP'!M62)*[1]Hypothèses!$H$24+'[1]Fhypo DPP'!M62*[1]Hypothèses!$H$25,0) -> 7 | P52: =ROUND((L52*[1]Hypothèses!$U$4-'[1]Fhypo DPP'!M62)*[1]Hypothèses!$I$24+'[1]Fhypo DPP'!M62*[1]Hypothèses!$I$25,0) -> 5 | Q52: =ROUND((L52*[1]Hypothèses!$U$4-'[1]Fhypo DPP'!M62)*[1]Hypothèses!$J$24+'[1]Fhypo DPP'!M62*[1]Hypothèses!$J$25,0) -> 23 | R52: 38 | S52: =N52*[1]Hypothèses!$H$49 -> 1002 | T52: =O52*[1]Hypothèses!$J$49 -> 7420 | U52: =P52*[1]Hypothèses!$L$49 -> 8700 | V52: =Q52*[1]Hypothèses!$N$49 -> 132066 | W52: 149188 | X52: =(N52*[1]Hypothèses!$G$49+O52*[1]Hypothèses!$I$49+P52*[1]Hypothèses!$K$49+Q52*[1]Hypothèses!$M$49)/1000 -> 25.434 | Z52: =VLOOKUP(H52,[1]Struc_communautaires!C41:H134,2,FALSE) -> 2 | AA52: =Z52*[1]Hypothèses!$J$49 -> 2120 | AB52: =VLOOKUP(H52,[1]Struc_communautaires!C41:H134,3,FALSE) -> 1 | AC52: =AB52*[1]Hypothèses!$J$49 -> 1060 | AD52: =VLOOKUP(H52,[1]Struc_communautaires!C41:H134,4,FALSE) -> 0 | AE52: =AD52*[1]Hypothèses!$J$49 -> 0 | AH52: =VLOOKUP(H52,[1]Struc_communautaires!C41:H134,5,FALSE) -> 0 | AI52: =AH52*[1]Hypothèses!$J$49 -> 0 | AJ52: =VLOOKUP(H52,[1]Struc_communautaires!C41:H134,6,FALSE) -> 11.125 | AK52: =AJ52*[1]Hypothèses!$F$49 -> 4005 | AL52: 7185 | AM52: =(Z52*[1]Hypothèses!$L$62+AB52*[1]Hypothèses!$L$65+AD52*[1]Hypothèses!$L$63+AF52*[1]Hypothèses!$L$64+AH52*[1]Hypothèses!$L$66+AJ52*[1]Hypothèses!$E$49)/1000 -> 1.05075 | AN52: 46 | AO52: =AP52/(VLOOKUP(E52,[1]Hypothèses!$S$26:$U$32,2,FALSE)*[1]Hypothèses!$AA$26) -> 2853.365716 | AP52: =(VLOOKUP(E52,[1]Hypothèses!$W$26:$X$32,2,FALSE)*[1]Hypothèses!$Y$26*[1]Hypothèses!$AB$26*K52)/([1]Hypothèses!$Z$26*1000) -> 14612.08583 | AQ52: =AP52/[1]Hypothèses!$AC$26 -> 3653.021458 | AR52: =(AS52*[1]Hypothèses!$I$53)*1000 -> 24000 | AS52: =ROUND(IF(K52<[1]Hypothèses!$J$53,1,K52/[1]Hypothèses!$J$53),0) -> 1 | AT52: =(AU52*[1]Hypothèses!$I$54)*1000 -> 24000 | AU52: =ROUND(IF(K52<[1]Hypothèses!$J$54,1,K52/[1]Hypothèses!$J$54),0) -> 1 | AV52: =(AW52*[1]Hypothèses!$I$55)*1000 -> 9600 | AW52: =[1]Hypothèses!$J$55 -> 3 | AX52: =(AY52*[1]Hypothèses!$I$56)*1000 -> 3200 | AY52: =ROUND(IF(K52<[1]Hypothèses!$J$56,0,K52/[1]Hypothèses!$J$56),0) -> 2 | BF52: 75412.08583 | BG52: =(AQ52+AS52*[1]Hypothèses!$G$53*1000+AU52*[1]Hypothèses!$G$54*1000+AW52*[1]Hypothèses!$G$55*1000+AY52*[1]Hypothèses!$G$56)/1000 -> 16.85342146 | BH52: 2 | BI52: 231785.0858 | BJ52: =(BI52/(VLOOKUP(E52,[1]Hypothèses!$S$26:$U$32,2,FALSE)*[1]Hypothèses!$X$4))/1000 -> 49.9001837 | BK52: =(BI52/(VLOOKUP(E52,[1]Hypothèses!$S$26:$U$32,3,FALSE)*[1]Hypothèses!$X$4))/1000 -> 61.258023 | BL52: 43.33817146 | BM52: =BL52*[1]Hypothèses!$X$12/[1]Hypothèses!$W$12 -> 40.93049527 | BN52: =BL52*[1]Hypothèses!$W$8*[1]Hypothèses!$X$12 -> 44.20493489 | BO52: =BJ52*[1]Hypothèses!$X$8 -> 54.89020207 | BP52: =(BI52/1000)*[1]Hypothèses!$Z$4/([1]Hypothèses!$AA$4*[1]Hypothèses!$AB$4) -> 695.6335109 | BQ52: =BP52/[1]Hypothèses!$AB$8 -> 115.9389185 | BS52: =(('[1]Hypo Cables'!$J$4*'[1]Hypo Cables'!$M$4)/('[1]Fhypo DPP'!BL62*[1]Hypothèses!$X$12*('[1]Hypo Cables'!$M$24+'[1]Hypo Cables'!$M$25*'[1]Hypo Cables'!$J$14)))/1000 -> 0.2638263175 | BT52: =(('[1]Hypo Cables'!$J$4*'[1]Hypo Cables'!$M$4)/('[1]Fhypo DPP'!BL62*[1]Hypothèses!$X$12*('[1]Hypo Cables'!$M$27+'[1]Hypo Cables'!$M$28*'[1]Hypo Cables'!$J$14)))/1000 -> 0.4906849263 | BW52: =BQ52*[1]Hypothèses!$AC$8 -> 38.64630616 | BX52: =4*SQRT(BJ52*[1]Hypothèses!$AF$3) -> 191.808257 | BY52: 47.95206424
D53: NS RESIF | E53: KAOLACK | F53: GUINGUINEO | G53: NDIAGO | H53: NDIAGNE KAHONE | I53: 611 | J53: 41 | K53: =ROUND(I53*(1+[1]Hypothèses!$T$4)^([1]Hypothèses!$S$4-[1]Hypothèses!$R$4),0) -> 648 | L53: =ROUND(J53*(1+[1]Hypothèses!$T$4)^([1]Hypothèses!$S$4-[1]Hypothèses!$R$4),0) -> 44 | M53: 26 | N53: =ROUND((L53*[1]Hypothèses!$U$4-'[1]Fhypo DPP'!M65)*[1]Hypothèses!$G$24+'[1]Fhypo DPP'!M65*[1]Hypothèses!$G$25,0) -> 3 | O53: =ROUND((L53*[1]Hypothèses!$U$4-'[1]Fhypo DPP'!M65)*[1]Hypothèses!$H$24+'[1]Fhypo DPP'!M65*[1]Hypothèses!$H$25,0) -> 5 | P53: =ROUND((L53*[1]Hypothèses!$U$4-'[1]Fhypo DPP'!M65)*[1]Hypothèses!$I$24+'[1]Fhypo DPP'!M65*[1]Hypothèses!$I$25,0) -> 5 | Q53: =ROUND((L53*[1]Hypothèses!$U$4-'[1]Fhypo DPP'!M65)*[1]Hypothèses!$J$24+'[1]Fhypo DPP'!M65*[1]Hypothèses!$J$25,0) -> 22 | R53: 35 | S53: =N53*[1]Hypothèses!$H$49 -> 1002 | T53: =O53*[1]Hypothèses!$J$49 -> 5300 | U53: =P53*[1]Hypothèses!$L$49 -> 8700 | V53: =Q53*[1]Hypothèses!$N$49 -> 126324 | W53: 141326 | X53: =(N53*[1]Hypothèses!$G$49+O53*[1]Hypothèses!$I$49+P53*[1]Hypothèses!$K$49+Q53*[1]Hypothèses!$M$49)/1000 -> 23.999 | Z53: =VLOOKUP(H53,[1]Struc_communautaires!C42:H135,2,FALSE) -> 1 | AA53: =Z53*[1]Hypothèses!$J$49 -> 1060 | AB53: =VLOOKUP(H53,[1]Struc_communautaires!C42:H135,3,FALSE) -> 1 | AC53: =AB53*[1]Hypothèses!$J$49 -> 1060 | AD53: =VLOOKUP(H53,[1]Struc_communautaires!C42:H135,4,FALSE) -> 1 | AE53: =AD53*[1]Hypothèses!$J$49 -> 1060 | AH53: =VLOOKUP(H53,[1]Struc_communautaires!C42:H135,5,FALSE) -> 0 | AI53: =AH53*[1]Hypothèses!$J$49 -> 0 | AJ53: =VLOOKUP(H53,[1]Struc_communautaires!C42:H135,6,FALSE) -> 10.5 | AK53: =AJ53*[1]Hypothèses!$F$49 -> 3780 | AL53: 6960 | AM53: =(Z53*[1]Hypothèses!$L$62+AB53*[1]Hypothèses!$L$65+AD53*[1]Hypothèses!$L$63+AF53*[1]Hypothèses!$L$64+AH53*[1]Hypothèses!$L$66+AJ53*[1]Hypothèses!$E$49)/1000 -> 0.893 | AN53: 42 | AO53: =AP53/(VLOOKUP(E53,[1]Hypothèses!$S$26:$U$32,2,FALSE)*[1]Hypothèses!$AA$26) -> 2588.031634 | AP53: =(VLOOKUP(E53,[1]Hypothèses!$W$26:$X$32,2,FALSE)*[1]Hypothèses!$Y$26*[1]Hypothèses!$AB$26*K53)/([1]Hypothèses!$Z$26*1000) -> 13253.31 | AQ53: =AP53/[1]Hypothèses!$AC$26 -> 3313.3275 | AR53: =(AS53*[1]Hypothèses!$I$53)*1000 -> 24000 | AS53: =ROUND(IF(K53<[1]Hypothèses!$J$53,1,K53/[1]Hypothèses!$J$53),0) -> 1 | AT53: =(AU53*[1]Hypothèses!$I$54)*1000 -> 24000 | AU53: =ROUND(IF(K53<[1]Hypothèses!$J$54,1,K53/[1]Hypothèses!$J$54),0) -> 1 | AV53: =(AW53*[1]Hypothèses!$I$55)*1000 -> 9600 | AW53: =[1]Hypothèses!$J$55 -> 3 | AX53: =(AY53*[1]Hypothèses!$I$56)*1000 -> 1600 | AY53: =ROUND(IF(K53<[1]Hypothèses!$J$56,0,K53/[1]Hypothèses!$J$56),0) -> 1 | BF53: 72453.31 | BG53: =(AQ53+AS53*[1]Hypothèses!$G$53*1000+AU53*[1]Hypothèses!$G$54*1000+AW53*[1]Hypothèses!$G$55*1000+AY53*[1]Hypothèses!$G$56)/1000 -> 16.5135275 | BH53: 2 | BI53: 220739.31 | BJ53: =(BI53/(VLOOKUP(E53,[1]Hypothèses!$S$26:$U$32,2,FALSE)*[1]Hypothèses!$X$4))/1000 -> 47.52217805 | BK53: =(BI53/(VLOOKUP(E53,[1]Hypothèses!$S$26:$U$32,3,FALSE)*[1]Hypothèses!$X$4))/1000 -> 51.72973034 | BL53: 41.4055275 | BM53: =BL53*[1]Hypothèses!$X$12/[1]Hypothèses!$W$12 -> 39.10522042 | BN53: =BL53*[1]Hypothèses!$W$8*[1]Hypothèses!$X$12 -> 42.23363805 | BO53: =BJ53*[1]Hypothèses!$X$8 -> 52.27439586 | BP53: =(BI53/1000)*[1]Hypothèses!$Z$4/([1]Hypothèses!$AA$4*[1]Hypothèses!$AB$4) -> 662.4829232 | BQ53: =BP53/[1]Hypothèses!$AB$8 -> 110.4138205 | BS53: =(('[1]Hypo Cables'!$J$4*'[1]Hypo Cables'!$M$4)/('[1]Fhypo DPP'!BL65*[1]Hypothèses!$X$12*('[1]Hypo Cables'!$M$24+'[1]Hypo Cables'!$M$25*'[1]Hypo Cables'!$J$14)))/1000 -> 0.2781135552 | BT53: =(('[1]Hypo Cables'!$J$4*'[1]Hypo Cables'!$M$4)/('[1]Fhypo DPP'!BL65*[1]Hypothèses!$X$12*('[1]Hypo Cables'!$M$27+'[1]Hypo Cables'!$M$28*'[1]Hypo Cables'!$J$14)))/1000 -> 0.5172574541 | BW53: =BQ53*[1]Hypothèses!$AC$8 -> 36.80460684 | BX53: =4*SQRT(BJ53*[1]Hypothèses!$AF$3) -> 187.1821344 | BY53: 46.7955336
D54: NS RESIF | E54: SEDHIOU | F54: SEDHIOU | G54: SANSAMBA | H54: NEMA DIAOUR | I54: 500 | J54: 30 | K54: =ROUND(I54*(1+[1]Hypothèses!$T$4)^([1]Hypothèses!$S$4-[1]Hypothèses!$R$4),0) -> 531 | L54: =ROUND(J54*(1+[1]Hypothèses!$T$4)^([1]Hypothèses!$S$4-[1]Hypothèses!$R$4),0) -> 32 | M54: 15 | N54: =ROUND((L54*[1]Hypothèses!$U$4-'[1]Fhypo DPP'!M71)*[1]Hypothèses!$G$24+'[1]Fhypo DPP'!M71*[1]Hypothèses!$G$25,0) -> 2 | O54: =ROUND((L54*[1]Hypothèses!$U$4-'[1]Fhypo DPP'!M71)*[1]Hypothèses!$H$24+'[1]Fhypo DPP'!M71*[1]Hypothèses!$H$25,0) -> 3 | P54: =ROUND((L54*[1]Hypothèses!$U$4-'[1]Fhypo DPP'!M71)*[1]Hypothèses!$I$24+'[1]Fhypo DPP'!M71*[1]Hypothèses!$I$25,0) -> 4 | Q54: =ROUND((L54*[1]Hypothèses!$U$4-'[1]Fhypo DPP'!M71)*[1]Hypothèses!$J$24+'[1]Fhypo DPP'!M71*[1]Hypothèses!$J$25,0) -> 17 | R54: 26 | S54: =N54*[1]Hypothèses!$H$49 -> 668 | T54: =O54*[1]Hypothèses!$J$49 -> 3180 | U54: =P54*[1]Hypothèses!$L$49 -> 6960 | V54: =Q54*[1]Hypothèses!$N$49 -> 97614 | W54: 108422 | X54: =(N54*[1]Hypothèses!$G$49+O54*[1]Hypothèses!$I$49+P54*[1]Hypothèses!$K$49+Q54*[1]Hypothèses!$M$49)/1000 -> 18.346 | Z54: =VLOOKUP(H54,[1]Struc_communautaires!C43:H136,2,FALSE) -> 1 | AA54: =Z54*[1]Hypothèses!$J$49 -> 1060 | AB54: =VLOOKUP(H54,[1]Struc_communautaires!C43:H136,3,FALSE) -> 2 | AC54: =AB54*[1]Hypothèses!$J$49 -> 2120 | AD54: =VLOOKUP(H54,[1]Struc_communautaires!C43:H136,4,FALSE) -> 0 | AE54: =AD54*[1]Hypothèses!$J$49 -> 0 | AH54: =VLOOKUP(H54,[1]Struc_communautaires!C43:H136,5,FALSE) -> 0 | AI54: =AH54*[1]Hypothèses!$J$49 -> 0 | AJ54: =VLOOKUP(H54,[1]Struc_communautaires!C43:H136,6,FALSE) -> 9 | AK54: =AJ54*[1]Hypothèses!$F$49 -> 3240 | AL54: 6420 | AM54: =(Z54*[1]Hypothèses!$L$62+AB54*[1]Hypothèses!$L$65+AD54*[1]Hypothèses!$L$63+AF54*[1]Hypothèses!$L$64+AH54*[1]Hypothèses!$L$66+AJ54*[1]Hypothèses!$E$49)/1000 -> 0.987 | AN54: 33 | AO54: =AP54/(VLOOKUP(E54,[1]Hypothèses!$S$26:$U$32,2,FALSE)*[1]Hypothèses!$AA$26) -> 1472.436536 | AP54: =(VLOOKUP(E54,[1]Hypothèses!$W$26:$X$32,2,FALSE)*[1]Hypothèses!$Y$26*[1]Hypothèses!$AB$26*K54)/([1]Hypothèses!$Z$26*1000) -> 7540.3475 | AQ54: =AP54/[1]Hypothèses!$AC$26 -> 1885.086875 | AR54: =(AS54*[1]Hypothèses!$I$53)*1000 -> 24000 | AS54: =ROUND(IF(K54<[1]Hypothèses!$J$53,1,K54/[1]Hypothèses!$J$53),0) -> 1 | AT54: =(AU54*[1]Hypothèses!$I$54)*1000 -> 24000 | AU54: =ROUND(IF(K54<[1]Hypothèses!$J$54,1,K54/[1]Hypothèses!$J$54),0) -> 1 | AV54: =(AW54*[1]Hypothèses!$I$55)*1000 -> 9600 | AW54: =[1]Hypothèses!$J$55 -> 3 | AX54: =(AY54*[1]Hypothèses!$I$56)*1000 -> 1600 | AY54: =ROUND(IF(K54<[1]Hypothèses!$J$56,0,K54/[1]Hypothèses!$J$56),0) -> 1 | BF54: 66740.3475 | BG54: =(AQ54+AS54*[1]Hypothèses!$G$53*1000+AU54*[1]Hypothèses!$G$54*1000+AW54*[1]Hypothèses!$G$55*1000+AY54*[1]Hypothèses!$G$56)/1000 -> 15.08528688 | BH54: 2 | BI54: 181582.3475 | BJ54: =(BI54/(VLOOKUP(E54,[1]Hypothèses!$S$26:$U$32,2,FALSE)*[1]Hypothèses!$X$4))/1000 -> 39.09221538 | BK54: =(BI54/(VLOOKUP(E54,[1]Hypothèses!$S$26:$U$32,3,FALSE)*[1]Hypothèses!$X$4))/1000 -> 47.99004034 | BL54: 34.41828687 | BM54: =BL54*[1]Hypothèses!$X$12/[1]Hypothèses!$W$12 -> 32.50615983 | BN54: =BL54*[1]Hypothèses!$W$8*[1]Hypothèses!$X$12 -> 35.10665261 | BO54: =BJ54*[1]Hypothèses!$X$8 -> 43.00143692 | BP54: =(BI54/1000)*[1]Hypothèses!$Z$4/([1]Hypothèses!$AA$4*[1]Hypothèses!$AB$4) -> 544.9650285 | BQ54: =BP54/[1]Hypothèses!$AB$8 -> 90.82750475 | BS54: =(('[1]Hypo Cables'!$J$4*'[1]Hypo Cables'!$M$4)/('[1]Fhypo DPP'!BL71*[1]Hypothèses!$X$12*('[1]Hypo Cables'!$M$24+'[1]Hypo Cables'!$M$25*'[1]Hypo Cables'!$J$14)))/1000 -> 0.2225153722 | BT54: =(('[1]Hypo Cables'!$J$4*'[1]Hypo Cables'!$M$4)/('[1]Fhypo DPP'!BL71*[1]Hypothèses!$X$12*('[1]Hypo Cables'!$M$27+'[1]Hypo Cables'!$M$28*'[1]Hypo Cables'!$J$14)))/1000 -> 0.4138515825 | BW54: =BQ54*[1]Hypothèses!$AC$8 -> 30.27583492 | BX54: =4*SQRT(BJ54*[1]Hypothèses!$AF$3) -> 169.7701639 | BY54: 42.44254098
D55: NS RESIF | E55: KAOLACK | F55: GUINGUINEO | G55: NDIAGO | H55: NGARE KEUR AMADOU YACINE | I55: 1361 | J55: 58 | K55: =ROUND(I55*(1+[1]Hypothèses!$T$4)^([1]Hypothèses!$S$4-[1]Hypothèses!$R$4),0) -> 1444 | L55: =ROUND(J55*(1+[1]Hypothèses!$T$4)^([1]Hypothèses!$S$4-[1]Hypothèses!$R$4),0) -> 62 | M55: 26 | N55: =ROUND((L55*[1]Hypothèses!$U$4-'[1]Fhypo DPP'!M72)*[1]Hypothèses!$G$24+'[1]Fhypo DPP'!M72*[1]Hypothèses!$G$25,0) -> 4 | O55: =ROUND((L55*[1]Hypothèses!$U$4-'[1]Fhypo DPP'!M72)*[1]Hypothèses!$H$24+'[1]Fhypo DPP'!M72*[1]Hypothèses!$H$25,0) -> 8 | P55: =ROUND((L55*[1]Hypothèses!$U$4-'[1]Fhypo DPP'!M72)*[1]Hypothèses!$I$24+'[1]Fhypo DPP'!M72*[1]Hypothèses!$I$25,0) -> 7 | Q55: =ROUND((L55*[1]Hypothèses!$U$4-'[1]Fhypo DPP'!M72)*[1]Hypothèses!$J$24+'[1]Fhypo DPP'!M72*[1]Hypothèses!$J$25,0) -> 30 | R55: 49 | S55: =N55*[1]Hypothèses!$H$49 -> 1336 | T55: =O55*[1]Hypothèses!$J$49 -> 8480 | U55: =P55*[1]Hypothèses!$L$49 -> 12180 | V55: =Q55*[1]Hypothèses!$N$49 -> 172260 | W55: 194256 | X55: =(N55*[1]Hypothèses!$G$49+O55*[1]Hypothèses!$I$49+P55*[1]Hypothèses!$K$49+Q55*[1]Hypothèses!$M$49)/1000 -> 33.052 | Z55: =VLOOKUP(H55,[1]Struc_communautaires!C44:H137,2,FALSE) -> 1 | AA55: =Z55*[1]Hypothèses!$J$49 -> 1060 | AB55: =VLOOKUP(H55,[1]Struc_communautaires!C44:H137,3,FALSE) -> 1 | AC55: =AB55*[1]Hypothèses!$J$49 -> 1060 | AD55: =VLOOKUP(H55,[1]Struc_communautaires!C44:H137,4,FALSE) -> 1 | AE55: =AD55*[1]Hypothèses!$J$49 -> 1060 | AH55: =VLOOKUP(H55,[1]Struc_communautaires!C44:H137,5,FALSE) -> 0 | AI55: =AH55*[1]Hypothèses!$J$49 -> 0 | AJ55: =VLOOKUP(H55,[1]Struc_communautaires!C44:H137,6,FALSE) -> 12.75 | AK55: =AJ55*[1]Hypothèses!$F$49 -> 4590 | AL55: 7770 | AM55: =(Z55*[1]Hypothèses!$L$62+AB55*[1]Hypothèses!$L$65+AD55*[1]Hypothèses!$L$63+AF55*[1]Hypothèses!$L$64+AH55*[1]Hypothèses!$L$66+AJ55*[1]Hypothèses!$E$49)/1000 -> 0.9605 | AN55: 58 | AO55: =AP55/(VLOOKUP(E55,[1]Hypothèses!$S$26:$U$32,2,FALSE)*[1]Hypothèses!$AA$26) -> 5767.156914 | AP55: =(VLOOKUP(E55,[1]Hypothèses!$W$26:$X$32,2,FALSE)*[1]Hypothèses!$Y$26*[1]Hypothèses!$AB$26*K55)/([1]Hypothèses!$Z$26*1000) -> 29533.61056 | AQ55: =AP55/[1]Hypothèses!$AC$26 -> 7383.402639 | AR55: =(AS55*[1]Hypothèses!$I$53)*1000 -> 24000 | AS55: =ROUND(IF(K55<[1]Hypothèses!$J$53,1,K55/[1]Hypothèses!$J$53),0) -> 1 | AT55: =(AU55*[1]Hypothèses!$I$54)*1000 -> 24000 | AU55: =ROUND(IF(K55<[1]Hypothèses!$J$54,1,K55/[1]Hypothèses!$J$54),0) -> 1 | AV55: =(AW55*[1]Hypothèses!$I$55)*1000 -> 9600 | AW55: =[1]Hypothèses!$J$55 -> 3 | AX55: =(AY55*[1]Hypothèses!$I$56)*1000 -> 4800 | AY55: =ROUND(IF(K55<[1]Hypothèses!$J$56,0,K55/[1]Hypothèses!$J$56),0) -> 3 | BF55: 91933.61056 | BG55: =(AQ55+AS55*[1]Hypothèses!$G$53*1000+AU55*[1]Hypothèses!$G$54*1000+AW55*[1]Hypothèses!$G$55*1000+AY55*[1]Hypothèses!$G$56)/1000 -> 20.58400264 | BH55: 2 | BI55: 293959.6106 | BJ55: =(BI55/(VLOOKUP(E55,[1]Hypothèses!$S$26:$U$32,2,FALSE)*[1]Hypothèses!$X$4))/1000 -> 63.28551518 | BK55: =(BI55/(VLOOKUP(E55,[1]Hypothèses!$S$26:$U$32,3,FALSE)*[1]Hypothèses!$X$4))/1000 -> 68.88873298 | BL55: 54.59650264 | BM55: =BL55*[1]Hypothèses!$X$12/[1]Hypothèses!$W$12 -> 51.5633636 | BN55: =BL55*[1]Hypothèses!$W$8*[1]Hypothèses!$X$12 -> 55.68843269 | BO55: =BJ55*[1]Hypothèses!$X$8 -> 69.6140667 | BP55: =(BI55/1000)*[1]Hypothèses!$Z$4/([1]Hypothèses!$AA$4*[1]Hypothèses!$AB$4) -> 882.2317244 | BQ55: =BP55/[1]Hypothèses!$AB$8 -> 147.0386207 | BS55: =(('[1]Hypo Cables'!$J$4*'[1]Hypo Cables'!$M$4)/('[1]Fhypo DPP'!BL72*[1]Hypothèses!$X$12*('[1]Hypo Cables'!$M$24+'[1]Hypo Cables'!$M$25*'[1]Hypo Cables'!$J$14)))/1000 -> 0.29376696 | BT55: =(('[1]Hypo Cables'!$J$4*'[1]Hypo Cables'!$M$4)/('[1]Fhypo DPP'!BL72*[1]Hypothèses!$X$12*('[1]Hypo Cables'!$M$27+'[1]Hypo Cables'!$M$28*'[1]Hypo Cables'!$J$14)))/1000 -> 0.5463708869 | BW55: =BQ55*[1]Hypothèses!$AC$8 -> 49.01287358 | BX55: =4*SQRT(BJ55*[1]Hypothèses!$AF$3) -> 216.0072791 | BY55: 54.00181978
D56: NS RESIF | E56: SEDHIOU | F56: BOUNKELING | G56: DIACOUNDA | H56: NIOROKI | I56: 1000 | J56: 40 | K56: =ROUND(I56*(1+[1]Hypothèses!$T$4)^([1]Hypothèses!$S$4-[1]Hypothèses!$R$4),0) -> 1061 | L56: =ROUND(J56*(1+[1]Hypothèses!$T$4)^([1]Hypothèses!$S$4-[1]Hypothèses!$R$4),0) -> 42 | M56: 29 | N56: =ROUND((L56*[1]Hypothèses!$U$4-'[1]Fhypo DPP'!M74)*[1]Hypothèses!$G$24+'[1]Fhypo DPP'!M74*[1]Hypothèses!$G$25,0) -> 3 | O56: =ROUND((L56*[1]Hypothèses!$U$4-'[1]Fhypo DPP'!M74)*[1]Hypothèses!$H$24+'[1]Fhypo DPP'!M74*[1]Hypothèses!$H$25,0) -> 6 | P56: =ROUND((L56*[1]Hypothèses!$U$4-'[1]Fhypo DPP'!M74)*[1]Hypothèses!$I$24+'[1]Fhypo DPP'!M74*[1]Hypothèses!$I$25,0) -> 5 | Q56: =ROUND((L56*[1]Hypothèses!$U$4-'[1]Fhypo DPP'!M74)*[1]Hypothèses!$J$24+'[1]Fhypo DPP'!M74*[1]Hypothèses!$J$25,0) -> 20 | R56: 34 | S56: =N56*[1]Hypothèses!$H$49 -> 1002 | T56: =O56*[1]Hypothèses!$J$49 -> 6360 | U56: =P56*[1]Hypothèses!$L$49 -> 8700 | V56: =Q56*[1]Hypothèses!$N$49 -> 114840 | W56: 130902 | X56: =(N56*[1]Hypothèses!$G$49+O56*[1]Hypothèses!$I$49+P56*[1]Hypothèses!$K$49+Q56*[1]Hypothèses!$M$49)/1000 -> 22.324 | Z56: =VLOOKUP(H56,[1]Struc_communautaires!C45:H138,2,FALSE) -> 2 | AA56: =Z56*[1]Hypothèses!$J$49 -> 2120 | AB56: =VLOOKUP(H56,[1]Struc_communautaires!C45:H138,3,FALSE) -> 1 | AC56: =AB56*[1]Hypothèses!$J$49 -> 1060 | AD56: =VLOOKUP(H56,[1]Struc_communautaires!C45:H138,4,FALSE) -> 1 | AE56: =AD56*[1]Hypothèses!$J$49 -> 1060 | AH56: =VLOOKUP(H56,[1]Struc_communautaires!C45:H138,5,FALSE) -> 0 | AI56: =AH56*[1]Hypothèses!$J$49 -> 0 | AJ56: =VLOOKUP(H56,[1]Struc_communautaires!C45:H138,6,FALSE) -> 10.25 | AK56: =AJ56*[1]Hypothèses!$F$49 -> 3690 | AL56: 7930 | AM56: =(Z56*[1]Hypothèses!$L$62+AB56*[1]Hypothèses!$L$65+AD56*[1]Hypothèses!$L$63+AF56*[1]Hypothèses!$L$64+AH56*[1]Hypothèses!$L$66+AJ56*[1]Hypothèses!$E$49)/1000 -> 1.1245 | AN56: 43 | AO56: =AP56/(VLOOKUP(E56,[1]Hypothèses!$S$26:$U$32,2,FALSE)*[1]Hypothèses!$AA$26) -> 2942.100122 | AP56: =(VLOOKUP(E56,[1]Hypothèses!$W$26:$X$32,2,FALSE)*[1]Hypothèses!$Y$26*[1]Hypothèses!$AB$26*K56)/([1]Hypothèses!$Z$26*1000) -> 15066.49472 | AQ56: =AP56/[1]Hypothèses!$AC$26 -> 3766.623681 | AR56: =(AS56*[1]Hypothèses!$I$53)*1000 -> 24000 | AS56: =ROUND(IF(K56<[1]Hypothèses!$J$53,1,K56/[1]Hypothèses!$J$53),0) -> 1 | AT56: =(AU56*[1]Hypothèses!$I$54)*1000 -> 24000 | AU56: =ROUND(IF(K56<[1]Hypothèses!$J$54,1,K56/[1]Hypothèses!$J$54),0) -> 1 | AV56: =(AW56*[1]Hypothèses!$I$55)*1000 -> 9600 | AW56: =[1]Hypothèses!$J$55 -> 3 | AX56: =(AY56*[1]Hypothèses!$I$56)*1000 -> 3200 | AY56: =ROUND(IF(K56<[1]Hypothèses!$J$56,0,K56/[1]Hypothèses!$J$56),0) -> 2 | BF56: 75866.49472 | BG56: =(AQ56+AS56*[1]Hypothèses!$G$53*1000+AU56*[1]Hypothèses!$G$54*1000+AW56*[1]Hypothèses!$G$55*1000+AY56*[1]Hypothèses!$G$56)/1000 -> 16.96702368 | BH56: 2 | BI56: 214698.4947 | BJ56: =(BI56/(VLOOKUP(E56,[1]Hypothèses!$S$26:$U$32,2,FALSE)*[1]Hypothèses!$X$4))/1000 -> 46.2216725 | BK56: =(BI56/(VLOOKUP(E56,[1]Hypothèses!$S$26:$U$32,3,FALSE)*[1]Hypothèses!$X$4))/1000 -> 56.74224154 | BL56: 40.41552368 | BM56: =BL56*[1]Hypothèses!$X$12/[1]Hypothèses!$W$12 -> 38.17021681 | BN56: =BL56*[1]Hypothèses!$W$8*[1]Hypothèses!$X$12 -> 41.22383415 | BO56: =BJ56*[1]Hypothèses!$X$8 -> 50.84383975 | BP56: =(BI56/1000)*[1]Hypothèses!$Z$4/([1]Hypothèses!$AA$4*[1]Hypothèses!$AB$4) -> 644.3532255 | BQ56: =BP56/[1]Hypothèses!$AB$8 -> 107.3922042 | BS56: =(('[1]Hypo Cables'!$J$4*'[1]Hypo Cables'!$M$4)/('[1]Fhypo DPP'!BL74*[1]Hypothèses!$X$12*('[1]Hypo Cables'!$M$24+'[1]Hypo Cables'!$M$25*'[1]Hypo Cables'!$J$14)))/1000 -> 0.3203796613 | BT56: =(('[1]Hypo Cables'!$J$4*'[1]Hypo Cables'!$M$4)/('[1]Fhypo DPP'!BL74*[1]Hypothèses!$X$12*('[1]Hypo Cables'!$M$27+'[1]Hypo Cables'!$M$28*'[1]Hypo Cables'!$J$14)))/1000 -> 0.5958672811 | BW56: =BQ56*[1]Hypothèses!$AC$8 -> 35.79740141 | BX56: =4*SQRT(BJ56*[1]Hypothèses!$AF$3) -> 184.6031275 | BY56: 46.15078189
D57: NS RESIF | E57: SEDHIOU | F57: SEDHIOU | G57: Bemet Bidjini | H57: sibikoroto 2 | I57: 1005 | J57: 56 | K57: =ROUND(I57*(1+[1]Hypothèses!$T$4)^([1]Hypothèses!$S$4-[1]Hypothèses!$R$4),0) -> 1067 | L57: =ROUND(J57*(1+[1]Hypothèses!$T$4)^([1]Hypothèses!$S$4-[1]Hypothèses!$R$4),0) -> 59 | M57: 33 | N57: =ROUND((L57*[1]Hypothèses!$U$4-'[1]Fhypo DPP'!M85)*[1]Hypothèses!$G$24+'[1]Fhypo DPP'!M85*[1]Hypothèses!$G$25,0) -> 4 | O57: =ROUND((L57*[1]Hypothèses!$U$4-'[1]Fhypo DPP'!M85)*[1]Hypothèses!$H$24+'[1]Fhypo DPP'!M85*[1]Hypothèses!$H$25,0) -> 7 | P57: =ROUND((L57*[1]Hypothèses!$U$4-'[1]Fhypo DPP'!M85)*[1]Hypothèses!$I$24+'[1]Fhypo DPP'!M85*[1]Hypothèses!$I$25,0) -> 7 | Q57: =ROUND((L57*[1]Hypothèses!$U$4-'[1]Fhypo DPP'!M85)*[1]Hypothèses!$J$24+'[1]Fhypo DPP'!M85*[1]Hypothèses!$J$25,0) -> 29 | R57: 47 | S57: =N57*[1]Hypothèses!$H$49 -> 1336 | T57: =O57*[1]Hypothèses!$J$49 -> 7420 | U57: =P57*[1]Hypothèses!$L$49 -> 12180 | V57: =Q57*[1]Hypothèses!$N$49 -> 166518 | W57: 187454 | X57: =(N57*[1]Hypothèses!$G$49+O57*[1]Hypothèses!$I$49+P57*[1]Hypothèses!$K$49+Q57*[1]Hypothèses!$M$49)/1000 -> 31.856 | Z57: =VLOOKUP(H57,[1]Struc_communautaires!C46:H139,2,FALSE) -> 2 | AA57: =Z57*[1]Hypothèses!$J$49 -> 2120 | AB57: =VLOOKUP(H57,[1]Struc_communautaires!C46:H139,3,FALSE) -> 2 | AC57: =AB57*[1]Hypothèses!$J$49 -> 2120 | AD57: =VLOOKUP(H57,[1]Struc_communautaires!C46:H139,4,FALSE) -> 1 | AE57: =AD57*[1]Hypothèses!$J$49 -> 1060 | AH57: =VLOOKUP(H57,[1]Struc_communautaires!C46:H139,5,FALSE) -> 0 | AI57: =AH57*[1]Hypothèses!$J$49 -> 0 | AJ57: =VLOOKUP(H57,[1]Struc_communautaires!C46:H139,6,FALSE) -> 12.375 | AK57: =AJ57*[1]Hypothèses!$F$49 -> 4455 | AL57: 9755 | AM57: =(Z57*[1]Hypothèses!$L$62+AB57*[1]Hypothèses!$L$65+AD57*[1]Hypothèses!$L$63+AF57*[1]Hypothèses!$L$64+AH57*[1]Hypothèses!$L$66+AJ57*[1]Hypothèses!$E$49)/1000 -> 1.42725 | AN57: 57 | AO57: =AP57/(VLOOKUP(E57,[1]Hypothèses!$S$26:$U$32,2,FALSE)*[1]Hypothèses!$AA$26) -> 2958.737822 | AP57: =(VLOOKUP(E57,[1]Hypothèses!$W$26:$X$32,2,FALSE)*[1]Hypothèses!$Y$26*[1]Hypothèses!$AB$26*K57)/([1]Hypothèses!$Z$26*1000) -> 15151.69639 | AQ57: =AP57/[1]Hypothèses!$AC$26 -> 3787.924097 | AR57: =(AS57*[1]Hypothèses!$I$53)*1000 -> 24000 | AS57: =ROUND(IF(K57<[1]Hypothèses!$J$53,1,K57/[1]Hypothèses!$J$53),0) -> 1 | AT57: =(AU57*[1]Hypothèses!$I$54)*1000 -> 24000 | AU57: =ROUND(IF(K57<[1]Hypothèses!$J$54,1,K57/[1]Hypothèses!$J$54),0) -> 1 | AV57: =(AW57*[1]Hypothèses!$I$55)*1000 -> 9600 | AW57: =[1]Hypothèses!$J$55 -> 3 | AX57: =(AY57*[1]Hypothèses!$I$56)*1000 -> 3200 | AY57: =ROUND(IF(K57<[1]Hypothèses!$J$56,0,K57/[1]Hypothèses!$J$56),0) -> 2 | BF57: 75951.69639 | BG57: =(AQ57+AS57*[1]Hypothèses!$G$53*1000+AU57*[1]Hypothèses!$G$54*1000+AW57*[1]Hypothèses!$G$55*1000+AY57*[1]Hypothèses!$G$56)/1000 -> 16.9883241 | BH57: 2 | BI57: 273160.6964 | BJ57: =(BI57/(VLOOKUP(E57,[1]Hypothèses!$S$26:$U$32,2,FALSE)*[1]Hypothèses!$X$4))/1000 -> 58.8077912 | BK57: =(BI57/(VLOOKUP(E57,[1]Hypothèses!$S$26:$U$32,3,FALSE)*[1]Hypothèses!$X$4))/1000 -> 72.19310147 | BL57: 50.2715741 | BM57: =BL57*[1]Hypothèses!$X$12/[1]Hypothèses!$W$12 -> 47.47870887 | BN57: =BL57*[1]Hypothèses!$W$8*[1]Hypothèses!$X$12 -> 51.27700558 | BO57: =BJ57*[1]Hypothèses!$X$8 -> 64.68857032 | BP57: =(BI57/1000)*[1]Hypothèses!$Z$4/([1]Hypothèses!$AA$4*[1]Hypothèses!$AB$4) -> 819.8100132 | BQ57: =BP57/[1]Hypothèses!$AB$8 -> 136.6350022 | BS57: =(('[1]Hypo Cables'!$J$4*'[1]Hypo Cables'!$M$4)/('[1]Fhypo DPP'!BL85*[1]Hypothèses!$X$12*('[1]Hypo Cables'!$M$24+'[1]Hypo Cables'!$M$25*'[1]Hypo Cables'!$J$14)))/1000 -> 0.1790702751 | BT57: =(('[1]Hypo Cables'!$J$4*'[1]Hypo Cables'!$M$4)/('[1]Fhypo DPP'!BL85*[1]Hypothèses!$X$12*('[1]Hypo Cables'!$M$27+'[1]Hypo Cables'!$M$28*'[1]Hypo Cables'!$J$14)))/1000 -> 0.3330489754 | BW57: =BQ57*[1]Hypothèses!$AC$8 -> 45.54500073 | BX57: =4*SQRT(BJ57*[1]Hypothèses!$AF$3) -> 208.2253786 | BY57: 52.05634465
D58: NS RESIF | E58: SEDHIOU | F58: SEDHIOU | G58: DJIREDJI | H58: SINGHERE BAYNOUCK | I58: 1152 | J58: 53 | K58: =ROUND(I58*(1+[1]Hypothèses!$T$4)^([1]Hypothèses!$S$4-[1]Hypothèses!$R$4),0) -> 1223 | L58: =ROUND(J58*(1+[1]Hypothèses!$T$4)^([1]Hypothèses!$S$4-[1]Hypothèses!$R$4),0) -> 56 | M58: 36 | N58: =ROUND((L58*[1]Hypothèses!$U$4-'[1]Fhypo DPP'!M89)*[1]Hypothèses!$G$24+'[1]Fhypo DPP'!M89*[1]Hypothèses!$G$25,0) -> 4 | O58: =ROUND((L58*[1]Hypothèses!$U$4-'[1]Fhypo DPP'!M89)*[1]Hypothèses!$H$24+'[1]Fhypo DPP'!M89*[1]Hypothèses!$H$25,0) -> 7 | P58: =ROUND((L58*[1]Hypothèses!$U$4-'[1]Fhypo DPP'!M89)*[1]Hypothèses!$I$24+'[1]Fhypo DPP'!M89*[1]Hypothèses!$I$25,0) -> 6 | Q58: =ROUND((L58*[1]Hypothèses!$U$4-'[1]Fhypo DPP'!M89)*[1]Hypothèses!$J$24+'[1]Fhypo DPP'!M89*[1]Hypothèses!$J$25,0) -> 27 | R58: 44 | S58: =N58*[1]Hypothèses!$H$49 -> 1336 | T58: =O58*[1]Hypothèses!$J$49 -> 7420 | U58: =P58*[1]Hypothèses!$L$49 -> 10440 | V58: =Q58*[1]Hypothèses!$N$49 -> 155034 | W58: 174230 | X58: =(N58*[1]Hypothèses!$G$49+O58*[1]Hypothèses!$I$49+P58*[1]Hypothèses!$K$49+Q58*[1]Hypothèses!$M$49)/1000 -> 29.652 | Z58: =VLOOKUP(H58,[1]Struc_communautaires!C47:H140,2,FALSE) -> 1 | AA58: =Z58*[1]Hypothèses!$J$49 -> 1060 | AB58: =VLOOKUP(H58,[1]Struc_communautaires!C47:H140,3,FALSE) -> 1 | AC58: =AB58*[1]Hypothèses!$J$49 -> 1060 | AD58: =VLOOKUP(H58,[1]Struc_communautaires!C47:H140,4,FALSE) -> 1 | AE58: =AD58*[1]Hypothèses!$J$49 -> 1060 | AH58: =VLOOKUP(H58,[1]Struc_communautaires!C47:H140,5,FALSE) -> 0 | AI58: =AH58*[1]Hypothèses!$J$49 -> 0 | AJ58: =VLOOKUP(H58,[1]Struc_communautaires!C47:H140,6,FALSE) -> 12 | AK58: =AJ58*[1]Hypothèses!$F$49 -> 4320 | AL58: 7500 | AM58: =(Z58*[1]Hypothèses!$L$62+AB58*[1]Hypothèses!$L$65+AD58*[1]Hypothèses!$L$63+AF58*[1]Hypothèses!$L$64+AH58*[1]Hypothèses!$L$66+AJ58*[1]Hypothèses!$E$49)/1000 -> 0.938 | AN58: 52 | AO58: =AP58/(VLOOKUP(E58,[1]Hypothèses!$S$26:$U$32,2,FALSE)*[1]Hypothèses!$AA$26) -> 3391.318048 | AP58: =(VLOOKUP(E58,[1]Hypothèses!$W$26:$X$32,2,FALSE)*[1]Hypothèses!$Y$26*[1]Hypothèses!$AB$26*K58)/([1]Hypothèses!$Z$26*1000) -> 17366.93972 | AQ58: =AP58/[1]Hypothèses!$AC$26 -> 4341.734931 | AR58: =(AS58*[1]Hypothèses!$I$53)*1000 -> 24000 | AS58: =ROUND(IF(K58<[1]Hypothèses!$J$53,1,K58/[1]Hypothèses!$J$53),0) -> 1 | AT58: =(AU58*[1]Hypothèses!$I$54)*1000 -> 24000 | AU58: =ROUND(IF(K58<[1]Hypothèses!$J$54,1,K58/[1]Hypothèses!$J$54),0) -> 1 | AV58: =(AW58*[1]Hypothèses!$I$55)*1000 -> 9600 | AW58: =[1]Hypothèses!$J$55 -> 3 | AX58: =(AY58*[1]Hypothèses!$I$56)*1000 -> 3200 | AY58: =ROUND(IF(K58<[1]Hypothèses!$J$56,0,K58/[1]Hypothèses!$J$56),0) -> 2 | BF58: 78166.93972 | BG58: =(AQ58+AS58*[1]Hypothèses!$G$53*1000+AU58*[1]Hypothèses!$G$54*1000+AW58*[1]Hypothèses!$G$55*1000+AY58*[1]Hypothèses!$G$56)/1000 -> 17.54213493 | BH58: 2 | BI58: 259896.9397 | BJ58: =(BI58/(VLOOKUP(E58,[1]Hypothèses!$S$26:$U$32,2,FALSE)*[1]Hypothèses!$X$4))/1000 -> 55.95228437 | BK58: =(BI58/(VLOOKUP(E58,[1]Hypothèses!$S$26:$U$32,3,FALSE)*[1]Hypothèses!$X$4))/1000 -> 68.68764939 | BL58: 48.13213493 | BM58: =BL58*[1]Hypothèses!$X$12/[1]Hypothèses!$W$12 -> 45.45812743 | BN58: =BL58*[1]Hypothèses!$W$8*[1]Hypothèses!$X$12 -> 49.09477763 | BO58: =BJ58*[1]Hypothèses!$X$8 -> 61.54751281 | BP58: =(BI58/1000)*[1]Hypothèses!$Z$4/([1]Hypothèses!$AA$4*[1]Hypothèses!$AB$4) -> 780.0028203 | BQ58: =BP58/[1]Hypothèses!$AB$8 -> 130.00047 | BS58: =(('[1]Hypo Cables'!$J$4*'[1]Hypo Cables'!$M$4)/('[1]Fhypo DPP'!BL89*[1]Hypothèses!$X$12*('[1]Hypo Cables'!$M$24+'[1]Hypo Cables'!$M$25*'[1]Hypo Cables'!$J$14)))/1000 -> 0.3610428162 | BT58: =(('[1]Hypo Cables'!$J$4*'[1]Hypo Cables'!$M$4)/('[1]Fhypo DPP'!BL89*[1]Hypothèses!$X$12*('[1]Hypo Cables'!$M$27+'[1]Hypo Cables'!$M$28*'[1]Hypo Cables'!$J$14)))/1000 -> 0.6714958133 | BW58: =BQ58*[1]Hypothèses!$AC$8 -> 43.33349002 | BX58: =4*SQRT(BJ58*[1]Hypothèses!$AF$3) -> 203.1071151 | BY58: 50.77677879
D59: NS RESIF | E59: SEDHIOU | F59: SEDHIOU | G59: DJIREDJI | H59: SINGHERE MANDING | I59: 1730 | J59: 120 | K59: =ROUND(I59*(1+[1]Hypothèses!$T$4)^([1]Hypothèses!$S$4-[1]Hypothèses!$R$4),0) -> 1836 | L59: =ROUND(J59*(1+[1]Hypothèses!$T$4)^([1]Hypothèses!$S$4-[1]Hypothèses!$R$4),0) -> 127 | M59: 38 | N59: =ROUND((L59*[1]Hypothèses!$U$4-'[1]Fhypo DPP'!M90)*[1]Hypothèses!$G$24+'[1]Fhypo DPP'!M90*[1]Hypothèses!$G$25,0) -> 10 | O59: =ROUND((L59*[1]Hypothèses!$U$4-'[1]Fhypo DPP'!M90)*[1]Hypothèses!$H$24+'[1]Fhypo DPP'!M90*[1]Hypothèses!$H$25,0) -> 20 | P59: =ROUND((L59*[1]Hypothèses!$U$4-'[1]Fhypo DPP'!M90)*[1]Hypothèses!$I$24+'[1]Fhypo DPP'!M90*[1]Hypothèses!$I$25,0) -> 13 | Q59: =ROUND((L59*[1]Hypothèses!$U$4-'[1]Fhypo DPP'!M90)*[1]Hypothèses!$J$24+'[1]Fhypo DPP'!M90*[1]Hypothèses!$J$25,0) -> 57 | R59: 100 | S59: =N59*[1]Hypothèses!$H$49 -> 3340 | T59: =O59*[1]Hypothèses!$J$49 -> 21200 | U59: =P59*[1]Hypothèses!$L$49 -> 22620 | V59: =Q59*[1]Hypothèses!$N$49 -> 327294 | W59: 374454 | X59: =(N59*[1]Hypothèses!$G$49+O59*[1]Hypothèses!$I$49+P59*[1]Hypothèses!$K$49+Q59*[1]Hypothèses!$M$49)/1000 -> 64.099 | Z59: =VLOOKUP(H59,[1]Struc_communautaires!C48:H141,2,FALSE) -> 1 | AA59: =Z59*[1]Hypothèses!$J$49 -> 1060 | AB59: =VLOOKUP(H59,[1]Struc_communautaires!C48:H141,3,FALSE) -> 4 | AC59: =AB59*[1]Hypothèses!$J$49 -> 4240 | AD59: =VLOOKUP(H59,[1]Struc_communautaires!C48:H141,4,FALSE) -> 1 | AE59: =AD59*[1]Hypothèses!$J$49 -> 1060 | AH59: =VLOOKUP(H59,[1]Struc_communautaires!C48:H141,5,FALSE) -> 0 | AI59: =AH59*[1]Hypothèses!$J$49 -> 0 | AJ59: =VLOOKUP(H59,[1]Struc_communautaires!C48:H141,6,FALSE) -> 20.875 | AK59: =AJ59*[1]Hypothèses!$F$49 -> 7515 | AL59: 13875 | AM59: =(Z59*[1]Hypothèses!$L$62+AB59*[1]Hypothèses!$L$65+AD59*[1]Hypothèses!$L$63+AF59*[1]Hypothèses!$L$64+AH59*[1]Hypothèses!$L$66+AJ59*[1]Hypothèses!$E$49)/1000 -> 1.92125 | AN59: 113 | AO59: =AP59/(VLOOKUP(E59,[1]Hypothèses!$S$26:$U$32,2,FALSE)*[1]Hypothèses!$AA$26) -> 5091.136497 | AP59: =(VLOOKUP(E59,[1]Hypothèses!$W$26:$X$32,2,FALSE)*[1]Hypothèses!$Y$26*[1]Hypothèses!$AB$26*K59)/([1]Hypothèses!$Z$26*1000) -> 26071.71 | AQ59: =AP59/[1]Hypothèses!$AC$26 -> 6517.9275 | AR59: =(AS59*[1]Hypothèses!$I$53)*1000 -> 48000 | AS59: =ROUND(IF(K59<[1]Hypothèses!$J$53,1,K59/[1]Hypothèses!$J$53),0) -> 2 | AT59: =(AU59*[1]Hypothèses!$I$54)*1000 -> 48000 | AU59: =ROUND(IF(K59<[1]Hypothèses!$J$54,1,K59/[1]Hypothèses!$J$54),0) -> 2 | AV59: =(AW59*[1]Hypothèses!$I$55)*1000 -> 9600 | AW59: =[1]Hypothèses!$J$55 -> 3 | AX59: =(AY59*[1]Hypothèses!$I$56)*1000 -> 6400 | AY59: =ROUND(IF(K59<[1]Hypothèses!$J$56,0,K59/[1]Hypothèses!$J$56),0) -> 4 | BF59: 138071.71 | BG59: =(AQ59+AS59*[1]Hypothèses!$G$53*1000+AU59*[1]Hypothèses!$G$54*1000+AW59*[1]Hypothèses!$G$55*1000+AY59*[1]Hypothèses!$G$56)/1000 -> 31.7187275 | BH59: 4 | BI59: 526400.71 | BJ59: =(BI59/(VLOOKUP(E59,[1]Hypothèses!$S$26:$U$32,2,FALSE)*[1]Hypothèses!$X$4))/1000 -> 113.3269297 | BK59: =(BI59/(VLOOKUP(E59,[1]Hypothèses!$S$26:$U$32,3,FALSE)*[1]Hypothèses!$X$4))/1000 -> 139.121405 | BL59: 97.7389775 | BM59: =BL59*[1]Hypothèses!$X$12/[1]Hypothèses!$W$12 -> 92.30903431 | BN59: =BL59*[1]Hypothèses!$W$8*[1]Hypothèses!$X$12 -> 99.69375705 | BO59: =BJ59*[1]Hypothèses!$X$8 -> 124.6596227 | BP59: =(BI59/1000)*[1]Hypothèses!$Z$4/([1]Hypothèses!$AA$4*[1]Hypothèses!$AB$4) -> 1579.834064 | BQ59: =BP59/[1]Hypothèses!$AB$8 -> 263.3056773 | BS59: =(('[1]Hypo Cables'!$J$4*'[1]Hypo Cables'!$M$4)/('[1]Fhypo DPP'!BL90*[1]Hypothèses!$X$12*('[1]Hypo Cables'!$M$24+'[1]Hypo Cables'!$M$25*'[1]Hypo Cables'!$J$14)))/1000 -> 0.2639584148 | BT59: =(('[1]Hypo Cables'!$J$4*'[1]Hypo Cables'!$M$4)/('[1]Fhypo DPP'!BL90*[1]Hypothèses!$X$12*('[1]Hypo Cables'!$M$27+'[1]Hypo Cables'!$M$28*'[1]Hypo Cables'!$J$14)))/1000 -> 0.4909306111 | BW59: =BQ59*[1]Hypothèses!$AC$8 -> 87.76855909 | BX59: =4*SQRT(BJ59*[1]Hypothèses!$AF$3) -> 289.0565321 | BY59: 72.26413302
D60: NS RESIF | E60: SEDHIOU | F60: SEDHIOU | G60: SANSAMBA | H60: SONKO KOUNDA | I60: 1250 | J60: 65 | K60: =ROUND(I60*(1+[1]Hypothèses!$T$4)^([1]Hypothèses!$S$4-[1]Hypothèses!$R$4),0) -> 1327 | L60: =ROUND(J60*(1+[1]Hypothèses!$T$4)^([1]Hypothèses!$S$4-[1]Hypothèses!$R$4),0) -> 69 | M60: 32 | N60: =ROUND((L60*[1]Hypothèses!$U$4-'[1]Fhypo DPP'!M91)*[1]Hypothèses!$G$24+'[1]Fhypo DPP'!M91*[1]Hypothèses!$G$25,0) -> 4 | O60: =ROUND((L60*[1]Hypothèses!$U$4-'[1]Fhypo DPP'!M91)*[1]Hypothèses!$H$24+'[1]Fhypo DPP'!M91*[1]Hypothèses!$H$25,0) -> 7 | P60: =ROUND((L60*[1]Hypothèses!$U$4-'[1]Fhypo DPP'!M91)*[1]Hypothèses!$I$24+'[1]Fhypo DPP'!M91*[1]Hypothèses!$I$25,0) -> 8 | Q60: =ROUND((L60*[1]Hypothèses!$U$4-'[1]Fhypo DPP'!M91)*[1]Hypothèses!$J$24+'[1]Fhypo DPP'!M91*[1]Hypothèses!$J$25,0) -> 36 | R60: 55 | S60: =N60*[1]Hypothèses!$H$49 -> 1336 | T60: =O60*[1]Hypothèses!$J$49 -> 7420 | U60: =P60*[1]Hypothèses!$L$49 -> 13920 | V60: =Q60*[1]Hypothèses!$N$49 -> 206712 | W60: 229388 | X60: =(N60*[1]Hypothèses!$G$49+O60*[1]Hypothèses!$I$49+P60*[1]Hypothèses!$K$49+Q60*[1]Hypothèses!$M$49)/1000 -> 38.845 | Z60: =VLOOKUP(H60,[1]Struc_communautaires!C49:H142,2,FALSE) -> 1 | AA60: =Z60*[1]Hypothèses!$J$49 -> 1060 | AB60: =VLOOKUP(H60,[1]Struc_communautaires!C49:H142,3,FALSE) -> 2 | AC60: =AB60*[1]Hypothèses!$J$49 -> 2120 | AD60: =VLOOKUP(H60,[1]Struc_communautaires!C49:H142,4,FALSE) -> 1 | AE60: =AD60*[1]Hypothèses!$J$49 -> 1060 | AH60: =VLOOKUP(H60,[1]Struc_communautaires!C49:H142,5,FALSE) -> 0 | AI60: =AH60*[1]Hypothèses!$J$49 -> 0 | AJ60: =VLOOKUP(H60,[1]Struc_communautaires!C49:H142,6,FALSE) -> 13.625 | AK60: =AJ60*[1]Hypothèses!$F$49 -> 4905 | AL60: 9145 | AM60: =(Z60*[1]Hypothèses!$L$62+AB60*[1]Hypothèses!$L$65+AD60*[1]Hypothèses!$L$63+AF60*[1]Hypothèses!$L$64+AH60*[1]Hypothèses!$L$66+AJ60*[1]Hypothèses!$E$49)/1000 -> 1.22575 | AN60: 65 | AO60: =AP60/(VLOOKUP(E60,[1]Hypothèses!$S$26:$U$32,2,FALSE)*[1]Hypothèses!$AA$26) -> 3679.704865 | AP60: =(VLOOKUP(E60,[1]Hypothèses!$W$26:$X$32,2,FALSE)*[1]Hypothèses!$Y$26*[1]Hypothèses!$AB$26*K60)/([1]Hypothèses!$Z$26*1000) -> 18843.76861 | AQ60: =AP60/[1]Hypothèses!$AC$26 -> 4710.942153 | AR60: =(AS60*[1]Hypothèses!$I$53)*1000 -> 24000 | AS60: =ROUND(IF(K60<[1]Hypothèses!$J$53,1,K60/[1]Hypothèses!$J$53),0) -> 1 | AT60: =(AU60*[1]Hypothèses!$I$54)*1000 -> 24000 | AU60: =ROUND(IF(K60<[1]Hypothèses!$J$54,1,K60/[1]Hypothèses!$J$54),0) -> 1 | AV60: =(AW60*[1]Hypothèses!$I$55)*1000 -> 9600 | AW60: =[1]Hypothèses!$J$55 -> 3 | AX60: =(AY60*[1]Hypothèses!$I$56)*1000 -> 4800 | AY60: =ROUND(IF(K60<[1]Hypothèses!$J$56,0,K60/[1]Hypothèses!$J$56),0) -> 3 | BF60: 81243.76861 | BG60: =(AQ60+AS60*[1]Hypothèses!$G$53*1000+AU60*[1]Hypothèses!$G$54*1000+AW60*[1]Hypothèses!$G$55*1000+AY60*[1]Hypothèses!$G$56)/1000 -> 17.91154215 | BH60: 2 | BI60: 319776.7686 | BJ60: =(BI60/(VLOOKUP(E60,[1]Hypothèses!$S$26:$U$32,2,FALSE)*[1]Hypothèses!$X$4))/1000 -> 68.84359897 | BK60: =(BI60/(VLOOKUP(E60,[1]Hypothèses!$S$26:$U$32,3,FALSE)*[1]Hypothèses!$X$4))/1000 -> 84.51317122 | BL60: 57.98229215 | BM60: =BL60*[1]Hypothèses!$X$12/[1]Hypothèses!$W$12 -> 54.7610537 | BN60: =BL60*[1]Hypothèses!$W$8*[1]Hypothèses!$X$12 -> 59.141938 | BO60: =BJ60*[1]Hypothèses!$X$8 -> 75.72795887 | BP60: =(BI60/1000)*[1]Hypothèses!$Z$4/([1]Hypothèses!$AA$4*[1]Hypothèses!$AB$4) -> 959.7141915 | BQ60: =BP60/[1]Hypothèses!$AB$8 -> 159.9523653 | BS60: =(('[1]Hypo Cables'!$J$4*'[1]Hypo Cables'!$M$4)/('[1]Fhypo DPP'!BL91*[1]Hypothèses!$X$12*('[1]Hypo Cables'!$M$24+'[1]Hypo Cables'!$M$25*'[1]Hypo Cables'!$J$14)))/1000 -> 0.2078895526 | BT60: =(('[1]Hypo Cables'!$J$4*'[1]Hypo Cables'!$M$4)/('[1]Fhypo DPP'!BL91*[1]Hypothèses!$X$12*('[1]Hypo Cables'!$M$27+'[1]Hypo Cables'!$M$28*'[1]Hypo Cables'!$J$14)))/1000 -> 0.3866493333 | BW60: =BQ60*[1]Hypothèses!$AC$8 -> 53.31745508 | BX60: =4*SQRT(BJ60*[1]Hypothèses!$AF$3) -> 225.2931616 | BY60: 56.32329039
D61: NS RESIF | E61: SEDHIOU | F61: SEDHIOU | G61: BAMBALI | H61: SORANGE | I61: 650 | J61: 48 | K61: =ROUND(I61*(1+[1]Hypothèses!$T$4)^([1]Hypothèses!$S$4-[1]Hypothèses!$R$4),0) -> 690 | L61: =ROUND(J61*(1+[1]Hypothèses!$T$4)^([1]Hypothèses!$S$4-[1]Hypothèses!$R$4),0) -> 51 | M61: 33 | N61: =ROUND((L61*[1]Hypothèses!$U$4-'[1]Fhypo DPP'!M92)*[1]Hypothèses!$G$24+'[1]Fhypo DPP'!M92*[1]Hypothèses!$G$25,0) -> 3 | O61: =ROUND((L61*[1]Hypothèses!$U$4-'[1]Fhypo DPP'!M92)*[1]Hypothèses!$H$24+'[1]Fhypo DPP'!M92*[1]Hypothèses!$H$25,0) -> 4 | P61: =ROUND((L61*[1]Hypothèses!$U$4-'[1]Fhypo DPP'!M92)*[1]Hypothèses!$I$24+'[1]Fhypo DPP'!M92*[1]Hypothèses!$I$25,0) -> 6 | Q61: =ROUND((L61*[1]Hypothèses!$U$4-'[1]Fhypo DPP'!M92)*[1]Hypothèses!$J$24+'[1]Fhypo DPP'!M92*[1]Hypothèses!$J$25,0) -> 29 | R61: 42 | S61: =N61*[1]Hypothèses!$H$49 -> 1002 | T61: =O61*[1]Hypothèses!$J$49 -> 4240 | U61: =P61*[1]Hypothèses!$L$49 -> 10440 | V61: =Q61*[1]Hypothèses!$N$49 -> 166518 | W61: 182200 | X61: =(N61*[1]Hypothèses!$G$49+O61*[1]Hypothèses!$I$49+P61*[1]Hypothèses!$K$49+Q61*[1]Hypothèses!$M$49)/1000 -> 30.749 | Z61: =VLOOKUP(H61,[1]Struc_communautaires!C50:H143,2,FALSE) -> 1 | AA61: =Z61*[1]Hypothèses!$J$49 -> 1060 | AB61: =VLOOKUP(H61,[1]Struc_communautaires!C50:H143,3,FALSE) -> 1 | AC61: =AB61*[1]Hypothèses!$J$49 -> 1060 | AD61: =VLOOKUP(H61,[1]Struc_communautaires!C50:H143,4,FALSE) -> 0 | AE61: =AD61*[1]Hypothèses!$J$49 -> 0 | AH61: =VLOOKUP(H61,[1]Struc_communautaires!C50:H143,5,FALSE) -> 0 | AI61: =AH61*[1]Hypothèses!$J$49 -> 0 | AJ61: =VLOOKUP(H61,[1]Struc_communautaires!C50:H143,6,FALSE) -> 11.375 | AK61: =AJ61*[1]Hypothèses!$F$49 -> 4095 | AL61: 6215 | AM61: =(Z61*[1]Hypothèses!$L$62+AB61*[1]Hypothèses!$L$65+AD61*[1]Hypothèses!$L$63+AF61*[1]Hypothèses!$L$64+AH61*[1]Hypothèses!$L$66+AJ61*[1]Hypothèses!$E$49)/1000 -> 0.81925 | AN61: 48 | AO61: =AP61/(VLOOKUP(E61,[1]Hypothèses!$S$26:$U$32,2,FALSE)*[1]Hypothèses!$AA$26) -> 1913.335612 | AP61: =(VLOOKUP(E61,[1]Hypothèses!$W$26:$X$32,2,FALSE)*[1]Hypothèses!$Y$26*[1]Hypothèses!$AB$26*K61)/([1]Hypothèses!$Z$26*1000) -> 9798.191667 | AQ61: =AP61/[1]Hypothèses!$AC$26 -> 2449.547917 | AR61: =(AS61*[1]Hypothèses!$I$53)*1000 -> 24000 | AS61: =ROUND(IF(K61<[1]Hypothèses!$J$53,1,K61/[1]Hypothèses!$J$53),0) -> 1 | AT61: =(AU61*[1]Hypothèses!$I$54)*1000 -> 24000 | AU61: =ROUND(IF(K61<[1]Hypothèses!$J$54,1,K61/[1]Hypothèses!$J$54),0) -> 1 | AV61: =(AW61*[1]Hypothèses!$I$55)*1000 -> 9600 | AW61: =[1]Hypothèses!$J$55 -> 3 | AX61: =(AY61*[1]Hypothèses!$I$56)*1000 -> 1600 | AY61: =ROUND(IF(K61<[1]Hypothèses!$J$56,0,K61/[1]Hypothèses!$J$56),0) -> 1 | BF61: 68998.19167 | BG61: =(AQ61+AS61*[1]Hypothèses!$G$53*1000+AU61*[1]Hypothèses!$G$54*1000+AW61*[1]Hypothèses!$G$55*1000+AY61*[1]Hypothèses!$G$56)/1000 -> 15.64974792 | BH61: 2 | BI61: 257413.1917 | BJ61: =(BI61/(VLOOKUP(E61,[1]Hypothèses!$S$26:$U$32,2,FALSE)*[1]Hypothèses!$X$4))/1000 -> 55.41756712 | BK61: =(BI61/(VLOOKUP(E61,[1]Hypothèses!$S$26:$U$32,3,FALSE)*[1]Hypothèses!$X$4))/1000 -> 68.03122452 | BL61: 47.21799792 | BM61: =BL61*[1]Hypothèses!$X$12/[1]Hypothèses!$W$12 -> 44.59477581 | BN61: =BL61*[1]Hypothèses!$W$8*[1]Hypothèses!$X$12 -> 48.16235787 | BO61: =BJ61*[1]Hypothèses!$X$8 -> 60.95932383 | BP61: =(BI61/1000)*[1]Hypothèses!$Z$4/([1]Hypothèses!$AA$4*[1]Hypothèses!$AB$4) -> 772.5485944 | BQ61: =BP61/[1]Hypothèses!$AB$8 -> 128.7580991 | BS61: =(('[1]Hypo Cables'!$J$4*'[1]Hypo Cables'!$M$4)/('[1]Fhypo DPP'!BL92*[1]Hypothèses!$X$12*('[1]Hypo Cables'!$M$24+'[1]Hypo Cables'!$M$25*'[1]Hypo Cables'!$J$14)))/1000 -> 0.2502352875 | BT61: =(('[1]Hypo Cables'!$J$4*'[1]Hypo Cables'!$M$4)/('[1]Fhypo DPP'!BL92*[1]Hypothèses!$X$12*('[1]Hypo Cables'!$M$27+'[1]Hypo Cables'!$M$28*'[1]Hypo Cables'!$J$14)))/1000 -> 0.4654072602 | BW61: =BQ61*[1]Hypothèses!$AC$8 -> 42.91936636 | BX61: =4*SQRT(BJ61*[1]Hypothèses!$AF$3) -> 202.1342719 | BY61: 50.53356798
D62: NS RESIF | E62: SEDHIOU | F62: BOUNKELING | G62: DIAROUME | H62: SOUAKI | I62: 997 | J62: 64 | K62: =ROUND(I62*(1+[1]Hypothèses!$T$4)^([1]Hypothèses!$S$4-[1]Hypothèses!$R$4),0) -> 1058 | L62: =ROUND(J62*(1+[1]Hypothèses!$T$4)^([1]Hypothèses!$S$4-[1]Hypothèses!$R$4),0) -> 68 | M62: 29 | N62: =ROUND((L62*[1]Hypothèses!$U$4-'[1]Fhypo DPP'!M93)*[1]Hypothèses!$G$24+'[1]Fhypo DPP'!M93*[1]Hypothèses!$G$25,0) -> 4 | O62: =ROUND((L62*[1]Hypothèses!$U$4-'[1]Fhypo DPP'!M93)*[1]Hypothèses!$H$24+'[1]Fhypo DPP'!M93*[1]Hypothèses!$H$25,0) -> 6 | P62: =ROUND((L62*[1]Hypothèses!$U$4-'[1]Fhypo DPP'!M93)*[1]Hypothèses!$I$24+'[1]Fhypo DPP'!M93*[1]Hypothèses!$I$25,0) -> 8 | Q62: =ROUND((L62*[1]Hypothèses!$U$4-'[1]Fhypo DPP'!M93)*[1]Hypothèses!$J$24+'[1]Fhypo DPP'!M93*[1]Hypothèses!$J$25,0) -> 37 | R62: 55 | S62: =N62*[1]Hypothèses!$H$49 -> 1336 | T62: =O62*[1]Hypothèses!$J$49 -> 6360 | U62: =P62*[1]Hypothèses!$L$49 -> 13920 | V62: =Q62*[1]Hypothèses!$N$49 -> 212454 | W62: 234070 | X62: =(N62*[1]Hypothèses!$G$49+O62*[1]Hypothèses!$I$49+P62*[1]Hypothèses!$K$49+Q62*[1]Hypothèses!$M$49)/1000 -> 39.563 | Z62: =VLOOKUP(H62,[1]Struc_communautaires!C51:H144,2,FALSE) -> 2 | AA62: =Z62*[1]Hypothèses!$J$49 -> 2120 | AB62: =VLOOKUP(H62,[1]Struc_communautaires!C51:H144,3,FALSE) -> 2 | AC62: =AB62*[1]Hypothèses!$J$49 -> 2120 | AD62: =VLOOKUP(H62,[1]Struc_communautaires!C51:H144,4,FALSE) -> 1 | AE62: =AD62*[1]Hypothèses!$J$49 -> 1060 | AH62: =VLOOKUP(H62,[1]Struc_communautaires!C51:H144,5,FALSE) -> 0 | AI62: =AH62*[1]Hypothèses!$J$49 -> 0 | AJ62: =VLOOKUP(H62,[1]Struc_communautaires!C51:H144,6,FALSE) -> 13.5 | AK62: =AJ62*[1]Hypothèses!$F$49 -> 4860 | AL62: 10160 | AM62: =(Z62*[1]Hypothèses!$L$62+AB62*[1]Hypothèses!$L$65+AD62*[1]Hypothèses!$L$63+AF62*[1]Hypothèses!$L$64+AH62*[1]Hypothèses!$L$66+AJ62*[1]Hypothèses!$E$49)/1000 -> 1.461 | AN62: 65 | AO62: =AP62/(VLOOKUP(E62,[1]Hypothèses!$S$26:$U$32,2,FALSE)*[1]Hypothèses!$AA$26) -> 2933.781271 | AP62: =(VLOOKUP(E62,[1]Hypothèses!$W$26:$X$32,2,FALSE)*[1]Hypothèses!$Y$26*[1]Hypothèses!$AB$26*K62)/([1]Hypothèses!$Z$26*1000) -> 15023.89389 | AQ62: =AP62/[1]Hypothèses!$AC$26 -> 3755.973472 | AR62: =(AS62*[1]Hypothèses!$I$53)*1000 -> 24000 | AS62: =ROUND(IF(K62<[1]Hypothèses!$J$53,1,K62/[1]Hypothèses!$J$53),0) -> 1 | AT62: =(AU62*[1]Hypothèses!$I$54)*1000 -> 24000 | AU62: =ROUND(IF(K62<[1]Hypothèses!$J$54,1,K62/[1]Hypothèses!$J$54),0) -> 1 | AV62: =(AW62*[1]Hypothèses!$I$55)*1000 -> 9600 | AW62: =[1]Hypothèses!$J$55 -> 3 | AX62: =(AY62*[1]Hypothèses!$I$56)*1000 -> 3200 | AY62: =ROUND(IF(K62<[1]Hypothèses!$J$56,0,K62/[1]Hypothèses!$J$56),0) -> 2 | BF62: 75823.89389 | BG62: =(AQ62+AS62*[1]Hypothèses!$G$53*1000+AU62*[1]Hypothèses!$G$54*1000+AW62*[1]Hypothèses!$G$55*1000+AY62*[1]Hypothèses!$G$56)/1000 -> 16.95637347 | BH62: 2 | BI62: 320053.8939 | BJ62: =(BI62/(VLOOKUP(E62,[1]Hypothèses!$S$26:$U$32,2,FALSE)*[1]Hypothèses!$X$4))/1000 -> 68.90326029 | BK62: =(BI62/(VLOOKUP(E62,[1]Hypothèses!$S$26:$U$32,3,FALSE)*[1]Hypothèses!$X$4))/1000 -> 84.58641211 | BL62: 57.98037347 | BM62: =BL62*[1]Hypothèses!$X$12/[1]Hypothèses!$W$12 -> 54.75924161 | BN62: =BL62*[1]Hypothèses!$W$8*[1]Hypothèses!$X$12 -> 59.13998094 | BO62: =BJ62*[1]Hypothèses!$X$8 -> 75.79358632 | BP62: =(BI62/1000)*[1]Hypothèses!$Z$4/([1]Hypothèses!$AA$4*[1]Hypothèses!$AB$4) -> 960.5459 | BQ62: =BP62/[1]Hypothèses!$AB$8 -> 160.0909833 | BS62: =(('[1]Hypo Cables'!$J$4*'[1]Hypo Cables'!$M$4)/('[1]Fhypo DPP'!BL93*[1]Hypothèses!$X$12*('[1]Hypo Cables'!$M$24+'[1]Hypo Cables'!$M$25*'[1]Hypo Cables'!$J$14)))/1000 -> 0.170417287 | BT62: =(('[1]Hypo Cables'!$J$4*'[1]Hypo Cables'!$M$4)/('[1]Fhypo DPP'!BL93*[1]Hypothèses!$X$12*('[1]Hypo Cables'!$M$27+'[1]Hypo Cables'!$M$28*'[1]Hypo Cables'!$J$14)))/1000 -> 0.3169554678 | BW62: =BQ62*[1]Hypothèses!$AC$8 -> 53.36366111 | BX62: =4*SQRT(BJ62*[1]Hypothèses!$AF$3) -> 225.3907623 | BY62: 56.34769058
D63: NS RESIF | E63: SEDHIOU | F63: SEDHIOU | G63: SANSAMBA | H63: YACINE MANDINA | I63: 677 | J63: 54 | K63: =ROUND(I63*(1+[1]Hypothèses!$T$4)^([1]Hypothèses!$S$4-[1]Hypothèses!$R$4),0) -> 718 | L63: =ROUND(J63*(1+[1]Hypothèses!$T$4)^([1]Hypothèses!$S$4-[1]Hypothèses!$R$4),0) -> 57 | M63: 28 | N63: =ROUND((L63*[1]Hypothèses!$U$4-'[1]Fhypo DPP'!M98)*[1]Hypothèses!$G$24+'[1]Fhypo DPP'!M98*[1]Hypothèses!$G$25,0) -> 4 | O63: =ROUND((L63*[1]Hypothèses!$U$4-'[1]Fhypo DPP'!M98)*[1]Hypothèses!$H$24+'[1]Fhypo DPP'!M98*[1]Hypothèses!$H$25,0) -> 8 | P63: =ROUND((L63*[1]Hypothèses!$U$4-'[1]Fhypo DPP'!M98)*[1]Hypothèses!$I$24+'[1]Fhypo DPP'!M98*[1]Hypothèses!$I$25,0) -> 6 | Q63: =ROUND((L63*[1]Hypothèses!$U$4-'[1]Fhypo DPP'!M98)*[1]Hypothèses!$J$24+'[1]Fhypo DPP'!M98*[1]Hypothèses!$J$25,0) -> 27 | R63: 45 | S63: =N63*[1]Hypothèses!$H$49 -> 1336 | T63: =O63*[1]Hypothèses!$J$49 -> 8480 | U63: =P63*[1]Hypothèses!$L$49 -> 10440 | V63: =Q63*[1]Hypothèses!$N$49 -> 155034 | W63: 175290 | X63: =(N63*[1]Hypothèses!$G$49+O63*[1]Hypothèses!$I$49+P63*[1]Hypothèses!$K$49+Q63*[1]Hypothèses!$M$49)/1000 -> 29.891 | Z63: =VLOOKUP(H63,[1]Struc_communautaires!C52:H145,2,FALSE) -> 2 | AA63: =Z63*[1]Hypothèses!$J$49 -> 2120 | AB63: =VLOOKUP(H63,[1]Struc_communautaires!C52:H145,3,FALSE) -> 2 | AC63: =AB63*[1]Hypothèses!$J$49 -> 2120 | AD63: =VLOOKUP(H63,[1]Struc_communautaires!C52:H145,4,FALSE) -> 0 | AE63: =AD63*[1]Hypothèses!$J$49 -> 0 | AH63: =VLOOKUP(H63,[1]Struc_communautaires!C52:H145,5,FALSE) -> 0 | AI63: =AH63*[1]Hypothèses!$J$49 -> 0 | AJ63: =VLOOKUP(H63,[1]Struc_communautaires!C52:H145,6,FALSE) -> 12.125 | AK63: =AJ63*[1]Hypothèses!$F$49 -> 4365 | AL63: 8605 | AM63: =(Z63*[1]Hypothèses!$L$62+AB63*[1]Hypothèses!$L$65+AD63*[1]Hypothèses!$L$63+AF63*[1]Hypothèses!$L$64+AH63*[1]Hypothèses!$L$66+AJ63*[1]Hypothèses!$E$49)/1000 -> 1.31975 | AN63: 53 | AO63: =AP63/(VLOOKUP(E63,[1]Hypothèses!$S$26:$U$32,2,FALSE)*[1]Hypothèses!$AA$26) -> 1990.978216 | AP63: =(VLOOKUP(E63,[1]Hypothèses!$W$26:$X$32,2,FALSE)*[1]Hypothèses!$Y$26*[1]Hypothèses!$AB$26*K63)/([1]Hypothèses!$Z$26*1000) -> 10195.79944 | AQ63: =AP63/[1]Hypothèses!$AC$26 -> 2548.949861 | AR63: =(AS63*[1]Hypothèses!$I$53)*1000 -> 24000 | AS63: =ROUND(IF(K63<[1]Hypothèses!$J$53,1,K63/[1]Hypothèses!$J$53),0) -> 1 | AT63: =(AU63*[1]Hypothèses!$I$54)*1000 -> 24000 | AU63: =ROUND(IF(K63<[1]Hypothèses!$J$54,1,K63/[1]Hypothèses!$J$54),0) -> 1 | AV63: =(AW63*[1]Hypothèses!$I$55)*1000 -> 9600 | AW63: =[1]Hypothèses!$J$55 -> 3 | AX63: =(AY63*[1]Hypothèses!$I$56)*1000 -> 1600 | AY63: =ROUND(IF(K63<[1]Hypothèses!$J$56,0,K63/[1]Hypothèses!$J$56),0) -> 1 | BF63: 69395.79944 | BG63: =(AQ63+AS63*[1]Hypothèses!$G$53*1000+AU63*[1]Hypothèses!$G$54*1000+AW63*[1]Hypothèses!$G$55*1000+AY63*[1]Hypothèses!$G$56)/1000 -> 15.74914986 | BH63: 2 | BI63: 253290.7994 | BJ63: =(BI63/(VLOOKUP(E63,[1]Hypothèses!$S$26:$U$32,2,FALSE)*[1]Hypothèses!$X$4))/1000 -> 54.53007201 | BK63: =(BI63/(VLOOKUP(E63,[1]Hypothèses!$S$26:$U$32,3,FALSE)*[1]Hypothèses!$X$4))/1000 -> 66.94172561 | BL63: 46.95989986 | BM63: =BL63*[1]Hypothèses!$X$12/[1]Hypothèses!$W$12 -> 44.35101654 | BN63: =BL63*[1]Hypothèses!$W$8*[1]Hypothèses!$X$12 -> 47.89909786 | BO63: =BJ63*[1]Hypothèses!$X$8 -> 59.98307922 | BP63: =(BI63/1000)*[1]Hypothèses!$Z$4/([1]Hypothèses!$AA$4*[1]Hypothèses!$AB$4) -> 760.1764689 | BQ63: =BP63/[1]Hypothèses!$AB$8 -> 126.6960782 | BS63: =(('[1]Hypo Cables'!$J$4*'[1]Hypo Cables'!$M$4)/('[1]Fhypo DPP'!BL98*[1]Hypothèses!$X$12*('[1]Hypo Cables'!$M$24+'[1]Hypo Cables'!$M$25*'[1]Hypo Cables'!$J$14)))/1000 -> 0.3544519982 | BT63: =(('[1]Hypo Cables'!$J$4*'[1]Hypo Cables'!$M$4)/('[1]Fhypo DPP'!BL98*[1]Hypothèses!$X$12*('[1]Hypo Cables'!$M$27+'[1]Hypo Cables'!$M$28*'[1]Hypo Cables'!$J$14)))/1000 -> 0.6592376918 | BW63: =BQ63*[1]Hypothèses!$AC$8 -> 42.23202605 | BX63: =4*SQRT(BJ63*[1]Hypothèses!$AF$3) -> 200.5091806 | BY63: 50.12729514
D64: NS RESIF | E64: SEDHIOU | F64: SEDHIOU | G64: SANSAMBA | H64: YACINE TAMBANA | I64: 600 | J64: 50 | K64: =ROUND(I64*(1+[1]Hypothèses!$T$4)^([1]Hypothèses!$S$4-[1]Hypothèses!$R$4),0) -> 637 | L64: =ROUND(J64*(1+[1]Hypothèses!$T$4)^([1]Hypothèses!$S$4-[1]Hypothèses!$R$4),0) -> 53 | M64: 33 | N64: =ROUND((L64*[1]Hypothèses!$U$4-'[1]Fhypo DPP'!M99)*[1]Hypothèses!$G$24+'[1]Fhypo DPP'!M99*[1]Hypothèses!$G$25,0) -> 4 | O64: =ROUND((L64*[1]Hypothèses!$U$4-'[1]Fhypo DPP'!M99)*[1]Hypothèses!$H$24+'[1]Fhypo DPP'!M99*[1]Hypothèses!$H$25,0) -> 8 | P64: =ROUND((L64*[1]Hypothèses!$U$4-'[1]Fhypo DPP'!M99)*[1]Hypothèses!$I$24+'[1]Fhypo DPP'!M99*[1]Hypothèses!$I$25,0) -> 6 | Q64: =ROUND((L64*[1]Hypothèses!$U$4-'[1]Fhypo DPP'!M99)*[1]Hypothèses!$J$24+'[1]Fhypo DPP'!M99*[1]Hypothèses!$J$25,0) -> 25 | R64: 43 | S64: =N64*[1]Hypothèses!$H$49 -> 1336 | T64: =O64*[1]Hypothèses!$J$49 -> 8480 | U64: =P64*[1]Hypothèses!$L$49 -> 10440 | V64: =Q64*[1]Hypothèses!$N$49 -> 143550 | W64: 163806 | X64: =(N64*[1]Hypothèses!$G$49+O64*[1]Hypothèses!$I$49+P64*[1]Hypothèses!$K$49+Q64*[1]Hypothèses!$M$49)/1000 -> 27.977 | Z64: =VLOOKUP(H64,[1]Struc_communautaires!C53:H146,2,FALSE) -> 2 | AA64: =Z64*[1]Hypothèses!$J$49 -> 2120 | AB64: =VLOOKUP(H64,[1]Struc_communautaires!C53:H146,3,FALSE) -> 2 | AC64: =AB64*[1]Hypothèses!$J$49 -> 2120 | AD64: =VLOOKUP(H64,[1]Struc_communautaires!C53:H146,4,FALSE) -> 0 | AE64: =AD64*[1]Hypothèses!$J$49 -> 0 | AH64: =VLOOKUP(H64,[1]Struc_communautaires!C53:H146,5,FALSE) -> 0 | AI64: =AH64*[1]Hypothèses!$J$49 -> 0 | AJ64: =VLOOKUP(H64,[1]Struc_communautaires!C53:H146,6,FALSE) -> 11.625 | AK64: =AJ64*[1]Hypothèses!$F$49 -> 4185 | AL64: 8425 | AM64: =(Z64*[1]Hypothèses!$L$62+AB64*[1]Hypothèses!$L$65+AD64*[1]Hypothèses!$L$63+AF64*[1]Hypothèses!$L$64+AH64*[1]Hypothèses!$L$66+AJ64*[1]Hypothèses!$E$49)/1000 -> 1.30475 | AN64: 51 | AO64: =AP64/(VLOOKUP(E64,[1]Hypothèses!$S$26:$U$32,2,FALSE)*[1]Hypothèses!$AA$26) -> 1766.369253 | AP64: =(VLOOKUP(E64,[1]Hypothèses!$W$26:$X$32,2,FALSE)*[1]Hypothèses!$Y$26*[1]Hypothèses!$AB$26*K64)/([1]Hypothèses!$Z$26*1000) -> 9045.576944 | AQ64: =AP64/[1]Hypothèses!$AC$26 -> 2261.394236 | AR64: =(AS64*[1]Hypothèses!$I$53)*1000 -> 24000 | AS64: =ROUND(IF(K64<[1]Hypothèses!$J$53,1,K64/[1]Hypothèses!$J$53),0) -> 1 | AT64: =(AU64*[1]Hypothèses!$I$54)*1000 -> 24000 | AU64: =ROUND(IF(K64<[1]Hypothèses!$J$54,1,K64/[1]Hypothèses!$J$54),0) -> 1 | AV64: =(AW64*[1]Hypothèses!$I$55)*1000 -> 9600 | AW64: =[1]Hypothèses!$J$55 -> 3 | AX64: =(AY64*[1]Hypothèses!$I$56)*1000 -> 1600 | AY64: =ROUND(IF(K64<[1]Hypothèses!$J$56,0,K64/[1]Hypothèses!$J$56),0) -> 1 | BF64: 68245.57694 | BG64: =(AQ64+AS64*[1]Hypothèses!$G$53*1000+AU64*[1]Hypothèses!$G$54*1000+AW64*[1]Hypothèses!$G$55*1000+AY64*[1]Hypothèses!$G$56)/1000 -> 15.46159424 | BH64: 2 | BI64: 240476.5769 | BJ64: =(BI64/(VLOOKUP(E64,[1]Hypothèses!$S$26:$U$32,2,FALSE)*[1]Hypothèses!$X$4))/1000 -> 51.7713438 | BK64: =(BI64/(VLOOKUP(E64,[1]Hypothèses!$S$26:$U$32,3,FALSE)*[1]Hypothèses!$X$4))/1000 -> 63.55508003 | BL64: 44.74334424 | BM64: =BL64*[1]Hypothèses!$X$12/[1]Hypothèses!$W$12 -> 42.25760289 | BN64: =BL64*[1]Hypothèses!$W$8*[1]Hypothèses!$X$12 -> 45.63821112 | BO64: =BJ64*[1]Hypothèses!$X$8 -> 56.94847818 | BP64: =(BI64/1000)*[1]Hypothèses!$Z$4/([1]Hypothèses!$AA$4*[1]Hypothèses!$AB$4) -> 721.7184182 | BQ64: =BP64/[1]Hypothèses!$AB$8 -> 120.286403 | BS64: =(('[1]Hypo Cables'!$J$4*'[1]Hypo Cables'!$M$4)/('[1]Fhypo DPP'!BL99*[1]Hypothèses!$X$12*('[1]Hypo Cables'!$M$24+'[1]Hypo Cables'!$M$25*'[1]Hypo Cables'!$J$14)))/1000 -> 0.3382625369 | BT64: =(('[1]Hypo Cables'!$J$4*'[1]Hypo Cables'!$M$4)/('[1]Fhypo DPP'!BL99*[1]Hypothèses!$X$12*('[1]Hypo Cables'!$M$27+'[1]Hypo Cables'!$M$28*'[1]Hypo Cables'!$J$14)))/1000 -> 0.6291272589 | BW64: =BQ64*[1]Hypothèses!$AC$8 -> 40.09546768 | BX64: =4*SQRT(BJ64*[1]Hypothèses!$AF$3) -> 195.3713806 | BY64: 48.84284515
D65: SOUS TOTAL NS RESIF | M65: =SUM(M36:M64) -> 817
D67: SALENSOL | E67: FATICK | F67: FOUNDIOUGNE | G67: NIASSENE | H67: DIAGANE SADER | I67: 850 | J67: 57 | K67: =ROUND(I67*(1+[1]Hypothèses!$T$4)^([1]Hypothèses!$S$4-[1]Hypothèses!$R$4),0) -> 902 | L67: =ROUND(J67*(1+[1]Hypothèses!$T$4)^([1]Hypothèses!$S$4-[1]Hypothèses!$R$4),0) -> 60 | M67: 37 | N67: =ROUND((L67*[1]Hypothèses!$U$4-'[1]Fhypo DPP'!M25)*[1]Hypothèses!$G$24+'[1]Fhypo DPP'!M25*[1]Hypothèses!$G$25,0) -> 5 | O67: =ROUND((L67*[1]Hypothèses!$U$4-'[1]Fhypo DPP'!M25)*[1]Hypothèses!$H$24+'[1]Fhypo DPP'!M25*[1]Hypothèses!$H$25,0) -> 10 | P67: =ROUND((L67*[1]Hypothèses!$U$4-'[1]Fhypo DPP'!M25)*[1]Hypothèses!$I$24+'[1]Fhypo DPP'!M25*[1]Hypothèses!$I$25,0) -> 6 | Q67: =ROUND((L67*[1]Hypothèses!$U$4-'[1]Fhypo DPP'!M25)*[1]Hypothèses!$J$24+'[1]Fhypo DPP'!M25*[1]Hypothèses!$J$25,0) -> 26 | R67: 47 | S67: =N67*[1]Hypothèses!$H$49 -> 1670 | T67: =O67*[1]Hypothèses!$J$49 -> 10600 | U67: =P67*[1]Hypothèses!$L$49 -> 10440 | V67: =Q67*[1]Hypothèses!$N$49 -> 149292 | W67: 172002 | X67: =(N67*[1]Hypothèses!$G$49+O67*[1]Hypothèses!$I$49+P67*[1]Hypothèses!$K$49+Q67*[1]Hypothèses!$M$49)/1000 -> 29.512 | Z67: =VLOOKUP(H67,[1]Struc_communautaires!C54:H147,2,FALSE) -> 0 | AA67: =Z67*[1]Hypothèses!$J$49 -> 0 | AB67: =VLOOKUP(H67,[1]Struc_communautaires!C54:H147,3,FALSE) -> 3 | AC67: =AB67*[1]Hypothèses!$J$49 -> 3180 | AD67: =VLOOKUP(H67,[1]Struc_communautaires!C54:H147,4,FALSE) -> 1 | AE67: =AD67*[1]Hypothèses!$J$49 -> 1060 | AH67: =VLOOKUP(H67,[1]Struc_communautaires!C54:H147,5,FALSE) -> 1 | AI67: =AH67*[1]Hypothèses!$J$49 -> 1060 | AJ67: =VLOOKUP(H67,[1]Struc_communautaires!C54:H147,6,FALSE) -> 12.5 | AK67: =AJ67*[1]Hypothèses!$F$49 -> 4500 | AL67: 9800 | AM67: =(Z67*[1]Hypothèses!$L$62+AB67*[1]Hypothèses!$L$65+AD67*[1]Hypothèses!$L$63+AF67*[1]Hypothèses!$L$64+AH67*[1]Hypothèses!$L$66+AJ67*[1]Hypothèses!$E$49)/1000 -> 1.431 | AN67: 57 | AO67: =AP67/(VLOOKUP(E67,[1]Hypothèses!$S$26:$U$32,2,FALSE)*[1]Hypothèses!$AA$26) -> 1872.540962 | AP67: =(VLOOKUP(E67,[1]Hypothèses!$W$26:$X$32,2,FALSE)*[1]Hypothèses!$Y$26*[1]Hypothèses!$AB$26*K67)/([1]Hypothèses!$Z$26*1000) -> 9589.282267 | AQ67: =AP67/[1]Hypothèses!$AC$26 -> 2397.320567 | AR67: =(AS67*[1]Hypothèses!$I$53)*1000 -> 24000 | AS67: =ROUND(IF(K67<[1]Hypothèses!$J$53,1,K67/[1]Hypothèses!$J$53),0) -> 1 | AT67: =(AU67*[1]Hypothèses!$I$54)*1000 -> 24000 | AU67: =ROUND(IF(K67<[1]Hypothèses!$J$54,1,K67/[1]Hypothèses!$J$54),0) -> 1 | AV67: =(AW67*[1]Hypothèses!$I$55)*1000 -> 9600 | AW67: =[1]Hypothèses!$J$55 -> 3 | AX67: =(AY67*[1]Hypothèses!$I$56)*1000 -> 3200 | AY67: =ROUND(IF(K67<[1]Hypothèses!$J$56,0,K67/[1]Hypothèses!$J$56),0) -> 2 | BF67: 70389.28227 | BG67: =(AQ67+AS67*[1]Hypothèses!$G$53*1000+AU67*[1]Hypothèses!$G$54*1000+AW67*[1]Hypothèses!$G$55*1000+AY67*[1]Hypothèses!$G$56)/1000 -> 15.59772057 | BH67: 2 | BI67: 252191.2823 | BJ67: =(BI67/(VLOOKUP(E67,[1]Hypothèses!$S$26:$U$32,2,FALSE)*[1]Hypothèses!$X$4))/1000 -> 54.29336089 | BK67: =(BI67/(VLOOKUP(E67,[1]Hypothèses!$S$26:$U$32,3,FALSE)*[1]Hypothèses!$X$4))/1000 -> 59.10042496 | BL67: 46.54072057 | BM67: =BL67*[1]Hypothèses!$X$12/[1]Hypothèses!$W$12 -> 43.95512498 | BN67: =BL67*[1]Hypothèses!$W$8*[1]Hypothèses!$X$12 -> 47.47153498 | BO67: =BJ67*[1]Hypothèses!$X$8 -> 59.72269698 | BP67: =(BI67/1000)*[1]Hypothèses!$Z$4/([1]Hypothèses!$AA$4*[1]Hypothèses!$AB$4) -> 756.8765974 | BQ67: =BP67/[1]Hypothèses!$AB$8 -> 126.1460996 | BS67: =(('[1]Hypo Cables'!$J$4*'[1]Hypo Cables'!$M$4)/('[1]Fhypo DPP'!BL25*[1]Hypothèses!$X$12*('[1]Hypo Cables'!$M$24+'[1]Hypo Cables'!$M$25*'[1]Hypo Cables'!$J$14)))/1000 -> 0.3417057559 | BT67: =(('[1]Hypo Cables'!$J$4*'[1]Hypo Cables'!$M$4)/('[1]Fhypo DPP'!BL25*[1]Hypothèses!$X$12*('[1]Hypo Cables'!$M$27+'[1]Hypo Cables'!$M$28*'[1]Hypo Cables'!$J$14)))/1000 -> 0.6355312284 | BW67: =BQ67*[1]Hypothèses!$AC$8 -> 42.04869986 | BX67: =4*SQRT(BJ67*[1]Hypothèses!$AF$3) -> 200.0735093 | BY67: 50.01837732
D68: SALENSOL | E68: FATICK | F68: FOUNDIOUGNE | G68: KEUR S.DIANE | H68: DRAME IBRA | I68: 528 | J68: 52 | K68: =ROUND(I68*(1+[1]Hypothèses!$T$4)^([1]Hypothèses!$S$4-[1]Hypothèses!$R$4),0) -> 560 | L68: =ROUND(J68*(1+[1]Hypothèses!$T$4)^([1]Hypothèses!$S$4-[1]Hypothèses!$R$4),0) -> 55 | M68: 28 | N68: =ROUND((L68*[1]Hypothèses!$U$4-'[1]Fhypo DPP'!M30)*[1]Hypothèses!$G$24+'[1]Fhypo DPP'!M30*[1]Hypothèses!$G$25,0) -> 4 | O68: =ROUND((L68*[1]Hypothèses!$U$4-'[1]Fhypo DPP'!M30)*[1]Hypothèses!$H$24+'[1]Fhypo DPP'!M30*[1]Hypothèses!$H$25,0) -> 8 | P68: =ROUND((L68*[1]Hypothèses!$U$4-'[1]Fhypo DPP'!M30)*[1]Hypothèses!$I$24+'[1]Fhypo DPP'!M30*[1]Hypothèses!$I$25,0) -> 6 | Q68: =ROUND((L68*[1]Hypothèses!$U$4-'[1]Fhypo DPP'!M30)*[1]Hypothèses!$J$24+'[1]Fhypo DPP'!M30*[1]Hypothèses!$J$25,0) -> 26 | R68: 44 | S68: =N68*[1]Hypothèses!$H$49 -> 1336 | T68: =O68*[1]Hypothèses!$J$49 -> 8480 | U68: =P68*[1]Hypothèses!$L$49 -> 10440 | V68: =Q68*[1]Hypothèses!$N$49 -> 149292 | W68: 169548 | X68: =(N68*[1]Hypothèses!$G$49+O68*[1]Hypothèses!$I$49+P68*[1]Hypothèses!$K$49+Q68*[1]Hypothèses!$M$49)/1000 -> 28.934 | Z68: =VLOOKUP(H68,[1]Struc_communautaires!C55:H148,2,FALSE) -> 2 | AA68: =Z68*[1]Hypothèses!$J$49 -> 2120 | AB68: =VLOOKUP(H68,[1]Struc_communautaires!C55:H148,3,FALSE) -> 1 | AC68: =AB68*[1]Hypothèses!$J$49 -> 1060 | AD68: =VLOOKUP(H68,[1]Struc_communautaires!C55:H148,4,FALSE) -> 1 | AE68: =AD68*[1]Hypothèses!$J$49 -> 1060 | AH68: =VLOOKUP(H68,[1]Struc_communautaires!C55:H148,5,FALSE) -> 0 | AI68: =AH68*[1]Hypothèses!$J$49 -> 0 | AJ68: =VLOOKUP(H68,[1]Struc_communautaires!C55:H148,6,FALSE) -> 11.875 | AK68: =AJ68*[1]Hypothèses!$F$49 -> 4275 | AL68: 8515 | AM68: =(Z68*[1]Hypothèses!$L$62+AB68*[1]Hypothèses!$L$65+AD68*[1]Hypothèses!$L$63+AF68*[1]Hypothèses!$L$64+AH68*[1]Hypothèses!$L$66+AJ68*[1]Hypothèses!$E$49)/1000 -> 1.17325 | AN68: 52 | AO68: =AP68/(VLOOKUP(E68,[1]Hypothèses!$S$26:$U$32,2,FALSE)*[1]Hypothèses!$AA$26) -> 1162.553147 | AP68: =(VLOOKUP(E68,[1]Hypothèses!$W$26:$X$32,2,FALSE)*[1]Hypothèses!$Y$26*[1]Hypothèses!$AB$26*K68)/([1]Hypothèses!$Z$26*1000) -> 5953.434667 | AQ68: =AP68/[1]Hypothèses!$AC$26 -> 1488.358667 | AR68: =(AS68*[1]Hypothèses!$I$53)*1000 -> 24000 | AS68: =ROUND(IF(K68<[1]Hypothèses!$J$53,1,K68/[1]Hypothèses!$J$53),0) -> 1 | AT68: =(AU68*[1]Hypothèses!$I$54)*1000 -> 24000 | AU68: =ROUND(IF(K68<[1]Hypothèses!$J$54,1,K68/[1]Hypothèses!$J$54),0) -> 1 | AV68: =(AW68*[1]Hypothèses!$I$55)*1000 -> 9600 | AW68: =[1]Hypothèses!$J$55 -> 3 | AX68: =(AY68*[1]Hypothèses!$I$56)*1000 -> 1600 | AY68: =ROUND(IF(K68<[1]Hypothèses!$J$56,0,K68/[1]Hypothèses!$J$56),0) -> 1 | BF68: 65153.43467 | BG68: =(AQ68+AS68*[1]Hypothèses!$G$53*1000+AU68*[1]Hypothèses!$G$54*1000+AW68*[1]Hypothèses!$G$55*1000+AY68*[1]Hypothèses!$G$56)/1000 -> 14.68855867 | BH68: 2 | BI68: 243216.4347 | BJ68: =(BI68/(VLOOKUP(E68,[1]Hypothèses!$S$26:$U$32,2,FALSE)*[1]Hypothèses!$X$4))/1000 -> 52.36119799 | BK68: =(BI68/(VLOOKUP(E68,[1]Hypothèses!$S$26:$U$32,3,FALSE)*[1]Hypothèses!$X$4))/1000 -> 56.99719085 | BL68: 44.79580867 | BM68: =BL68*[1]Hypothèses!$X$12/[1]Hypothèses!$W$12 -> 42.30715263 | BN68: =BL68*[1]Hypothèses!$W$8*[1]Hypothèses!$X$12 -> 45.69172484 | BO68: =BJ68*[1]Hypothèses!$X$8 -> 57.59731778 | BP68: =(BI68/1000)*[1]Hypothèses!$Z$4/([1]Hypothèses!$AA$4*[1]Hypothèses!$AB$4) -> 729.9412805 | BQ68: =BP68/[1]Hypothèses!$AB$8 -> 121.6568801 | BS68: =(('[1]Hypo Cables'!$J$4*'[1]Hypo Cables'!$M$4)/('[1]Fhypo DPP'!BL30*[1]Hypothèses!$X$12*('[1]Hypo Cables'!$M$24+'[1]Hypo Cables'!$M$25*'[1]Hypo Cables'!$J$14)))/1000 -> 0.3780733199 | BT68: =(('[1]Hypo Cables'!$J$4*'[1]Hypo Cables'!$M$4)/('[1]Fhypo DPP'!BL30*[1]Hypothèses!$X$12*('[1]Hypo Cables'!$M$27+'[1]Hypo Cables'!$M$28*'[1]Hypo Cables'!$J$14)))/1000 -> 0.703170483 | BW68: =BQ68*[1]Hypothèses!$AC$8 -> 40.55229336 | BX68: =4*SQRT(BJ68*[1]Hypothèses!$AF$3) -> 196.4812053 | BY68: 49.12030133
D69: SALENSOL | E69: FATICK | F69: FOUNDIOUGNE | G69: KEUR S.DIANE | H69: KERE | I69: 1114 | J69: 113 | K69: =ROUND(I69*(1+[1]Hypothèses!$T$4)^([1]Hypothèses!$S$4-[1]Hypothèses!$R$4),0) -> 1182 | L69: =ROUND(J69*(1+[1]Hypothèses!$T$4)^([1]Hypothèses!$S$4-[1]Hypothèses!$R$4),0) -> 120 | M69: 27 | N69: =ROUND((L69*[1]Hypothèses!$U$4-'[1]Fhypo DPP'!M41)*[1]Hypothèses!$G$24+'[1]Fhypo DPP'!M41*[1]Hypothèses!$G$25,0) -> 9 | O69: =ROUND((L69*[1]Hypothèses!$U$4-'[1]Fhypo DPP'!M41)*[1]Hypothèses!$H$24+'[1]Fhypo DPP'!M41*[1]Hypothèses!$H$25,0) -> 18 | P69: =ROUND((L69*[1]Hypothèses!$U$4-'[1]Fhypo DPP'!M41)*[1]Hypothèses!$I$24+'[1]Fhypo DPP'!M41*[1]Hypothèses!$I$25,0) -> 13 | Q69: =ROUND((L69*[1]Hypothèses!$U$4-'[1]Fhypo DPP'!M41)*[1]Hypothèses!$J$24+'[1]Fhypo DPP'!M41*[1]Hypothèses!$J$25,0) -> 56 | R69: 96 | S69: =N69*[1]Hypothèses!$H$49 -> 3006 | T69: =O69*[1]Hypothèses!$J$49 -> 19080 | U69: =P69*[1]Hypothèses!$L$49 -> 22620 | V69: =Q69*[1]Hypothèses!$N$49 -> 321552 | W69: 366258 | X69: =(N69*[1]Hypothèses!$G$49+O69*[1]Hypothèses!$I$49+P69*[1]Hypothèses!$K$49+Q69*[1]Hypothèses!$M$49)/1000 -> 62.564 | Z69: =VLOOKUP(H69,[1]Struc_communautaires!C56:H149,2,FALSE) -> 2 | AA69: =Z69*[1]Hypothèses!$J$49 -> 2120 | AB69: =VLOOKUP(H69,[1]Struc_communautaires!C56:H149,3,FALSE) -> 2 | AC69: =AB69*[1]Hypothèses!$J$49 -> 2120 | AD69: =VLOOKUP(H69,[1]Struc_communautaires!C56:H149,4,FALSE) -> 0 | AE69: =AD69*[1]Hypothèses!$J$49 -> 0 | AH69: =VLOOKUP(H69,[1]Struc_communautaires!C56:H149,5,FALSE) -> 0 | AI69: =AH69*[1]Hypothèses!$J$49 -> 0 | AJ69: =VLOOKUP(H69,[1]Struc_communautaires!C56:H149,6,FALSE) -> 20 | AK69: =AJ69*[1]Hypothèses!$F$49 -> 7200 | AL69: 11440 | AM69: =(Z69*[1]Hypothèses!$L$62+AB69*[1]Hypothèses!$L$65+AD69*[1]Hypothèses!$L$63+AF69*[1]Hypothèses!$L$64+AH69*[1]Hypothèses!$L$66+AJ69*[1]Hypothèses!$E$49)/1000 -> 1.556 | AN69: 105 | AO69: =AP69/(VLOOKUP(E69,[1]Hypothèses!$S$26:$U$32,2,FALSE)*[1]Hypothèses!$AA$26) -> 2453.817536 | AP69: =(VLOOKUP(E69,[1]Hypothèses!$W$26:$X$32,2,FALSE)*[1]Hypothèses!$Y$26*[1]Hypothèses!$AB$26*K69)/([1]Hypothèses!$Z$26*1000) -> 12565.9996 | AQ69: =AP69/[1]Hypothèses!$AC$26 -> 3141.4999 | AR69: =(AS69*[1]Hypothèses!$I$53)*1000 -> 24000 | AS69: =ROUND(IF(K69<[1]Hypothèses!$J$53,1,K69/[1]Hypothèses!$J$53),0) -> 1 | AT69: =(AU69*[1]Hypothèses!$I$54)*1000 -> 24000 | AU69: =ROUND(IF(K69<[1]Hypothèses!$J$54,1,K69/[1]Hypothèses!$J$54),0) -> 1 | AV69: =(AW69*[1]Hypothèses!$I$55)*1000 -> 9600 | AW69: =[1]Hypothèses!$J$55 -> 3 | AX69: =(AY69*[1]Hypothèses!$I$56)*1000 -> 3200 | AY69: =ROUND(IF(K69<[1]Hypothèses!$J$56,0,K69/[1]Hypothèses!$J$56),0) -> 2 | BF69: 73365.9996 | BG69: =(AQ69+AS69*[1]Hypothèses!$G$53*1000+AU69*[1]Hypothèses!$G$54*1000+AW69*[1]Hypothèses!$G$55*1000+AY69*[1]Hypothèses!$G$56)/1000 -> 16.3418999 | BH69: 2 | BI69: 451063.9996 | BJ69: =(BI69/(VLOOKUP(E69,[1]Hypothèses!$S$26:$U$32,2,FALSE)*[1]Hypothèses!$X$4))/1000 -> 97.10795827 | BK69: =(BI69/(VLOOKUP(E69,[1]Hypothèses!$S$26:$U$32,3,FALSE)*[1]Hypothèses!$X$4))/1000 -> 105.7057715 | BL69: 80.4618999 | BM69: =BL69*[1]Hypothèses!$X$12/[1]Hypothèses!$W$12 -> 75.99179435 | BN69: =BL69*[1]Hypothèses!$W$8*[1]Hypothèses!$X$12 -> 82.0711379 | BO69: =BJ69*[1]Hypothèses!$X$8 -> 106.8187541 | BP69: =(BI69/1000)*[1]Hypothèses!$Z$4/([1]Hypothèses!$AA$4*[1]Hypothèses!$AB$4) -> 1353.733492 | BQ69: =BP69/[1]Hypothèses!$AB$8 -> 225.6222487 | BS69: =(('[1]Hypo Cables'!$J$4*'[1]Hypo Cables'!$M$4)/('[1]Fhypo DPP'!BL41*[1]Hypothèses!$X$12*('[1]Hypo Cables'!$M$24+'[1]Hypo Cables'!$M$25*'[1]Hypo Cables'!$J$14)))/1000 -> 0.2256139018 | BT69: =(('[1]Hypo Cables'!$J$4*'[1]Hypo Cables'!$M$4)/('[1]Fhypo DPP'!BL41*[1]Hypothèses!$X$12*('[1]Hypo Cables'!$M$27+'[1]Hypo Cables'!$M$28*'[1]Hypo Cables'!$J$14)))/1000 -> 0.4196144715 | BW69: =BQ69*[1]Hypothèses!$AC$8 -> 75.20741623 | BX69: =4*SQRT(BJ69*[1]Hypothèses!$AF$3) -> 267.5738318 | BY69: 66.89345795
D70: SALENSOL | E70: FATICK | F70: FOUNDIOUGNE | G70: NIORO ALASSANE TALL | H70: KEUR AMATH SEUNE | I70: 600 | J70: 70 | K70: =ROUND(I70*(1+[1]Hypothèses!$T$4)^([1]Hypothèses!$S$4-[1]Hypothèses!$R$4),0) -> 637 | L70: =ROUND(J70*(1+[1]Hypothèses!$T$4)^([1]Hypothèses!$S$4-[1]Hypothèses!$R$4),0) -> 74 | M70: 28 | N70: =ROUND((L70*[1]Hypothèses!$U$4-'[1]Fhypo DPP'!M43)*[1]Hypothèses!$G$24+'[1]Fhypo DPP'!M43*[1]Hypothèses!$G$25,0) -> 5 | O70: =ROUND((L70*[1]Hypothèses!$U$4-'[1]Fhypo DPP'!M43)*[1]Hypothèses!$H$24+'[1]Fhypo DPP'!M43*[1]Hypothèses!$H$25,0) -> 11 | P70: =ROUND((L70*[1]Hypothèses!$U$4-'[1]Fhypo DPP'!M43)*[1]Hypothèses!$I$24+'[1]Fhypo DPP'!M43*[1]Hypothèses!$I$25,0) -> 8 | Q70: =ROUND((L70*[1]Hypothèses!$U$4-'[1]Fhypo DPP'!M43)*[1]Hypothèses!$J$24+'[1]Fhypo DPP'!M43*[1]Hypothèses!$J$25,0) -> 35 | R70: 59 | S70: =N70*[1]Hypothèses!$H$49 -> 1670 | T70: =O70*[1]Hypothèses!$J$49 -> 11660 | U70: =P70*[1]Hypothèses!$L$49 -> 13920 | V70: =Q70*[1]Hypothèses!$N$49 -> 200970 | W70: 228220 | X70: =(N70*[1]Hypothèses!$G$49+O70*[1]Hypothèses!$I$49+P70*[1]Hypothèses!$K$49+Q70*[1]Hypothèses!$M$49)/1000 -> 38.944 | Z70: =VLOOKUP(H70,[1]Struc_communautaires!C57:H150,2,FALSE) -> 2 | AA70: =Z70*[1]Hypothèses!$J$49 -> 2120 | AB70: =VLOOKUP(H70,[1]Struc_communautaires!C57:H150,3,FALSE) -> 1 | AC70: =AB70*[1]Hypothèses!$J$49 -> 1060 | AD70: =VLOOKUP(H70,[1]Struc_communautaires!C57:H150,4,FALSE) -> 1 | AE70: =AD70*[1]Hypothèses!$J$49 -> 1060 | AH70: =VLOOKUP(H70,[1]Struc_communautaires!C57:H150,5,FALSE) -> 0 | AI70: =AH70*[1]Hypothèses!$J$49 -> 0 | AJ70: =VLOOKUP(H70,[1]Struc_communautaires!C57:H150,6,FALSE) -> 14.25 | AK70: =AJ70*[1]Hypothèses!$F$49 -> 5130 | AL70: 9370 | AM70: =(Z70*[1]Hypothèses!$L$62+AB70*[1]Hypothèses!$L$65+AD70*[1]Hypothèses!$L$63+AF70*[1]Hypothèses!$L$64+AH70*[1]Hypothèses!$L$66+AJ70*[1]Hypothèses!$E$49)/1000 -> 1.2445 | AN70: 67 | AO70: =AP70/(VLOOKUP(E70,[1]Hypothèses!$S$26:$U$32,2,FALSE)*[1]Hypothèses!$AA$26) -> 1322.404205 | AP70: =(VLOOKUP(E70,[1]Hypothèses!$W$26:$X$32,2,FALSE)*[1]Hypothèses!$Y$26*[1]Hypothèses!$AB$26*K70)/([1]Hypothèses!$Z$26*1000) -> 6772.031933 | AQ70: =AP70/[1]Hypothèses!$AC$26 -> 1693.007983 | AR70: =(AS70*[1]Hypothèses!$I$53)*1000 -> 24000 | AS70: =ROUND(IF(K70<[1]Hypothèses!$J$53,1,K70/[1]Hypothèses!$J$53),0) -> 1 | AT70: =(AU70*[1]Hypothèses!$I$54)*1000 -> 24000 | AU70: =ROUND(IF(K70<[1]Hypothèses!$J$54,1,K70/[1]Hypothèses!$J$54),0) -> 1 | AV70: =(AW70*[1]Hypothèses!$I$55)*1000 -> 9600 | AW70: =[1]Hypothèses!$J$55 -> 3 | AX70: =(AY70*[1]Hypothèses!$I$56)*1000 -> 1600 | AY70: =ROUND(IF(K70<[1]Hypothèses!$J$56,0,K70/[1]Hypothèses!$J$56),0) -> 1 | BF70: 65972.03193 | BG70: =(AQ70+AS70*[1]Hypothèses!$G$53*1000+AU70*[1]Hypothèses!$G$54*1000+AW70*[1]Hypothèses!$G$55*1000+AY70*[1]Hypothèses!$G$56)/1000 -> 14.89320798 | BH70: 2 | BI70: 303562.0319 | BJ70: =(BI70/(VLOOKUP(E70,[1]Hypothèses!$S$26:$U$32,2,FALSE)*[1]Hypothèses!$X$4))/1000 -> 65.3527862 | BK70: =(BI70/(VLOOKUP(E70,[1]Hypothèses!$S$26:$U$32,3,FALSE)*[1]Hypothèses!$X$4))/1000 -> 71.13903751 | BL70: 55.08170798 | BM70: =BL70*[1]Hypothèses!$X$12/[1]Hypothèses!$W$12 -> 52.0216131 | BN70: =BL70*[1]Hypothèses!$W$8*[1]Hypothèses!$X$12 -> 56.18334214 | BO70: =BJ70*[1]Hypothèses!$X$8 -> 71.88806482 | BP70: =(BI70/1000)*[1]Hypothèses!$Z$4/([1]Hypothèses!$AA$4*[1]Hypothèses!$AB$4) -> 911.050516 | BQ70: =BP70/[1]Hypothèses!$AB$8 -> 151.8417527 | BS70: =(('[1]Hypo Cables'!$J$4*'[1]Hypo Cables'!$M$4)/('[1]Fhypo DPP'!BL43*[1]Hypothèses!$X$12*('[1]Hypo Cables'!$M$24+'[1]Hypo Cables'!$M$25*'[1]Hypo Cables'!$J$14)))/1000 -> 0.4009943444 | BT70: =(('[1]Hypo Cables'!$J$4*'[1]Hypo Cables'!$M$4)/('[1]Fhypo DPP'!BL43*[1]Hypothèses!$X$12*('[1]Hypo Cables'!$M$27+'[1]Hypo Cables'!$M$28*'[1]Hypo Cables'!$J$14)))/1000 -> 0.7458008062 | BW70: =BQ70*[1]Hypothèses!$AC$8 -> 50.61391756 | BX70: =4*SQRT(BJ70*[1]Hypothèses!$AF$3) -> 219.5069525 | BY70: 54.87673813
D71: SALENSOL | E71: FATICK | F71: FOUNDIOUGNE | G71: Keur S. Diané | H71: KEUR BABOU NDITY | I71: 990 | J71: 57 | K71: =ROUND(I71*(1+[1]Hypothèses!$T$4)^([1]Hypothèses!$S$4-[1]Hypothèses!$R$4),0) -> 1051 | L71: =ROUND(J71*(1+[1]Hypothèses!$T$4)^([1]Hypothèses!$S$4-[1]Hypothèses!$R$4),0) -> 60 | M71: 28 | N71: =ROUND((L71*[1]Hypothèses!$U$4-'[1]Fhypo DPP'!M44)*[1]Hypothèses!$G$24+'[1]Fhypo DPP'!M44*[1]Hypothèses!$G$25,0) -> 5 | O71: =ROUND((L71*[1]Hypothèses!$U$4-'[1]Fhypo DPP'!M44)*[1]Hypothèses!$H$24+'[1]Fhypo DPP'!M44*[1]Hypothèses!$H$25,0) -> 9 | P71: =ROUND((L71*[1]Hypothèses!$U$4-'[1]Fhypo DPP'!M44)*[1]Hypothèses!$I$24+'[1]Fhypo DPP'!M44*[1]Hypothèses!$I$25,0) -> 6 | Q71: =ROUND((L71*[1]Hypothèses!$U$4-'[1]Fhypo DPP'!M44)*[1]Hypothèses!$J$24+'[1]Fhypo DPP'!M44*[1]Hypothèses!$J$25,0) -> 28 | R71: 48 | S71: =N71*[1]Hypothèses!$H$49 -> 1670 | T71: =O71*[1]Hypothèses!$J$49 -> 9540 | U71: =P71*[1]Hypothèses!$L$49 -> 10440 | V71: =Q71*[1]Hypothèses!$N$49 -> 160776 | W71: 182426 | X71: =(N71*[1]Hypothèses!$G$49+O71*[1]Hypothèses!$I$49+P71*[1]Hypothèses!$K$49+Q71*[1]Hypothèses!$M$49)/1000 -> 31.187 | Z71: =VLOOKUP(H71,[1]Struc_communautaires!C58:H151,2,FALSE) -> 1 | AA71: =Z71*[1]Hypothèses!$J$49 -> 1060 | AB71: =VLOOKUP(H71,[1]Struc_communautaires!C58:H151,3,FALSE) -> 1 | AC71: =AB71*[1]Hypothèses!$J$49 -> 1060 | AD71: =VLOOKUP(H71,[1]Struc_communautaires!C58:H151,4,FALSE) -> 0 | AE71: =AD71*[1]Hypothèses!$J$49 -> 0 | AH71: =VLOOKUP(H71,[1]Struc_communautaires!C58:H151,5,FALSE) -> 0 | AI71: =AH71*[1]Hypothèses!$J$49 -> 0 | AJ71: =VLOOKUP(H71,[1]Struc_communautaires!C58:H151,6,FALSE) -> 12.5 | AK71: =AJ71*[1]Hypothèses!$F$49 -> 4500 | AL71: 6620 | AM71: =(Z71*[1]Hypothèses!$L$62+AB71*[1]Hypothèses!$L$65+AD71*[1]Hypothèses!$L$63+AF71*[1]Hypothèses!$L$64+AH71*[1]Hypothèses!$L$66+AJ71*[1]Hypothèses!$E$49)/1000 -> 0.853 | AN71: 55 | AO71: =AP71/(VLOOKUP(E71,[1]Hypothèses!$S$26:$U$32,2,FALSE)*[1]Hypothèses!$AA$26) -> 2181.863139 | AP71: =(VLOOKUP(E71,[1]Hypothèses!$W$26:$X$32,2,FALSE)*[1]Hypothèses!$Y$26*[1]Hypothèses!$AB$26*K71)/([1]Hypothèses!$Z$26*1000) -> 11173.32113 | AQ71: =AP71/[1]Hypothèses!$AC$26 -> 2793.330283 | AR71: =(AS71*[1]Hypothèses!$I$53)*1000 -> 24000 | AS71: =ROUND(IF(K71<[1]Hypothèses!$J$53,1,K71/[1]Hypothèses!$J$53),0) -> 1 | AT71: =(AU71*[1]Hypothèses!$I$54)*1000 -> 24000 | AU71: =ROUND(IF(K71<[1]Hypothèses!$J$54,1,K71/[1]Hypothèses!$J$54),0) -> 1 | AV71: =(AW71*[1]Hypothèses!$I$55)*1000 -> 9600 | AW71: =[1]Hypothèses!$J$55 -> 3 | AX71: =(AY71*[1]Hypothèses!$I$56)*1000 -> 3200 | AY71: =ROUND(IF(K71<[1]Hypothèses!$J$56,0,K71/[1]Hypothèses!$J$56),0) -> 2 | BF71: 71973.32113 | BG71: =(AQ71+AS71*[1]Hypothèses!$G$53*1000+AU71*[1]Hypothèses!$G$54*1000+AW71*[1]Hypothèses!$G$55*1000+AY71*[1]Hypothèses!$G$56)/1000 -> 15.99373028 | BH71: 2 | BI71: 261019.3211 | BJ71: =(BI71/(VLOOKUP(E71,[1]Hypothèses!$S$26:$U$32,2,FALSE)*[1]Hypothèses!$X$4))/1000 -> 56.19391786 | BK71: =(BI71/(VLOOKUP(E71,[1]Hypothèses!$S$26:$U$32,3,FALSE)*[1]Hypothèses!$X$4))/1000 -> 61.16925479 | BL71: 48.03373028 | BM71: =BL71*[1]Hypothèses!$X$12/[1]Hypothèses!$W$12 -> 45.36518971 | BN71: =BL71*[1]Hypothèses!$W$8*[1]Hypothèses!$X$12 -> 48.99440489 | BO71: =BJ71*[1]Hypothèses!$X$8 -> 61.81330965 | BP71: =(BI71/1000)*[1]Hypothèses!$Z$4/([1]Hypothèses!$AA$4*[1]Hypothèses!$AB$4) -> 783.3713119 | BQ71: =BP71/[1]Hypothèses!$AB$8 -> 130.5618853 | BS71: =(('[1]Hypo Cables'!$J$4*'[1]Hypo Cables'!$M$4)/('[1]Fhypo DPP'!BL44*[1]Hypothèses!$X$12*('[1]Hypo Cables'!$M$24+'[1]Hypo Cables'!$M$25*'[1]Hypo Cables'!$J$14)))/1000 -> 0.4824000222 | BT71: =(('[1]Hypo Cables'!$J$4*'[1]Hypo Cables'!$M$4)/('[1]Fhypo DPP'!BL44*[1]Hypothèses!$X$12*('[1]Hypo Cables'!$M$27+'[1]Hypo Cables'!$M$28*'[1]Hypo Cables'!$J$14)))/1000 -> 0.8972054856 | BW71: =BQ71*[1]Hypothèses!$AC$8 -> 43.52062844 | BX71: =4*SQRT(BJ71*[1]Hypothèses!$AF$3) -> 203.5452081 | BY71: 50.88630204
D72: SALENSOL | E72: FATICK | F72: FOUNDIOUGNE | G72: KEUR S.DIANE | H72: KEUR MOUDIAYE FATIM | I72: 987 | J72: 48 | K72: =ROUND(I72*(1+[1]Hypothèses!$T$4)^([1]Hypothèses!$S$4-[1]Hypothèses!$R$4),0) -> 1047 | L72: =ROUND(J72*(1+[1]Hypothèses!$T$4)^([1]Hypothèses!$S$4-[1]Hypothèses!$R$4),0) -> 51 | M72: 38 | N72: =ROUND((L72*[1]Hypothèses!$U$4-'[1]Fhypo DPP'!M45)*[1]Hypothèses!$G$24+'[1]Fhypo DPP'!M45*[1]Hypothèses!$G$25,0) -> 4 | O72: =ROUND((L72*[1]Hypothèses!$U$4-'[1]Fhypo DPP'!M45)*[1]Hypothèses!$H$24+'[1]Fhypo DPP'!M45*[1]Hypothèses!$H$25,0) -> 7 | P72: =ROUND((L72*[1]Hypothèses!$U$4-'[1]Fhypo DPP'!M45)*[1]Hypothèses!$I$24+'[1]Fhypo DPP'!M45*[1]Hypothèses!$I$25,0) -> 6 | Q72: =ROUND((L72*[1]Hypothèses!$U$4-'[1]Fhypo DPP'!M45)*[1]Hypothèses!$J$24+'[1]Fhypo DPP'!M45*[1]Hypothèses!$J$25,0) -> 25 | R72: 42 | S72: =N72*[1]Hypothèses!$H$49 -> 1336 | T72: =O72*[1]Hypothèses!$J$49 -> 7420 | U72: =P72*[1]Hypothèses!$L$49 -> 10440 | V72: =Q72*[1]Hypothèses!$N$49 -> 143550 | W72: 162746 | X72: =(N72*[1]Hypothèses!$G$49+O72*[1]Hypothèses!$I$49+P72*[1]Hypothèses!$K$49+Q72*[1]Hypothèses!$M$49)/1000 -> 27.738 | Z72: =VLOOKUP(H72,[1]Struc_communautaires!C59:H152,2,FALSE) -> 1 | AA72: =Z72*[1]Hypothèses!$J$49 -> 1060 | AB72: =VLOOKUP(H72,[1]Struc_communautaires!C59:H152,3,FALSE) -> 1 | AC72: =AB72*[1]Hypothèses!$J$49 -> 1060 | AD72: =VLOOKUP(H72,[1]Struc_communautaires!C59:H152,4,FALSE) -> 1 | AE72: =AD72*[1]Hypothèses!$J$49 -> 1060 | AH72: =VLOOKUP(H72,[1]Struc_communautaires!C59:H152,5,FALSE) -> 0 | AI72: =AH72*[1]Hypothèses!$J$49 -> 0 | AJ72: =VLOOKUP(H72,[1]Struc_communautaires!C59:H152,6,FALSE) -> 11.375 | AK72: =AJ72*[1]Hypothèses!$F$49 -> 4095 | AL72: 7275 | AM72: =(Z72*[1]Hypothèses!$L$62+AB72*[1]Hypothèses!$L$65+AD72*[1]Hypothèses!$L$63+AF72*[1]Hypothèses!$L$64+AH72*[1]Hypothèses!$L$66+AJ72*[1]Hypothèses!$E$49)/1000 -> 0.91925 | AN72: 50 | AO72: =AP72/(VLOOKUP(E72,[1]Hypothèses!$S$26:$U$32,2,FALSE)*[1]Hypothèses!$AA$26) -> 2173.559188 | AP72: =(VLOOKUP(E72,[1]Hypothèses!$W$26:$X$32,2,FALSE)*[1]Hypothèses!$Y$26*[1]Hypothèses!$AB$26*K72)/([1]Hypothèses!$Z$26*1000) -> 11130.7966 | AQ72: =AP72/[1]Hypothèses!$AC$26 -> 2782.69915 | AR72: =(AS72*[1]Hypothèses!$I$53)*1000 -> 24000 | AS72: =ROUND(IF(K72<[1]Hypothèses!$J$53,1,K72/[1]Hypothèses!$J$53),0) -> 1 | AT72: =(AU72*[1]Hypothèses!$I$54)*1000 -> 24000 | AU72: =ROUND(IF(K72<[1]Hypothèses!$J$54,1,K72/[1]Hypothèses!$J$54),0) -> 1 | AV72: =(AW72*[1]Hypothèses!$I$55)*1000 -> 9600 | AW72: =[1]Hypothèses!$J$55 -> 3 | AX72: =(AY72*[1]Hypothèses!$I$56)*1000 -> 3200 | AY72: =ROUND(IF(K72<[1]Hypothèses!$J$56,0,K72/[1]Hypothèses!$J$56),0) -> 2 | BF72: 71930.7966 | BG72: =(AQ72+AS72*[1]Hypothèses!$G$53*1000+AU72*[1]Hypothèses!$G$54*1000+AW72*[1]Hypothèses!$G$55*1000+AY72*[1]Hypothèses!$G$56)/1000 -> 15.98309915 | BH72: 2 | BI72: 241951.7966 | BJ72: =(BI72/(VLOOKUP(E72,[1]Hypothèses!$S$26:$U$32,2,FALSE)*[1]Hypothèses!$X$4))/1000 -> 52.08893857 | BK72: =(BI72/(VLOOKUP(E72,[1]Hypothèses!$S$26:$U$32,3,FALSE)*[1]Hypothèses!$X$4))/1000 -> 56.70082594 | BL72: 44.64034915 | BM72: =BL72*[1]Hypothèses!$X$12/[1]Hypothèses!$W$12 -> 42.16032975 | BN72: =BL72*[1]Hypothèses!$W$8*[1]Hypothèses!$X$12 -> 45.53315613 | BO72: =BJ72*[1]Hypothèses!$X$8 -> 57.29783243 | BP72: =(BI72/1000)*[1]Hypothèses!$Z$4/([1]Hypothèses!$AA$4*[1]Hypothèses!$AB$4) -> 726.1458481 | BQ72: =BP72/[1]Hypothèses!$AB$8 -> 121.024308 | BS72: =(('[1]Hypo Cables'!$J$4*'[1]Hypo Cables'!$M$4)/('[1]Fhypo DPP'!BL45*[1]Hypothèses!$X$12*('[1]Hypo Cables'!$M$24+'[1]Hypo Cables'!$M$25*'[1]Hypo Cables'!$J$14)))/1000 -> 0.3041107315 | BT72: =(('[1]Hypo Cables'!$J$4*'[1]Hypo Cables'!$M$4)/('[1]Fhypo DPP'!BL45*[1]Hypothèses!$X$12*('[1]Hypo Cables'!$M$27+'[1]Hypo Cables'!$M$28*'[1]Hypo Cables'!$J$14)))/1000 -> 0.5656090463 | BW72: =BQ72*[1]Hypothèses!$AC$8 -> 40.34143601 | BX72: =4*SQRT(BJ72*[1]Hypothèses!$AF$3) -> 195.9697238 | BY72: 48.99243094
D73: SALENSOL | E73: FATICK | F73: FOUNDIOUGNE | G73: NIORO ALASSANE TALL | H73: NDIAYENE KADE | I73: 930 | J73: 103 | K73: =ROUND(I73*(1+[1]Hypothèses!$T$4)^([1]Hypothèses!$S$4-[1]Hypothèses!$R$4),0) -> 987 | L73: =ROUND(J73*(1+[1]Hypothèses!$T$4)^([1]Hypothèses!$S$4-[1]Hypothèses!$R$4),0) -> 109 | M73: 32 | N73: =ROUND((L73*[1]Hypothèses!$U$4-'[1]Fhypo DPP'!M66)*[1]Hypothèses!$G$24+'[1]Fhypo DPP'!M66*[1]Hypothèses!$G$25,0) -> 8 | O73: =ROUND((L73*[1]Hypothèses!$U$4-'[1]Fhypo DPP'!M66)*[1]Hypothèses!$H$24+'[1]Fhypo DPP'!M66*[1]Hypothèses!$H$25,0) -> 17 | P73: =ROUND((L73*[1]Hypothèses!$U$4-'[1]Fhypo DPP'!M66)*[1]Hypothèses!$I$24+'[1]Fhypo DPP'!M66*[1]Hypothèses!$I$25,0) -> 12 | Q73: =ROUND((L73*[1]Hypothèses!$U$4-'[1]Fhypo DPP'!M66)*[1]Hypothèses!$J$24+'[1]Fhypo DPP'!M66*[1]Hypothèses!$J$25,0) -> 50 | R73: 87 | S73: =N73*[1]Hypothèses!$H$49 -> 2672 | T73: =O73*[1]Hypothèses!$J$49 -> 18020 | U73: =P73*[1]Hypothèses!$L$49 -> 20880 | V73: =Q73*[1]Hypothèses!$N$49 -> 287100 | W73: 328672 | X73: =(N73*[1]Hypothèses!$G$49+O73*[1]Hypothèses!$I$49+P73*[1]Hypothèses!$K$49+Q73*[1]Hypothèses!$M$49)/1000 -> 56.193 | Z73: =VLOOKUP(H73,[1]Struc_communautaires!C60:H153,2,FALSE) -> 2 | AA73: =Z73*[1]Hypothèses!$J$49 -> 2120 | AB73: =VLOOKUP(H73,[1]Struc_communautaires!C60:H153,3,FALSE) -> 1 | AC73: =AB73*[1]Hypothèses!$J$49 -> 1060 | AD73: =VLOOKUP(H73,[1]Struc_communautaires!C60:H153,4,FALSE) -> 0 | AE73: =AD73*[1]Hypothèses!$J$49 -> 0 | AH73: =VLOOKUP(H73,[1]Struc_communautaires!C60:H153,5,FALSE) -> 0 | AI73: =AH73*[1]Hypothèses!$J$49 -> 0 | AJ73: =VLOOKUP(H73,[1]Struc_communautaires!C60:H153,6,FALSE) -> 18.625 | AK73: =AJ73*[1]Hypothèses!$F$49 -> 6705 | AL73: 9885 | AM73: =(Z73*[1]Hypothèses!$L$62+AB73*[1]Hypothèses!$L$65+AD73*[1]Hypothèses!$L$63+AF73*[1]Hypothèses!$L$64+AH73*[1]Hypothèses!$L$66+AJ73*[1]Hypothèses!$E$49)/1000 -> 1.27575 | AN73: 95 | AO73: =AP73/(VLOOKUP(E73,[1]Hypothèses!$S$26:$U$32,2,FALSE)*[1]Hypothèses!$AA$26) -> 2048.999922 | AP73: =(VLOOKUP(E73,[1]Hypothèses!$W$26:$X$32,2,FALSE)*[1]Hypothèses!$Y$26*[1]Hypothèses!$AB$26*K73)/([1]Hypothèses!$Z$26*1000) -> 10492.9286 | AQ73: =AP73/[1]Hypothèses!$AC$26 -> 2623.23215 | AR73: =(AS73*[1]Hypothèses!$I$53)*1000 -> 24000 | AS73: =ROUND(IF(K73<[1]Hypothèses!$J$53,1,K73/[1]Hypothèses!$J$53),0) -> 1 | AT73: =(AU73*[1]Hypothèses!$I$54)*1000 -> 24000 | AU73: =ROUND(IF(K73<[1]Hypothèses!$J$54,1,K73/[1]Hypothèses!$J$54),0) -> 1 | AV73: =(AW73*[1]Hypothèses!$I$55)*1000 -> 9600 | AW73: =[1]Hypothèses!$J$55 -> 3 | AX73: =(AY73*[1]Hypothèses!$I$56)*1000 -> 3200 | AY73: =ROUND(IF(K73<[1]Hypothèses!$J$56,0,K73/[1]Hypothèses!$J$56),0) -> 2 | BF73: 71292.9286 | BG73: =(AQ73+AS73*[1]Hypothèses!$G$53*1000+AU73*[1]Hypothèses!$G$54*1000+AW73*[1]Hypothèses!$G$55*1000+AY73*[1]Hypothèses!$G$56)/1000 -> 15.82363215 | BH73: 2 | BI73: 409849.9286 | BJ73: =(BI73/(VLOOKUP(E73,[1]Hypothèses!$S$26:$U$32,2,FALSE)*[1]Hypothèses!$X$4))/1000 -> 88.23512805 | BK73: =(BI73/(VLOOKUP(E73,[1]Hypothèses!$S$26:$U$32,3,FALSE)*[1]Hypothèses!$X$4))/1000 -> 96.04735236 | BL73: 73.29238215 | BM73: =BL73*[1]Hypothèses!$X$12/[1]Hypothèses!$W$12 -> 69.22058314 | BN73: =BL73*[1]Hypothèses!$W$8*[1]Hypothèses!$X$12 -> 74.75822979 | BO73: =BJ73*[1]Hypothèses!$X$8 -> 97.05864085 | BP73: =(BI73/1000)*[1]Hypothèses!$Z$4/([1]Hypothèses!$AA$4*[1]Hypothèses!$AB$4) -> 1230.041803 | BQ73: =BP73/[1]Hypothèses!$AB$8 -> 205.0069671 | BS73: =(('[1]Hypo Cables'!$J$4*'[1]Hypo Cables'!$M$4)/('[1]Fhypo DPP'!BL66*[1]Hypothèses!$X$12*('[1]Hypo Cables'!$M$24+'[1]Hypo Cables'!$M$25*'[1]Hypo Cables'!$J$14)))/1000 -> 0.3690698996 | BT73: =(('[1]Hypo Cables'!$J$4*'[1]Hypo Cables'!$M$4)/('[1]Fhypo DPP'!BL66*[1]Hypothèses!$X$12*('[1]Hypo Cables'!$M$27+'[1]Hypo Cables'!$M$28*'[1]Hypo Cables'!$J$14)))/1000 -> 0.6864252141 | BW73: =BQ73*[1]Hypothèses!$AC$8 -> 68.3356557 | BX73: =4*SQRT(BJ73*[1]Hypothèses!$AF$3) -> 255.056847 | BY73: 63.76421175
D74: SALENSOL | E74: FATICK | F74: FOUNDIOUGNE | G74: NIASSENE | H74: NIASSENE | I74: 1023 | J74: 82 | K74: =ROUND(I74*(1+[1]Hypothèses!$T$4)^([1]Hypothèses!$S$4-[1]Hypothèses!$R$4),0) -> 1086 | L74: =ROUND(J74*(1+[1]Hypothèses!$T$4)^([1]Hypothèses!$S$4-[1]Hypothèses!$R$4),0) -> 87 | M74: 24 | N74: =ROUND((L74*[1]Hypothèses!$U$4-'[1]Fhypo DPP'!M73)*[1]Hypothèses!$G$24+'[1]Fhypo DPP'!M73*[1]Hypothèses!$G$25,0) -> 6 | O74: =ROUND((L74*[1]Hypothèses!$U$4-'[1]Fhypo DPP'!M73)*[1]Hypothèses!$H$24+'[1]Fhypo DPP'!M73*[1]Hypothèses!$H$25,0) -> 13 | P74: =ROUND((L74*[1]Hypothèses!$U$4-'[1]Fhypo DPP'!M73)*[1]Hypothèses!$I$24+'[1]Fhypo DPP'!M73*[1]Hypothèses!$I$25,0) -> 9 | Q74: =ROUND((L74*[1]Hypothèses!$U$4-'[1]Fhypo DPP'!M73)*[1]Hypothèses!$J$24+'[1]Fhypo DPP'!M73*[1]Hypothèses!$J$25,0) -> 40 | R74: 68 | S74: =N74*[1]Hypothèses!$H$49 -> 2004 | T74: =O74*[1]Hypothèses!$J$49 -> 13780 | U74: =P74*[1]Hypothèses!$L$49 -> 15660 | V74: =Q74*[1]Hypothèses!$N$49 -> 229680 | W74: 261124 | X74: =(N74*[1]Hypothèses!$G$49+O74*[1]Hypothèses!$I$49+P74*[1]Hypothèses!$K$49+Q74*[1]Hypothèses!$M$49)/1000 -> 44.597 | Z74: =VLOOKUP(H74,[1]Struc_communautaires!C61:H154,2,FALSE) -> 3 | AA74: =Z74*[1]Hypothèses!$J$49 -> 3180 | AB74: =VLOOKUP(H74,[1]Struc_communautaires!C61:H154,3,FALSE) -> 3 | AC74: =AB74*[1]Hypothèses!$J$49 -> 3180 | AD74: =VLOOKUP(H74,[1]Struc_communautaires!C61:H154,4,FALSE) -> 1 | AE74: =AD74*[1]Hypothèses!$J$49 -> 1060 | AH74: =VLOOKUP(H74,[1]Struc_communautaires!C61:H154,5,FALSE) -> 1 | AI74: =AH74*[1]Hypothèses!$J$49 -> 1060 | AJ74: =VLOOKUP(H74,[1]Struc_communautaires!C61:H154,6,FALSE) -> 15.875 | AK74: =AJ74*[1]Hypothèses!$F$49 -> 5715 | AL74: 14195 | AM74: =(Z74*[1]Hypothèses!$L$62+AB74*[1]Hypothèses!$L$65+AD74*[1]Hypothèses!$L$63+AF74*[1]Hypothèses!$L$64+AH74*[1]Hypothèses!$L$66+AJ74*[1]Hypothèses!$E$49)/1000 -> 2.24925 | AN74: 81 | AO74: =AP74/(VLOOKUP(E74,[1]Hypothèses!$S$26:$U$32,2,FALSE)*[1]Hypothèses!$AA$26) -> 2254.52271 | AP74: =(VLOOKUP(E74,[1]Hypothèses!$W$26:$X$32,2,FALSE)*[1]Hypothèses!$Y$26*[1]Hypothèses!$AB$26*K74)/([1]Hypothèses!$Z$26*1000) -> 11545.4108 | AQ74: =AP74/[1]Hypothèses!$AC$26 -> 2886.3527 | AR74: =(AS74*[1]Hypothèses!$I$53)*1000 -> 24000 | AS74: =ROUND(IF(K74<[1]Hypothèses!$J$53,1,K74/[1]Hypothèses!$J$53),0) -> 1 | AT74: =(AU74*[1]Hypothèses!$I$54)*1000 -> 24000 | AU74: =ROUND(IF(K74<[1]Hypothèses!$J$54,1,K74/[1]Hypothèses!$J$54),0) -> 1 | AV74: =(AW74*[1]Hypothèses!$I$55)*1000 -> 9600 | AW74: =[1]Hypothèses!$J$55 -> 3 | AX74: =(AY74*[1]Hypothèses!$I$56)*1000 -> 3200 | AY74: =ROUND(IF(K74<[1]Hypothèses!$J$56,0,K74/[1]Hypothèses!$J$56),0) -> 2 | BF74: 72345.4108 | BG74: =(AQ74+AS74*[1]Hypothèses!$G$53*1000+AU74*[1]Hypothèses!$G$54*1000+AW74*[1]Hypothèses!$G$55*1000+AY74*[1]Hypothèses!$G$56)/1000 -> 16.0867527 | BH74: 2 | BI74: 347664.4108 | BJ74: =(BI74/(VLOOKUP(E74,[1]Hypothèses!$S$26:$U$32,2,FALSE)*[1]Hypothèses!$X$4))/1000 -> 74.84742991 | BK74: =(BI74/(VLOOKUP(E74,[1]Hypothèses!$S$26:$U$32,3,FALSE)*[1]Hypothèses!$X$4))/1000 -> 81.47432471 | BL74: 62.9330027 | BM74: =BL74*[1]Hypothèses!$X$12/[1]Hypothèses!$W$12 -> 59.43672477 | BN74: =BL74*[1]Hypothèses!$W$8*[1]Hypothèses!$X$12 -> 64.19166275 | BO74: =BJ74*[1]Hypothèses!$X$8 -> 82.3321729 | BP74: =(BI74/1000)*[1]Hypothèses!$Z$4/([1]Hypothèses!$AA$4*[1]Hypothèses!$AB$4) -> 1043.410597 | BQ74: =BP74/[1]Hypothèses!$AB$8 -> 173.9017661 | BS74: =(('[1]Hypo Cables'!$J$4*'[1]Hypo Cables'!$M$4)/('[1]Fhypo DPP'!BL73*[1]Hypothèses!$X$12*('[1]Hypo Cables'!$M$24+'[1]Hypo Cables'!$M$25*'[1]Hypo Cables'!$J$14)))/1000 -> 0.3000866979 | BT74: =(('[1]Hypo Cables'!$J$4*'[1]Hypo Cables'!$M$4)/('[1]Fhypo DPP'!BL73*[1]Hypothèses!$X$12*('[1]Hypo Cables'!$M$27+'[1]Hypo Cables'!$M$28*'[1]Hypo Cables'!$J$14)))/1000 -> 0.5581248323 | BW74: =BQ74*[1]Hypothèses!$AC$8 -> 57.96725537 | BX74: =4*SQRT(BJ74*[1]Hypothèses!$AF$3) -> 234.9117135 | BY74: 58.72792837
D75: SALENSOL | E75: FATICK | F75: FOUNDIOUGNE | G75: NIASSENE | H75: THIAMENE DIOGO | I75: 586 | J75: 68 | K75: =ROUND(I75*(1+[1]Hypothèses!$T$4)^([1]Hypothèses!$S$4-[1]Hypothèses!$R$4),0) -> 622 | L75: =ROUND(J75*(1+[1]Hypothèses!$T$4)^([1]Hypothèses!$S$4-[1]Hypothèses!$R$4),0) -> 72 | M75: 68 | N75: =ROUND((L75*[1]Hypothèses!$U$4-'[1]Fhypo DPP'!M94)*[1]Hypothèses!$G$24+'[1]Fhypo DPP'!M94*[1]Hypothèses!$G$25,0) -> 5 | O75: =ROUND((L75*[1]Hypothèses!$U$4-'[1]Fhypo DPP'!M94)*[1]Hypothèses!$H$24+'[1]Fhypo DPP'!M94*[1]Hypothèses!$H$25,0) -> 10 | P75: =ROUND((L75*[1]Hypothèses!$U$4-'[1]Fhypo DPP'!M94)*[1]Hypothèses!$I$24+'[1]Fhypo DPP'!M94*[1]Hypothèses!$I$25,0) -> 8 | Q75: =ROUND((L75*[1]Hypothèses!$U$4-'[1]Fhypo DPP'!M94)*[1]Hypothèses!$J$24+'[1]Fhypo DPP'!M94*[1]Hypothèses!$J$25,0) -> 35 | R75: 58 | S75: =N75*[1]Hypothèses!$H$49 -> 1670 | T75: =O75*[1]Hypothèses!$J$49 -> 10600 | U75: =P75*[1]Hypothèses!$L$49 -> 13920 | V75: =Q75*[1]Hypothèses!$N$49 -> 200970 | W75: 227160 | X75: =(N75*[1]Hypothèses!$G$49+O75*[1]Hypothèses!$I$49+P75*[1]Hypothèses!$K$49+Q75*[1]Hypothèses!$M$49)/1000 -> 38.705 | Z75: =VLOOKUP(H75,[1]Struc_communautaires!C62:H155,2,FALSE) -> 1 | AA75: =Z75*[1]Hypothèses!$J$49 -> 1060 | AB75: =VLOOKUP(H75,[1]Struc_communautaires!C62:H155,3,FALSE) -> 1 | AC75: =AB75*[1]Hypothèses!$J$49 -> 1060 | AD75: =VLOOKUP(H75,[1]Struc_communautaires!C62:H155,4,FALSE) -> 1 | AE75: =AD75*[1]Hypothèses!$J$49 -> 1060 | AH75: =VLOOKUP(H75,[1]Struc_communautaires!C62:H155,5,FALSE) -> 0 | AI75: =AH75*[1]Hypothèses!$J$49 -> 0 | AJ75: =VLOOKUP(H75,[1]Struc_communautaires!C62:H155,6,FALSE) -> 14 | AK75: =AJ75*[1]Hypothèses!$F$49 -> 5040 | AL75: 8220 | AM75: =(Z75*[1]Hypothèses!$L$62+AB75*[1]Hypothèses!$L$65+AD75*[1]Hypothèses!$L$63+AF75*[1]Hypothèses!$L$64+AH75*[1]Hypothèses!$L$66+AJ75*[1]Hypothèses!$E$49)/1000 -> 0.998 | AN75: 65 | AO75: =AP75/(VLOOKUP(E75,[1]Hypothèses!$S$26:$U$32,2,FALSE)*[1]Hypothèses!$AA$26) -> 1291.264388 | AP75: =(VLOOKUP(E75,[1]Hypothèses!$W$26:$X$32,2,FALSE)*[1]Hypothèses!$Y$26*[1]Hypothèses!$AB$26*K75)/([1]Hypothèses!$Z$26*1000) -> 6612.564933 | AQ75: =AP75/[1]Hypothèses!$AC$26 -> 1653.141233 | AR75: =(AS75*[1]Hypothèses!$I$53)*1000 -> 24000 | AS75: =ROUND(IF(K75<[1]Hypothèses!$J$53,1,K75/[1]Hypothèses!$J$53),0) -> 1 | AT75: =(AU75*[1]Hypothèses!$I$54)*1000 -> 24000 | AU75: =ROUND(IF(K75<[1]Hypothèses!$J$54,1,K75/[1]Hypothèses!$J$54),0) -> 1 | AV75: =(AW75*[1]Hypothèses!$I$55)*1000 -> 9600 | AW75: =[1]Hypothèses!$J$55 -> 3 | AX75: =(AY75*[1]Hypothèses!$I$56)*1000 -> 1600 | AY75: =ROUND(IF(K75<[1]Hypothèses!$J$56,0,K75/[1]Hypothèses!$J$56),0) -> 1 | BF75: 65812.56493 | BG75: =(AQ75+AS75*[1]Hypothèses!$G$53*1000+AU75*[1]Hypothèses!$G$54*1000+AW75*[1]Hypothèses!$G$55*1000+AY75*[1]Hypothèses!$G$56)/1000 -> 14.85334123 | BH75: 2 | BI75: 301192.5649 | BJ75: =(BI75/(VLOOKUP(E75,[1]Hypothèses!$S$26:$U$32,2,FALSE)*[1]Hypothèses!$X$4))/1000 -> 64.84267211 | BK75: =(BI75/(VLOOKUP(E75,[1]Hypothèses!$S$26:$U$32,3,FALSE)*[1]Hypothèses!$X$4))/1000 -> 70.58375857 | BL75: 54.55634123 | BM75: =BL75*[1]Hypothèses!$X$12/[1]Hypothèses!$W$12 -> 51.52543339 | BN75: =BL75*[1]Hypothèses!$W$8*[1]Hypothèses!$X$12 -> 55.64746806 | BO75: =BJ75*[1]Hypothèses!$X$8 -> 71.32693932 | BP75: =(BI75/1000)*[1]Hypothèses!$Z$4/([1]Hypothèses!$AA$4*[1]Hypothèses!$AB$4) -> 903.9392705 | BQ75: =BP75/[1]Hypothèses!$AB$8 -> 150.6565451 | BS75: =(('[1]Hypo Cables'!$J$4*'[1]Hypo Cables'!$M$4)/('[1]Fhypo DPP'!BL94*[1]Hypothèses!$X$12*('[1]Hypo Cables'!$M$24+'[1]Hypo Cables'!$M$25*'[1]Hypo Cables'!$J$14)))/1000 -> 0.3276304191 | BT75: =(('[1]Hypo Cables'!$J$4*'[1]Hypo Cables'!$M$4)/('[1]Fhypo DPP'!BL94*[1]Hypothèses!$X$12*('[1]Hypo Cables'!$M$27+'[1]Hypo Cables'!$M$28*'[1]Hypo Cables'!$J$14)))/1000 -> 0.6093528103 | BW75: =BQ75*[1]Hypothèses!$AC$8 -> 50.21884836 | BX75: =4*SQRT(BJ75*[1]Hypothèses!$AF$3) -> 218.6485886 | BY75: 54.66214715
D76: SALENSOL | E76: FATICK | F76: FOUNDIOUGNE | G76: NIASSENE | H76: THIAMENE KEUR SOULEYMANE | I76: 500 | J76: 34 | K76: =ROUND(I76*(1+[1]Hypothèses!$T$4)^([1]Hypothèses!$S$4-[1]Hypothèses!$R$4),0) -> 531 | L76: =ROUND(J76*(1+[1]Hypothèses!$T$4)^([1]Hypothèses!$S$4-[1]Hypothèses!$R$4),0) -> 36 | M76: 31 | N76: =ROUND((L76*[1]Hypothèses!$U$4-'[1]Fhypo DPP'!M95)*[1]Hypothèses!$G$24+'[1]Fhypo DPP'!M95*[1]Hypothèses!$G$25,0) -> 2 | O76: =ROUND((L76*[1]Hypothèses!$U$4-'[1]Fhypo DPP'!M95)*[1]Hypothèses!$H$24+'[1]Fhypo DPP'!M95*[1]Hypothèses!$H$25,0) -> 4 | P76: =ROUND((L76*[1]Hypothèses!$U$4-'[1]Fhypo DPP'!M95)*[1]Hypothèses!$I$24+'[1]Fhypo DPP'!M95*[1]Hypothèses!$I$25,0) -> 4 | Q76: =ROUND((L76*[1]Hypothèses!$U$4-'[1]Fhypo DPP'!M95)*[1]Hypothèses!$J$24+'[1]Fhypo DPP'!M95*[1]Hypothèses!$J$25,0) -> 18 | R76: 28 | S76: =N76*[1]Hypothèses!$H$49 -> 668 | T76: =O76*[1]Hypothèses!$J$49 -> 4240 | U76: =P76*[1]Hypothèses!$L$49 -> 6960 | V76: =Q76*[1]Hypothèses!$N$49 -> 103356 | W76: 115224 | X76: =(N76*[1]Hypothèses!$G$49+O76*[1]Hypothèses!$I$49+P76*[1]Hypothèses!$K$49+Q76*[1]Hypothèses!$M$49)/1000 -> 19.542 | Z76: =VLOOKUP(H76,[1]Struc_communautaires!C63:H156,2,FALSE) -> 3 | AA76: =Z76*[1]Hypothèses!$J$49 -> 3180 | AB76: =VLOOKUP(H76,[1]Struc_communautaires!C63:H156,3,FALSE) -> 1 | AC76: =AB76*[1]Hypothèses!$J$49 -> 1060 | AD76: =VLOOKUP(H76,[1]Struc_communautaires!C63:H156,4,FALSE) -> 1 | AE76: =AD76*[1]Hypothèses!$J$49 -> 1060 | AH76: =VLOOKUP(H76,[1]Struc_communautaires!C63:H156,5,FALSE) -> 0 | AI76: =AH76*[1]Hypothèses!$J$49 -> 0 | AJ76: =VLOOKUP(H76,[1]Struc_communautaires!C63:H156,6,FALSE) -> 9.5 | AK76: =AJ76*[1]Hypothèses!$F$49 -> 3420 | AL76: 8720 | AM76: =(Z76*[1]Hypothèses!$L$62+AB76*[1]Hypothèses!$L$65+AD76*[1]Hypothèses!$L$63+AF76*[1]Hypothèses!$L$64+AH76*[1]Hypothèses!$L$66+AJ76*[1]Hypothèses!$E$49)/1000 -> 1.341 | AN76: 37 | AO76: =AP76/(VLOOKUP(E76,[1]Hypothèses!$S$26:$U$32,2,FALSE)*[1]Hypothèses!$AA$26) -> 1102.349502 | AP76: =(VLOOKUP(E76,[1]Hypothèses!$W$26:$X$32,2,FALSE)*[1]Hypothèses!$Y$26*[1]Hypothèses!$AB$26*K76)/([1]Hypothèses!$Z$26*1000) -> 5645.1318 | AQ76: =AP76/[1]Hypothèses!$AC$26 -> 1411.28295 | AR76: =(AS76*[1]Hypothèses!$I$53)*1000 -> 24000 | AS76: =ROUND(IF(K76<[1]Hypothèses!$J$53,1,K76/[1]Hypothèses!$J$53),0) -> 1 | AT76: =(AU76*[1]Hypothèses!$I$54)*1000 -> 24000 | AU76: =ROUND(IF(K76<[1]Hypothèses!$J$54,1,K76/[1]Hypothèses!$J$54),0) -> 1 | AV76: =(AW76*[1]Hypothèses!$I$55)*1000 -> 9600 | AW76: =[1]Hypothèses!$J$55 -> 3 | AX76: =(AY76*[1]Hypothèses!$I$56)*1000 -> 1600 | AY76: =ROUND(IF(K76<[1]Hypothèses!$J$56,0,K76/[1]Hypothèses!$J$56),0) -> 1 | BF76: 64845.1318 | BG76: =(AQ76+AS76*[1]Hypothèses!$G$53*1000+AU76*[1]Hypothèses!$G$54*1000+AW76*[1]Hypothèses!$G$55*1000+AY76*[1]Hypothèses!$G$56)/1000 -> 14.61148295 | BH76: 2 | BI76: 188789.1318 | BJ76: =(BI76/(VLOOKUP(E76,[1]Hypothèses!$S$26:$U$32,2,FALSE)*[1]Hypothèses!$X$4))/1000 -> 40.64373825 | BK76: =(BI76/(VLOOKUP(E76,[1]Hypothèses!$S$26:$U$32,3,FALSE)*[1]Hypothèses!$X$4))/1000 -> 44.24228235 | BL76: 35.49448295 | BM76: =BL76*[1]Hypothèses!$X$12/[1]Hypothèses!$W$12 -> 33.52256723 | BN76: =BL76*[1]Hypothèses!$W$8*[1]Hypothèses!$X$12 -> 36.20437261 | BO76: =BJ76*[1]Hypothèses!$X$8 -> 44.70811207 | BP76: =(BI76/1000)*[1]Hypothèses!$Z$4/([1]Hypothèses!$AA$4*[1]Hypothèses!$AB$4) -> 566.594033 | BQ76: =BP76/[1]Hypothèses!$AB$8 -> 94.43233884 | BS76: =(('[1]Hypo Cables'!$J$4*'[1]Hypo Cables'!$M$4)/('[1]Fhypo DPP'!BL95*[1]Hypothèses!$X$12*('[1]Hypo Cables'!$M$24+'[1]Hypo Cables'!$M$25*'[1]Hypo Cables'!$J$14)))/1000 -> 0.2918299847 | BT76: =(('[1]Hypo Cables'!$J$4*'[1]Hypo Cables'!$M$4)/('[1]Fhypo DPP'!BL95*[1]Hypothèses!$X$12*('[1]Hypo Cables'!$M$27+'[1]Hypo Cables'!$M$28*'[1]Hypo Cables'!$J$14)))/1000 -> 0.5427683479 | BW76: =BQ76*[1]Hypothèses!$AC$8 -> 31.47744628 | BX76: =4*SQRT(BJ76*[1]Hypothèses!$AF$3) -> 173.10637 | BY76: 43.2765925
D77: SOUS TOTAL SALENSOL | M77: =SUM(M67:M76) -> 341
D79: Sud Solar System | E79: SEDHIOU | F79: SEDHIOU | G79: SAKAR | H79: BABADI | I79: 830 | J79: 75 | K79: =ROUND(I79*(1+[1]Hypothèses!$T$4)^([1]Hypothèses!$S$4-[1]Hypothèses!$R$4),0) -> 881 | L79: =ROUND(J79*(1+[1]Hypothèses!$T$4)^([1]Hypothèses!$S$4-[1]Hypothèses!$R$4),0) -> 80 | M79: 33 | N79: =ROUND((L79*[1]Hypothèses!$U$4-'[1]Fhypo DPP'!M6)*[1]Hypothèses!$G$24+'[1]Fhypo DPP'!M6*[1]Hypothèses!$G$25,0) -> 6 | O79: =ROUND((L79*[1]Hypothèses!$U$4-'[1]Fhypo DPP'!M6)*[1]Hypothèses!$H$24+'[1]Fhypo DPP'!M6*[1]Hypothèses!$H$25,0) -> 11 | P79: =ROUND((L79*[1]Hypothèses!$U$4-'[1]Fhypo DPP'!M6)*[1]Hypothèses!$I$24+'[1]Fhypo DPP'!M6*[1]Hypothèses!$I$25,0) -> 9 | Q79: =ROUND((L79*[1]Hypothèses!$U$4-'[1]Fhypo DPP'!M6)*[1]Hypothèses!$J$24+'[1]Fhypo DPP'!M6*[1]Hypothèses!$J$25,0) -> 38 | R79: 64 | S79: =N79*[1]Hypothèses!$H$49 -> 2004 | T79: =O79*[1]Hypothèses!$J$49 -> 11660 | U79: =P79*[1]Hypothèses!$L$49 -> 15660 | V79: =Q79*[1]Hypothèses!$N$49 -> 218196 | W79: 247520 | X79: =(N79*[1]Hypothèses!$G$49+O79*[1]Hypothèses!$I$49+P79*[1]Hypothèses!$K$49+Q79*[1]Hypothèses!$M$49)/1000 -> 42.205 | Z79: =VLOOKUP(H79,[1]Struc_communautaires!C64:H157,2,FALSE) -> 2 | AA79: =Z79*[1]Hypothèses!$J$49 -> 2120 | AB79: =VLOOKUP(H79,[1]Struc_communautaires!C64:H157,3,FALSE) -> 1 | AC79: =AB79*[1]Hypothèses!$J$49 -> 1060 | AD79: =VLOOKUP(H79,[1]Struc_communautaires!C64:H157,4,FALSE) -> 0 | AE79: =AD79*[1]Hypothèses!$J$49 -> 0 | AH79: =VLOOKUP(H79,[1]Struc_communautaires!C64:H157,5,FALSE) -> 0 | AI79: =AH79*[1]Hypothèses!$J$49 -> 0 | AJ79: =VLOOKUP(H79,[1]Struc_communautaires!C64:H157,6,FALSE) -> 15 | AK79: =AJ79*[1]Hypothèses!$F$49 -> 5400 | AL79: 8580 | AM79: =(Z79*[1]Hypothèses!$L$62+AB79*[1]Hypothèses!$L$65+AD79*[1]Hypothèses!$L$63+AF79*[1]Hypothèses!$L$64+AH79*[1]Hypothèses!$L$66+AJ79*[1]Hypothèses!$E$49)/1000 -> 1.167 | AN79: 72 | AO79: =AP79/(VLOOKUP(E79,[1]Hypothèses!$S$26:$U$32,2,FALSE)*[1]Hypothèses!$AA$26) -> 2442.969092 | AP79: =(VLOOKUP(E79,[1]Hypothèses!$W$26:$X$32,2,FALSE)*[1]Hypothèses!$Y$26*[1]Hypothèses!$AB$26*K79)/([1]Hypothèses!$Z$26*1000) -> 12510.44472 | AQ79: =AP79/[1]Hypothèses!$AC$26 -> 3127.611181 | AR79: =(AS79*[1]Hypothèses!$I$53)*1000 -> 24000 | AS79: =ROUND(IF(K79<[1]Hypothèses!$J$53,1,K79/[1]Hypothèses!$J$53),0) -> 1 | AT79: =(AU79*[1]Hypothèses!$I$54)*1000 -> 24000 | AU79: =ROUND(IF(K79<[1]Hypothèses!$J$54,1,K79/[1]Hypothèses!$J$54),0) -> 1 | AV79: =(AW79*[1]Hypothèses!$I$55)*1000 -> 9600 | AW79: =[1]Hypothèses!$J$55 -> 3 | AX79: =(AY79*[1]Hypothèses!$I$56)*1000 -> 3200 | AY79: =ROUND(IF(K79<[1]Hypothèses!$J$56,0,K79/[1]Hypothèses!$J$56),0) -> 2 | BF79: 73310.44472 | BG79: =(AQ79+AS79*[1]Hypothèses!$G$53*1000+AU79*[1]Hypothèses!$G$54*1000+AW79*[1]Hypothèses!$G$55*1000+AY79*[1]Hypothèses!$G$56)/1000 -> 16.32801118 | BH79: 2 | BI79: 329410.4447 | BJ79: =(BI79/(VLOOKUP(E79,[1]Hypothèses!$S$26:$U$32,2,FALSE)*[1]Hypothèses!$X$4))/1000 -> 70.91759871 | BK79: =(BI79/(VLOOKUP(E79,[1]Hypothèses!$S$26:$U$32,3,FALSE)*[1]Hypothèses!$X$4))/1000 -> 87.05923647 | BL79: 59.70001118 | BM79: =BL79*[1]Hypothèses!$X$12/[1]Hypothèses!$W$12 -> 56.38334389 | BN79: =BL79*[1]Hypothèses!$W$8*[1]Hypothèses!$X$12 -> 60.8940114 | BO79: =BJ79*[1]Hypothèses!$X$8 -> 78.00935859 | BP79: =(BI79/1000)*[1]Hypothèses!$Z$4/([1]Hypothèses!$AA$4*[1]Hypothèses!$AB$4) -> 988.6267849 | BQ79: =BP79/[1]Hypothèses!$AB$8 -> 164.7711308 | BS79: =(('[1]Hypo Cables'!$J$4*'[1]Hypo Cables'!$M$4)/('[1]Fhypo DPP'!BL6*[1]Hypothèses!$X$12*('[1]Hypo Cables'!$M$24+'[1]Hypo Cables'!$M$25*'[1]Hypo Cables'!$J$14)))/1000 -> 0.1269099074 | BT79: =(('[1]Hypo Cables'!$J$4*'[1]Hypo Cables'!$M$4)/('[1]Fhypo DPP'!BL6*[1]Hypothèses!$X$12*('[1]Hypo Cables'!$M$27+'[1]Hypo Cables'!$M$28*'[1]Hypo Cables'!$J$14)))/1000 -> 0.2360370229 | BW79: =BQ79*[1]Hypothèses!$AC$8 -> 54.92371027 | BX79: =4*SQRT(BJ79*[1]Hypothèses!$AF$3) -> 228.6615997 | BY79: 57.16539993
D80: Sud Solar System | E80: SEDHIOU | F80: BOUNKELING | G80: Djinani | H80: BADIOCOUNDA | I80: 600 | J80: 51 | K80: =ROUND(I80*(1+[1]Hypothèses!$T$4)^([1]Hypothèses!$S$4-[1]Hypothèses!$R$4),0) -> 637 | L80: =ROUND(J80*(1+[1]Hypothèses!$T$4)^([1]Hypothèses!$S$4-[1]Hypothèses!$R$4),0) -> 54 | M80: 23 | N80: =ROUND((L80*[1]Hypothèses!$U$4-'[1]Fhypo DPP'!M8)*[1]Hypothèses!$G$24+'[1]Fhypo DPP'!M8*[1]Hypothèses!$G$25,0) -> 4 | O80: =ROUND((L80*[1]Hypothèses!$U$4-'[1]Fhypo DPP'!M8)*[1]Hypothèses!$H$24+'[1]Fhypo DPP'!M8*[1]Hypothèses!$H$25,0) -> 7 | P80: =ROUND((L80*[1]Hypothèses!$U$4-'[1]Fhypo DPP'!M8)*[1]Hypothèses!$I$24+'[1]Fhypo DPP'!M8*[1]Hypothèses!$I$25,0) -> 6 | Q80: =ROUND((L80*[1]Hypothèses!$U$4-'[1]Fhypo DPP'!M8)*[1]Hypothèses!$J$24+'[1]Fhypo DPP'!M8*[1]Hypothèses!$J$25,0) -> 26 | R80: 43 | S80: =N80*[1]Hypothèses!$H$49 -> 1336 | T80: =O80*[1]Hypothèses!$J$49 -> 7420 | U80: =P80*[1]Hypothèses!$L$49 -> 10440 | V80: =Q80*[1]Hypothèses!$N$49 -> 149292 | W80: 168488 | X80: =(N80*[1]Hypothèses!$G$49+O80*[1]Hypothèses!$I$49+P80*[1]Hypothèses!$K$49+Q80*[1]Hypothèses!$M$49)/1000 -> 28.695 | Z80: =VLOOKUP(H80,[1]Struc_communautaires!C65:H158,2,FALSE) -> 1 | AA80: =Z80*[1]Hypothèses!$J$49 -> 1060 | AB80: =VLOOKUP(H80,[1]Struc_communautaires!C65:H158,3,FALSE) -> 1 | AC80: =AB80*[1]Hypothèses!$J$49 -> 1060 | AD80: =VLOOKUP(H80,[1]Struc_communautaires!C65:H158,4,FALSE) -> 0 | AE80: =AD80*[1]Hypothèses!$J$49 -> 0 | AH80: =VLOOKUP(H80,[1]Struc_communautaires!C65:H158,5,FALSE) -> 0 | AI80: =AH80*[1]Hypothèses!$J$49 -> 0 | AJ80: =VLOOKUP(H80,[1]Struc_communautaires!C65:H158,6,FALSE) -> 11.75 | AK80: =AJ80*[1]Hypothèses!$F$49 -> 4230 | AL80: 6350 | AM80: =(Z80*[1]Hypothèses!$L$62+AB80*[1]Hypothèses!$L$65+AD80*[1]Hypothèses!$L$63+AF80*[1]Hypothèses!$L$64+AH80*[1]Hypothèses!$L$66+AJ80*[1]Hypothèses!$E$49)/1000 -> 0.8305 | AN80: 49 | AO80: =AP80/(VLOOKUP(E80,[1]Hypothèses!$S$26:$U$32,2,FALSE)*[1]Hypothèses!$AA$26) -> 1766.369253 | AP80: =(VLOOKUP(E80,[1]Hypothèses!$W$26:$X$32,2,FALSE)*[1]Hypothèses!$Y$26*[1]Hypothèses!$AB$26*K80)/([1]Hypothèses!$Z$26*1000) -> 9045.576944 | AQ80: =AP80/[1]Hypothèses!$AC$26 -> 2261.394236 | AR80: =(AS80*[1]Hypothèses!$I$53)*1000 -> 24000 | AS80: =ROUND(IF(K80<[1]Hypothèses!$J$53,1,K80/[1]Hypothèses!$J$53),0) -> 1 | AT80: =(AU80*[1]Hypothèses!$I$54)*1000 -> 24000 | AU80: =ROUND(IF(K80<[1]Hypothèses!$J$54,1,K80/[1]Hypothèses!$J$54),0) -> 1 | AV80: =(AW80*[1]Hypothèses!$I$55)*1000 -> 9600 | AW80: =[1]Hypothèses!$J$55 -> 3 | AX80: =(AY80*[1]Hypothèses!$I$56)*1000 -> 1600 | AY80: =ROUND(IF(K80<[1]Hypothèses!$J$56,0,K80/[1]Hypothèses!$J$56),0) -> 1 | BF80: 68245.57694 | BG80: =(AQ80+AS80*[1]Hypothèses!$G$53*1000+AU80*[1]Hypothèses!$G$54*1000+AW80*[1]Hypothèses!$G$55*1000+AY80*[1]Hypothèses!$G$56)/1000 -> 15.46159424 | BH80: 2 | BI80: 243083.5769 | BJ80: =(BI80/(VLOOKUP(E80,[1]Hypothèses!$S$26:$U$32,2,FALSE)*[1]Hypothèses!$X$4))/1000 -> 52.33259552 | BK80: =(BI80/(VLOOKUP(E80,[1]Hypothèses!$S$26:$U$32,3,FALSE)*[1]Hypothèses!$X$4))/1000 -> 64.24407892 | BL80: 44.98709424 | BM80: =BL80*[1]Hypothèses!$X$12/[1]Hypothèses!$W$12 -> 42.48781122 | BN80: =BL80*[1]Hypothèses!$W$8*[1]Hypothèses!$X$12 -> 45.88683612 | BO80: =BJ80*[1]Hypothèses!$X$8 -> 57.56585507 | BP80: =(BI80/1000)*[1]Hypothèses!$Z$4/([1]Hypothèses!$AA$4*[1]Hypothèses!$AB$4) -> 729.5425479 | BQ80: =BP80/[1]Hypothèses!$AB$8 -> 121.5904246 | BS80: =(('[1]Hypo Cables'!$J$4*'[1]Hypo Cables'!$M$4)/('[1]Fhypo DPP'!BL8*[1]Hypothèses!$X$12*('[1]Hypo Cables'!$M$24+'[1]Hypo Cables'!$M$25*'[1]Hypo Cables'!$J$14)))/1000 -> 0.328048834 | BT80: =(('[1]Hypo Cables'!$J$4*'[1]Hypo Cables'!$M$4)/('[1]Fhypo DPP'!BL8*[1]Hypothèses!$X$12*('[1]Hypo Cables'!$M$27+'[1]Hypo Cables'!$M$28*'[1]Hypo Cables'!$J$14)))/1000 -> 0.6101310114 | BW80: =BQ80*[1]Hypothèses!$AC$8 -> 40.53014155 | BX80: =4*SQRT(BJ80*[1]Hypothèses!$AF$3) -> 196.4275338 | BY80: 49.10688344
D81: Sud Solar System | E81: SEDHIOU | F81: SEDHIOU | G81: SAKAR | H81: BANDOUGA | I81: 1200 | J81: 70 | K81: =ROUND(I81*(1+[1]Hypothèses!$T$4)^([1]Hypothèses!$S$4-[1]Hypothèses!$R$4),0) -> 1273 | L81: =ROUND(J81*(1+[1]Hypothèses!$T$4)^([1]Hypothèses!$S$4-[1]Hypothèses!$R$4),0) -> 74 | M81: 46 | N81: =ROUND((L81*[1]Hypothèses!$U$4-'[1]Fhypo DPP'!M12)*[1]Hypothèses!$G$24+'[1]Fhypo DPP'!M12*[1]Hypothèses!$G$25,0) -> 5 | O81: =ROUND((L81*[1]Hypothèses!$U$4-'[1]Fhypo DPP'!M12)*[1]Hypothèses!$H$24+'[1]Fhypo DPP'!M12*[1]Hypothèses!$H$25,0) -> 10 | P81: =ROUND((L81*[1]Hypothèses!$U$4-'[1]Fhypo DPP'!M12)*[1]Hypothèses!$I$24+'[1]Fhypo DPP'!M12*[1]Hypothèses!$I$25,0) -> 8 | Q81: =ROUND((L81*[1]Hypothèses!$U$4-'[1]Fhypo DPP'!M12)*[1]Hypothèses!$J$24+'[1]Fhypo DPP'!M12*[1]Hypothèses!$J$25,0) -> 36 | R81: 59 | S81: =N81*[1]Hypothèses!$H$49 -> 1670 | T81: =O81*[1]Hypothèses!$J$49 -> 10600 | U81: =P81*[1]Hypothèses!$L$49 -> 13920 | V81: =Q81*[1]Hypothèses!$N$49 -> 206712 | W81: 232902 | X81: =(N81*[1]Hypothèses!$G$49+O81*[1]Hypothèses!$I$49+P81*[1]Hypothèses!$K$49+Q81*[1]Hypothèses!$M$49)/1000 -> 39.662 | Z81: =VLOOKUP(H81,[1]Struc_communautaires!C66:H159,2,FALSE) -> 2 | AA81: =Z81*[1]Hypothèses!$J$49 -> 2120 | AB81: =VLOOKUP(H81,[1]Struc_communautaires!C66:H159,3,FALSE) -> 1 | AC81: =AB81*[1]Hypothèses!$J$49 -> 1060 | AD81: =VLOOKUP(H81,[1]Struc_communautaires!C66:H159,4,FALSE) -> 0 | AE81: =AD81*[1]Hypothèses!$J$49 -> 0 | AH81: =VLOOKUP(H81,[1]Struc_communautaires!C66:H159,5,FALSE) -> 0 | AI81: =AH81*[1]Hypothèses!$J$49 -> 0 | AJ81: =VLOOKUP(H81,[1]Struc_communautaires!C66:H159,6,FALSE) -> 14.25 | AK81: =AJ81*[1]Hypothèses!$F$49 -> 5130 | AL81: 8310 | AM81: =(Z81*[1]Hypothèses!$L$62+AB81*[1]Hypothèses!$L$65+AD81*[1]Hypothèses!$L$63+AF81*[1]Hypothèses!$L$64+AH81*[1]Hypothèses!$L$66+AJ81*[1]Hypothèses!$E$49)/1000 -> 1.1445 | AN81: 68 | AO81: =AP81/(VLOOKUP(E81,[1]Hypothèses!$S$26:$U$32,2,FALSE)*[1]Hypothèses!$AA$26) -> 3529.965556 | AP81: =(VLOOKUP(E81,[1]Hypothèses!$W$26:$X$32,2,FALSE)*[1]Hypothèses!$Y$26*[1]Hypothèses!$AB$26*K81)/([1]Hypothèses!$Z$26*1000) -> 18076.95361 | AQ81: =AP81/[1]Hypothèses!$AC$26 -> 4519.238403 | AR81: =(AS81*[1]Hypothèses!$I$53)*1000 -> 24000 | AS81: =ROUND(IF(K81<[1]Hypothèses!$J$53,1,K81/[1]Hypothèses!$J$53),0) -> 1 | AT81: =(AU81*[1]Hypothèses!$I$54)*1000 -> 24000 | AU81: =ROUND(IF(K81<[1]Hypothèses!$J$54,1,K81/[1]Hypothèses!$J$54),0) -> 1 | AV81: =(AW81*[1]Hypothèses!$I$55)*1000 -> 9600 | AW81: =[1]Hypothèses!$J$55 -> 3 | AX81: =(AY81*[1]Hypothèses!$I$56)*1000 -> 4800 | AY81: =ROUND(IF(K81<[1]Hypothèses!$J$56,0,K81/[1]Hypothèses!$J$56),0) -> 3 | BF81: 80476.95361 | BG81: =(AQ81+AS81*[1]Hypothèses!$G$53*1000+AU81*[1]Hypothèses!$G$54*1000+AW81*[1]Hypothèses!$G$55*1000+AY81*[1]Hypothèses!$G$56)/1000 -> 17.7198384 | BH81: 2 | BI81: 321688.9536 | BJ81: =(BI81/(VLOOKUP(E81,[1]Hypothèses!$S$26:$U$32,2,FALSE)*[1]Hypothèses!$X$4))/1000 -> 69.25526646 | BK81: =(BI81/(VLOOKUP(E81,[1]Hypothèses!$S$26:$U$32,3,FALSE)*[1]Hypothèses!$X$4))/1000 -> 85.01853882 | BL81: 58.5263384 | BM81: =BL81*[1]Hypothèses!$X$12/[1]Hypothèses!$W$12 -> 55.27487516 | BN81: =BL81*[1]Hypothèses!$W$8*[1]Hypothèses!$X$12 -> 59.69686517 | BO81: =BJ81*[1]Hypothèses!$X$8 -> 76.1807931 | BP81: =(BI81/1000)*[1]Hypothèses!$Z$4/([1]Hypothèses!$AA$4*[1]Hypothèses!$AB$4) -> 965.4530421 | BQ81: =BP81/[1]Hypothèses!$AB$8 -> 160.9088403 | BS81: =(('[1]Hypo Cables'!$J$4*'[1]Hypo Cables'!$M$4)/('[1]Fhypo DPP'!BL12*[1]Hypothèses!$X$12*('[1]Hypo Cables'!$M$24+'[1]Hypo Cables'!$M$25*'[1]Hypo Cables'!$J$14)))/1000 -> 0.1822155743 | BT81: =(('[1]Hypo Cables'!$J$4*'[1]Hypo Cables'!$M$4)/('[1]Fhypo DPP'!BL12*[1]Hypothèses!$X$12*('[1]Hypo Cables'!$M$27+'[1]Hypo Cables'!$M$28*'[1]Hypo Cables'!$J$14)))/1000 -> 0.3388988502 | BW81: =BQ81*[1]Hypothèses!$AC$8 -> 53.63628011 | BX81: =4*SQRT(BJ81*[1]Hypothèses!$AF$3) -> 225.9657559 | BY81: 56.49143898
D82: Sud Solar System | E82: FATICK | F82: FOUNDIOUGNE | G82: DJILOR | H82: BANGALERE | I82: 940 | J82: 74 | K82: =ROUND(I82*(1+[1]Hypothèses!$T$4)^([1]Hypothèses!$S$4-[1]Hypothèses!$R$4),0) -> 998 | L82: =ROUND(J82*(1+[1]Hypothèses!$T$4)^([1]Hypothèses!$S$4-[1]Hypothèses!$R$4),0) -> 79 | M82: 42 | N82: =ROUND((L82*[1]Hypothèses!$U$4-'[1]Fhypo DPP'!M13)*[1]Hypothèses!$G$24+'[1]Fhypo DPP'!M13*[1]Hypothèses!$G$25,0) -> 6 | O82: =ROUND((L82*[1]Hypothèses!$U$4-'[1]Fhypo DPP'!M13)*[1]Hypothèses!$H$24+'[1]Fhypo DPP'!M13*[1]Hypothèses!$H$25,0) -> 11 | P82: =ROUND((L82*[1]Hypothèses!$U$4-'[1]Fhypo DPP'!M13)*[1]Hypothèses!$I$24+'[1]Fhypo DPP'!M13*[1]Hypothèses!$I$25,0) -> 9 | Q82: =ROUND((L82*[1]Hypothèses!$U$4-'[1]Fhypo DPP'!M13)*[1]Hypothèses!$J$24+'[1]Fhypo DPP'!M13*[1]Hypothèses!$J$25,0) -> 37 | R82: 63 | S82: =N82*[1]Hypothèses!$H$49 -> 2004 | T82: =O82*[1]Hypothèses!$J$49 -> 11660 | U82: =P82*[1]Hypothèses!$L$49 -> 15660 | V82: =Q82*[1]Hypothèses!$N$49 -> 212454 | W82: 241778 | X82: =(N82*[1]Hypothèses!$G$49+O82*[1]Hypothèses!$I$49+P82*[1]Hypothèses!$K$49+Q82*[1]Hypothèses!$M$49)/1000 -> 41.248 | Z82: =VLOOKUP(H82,[1]Struc_communautaires!C67:H160,2,FALSE) -> 1 | AA82: =Z82*[1]Hypothèses!$J$49 -> 1060 | AB82: =VLOOKUP(H82,[1]Struc_communautaires!C67:H160,3,FALSE) -> 2 | AC82: =AB82*[1]Hypothèses!$J$49 -> 2120 | AD82: =VLOOKUP(H82,[1]Struc_communautaires!C67:H160,4,FALSE) -> 1 | AE82: =AD82*[1]Hypothèses!$J$49 -> 1060 | AH82: =VLOOKUP(H82,[1]Struc_communautaires!C67:H160,5,FALSE) -> 0 | AI82: =AH82*[1]Hypothèses!$J$49 -> 0 | AJ82: =VLOOKUP(H82,[1]Struc_communautaires!C67:H160,6,FALSE) -> 14.875 | AK82: =AJ82*[1]Hypothèses!$F$49 -> 5355 | AL82: 9595 | AM82: =(Z82*[1]Hypothèses!$L$62+AB82*[1]Hypothèses!$L$65+AD82*[1]Hypothèses!$L$63+AF82*[1]Hypothèses!$L$64+AH82*[1]Hypothèses!$L$66+AJ82*[1]Hypothèses!$E$49)/1000 -> 1.26325 | AN82: 72 | AO82: =AP82/(VLOOKUP(E82,[1]Hypothèses!$S$26:$U$32,2,FALSE)*[1]Hypothèses!$AA$26) -> 2071.835787 | AP82: =(VLOOKUP(E82,[1]Hypothèses!$W$26:$X$32,2,FALSE)*[1]Hypothèses!$Y$26*[1]Hypothèses!$AB$26*K82)/([1]Hypothèses!$Z$26*1000) -> 10609.87107 | AQ82: =AP82/[1]Hypothèses!$AC$26 -> 2652.467767 | AR82: =(AS82*[1]Hypothèses!$I$53)*1000 -> 24000 | AS82: =ROUND(IF(K82<[1]Hypothèses!$J$53,1,K82/[1]Hypothèses!$J$53),0) -> 1 | AT82: =(AU82*[1]Hypothèses!$I$54)*1000 -> 24000 | AU82: =ROUND(IF(K82<[1]Hypothèses!$J$54,1,K82/[1]Hypothèses!$J$54),0) -> 1 | AV82: =(AW82*[1]Hypothèses!$I$55)*1000 -> 9600 | AW82: =[1]Hypothèses!$J$55 -> 3 | AX82: =(AY82*[1]Hypothèses!$I$56)*1000 -> 3200 | AY82: =ROUND(IF(K82<[1]Hypothèses!$J$56,0,K82/[1]Hypothèses!$J$56),0) -> 2 | BF82: 71409.87107 | BG82: =(AQ82+AS82*[1]Hypothèses!$G$53*1000+AU82*[1]Hypothèses!$G$54*1000+AW82*[1]Hypothèses!$G$55*1000+AY82*[1]Hypothèses!$G$56)/1000 -> 15.85286777 | BH82: 2 | BI82: 322782.8711 | BJ82: =(BI82/(VLOOKUP(E82,[1]Hypothèses!$S$26:$U$32,2,FALSE)*[1]Hypothèses!$X$4))/1000 -> 69.49077204 | BK82: =(BI82/(VLOOKUP(E82,[1]Hypothèses!$S$26:$U$32,3,FALSE)*[1]Hypothèses!$X$4))/1000 -> 75.64339527 | BL82: 58.36411777 | BM82: =BL82*[1]Hypothèses!$X$12/[1]Hypothèses!$W$12 -> 55.12166678 | BN82: =BL82*[1]Hypothèses!$W$8*[1]Hypothèses!$X$12 -> 59.53140012 | BO82: =BJ82*[1]Hypothèses!$X$8 -> 76.43984925 | BP82: =(BI82/1000)*[1]Hypothèses!$Z$4/([1]Hypothèses!$AA$4*[1]Hypothèses!$AB$4) -> 968.7361076 | BQ82: =BP82/[1]Hypothèses!$AB$8 -> 161.4560179 | BS82: =(('[1]Hypo Cables'!$J$4*'[1]Hypo Cables'!$M$4)/('[1]Fhypo DPP'!BL13*[1]Hypothèses!$X$12*('[1]Hypo Cables'!$M$24+'[1]Hypo Cables'!$M$25*'[1]Hypo Cables'!$J$14)))/1000 -> 0.1871734041 | BT82: =(('[1]Hypo Cables'!$J$4*'[1]Hypo Cables'!$M$4)/('[1]Fhypo DPP'!BL13*[1]Hypothèses!$X$12*('[1]Hypo Cables'!$M$27+'[1]Hypo Cables'!$M$28*'[1]Hypo Cables'!$J$14)))/1000 -> 0.3481198119 | BW82: =BQ82*[1]Hypothèses!$AC$8 -> 53.81867265 | BX82: =4*SQRT(BJ82*[1]Hypothèses!$AF$3) -> 226.3496331 | BY82: 56.58740828
D83: Sud Solar System | E83: SEDHIOU | F83: SEDHIOU | G83: SAKAR | H83: BANY | I83: 1227 | J83: 56 | K83: =ROUND(I83*(1+[1]Hypothèses!$T$4)^([1]Hypothèses!$S$4-[1]Hypothèses!$R$4),0) -> 1302 | L83: =ROUND(J83*(1+[1]Hypothèses!$T$4)^([1]Hypothèses!$S$4-[1]Hypothèses!$R$4),0) -> 59 | M83: 30 | N83: =ROUND((L83*[1]Hypothèses!$U$4-'[1]Fhypo DPP'!M14)*[1]Hypothèses!$G$24+'[1]Fhypo DPP'!M14*[1]Hypothèses!$G$25,0) -> 4 | O83: =ROUND((L83*[1]Hypothèses!$U$4-'[1]Fhypo DPP'!M14)*[1]Hypothèses!$H$24+'[1]Fhypo DPP'!M14*[1]Hypothèses!$H$25,0) -> 8 | P83: =ROUND((L83*[1]Hypothèses!$U$4-'[1]Fhypo DPP'!M14)*[1]Hypothèses!$I$24+'[1]Fhypo DPP'!M14*[1]Hypothèses!$I$25,0) -> 7 | Q83: =ROUND((L83*[1]Hypothèses!$U$4-'[1]Fhypo DPP'!M14)*[1]Hypothèses!$J$24+'[1]Fhypo DPP'!M14*[1]Hypothèses!$J$25,0) -> 29 | R83: 48 | S83: =N83*[1]Hypothèses!$H$49 -> 1336 | T83: =O83*[1]Hypothèses!$J$49 -> 8480 | U83: =P83*[1]Hypothèses!$L$49 -> 12180 | V83: =Q83*[1]Hypothèses!$N$49 -> 166518 | W83: 188514 | X83: =(N83*[1]Hypothèses!$G$49+O83*[1]Hypothèses!$I$49+P83*[1]Hypothèses!$K$49+Q83*[1]Hypothèses!$M$49)/1000 -> 32.095 | Z83: =VLOOKUP(H83,[1]Struc_communautaires!C68:H161,2,FALSE) -> 1 | AA83: =Z83*[1]Hypothèses!$J$49 -> 1060 | AB83: =VLOOKUP(H83,[1]Struc_communautaires!C68:H161,3,FALSE) -> 2 | AC83: =AB83*[1]Hypothèses!$J$49 -> 2120 | AD83: =VLOOKUP(H83,[1]Struc_communautaires!C68:H161,4,FALSE) -> 0 | AE83: =AD83*[1]Hypothèses!$J$49 -> 0 | AH83: =VLOOKUP(H83,[1]Struc_communautaires!C68:H161,5,FALSE) -> 0 | AI83: =AH83*[1]Hypothèses!$J$49 -> 0 | AJ83: =VLOOKUP(H83,[1]Struc_communautaires!C68:H161,6,FALSE) -> 12.375 | AK83: =AJ83*[1]Hypothèses!$F$49 -> 4455 | AL83: 7635 | AM83: =(Z83*[1]Hypothèses!$L$62+AB83*[1]Hypothèses!$L$65+AD83*[1]Hypothèses!$L$63+AF83*[1]Hypothèses!$L$64+AH83*[1]Hypothèses!$L$66+AJ83*[1]Hypothèses!$E$49)/1000 -> 1.08825 | AN83: 57 | AO83: =AP83/(VLOOKUP(E83,[1]Hypothèses!$S$26:$U$32,2,FALSE)*[1]Hypothèses!$AA$26) -> 3610.38111 | AP83: =(VLOOKUP(E83,[1]Hypothèses!$W$26:$X$32,2,FALSE)*[1]Hypothèses!$Y$26*[1]Hypothèses!$AB$26*K83)/([1]Hypothèses!$Z$26*1000) -> 18488.76167 | AQ83: =AP83/[1]Hypothèses!$AC$26 -> 4622.190417 | AR83: =(AS83*[1]Hypothèses!$I$53)*1000 -> 24000 | AS83: =ROUND(IF(K83<[1]Hypothèses!$J$53,1,K83/[1]Hypothèses!$J$53),0) -> 1 | AT83: =(AU83*[1]Hypothèses!$I$54)*1000 -> 24000 | AU83: =ROUND(IF(K83<[1]Hypothèses!$J$54,1,K83/[1]Hypothèses!$J$54),0) -> 1 | AV83: =(AW83*[1]Hypothèses!$I$55)*1000 -> 9600 | AW83: =[1]Hypothèses!$J$55 -> 3 | AX83: =(AY83*[1]Hypothèses!$I$56)*1000 -> 4800 | AY83: =ROUND(IF(K83<[1]Hypothèses!$J$56,0,K83/[1]Hypothèses!$J$56),0) -> 3 | BF83: 80888.76167 | BG83: =(AQ83+AS83*[1]Hypothèses!$G$53*1000+AU83*[1]Hypothèses!$G$54*1000+AW83*[1]Hypothèses!$G$55*1000+AY83*[1]Hypothèses!$G$56)/1000 -> 17.82279042 | BH83: 2 | BI83: 277037.7617 | BJ83: =(BI83/(VLOOKUP(E83,[1]Hypothèses!$S$26:$U$32,2,FALSE)*[1]Hypothèses!$X$4))/1000 -> 59.64247074 | BK83: =(BI83/(VLOOKUP(E83,[1]Hypothèses!$S$26:$U$32,3,FALSE)*[1]Hypothèses!$X$4))/1000 -> 73.2177634 | BL83: 51.00604042 | BM83: =BL83*[1]Hypothèses!$X$12/[1]Hypothèses!$W$12 -> 48.1723715 | BN83: =BL83*[1]Hypothèses!$W$8*[1]Hypothèses!$X$12 -> 52.02616122 | BO83: =BJ83*[1]Hypothèses!$X$8 -> 65.60671781 | BP83: =(BI83/1000)*[1]Hypothèses!$Z$4/([1]Hypothèses!$AA$4*[1]Hypothèses!$AB$4) -> 831.4458633 | BQ83: =BP83/[1]Hypothèses!$AB$8 -> 138.5743106 | BS83: =(('[1]Hypo Cables'!$J$4*'[1]Hypo Cables'!$M$4)/('[1]Fhypo DPP'!BL14*[1]Hypothèses!$X$12*('[1]Hypo Cables'!$M$24+'[1]Hypo Cables'!$M$25*'[1]Hypo Cables'!$J$14)))/1000 -> 0.2459474743 | BT83: =(('[1]Hypo Cables'!$J$4*'[1]Hypo Cables'!$M$4)/('[1]Fhypo DPP'!BL14*[1]Hypothèses!$X$12*('[1]Hypo Cables'!$M$27+'[1]Hypo Cables'!$M$28*'[1]Hypo Cables'!$J$14)))/1000 -> 0.4574324482 | BW83: =BQ83*[1]Hypothèses!$AC$8 -> 46.19143685 | BX83: =4*SQRT(BJ83*[1]Hypothèses!$AF$3) -> 209.6978799 | BY83: 52.42446997
D84: Sud Solar System | E84: SEDHIOU | F84: SEDHIOU | G84: KOUSSY | H84: BARY | I84: 660 | J84: 27 | K84: =ROUND(I84*(1+[1]Hypothèses!$T$4)^([1]Hypothèses!$S$4-[1]Hypothèses!$R$4),0) -> 700 | L84: =ROUND(J84*(1+[1]Hypothèses!$T$4)^([1]Hypothèses!$S$4-[1]Hypothèses!$R$4),0) -> 29 | M84: 28 | N84: =ROUND((L84*[1]Hypothèses!$U$4-'[1]Fhypo DPP'!M15)*[1]Hypothèses!$G$24+'[1]Fhypo DPP'!M15*[1]Hypothèses!$G$25,0) -> 2 | O84: =ROUND((L84*[1]Hypothèses!$U$4-'[1]Fhypo DPP'!M15)*[1]Hypothèses!$H$24+'[1]Fhypo DPP'!M15*[1]Hypothèses!$H$25,0) -> 3 | P84: =ROUND((L84*[1]Hypothèses!$U$4-'[1]Fhypo DPP'!M15)*[1]Hypothèses!$I$24+'[1]Fhypo DPP'!M15*[1]Hypothèses!$I$25,0) -> 3 | Q84: =ROUND((L84*[1]Hypothèses!$U$4-'[1]Fhypo DPP'!M15)*[1]Hypothèses!$J$24+'[1]Fhypo DPP'!M15*[1]Hypothèses!$J$25,0) -> 15 | R84: =N84+O84+P84+Q84 -> 23 | S84: =N84*[1]Hypothèses!$H$49 -> 668 | T84: =O84*[1]Hypothèses!$J$49 -> 3180 | U84: =P84*[1]Hypothèses!$L$49 -> 5220 | V84: =Q84*[1]Hypothèses!$N$49 -> 86130 | W84: =S84+T84+U84+V84 -> 95198 | X84: =(N84*[1]Hypothèses!$G$49+O84*[1]Hypothèses!$I$49+P84*[1]Hypothèses!$K$49+Q84*[1]Hypothèses!$M$49)/1000 -> 16.142 | Z84: =VLOOKUP(H84,[1]Struc_communautaires!C69:H162,2,FALSE) -> 1 | AA84: =Z84*[1]Hypothèses!$J$49 -> 1060 | AB84: =VLOOKUP(H84,[1]Struc_communautaires!C69:H162,3,FALSE) -> 1 | AC84: =AB84*[1]Hypothèses!$J$49 -> 1060 | AD84: =VLOOKUP(H84,[1]Struc_communautaires!C69:H162,4,FALSE) -> 0 | AE84: =AD84*[1]Hypothèses!$J$49 -> 0 | AH84: =VLOOKUP(H84,[1]Struc_communautaires!C69:H162,5,FALSE) -> 0 | AI84: =AH84*[1]Hypothèses!$J$49 -> 0 | AJ84: =VLOOKUP(H84,[1]Struc_communautaires!C69:H162,6,FALSE) -> 8.625 | AK84: =AJ84*[1]Hypothèses!$F$49 -> 3105 | AL84: =AA84+AC84+AE84+AG84+AI84+AK84 -> 5225 | AM84: =(Z84*[1]Hypothèses!$L$62+AB84*[1]Hypothèses!$L$65+AD84*[1]Hypothèses!$L$63+AF84*[1]Hypothèses!$L$64+AH84*[1]Hypothèses!$L$66+AJ84*[1]Hypothèses!$E$49)/1000 -> 0.73675 | AN84: =R84+Z84+AB84+AD84+AH84+AW84+AY84 -> 29 | AO84: =AP84/(VLOOKUP(E84,[1]Hypothèses!$S$26:$U$32,2,FALSE)*[1]Hypothèses!$AA$26) -> 1941.065113 | AP84: =(VLOOKUP(E84,[1]Hypothèses!$W$26:$X$32,2,FALSE)*[1]Hypothèses!$Y$26*[1]Hypothèses!$AB$26*K84)/([1]Hypothèses!$Z$26*1000) -> 9940.194444 | AQ84: =AP84/[1]Hypothèses!$AC$26 -> 2485.048611 | AR84: =(AS84*[1]Hypothèses!$I$53)*1000 -> 24000 | AS84: =ROUND(IF(K84<[1]Hypothèses!$J$53,1,K84/[1]Hypothèses!$J$53),0) -> 1 | AT84: =(AU84*[1]Hypothèses!$I$54)*1000 -> 24000 | AU84: =ROUND(IF(K84<[1]Hypothèses!$J$54,1,K84/[1]Hypothèses!$J$54),0) -> 1 | AV84: =(AW84*[1]Hypothèses!$I$55)*1000 -> 9600 | AW84: =[1]Hypothèses!$J$55 -> 3 | AX84: =(AY84*[1]Hypothèses!$I$56)*1000 -> 1600 | AY84: =ROUND(IF(K84<[1]Hypothèses!$J$56,0,K84/[1]Hypothèses!$J$56),0) -> 1 | BF84: =AP84+AR84+AT84+AV84+AX84+AZ84+BB84+BD84 -> 69140.19444 | BG84: =(AQ84+AS84*[1]Hypothèses!$G$53*1000+AU84*[1]Hypothèses!$G$54*1000+AW84*[1]Hypothèses!$G$55*1000+AY84*[1]Hypothèses!$G$56)/1000 -> 15.68524861 | BH84: =AS84+AU84 -> 2 | BI84: =W84+AL84+BF84 -> 169563.1944 | BJ84: =(BI84/(VLOOKUP(E84,[1]Hypothèses!$S$26:$U$32,2,FALSE)*[1]Hypothèses!$X$4))/1000 -> 36.50465483 | BK84: =(BI84/(VLOOKUP(E84,[1]Hypothèses!$S$26:$U$32,3,FALSE)*[1]Hypothèses!$X$4))/1000 -> 44.81352209 | BL84: =X84+AM84+BG84 -> 32.56399861 | BM84: =BL84*[1]Hypothèses!$X$12/[1]Hypothèses!$W$12 -> 30.75488758 | BN84: =BL84*[1]Hypothèses!$W$8*[1]Hypothèses!$X$12 -> 33.21527858 | BO84: =BJ84*[1]Hypothèses!$X$8 -> 40.15512031 | BP84: =(BI84/1000)*[1]Hypothèses!$Z$4/([1]Hypothèses!$AA$4*[1]Hypothèses!$AB$4) -> 508.8931406 | BQ84: =BP84/[1]Hypothèses!$AB$8 -> 84.81552343 | BS84: =(('[1]Hypo Cables'!$J$4*'[1]Hypo Cables'!$M$4)/('[1]Fhypo DPP'!BL15*[1]Hypothèses!$X$12*('[1]Hypo Cables'!$M$24+'[1]Hypo Cables'!$M$25*'[1]Hypo Cables'!$J$14)))/1000 -> 0.3412084601 | BT84: =(('[1]Hypo Cables'!$J$4*'[1]Hypo Cables'!$M$4)/('[1]Fhypo DPP'!BL15*[1]Hypothèses!$X$12*('[1]Hypo Cables'!$M$27+'[1]Hypo Cables'!$M$28*'[1]Hypo Cables'!$J$14)))/1000 -> 0.6346063185 | BW84: =BQ84*[1]Hypothèses!$AC$8 -> 28.27184114 | BX84: =4*SQRT(BJ84*[1]Hypothèses!$AF$3) -> 164.0553319 | BY84: =BX84/4 -> 41.01383296
D85: Sud Solar System | E85: SEDHIOU | F85: GOUDOMP | G85: SIMBANDI BRASSOU | H85: BISSADOU SANTO | I85: 1194 | J85: 97 | K85: =ROUND(I85*(1+[1]Hypothèses!$T$4)^([1]Hypothèses!$S$4-[1]Hypothèses!$R$4),0) -> 1267 | L85: =ROUND(J85*(1+[1]Hypothèses!$T$4)^([1]Hypothèses!$S$4-[1]Hypothèses!$R$4),0) -> 103 | M85: 37 | N85: =ROUND((L85*[1]Hypothèses!$U$4-'[1]Fhypo DPP'!M16)*[1]Hypothèses!$G$24+'[1]Fhypo DPP'!M16*[1]Hypothèses!$G$25,0) -> 7 | O85: =ROUND((L85*[1]Hypothèses!$U$4-'[1]Fhypo DPP'!M16)*[1]Hypothèses!$H$24+'[1]Fhypo DPP'!M16*[1]Hypothèses!$H$25,0) -> 13 | P85: =ROUND((L85*[1]Hypothèses!$U$4-'[1]Fhypo DPP'!M16)*[1]Hypothèses!$I$24+'[1]Fhypo DPP'!M16*[1]Hypothèses!$I$25,0) -> 11 | Q85: =ROUND((L85*[1]Hypothèses!$U$4-'[1]Fhypo DPP'!M16)*[1]Hypothèses!$J$24+'[1]Fhypo DPP'!M16*[1]Hypothèses!$J$25,0) -> 51 | R85: 82 | S85: =N85*[1]Hypothèses!$H$49 -> 2338 | T85: =O85*[1]Hypothèses!$J$49 -> 13780 | U85: =P85*[1]Hypothèses!$L$49 -> 19140 | V85: =Q85*[1]Hypothèses!$N$49 -> 292842 | W85: 328100 | X85: =(N85*[1]Hypothèses!$G$49+O85*[1]Hypothèses!$I$49+P85*[1]Hypothèses!$K$49+Q85*[1]Hypothèses!$M$49)/1000 -> 55.804 | Z85: =VLOOKUP(H85,[1]Struc_communautaires!C70:H163,2,FALSE) -> 1 | AA85: =Z85*[1]Hypothèses!$J$49 -> 1060 | AB85: =VLOOKUP(H85,[1]Struc_communautaires!C70:H163,3,FALSE) -> 1 | AC85: =AB85*[1]Hypothèses!$J$49 -> 1060 | AD85: =VLOOKUP(H85,[1]Struc_communautaires!C70:H163,4,FALSE) -> 1 | AE85: =AD85*[1]Hypothèses!$J$49 -> 1060 | AH85: =VLOOKUP(H85,[1]Struc_communautaires!C70:H163,5,FALSE) -> 0 | AI85: =AH85*[1]Hypothèses!$J$49 -> 0 | AJ85: =VLOOKUP(H85,[1]Struc_communautaires!C70:H163,6,FALSE) -> 17.875 | AK85: =AJ85*[1]Hypothèses!$F$49 -> 6435 | AL85: 9615 | AM85: =(Z85*[1]Hypothèses!$L$62+AB85*[1]Hypothèses!$L$65+AD85*[1]Hypothèses!$L$63+AF85*[1]Hypothèses!$L$64+AH85*[1]Hypothèses!$L$66+AJ85*[1]Hypothèses!$E$49)/1000 -> 1.11425 | AN85: 91 | AO85: =AP85/(VLOOKUP(E85,[1]Hypothèses!$S$26:$U$32,2,FALSE)*[1]Hypothèses!$AA$26) -> 3513.327855 | AP85: =(VLOOKUP(E85,[1]Hypothèses!$W$26:$X$32,2,FALSE)*[1]Hypothèses!$Y$26*[1]Hypothèses!$AB$26*K85)/([1]Hypothèses!$Z$26*1000) -> 17991.75194 | AQ85: =AP85/[1]Hypothèses!$AC$26 -> 4497.937986 | AR85: =(AS85*[1]Hypothèses!$I$53)*1000 -> 24000 | AS85: =ROUND(IF(K85<[1]Hypothèses!$J$53,1,K85/[1]Hypothèses!$J$53),0) -> 1 | AT85: =(AU85*[1]Hypothèses!$I$54)*1000 -> 24000 | AU85: =ROUND(IF(K85<[1]Hypothèses!$J$54,1,K85/[1]Hypothèses!$J$54),0) -> 1 | AV85: =(AW85*[1]Hypothèses!$I$55)*1000 -> 9600 | AW85: =[1]Hypothèses!$J$55 -> 3 | AX85: =(AY85*[1]Hypothèses!$I$56)*1000 -> 4800 | AY85: =ROUND(IF(K85<[1]Hypothèses!$J$56,0,K85/[1]Hypothèses!$J$56),0) -> 3 | BF85: 80391.75194 | BG85: =(AQ85+AS85*[1]Hypothèses!$G$53*1000+AU85*[1]Hypothèses!$G$54*1000+AW85*[1]Hypothèses!$G$55*1000+AY85*[1]Hypothèses!$G$56)/1000 -> 17.69853799 | BH85: 2 | BI85: 418106.7519 | BJ85: =(BI85/(VLOOKUP(E85,[1]Hypothèses!$S$26:$U$32,2,FALSE)*[1]Hypothèses!$X$4))/1000 -> 90.01271007 | BK85: =(BI85/(VLOOKUP(E85,[1]Hypothèses!$S$26:$U$32,3,FALSE)*[1]Hypothèses!$X$4))/1000 -> 110.5006085 | BL85: 74.61678799 | BM85: =BL85*[1]Hypothèses!$X$12/[1]Hypothèses!$W$12 -> 70.47141088 | BN85: =BL85*[1]Hypothèses!$W$8*[1]Hypothèses!$X$12 -> 76.10912375 | BO85: =BJ85*[1]Hypothèses!$X$8 -> 99.01398108 | BP85: =(BI85/1000)*[1]Hypothèses!$Z$4/([1]Hypothèses!$AA$4*[1]Hypothèses!$AB$4) -> 1254.822185 | BQ85: =BP85/[1]Hypothèses!$AB$8 -> 209.1370308 | BS85: =(('[1]Hypo Cables'!$J$4*'[1]Hypo Cables'!$M$4)/('[1]Fhypo DPP'!BL16*[1]Hypothèses!$X$12*('[1]Hypo Cables'!$M$24+'[1]Hypo Cables'!$M$25*'[1]Hypo Cables'!$J$14)))/1000 -> 0.2574459105 | BT85: =(('[1]Hypo Cables'!$J$4*'[1]Hypo Cables'!$M$4)/('[1]Fhypo DPP'!BL16*[1]Hypothèses!$X$12*('[1]Hypo Cables'!$M$27+'[1]Hypo Cables'!$M$28*'[1]Hypo Cables'!$J$14)))/1000 -> 0.4788181437 | BW85: =BQ85*[1]Hypothèses!$AC$8 -> 69.71234359 | BX85: =4*SQRT(BJ85*[1]Hypothèses!$AF$3) -> 257.6132195 | BY85: 64.40330488
